Workbook

Sheet Summary
C2: All Intra | G2: Reference: | H2: Anchor (SCM-1.0)
C3: G/Y | D3: B/U | E3: R/V | G3: Tested: | H3: Tested (Rnnnn)
B4: ='AI-SCC'!B107 -> RGB, text & graphics with motion, 1080p | C4: ='AI-SCC'!T107 -> -0.1158830317 | D4: ='AI-SCC'!U107 -> -0.1156172776 | E4: ='AI-SCC'!V107 -> -0.115079695
B5: ='AI-SCC'!B108 -> RGB, text & graphics with motion,720p | C5: ='AI-SCC'!T108 -> -0.06556547617 | D5: ='AI-SCC'!U108 -> -0.05869432566 | E5: ='AI-SCC'!V108 -> -0.06222422231
B6: ='AI-SCC'!B109 -> RGB, mixed content, 1440p | C6: ='AI-SCC'!T109 -> -0.01247583195 | D6: ='AI-SCC'!U109 -> -0.01133429368 | E6: ='AI-SCC'!V109 -> -0.01069730228 | G6: Note: BD-rate is computed using piece-wise cubic interpolation
B7: ='AI-SCC'!B110 -> RGB, mixed content, 1080p | C7: ='AI-SCC'!T110 -> -0.02214064791 | D7: ='AI-SCC'!U110 -> -0.02345319113 | E7: ='AI-SCC'!V110 -> -0.02108558239
B8: ='AI-SCC'!B111 -> RGB, Animation, 720p | C8: ='AI-SCC'!T111 -> 0.0007719151319 | D8: ='AI-SCC'!U111 -> -0.0005798045342 | E8: ='AI-SCC'!V111 -> -0.0004261423964
B9: ='AI-SCC'!B112 -> RGB, camera captured, 1080p | C9: ='AI-SCC'!T112 -> 0.000208911824 | D9: ='AI-SCC'!U112 -> 0.0001417719397 | E9: ='AI-SCC'!V112 -> 0.0002537290883
B10: ='AI-SCC'!B113 -> YUV, text & graphics with motion, 1080p | C10: ='AI-SCC'!T113 -> -0.1126557868 | D10: ='AI-SCC'!U113 -> -0.1265652497 | E10: ='AI-SCC'!V113 -> -0.1178003792
B11: ='AI-SCC'!B114 -> YUV, text & graphics with motion,720p | C11: ='AI-SCC'!T114 -> -0.05115726539 | D11: ='AI-SCC'!U114 -> -0.0738201712 | E11: ='AI-SCC'!V114 -> -0.09530070939
B12: ='AI-SCC'!B115 -> YUV, mixed content, 1440p | C12: ='AI-SCC'!T115 -> -0.009745004562 | D12: ='AI-SCC'!U115 -> -0.02623445718 | E12: ='AI-SCC'!V115 -> -0.02470505699
B13: ='AI-SCC'!B116 -> YUV, mixed content, 1080p | C13: ='AI-SCC'!T116 -> -0.02422626909 | D13: ='AI-SCC'!U116 -> -0.03537995647 | E13: ='AI-SCC'!V116 -> -0.03354991986
B14: ='AI-SCC'!B117 -> YUV, Animation, 720p | C14: ='AI-SCC'!T117 -> 0.001238477961 | D14: ='AI-SCC'!U117 -> -0.0007502526794 | E14: ='AI-SCC'!V117 -> -0.0005430766231
B15: ='AI-SCC'!B118 -> YUV, camera captured, 1080p | C15: ='AI-SCC'!T118 -> 0.0003262799401 | D15: ='AI-SCC'!U118 -> 0.000286348994 | E15: ='AI-SCC'!V118 -> 0.0004775913067
B16: Enc Time[%] | C16: ='AI-SCC'!$D$138 -> 0.9944999292
B17: Dec Time[%] | C17: ='AI-SCC'!$C$138 -> 0.9856171634
C19: Random Access
C20: G/Y | D20: B/U | E20: R/V
B21: ='RA-SCC'!B107 -> RGB, text & graphics with motion, 1080p | C21: ='RA-SCC'!T107 -> -0.06664408589 | D21: ='RA-SCC'!U107 -> -0.06894839689 | E21: ='RA-SCC'!V107 -> -0.07019610958
B22: ='RA-SCC'!B108 -> RGB, text & graphics with motion,720p | C22: ='RA-SCC'!T108 -> -0.06263339536 | D22: ='RA-SCC'!U108 -> -0.05312536267 | E22: ='RA-SCC'!V108 -> -0.05757141066
B23: ='RA-SCC'!B109 -> RGB, mixed content, 1440p | C23: ='RA-SCC'!T109 -> -0.01412939735 | D23: ='RA-SCC'!U109 -> -0.01119253605 | E23: ='RA-SCC'!V109 -> -0.01059587125
B24: ='RA-SCC'!B110 -> RGB, mixed content, 1080p | C24: ='RA-SCC'!T110 -> -0.02107748257 | D24: ='RA-SCC'!U110 -> -0.02253809072 | E24: ='RA-SCC'!V110 -> -0.01986996708
B25: ='RA-SCC'!B111 -> RGB, Animation, 720p | C25: ='RA-SCC'!T111 -> -0.0001564964177 | D25: ='RA-SCC'!U111 -> -0.001233543744 | E25: ='RA-SCC'!V111 -> -0.0001580433752
B26: ='RA-SCC'!B112 -> RGB, camera captured, 1080p | C26: ='RA-SCC'!T112 -> 0.0004010556129 | D26: ='RA-SCC'!U112 -> 0.000126901401 | E26: ='RA-SCC'!V112 -> 0.0005021563239
B27: ='RA-SCC'!B113 -> YUV, text & graphics with motion, 1080p | C27: ='RA-SCC'!T113 -> -0.06729337857 | D27: ='RA-SCC'!U113 -> -0.08766851986 | E27: ='RA-SCC'!V113 -> -0.08346690332
B28: ='RA-SCC'!B114 -> YUV, text & graphics with motion,720p | C28: ='RA-SCC'!T114 -> -0.05148737806 | D28: ='RA-SCC'!U114 -> -0.07289117584 | E28: ='RA-SCC'!V114 -> -0.09066383543
B29: ='RA-SCC'!B115 -> YUV, mixed content, 1440p | C29: ='RA-SCC'!T115 -> -0.01023150473 | D29: ='RA-SCC'!U115 -> -0.03750639046 | E29: ='RA-SCC'!V115 -> -0.03152957381
B30: ='RA-SCC'!B116 -> YUV, mixed content, 1080p | C30: ='RA-SCC'!T116 -> -0.02374309013 | D30: ='RA-SCC'!U116 -> -0.04747681468 | E30: ='RA-SCC'!V116 -> -0.04532518134
B31: ='RA-SCC'!B117 -> YUV, Animation, 720p | C31: ='RA-SCC'!T117 -> 0.001382048783 | D31: ='RA-SCC'!U117 -> -0.002210665104 | E31: ='RA-SCC'!V117 -> 0.0003579347771
B32: ='RA-SCC'!B118 -> YUV, camera captured, 1080p | C32: ='RA-SCC'!T118 -> 0.0004230783388 | D32: ='RA-SCC'!U118 -> 0.0008507493962 | E32: ='RA-SCC'!V118 -> 0.0009036491957
B33: Enc Time[%] | C33: ='RA-SCC'!$D$138 -> 1.014003605
B34: Dec Time[%] | C34: ='RA-SCC'!$C$138 -> 1.03885236
C36: Low delay B
C37: G/Y | D37: B/U | E37: R/V
B38: ='LB-SCC'!B107 -> RGB, text & graphics with motion, 1080p | C38: ='LB-SCC'!T107 -> -0.03886693813 | D38: ='LB-SCC'!U107 -> -0.0431260918 | E38: ='LB-SCC'!V107 -> -0.04332336287
B39: ='LB-SCC'!B108 -> RGB, text & graphics with motion,720p | C39: ='LB-SCC'!T108 -> -0.0386190054 | D39: ='LB-SCC'!U108 -> -0.03367834794 | E39: ='LB-SCC'!V108 -> -0.03697885347
B40: ='LB-SCC'!B109 -> RGB, mixed content, 1440p | C40: ='LB-SCC'!T109 -> -0.01253992705 | D40: ='LB-SCC'!U109 -> -0.01324390865 | E40: ='LB-SCC'!V109 -> -0.0103874361
B41: ='LB-SCC'!B110 -> RGB, mixed content, 1080p | C41: ='LB-SCC'!T110 -> -0.018398744 | D41: ='LB-SCC'!U110 -> -0.02063970859 | E41: ='LB-SCC'!V110 -> -0.0180514151
B42: ='LB-SCC'!B111 -> RGB, Animation, 720p | C42: ='LB-SCC'!T111 -> 0.0006142085439 | D42: ='LB-SCC'!U111 -> 0.000325044996 | E42: ='LB-SCC'!V111 -> 0.001157623478
B43: ='LB-SCC'!B112 -> RGB, camera captured, 1080p | C43: ='LB-SCC'!T112 -> -0.0005103555698 | D43: ='LB-SCC'!U112 -> 0.0001764989134 | E43: ='LB-SCC'!V112 -> -0.0005198024849
B44: ='LB-SCC'!B113 -> YUV, text & graphics with motion, 1080p | C44: ='LB-SCC'!T113 -> -0.03350146779 | D44: ='LB-SCC'!U113 -> -0.05532862293 | E44: ='LB-SCC'!V113 -> -0.05261239541
B45: ='LB-SCC'!B114 -> YUV, text & graphics with motion,720p | C45: ='LB-SCC'!T114 -> -0.03166692287 | D45: ='LB-SCC'!U114 -> -0.05081465971 | E45: ='LB-SCC'!V114 -> -0.06649204636
B46: ='LB-SCC'!B115 -> YUV, mixed content, 1440p | C46: ='LB-SCC'!T115 -> -0.007473861461 | D46: ='LB-SCC'!U115 -> -0.03715691795 | E46: ='LB-SCC'!V115 -> -0.03138664133
B47: ='LB-SCC'!B116 -> YUV, mixed content, 1080p | C47: ='LB-SCC'!T116 -> -0.009726563648 | D47: ='LB-SCC'!U116 -> -0.03667242727 | E47: ='LB-SCC'!V116 -> -0.02822790872
B48: ='LB-SCC'!B117 -> YUV, Animation, 720p | C48: ='LB-SCC'!T117 -> 0.001492973351 | D48: ='LB-SCC'!U117 -> -0.002388680002 | E48: ='LB-SCC'!V117 -> 0.0001984406705
B49: ='LB-SCC'!B118 -> YUV, camera captured, 1080p | C49: ='LB-SCC'!T118 -> 0.0005501428601 | D49: ='LB-SCC'!U118 -> 0.0007892996275 | E49: ='LB-SCC'!V118 -> -0.0008337382989
B50: Enc Time[%] | C50: ='LB-SCC'!$D$138 -> 1.006711052
B51: Dec Time[%] | C51: ='LB-SCC'!$C$138 -> 1.022240872

Sheet AI-SCC
D1: =Summary!H2 -> Anchor (SCM-1.0) | L1: =Summary!H3 -> Tested (Rnnnn) | T1: BD-rate (piecewise cubic) | W1: BD-rate (cubic) | AA1: MSE PSNR (anchor) | AE1: MSE PSNR (tested)
C2: QPISlice | D2: kbps | E2: G/Y psnr | F2: B/U psnr | G2: R/V psnr | H2: Enc T [s] | I2: Dec T [s] | J2: Enc T [h] | L2: kbps | M2: G/Y psnr | N2: B/U psnr | O2: R/V psnr | P2: Enc T [s] | Q2: Dec T [s] | R2: Enc T [h] | T2: G/Y | U2: B/U | V2: R/V | W2: G/Y | X2: B/U | Y2: R/V | AA2: G/Y | AB2: B/U | AC2: R/V | AE2: G/Y | AF2: B/U | AG2: R/V
A3: RGB, text & graphics with motion, 1080p | B3: sc_flyingGraphics_1920x1080_60_8bit_rgb | C3: 22 | D3: =Anchor!B1 -> 103060.1808 | E3: =Anchor!C1 -> 48.8002 | F3: =Anchor!D1 -> 48.3241 | G3: =Anchor!E1 -> 48.148 | H3: =Anchor!F1 -> 35414.2 | I3: =Anchor!G1 -> 65.08 | J3: =secToHours(H3) -> 9.837277778 | L3: =Test!B1 -> 99746.512 | M3: =Test!C1 -> 49.8854 | N3: =Test!D1 -> 49.4967 | O3: =Test!E1 -> 49.2154 | P3: =Test!F1 -> 34526.46 | Q3: =Test!G1 -> 60.83 | R3: =secToHours(P3) -> 9.590683333 | T3: =bdrate(D3:D6,E3:E6,L3:L6,M3:M6) -> -0.07259904566 | U3: =bdrate(D3:D6,F3:F6,L3:L6,N3:N6) -> -0.07425318629 | V3: =bdrate(D3:D6,G3:G6,L3:L6,O3:O6) -> -0.07174227582 | W3: =bdrateOld(D3:D6,E3:E6,L3:L6,M3:M6) -> -0.07253306228 | X3: =bdrateOld(D3:D6,F3:F6,L3:L6,N3:N6) -> -0.07424981337 | Y3: =bdrateOld(D3:D6,G3:G6,L3:L6,O3:O6) -> -0.07172813337 | AA3: =Anchor!H1 -> 48.791 | AB3: =Anchor!I1 -> 48.3177 | AC3: =Anchor!J1 -> 48.1393 | AE3: =Test!H1 -> 49.8702 | AF3: =Test!I1 -> 49.4854 | AG3: =Test!J1 -> 49.2017
C4: 27 | D4: =Anchor!B2 -> 81981.9344 | E4: =Anchor!C2 -> 43.9149 | F4: =Anchor!D2 -> 43.4936 | G4: =Anchor!E2 -> 43.2965 | H4: =Anchor!F2 -> 35469.51 | I4: =Anchor!G2 -> 62.12 | J4: =secToHours(H4) -> 9.852641667 | L4: =Test!B2 -> 79988.6512 | M4: =Test!C2 -> 44.911 | N4: =Test!D2 -> 44.5177 | O4: =Test!E2 -> 44.2513 | P4: =Test!F2 -> 33498.71 | Q4: =Test!G2 -> 59.32 | R4: =secToHours(P4) -> 9.305197222 | AA4: =Anchor!H2 -> 43.9067 | AB4: =Anchor!I2 -> 43.4873 | AC4: =Anchor!J2 -> 43.2896 | AE4: =Test!H2 -> 44.8964 | AF4: =Test!I2 -> 44.5075 | AG4: =Test!J2 -> 44.2399
C5: 32 | D5: =Anchor!B3 -> 63317.8048 | E5: =Anchor!C3 -> 39.1363 | F5: =Anchor!D3 -> 38.889 | G5: =Anchor!E3 -> 38.708 | H5: =Anchor!F3 -> 33766.28 | I5: =Anchor!G3 -> 59.45 | J5: =secToHours(H5) -> 9.379522222 | L5: =Test!B3 -> 62190.7568 | M5: =Test!C3 -> 40.0983 | N5: =Test!D3 -> 39.8366 | O5: =Test!E3 -> 39.6256 | P5: =Test!F3 -> 31813.28 | Q5: =Test!G3 -> 56.94 | R5: =secToHours(P5) -> 8.837022222 | AA5: =Anchor!H3 -> 39.1291 | AB5: =Anchor!I3 -> 38.8821 | AC5: =Anchor!J3 -> 38.7009 | AE5: =Test!H3 -> 40.0852 | AF5: =Test!I3 -> 39.8265 | AG5: =Test!J3 -> 39.6145
C6: 37 | D6: =Anchor!B4 -> 46473.0144 | E6: =Anchor!C4 -> 34.4109 | F6: =Anchor!D4 -> 34.1266 | G6: =Anchor!E4 -> 34.0488 | H6: =Anchor!F4 -> 32148.99 | I6: =Anchor!G4 -> 56.74 | J6: 8.930275 | L6: =Test!B4 -> 45890.4128 | M6: =Test!C4 -> 35.3986 | N6: =Test!D4 -> 35.1751 | O6: =Test!E4 -> 35.0122 | P6: =Test!F4 -> 29767.63 | Q6: =Test!G4 -> 54.99 | R6: 8.268786111 | AA6: =Anchor!H4 -> 34.4053 | AB6: =Anchor!I4 -> 34.121 | AC6: =Anchor!J4 -> 34.0418 | AE6: =Test!H4 -> 35.3896 | AF6: =Test!I4 -> 35.1673 | AG6: =Test!J4 -> 35.0045
B7: sc_desktop_1920x1080_60_8bit_rgb | C7: 22 | D7: =Anchor!B5 -> 58975.0672 | E7: =Anchor!C5 -> 51.9836 | F7: =Anchor!D5 -> 51.604 | G7: =Anchor!E5 -> 51.1237 | H7: =Anchor!F5 -> 54376.56 | I7: =Anchor!G5 -> 106.36 | J7: 15.1046 | L7: =Test!B5 -> 52658.2496 | M7: =Test!C5 -> 54.9005 | N7: =Test!D5 -> 54.1546 | O7: =Test!E5 -> 53.4815 | P7: =Test!F5 -> 53719.84 | Q7: =Test!G5 -> 96.69 | R7: 14.92217778 | T7: =bdrate(D7:D10,E7:E10,L7:L10,M7:M10) -> -0.1289994284 | U7: =bdrate(D7:D10,F7:F10,L7:L10,N7:N10) -> -0.1242634268 | V7: =bdrate(D7:D10,G7:G10,L7:L10,O7:O10) -> -0.1237547457 | W7: =bdrateOld(D7:D10,E7:E10,L7:L10,M7:M10) -> -0.1288777139 | X7: =bdrateOld(D7:D10,F7:F10,L7:L10,N7:N10) -> -0.1243449639 | Y7: =bdrateOld(D7:D10,G7:G10,L7:L10,O7:O10) -> -0.1238754393 | AA7: =Anchor!H5 -> 51.9794 | AB7: =Anchor!I5 -> 51.5951 | AC7: =Anchor!J5 -> 51.1185 | AE7: =Test!H5 -> 54.8959 | AF7: =Test!I5 -> 54.1528 | AG7: =Test!J5 -> 53.4791
C8: 27 | D8: =Anchor!B6 -> 50808.924 | E8: =Anchor!C6 -> 46.5968 | F8: =Anchor!D6 -> 45.9686 | G8: =Anchor!E6 -> 45.4277 | H8: =Anchor!F6 -> 58716.54 | I8: =Anchor!G6 -> 104.96 | J8: 16.31015 | L8: =Test!B6 -> 47295.5848 | M8: =Test!C6 -> 49.921 | N8: =Test!D6 -> 48.9184 | O8: =Test!E6 -> 48.3646 | P8: =Test!F6 -> 53742.97 | Q8: =Test!G6 -> 96.95 | R8: 14.92860278 | AA8: =Anchor!H6 -> 46.5895 | AB8: =Anchor!I6 -> 45.9561 | AC8: =Anchor!J6 -> 45.4198 | AE8: =Test!H6 -> 49.9095 | AF8: =Test!I6 -> 48.9157 | AG8: =Test!J6 -> 48.3607
C9: 32 | D9: =Anchor!B7 -> 43765.2144 | E9: =Anchor!C7 -> 41.8687 | F9: =Anchor!D7 -> 41.2765 | G9: =Anchor!E7 -> 40.8703 | H9: =Anchor!F7 -> 56266.37 | I9: =Anchor!G7 -> 102.84 | J9: 15.62954722 | L9: =Test!B7 -> 42083.3864 | M9: =Test!C7 -> 44.7826 | N9: =Test!D7 -> 43.9581 | O9: =Test!E7 -> 43.4362 | P9: =Test!F7 -> 51974.13 | Q9: =Test!G7 -> 96.21 | R9: 14.43725833 | AA9: =Anchor!H7 -> 41.8618 | AB9: =Anchor!I7 -> 41.2644 | AC9: =Anchor!J7 -> 40.8588 | AE9: =Test!H7 -> 44.7692 | AF9: =Test!I7 -> 43.9551 | AG9: =Test!J7 -> 43.4332
C10: 37 | D10: =Anchor!B8 -> 35978.8864 | E10: =Anchor!C8 -> 36.0173 | F10: =Anchor!D8 -> 35.6242 | G10: =Anchor!E8 -> 35.44 | H10: =Anchor!F8 -> 54174.76 | I10: =Anchor!G8 -> 100.39 | J10: 15.04854444 | L10: =Test!B8 -> 36095.3704 | M10: =Test!C8 -> 39.0649 | N10: =Test!D8 -> 38.5338 | O10: =Test!E8 -> 38.1652 | P10: =Test!F8 -> 50135.97 | Q10: =Test!G8 -> 94.88 | R10: 13.92665833 | AA10: =Anchor!H8 -> 36.0095 | AB10: =Anchor!I8 -> 35.6051 | AC10: =Anchor!J8 -> 35.4227 | AE10: =Test!H8 -> 39.057 | AF10: =Test!I8 -> 38.5272 | AG10: =Test!J8 -> 38.16
B11: sc_console_1920x1080_60_8bit_rgb | C11: 22 | D11: =Anchor!B9 -> 48262.088 | E11: =Anchor!C9 -> 54.7951 | F11: =Anchor!D9 -> 55.2588 | G11: =Anchor!E9 -> 54.4585 | H11: =Anchor!F9 -> 45093.07 | I11: =Anchor!G9 -> 99.3 | J11: 12.52585278 | L11: =Test!B9 -> 44102.5152 | M11: =Test!C9 -> 57.6325 | N11: =Test!D9 -> 57.264 | O11: =Test!E9 -> 56.634 | P11: =Test!F9 -> 45382.89 | Q11: =Test!G9 -> 88.13 | R11: 12.60635833 | T11: =bdrate(D11:D14,E11:E14,L11:L14,M11:M14) -> -0.146050621 | U11: =bdrate(D11:D14,F11:F14,L11:L14,N11:N14) -> -0.1483352196 | V11: =bdrate(D11:D14,G11:G14,L11:L14,O11:O14) -> -0.1497420636 | W11: =bdrateOld(D11:D14,E11:E14,L11:L14,M11:M14) -> -0.1480625793 | X11: =bdrateOld(D11:D14,F11:F14,L11:L14,N11:N14) -> -0.1540530387 | Y11: =bdrateOld(D11:D14,G11:G14,L11:L14,O11:O14) -> -0.1548415242 | AA11: =Anchor!H9 -> 54.7793 | AB11: =Anchor!I9 -> 55.2423 | AC11: =Anchor!J9 -> 54.4458 | AE11: =Test!H9 -> 57.6184 | AF11: =Test!I9 -> 57.2489 | AG11: =Test!J9 -> 56.6209
C12: 27 | D12: =Anchor!B10 -> 41704.5352 | E12: =Anchor!C10 -> 48.5862 | F12: =Anchor!D10 -> 47.8962 | G12: =Anchor!E10 -> 47.3616 | H12: =Anchor!F10 -> 50389.87 | I12: =Anchor!G10 -> 98.88 | J12: 13.99718611 | L12: =Test!B10 -> 39107.4368 | M12: =Test!C10 -> 52.332 | N12: =Test!D10 -> 51.7356 | O12: =Test!E10 -> 51.2148 | P12: =Test!F10 -> 45513.18 | Q12: =Test!G10 -> 88.54 | R12: 12.64255 | AA12: =Anchor!H10 -> 48.5656 | AB12: =Anchor!I10 -> 47.8781 | AC12: =Anchor!J10 -> 47.3473 | AE12: =Test!H10 -> 52.3196 | AF12: =Test!I10 -> 51.7208 | AG12: =Test!J10 -> 51.2031
C13: 32 | D13: =Anchor!B11 -> 35520.0056 | E13: =Anchor!C11 -> 44.1715 | F13: =Anchor!D11 -> 43.9783 | G13: =Anchor!E11 -> 43.4724 | H13: =Anchor!F11 -> 48799.89 | I13: =Anchor!G11 -> 97.13 | J13: 13.555525 | L13: =Test!B11 -> 33981.7776 | M13: =Test!C11 -> 47.5749 | N13: =Test!D11 -> 47.3221 | O13: =Test!E11 -> 46.8657 | P13: =Test!F11 -> 42800.05 | Q13: =Test!G11 -> 87.58 | R13: 11.88890278 | AA13: =Anchor!H11 -> 44.148 | AB13: =Anchor!I11 -> 43.9539 | AC13: =Anchor!J11 -> 43.4521 | AE13: =Test!H11 -> 47.5613 | AF13: =Test!I11 -> 47.3034 | AG13: =Test!J11 -> 46.8532
C14: 37 | D14: =Anchor!B12 -> 29086.1568 | E14: =Anchor!C12 -> 38.4893 | F14: =Anchor!D12 -> 38.2199 | G14: =Anchor!E12 -> 38.0979 | H14: =Anchor!F12 -> 46076.88 | I14: =Anchor!G12 -> 95.98 | J14: 12.79913333 | L14: =Test!B12 -> 28904.1072 | M14: =Test!C12 -> 41.8996 | N14: =Test!D12 -> 42.0133 | O14: =Test!E12 -> 41.4217 | P14: =Test!F12 -> 40889.29 | Q14: =Test!G12 -> 87.11 | R14: 11.35813611 | AA14: =Anchor!H12 -> 38.4809 | AB14: =Anchor!I12 -> 38.2102 | AC14: =Anchor!J12 -> 38.0876 | AE14: =Test!H12 -> 41.8891 | AF14: =Test!I12 -> 41.9991 | AG14: =Test!J12 -> 41.4102
A15: RGB, text & graphics with motion,720p | B15: sc_web_browsing_1280x720_30_8bit_300_rgb | C15: 22 | D15: =Anchor!B13 -> 11401.436 | E15: =Anchor!C13 -> 52.3692 | F15: =Anchor!D13 -> 50.903 | G15: =Anchor!E13 -> 50.9865 | H15: =Anchor!F13 -> 10700.32 | I15: =Anchor!G13 -> 22.85 | J15: 2.972311111 | L15: =Test!B13 -> 10631.6528 | M15: =Test!C13 -> 54.108 | N15: =Test!D13 -> 52.8138 | O15: =Test!E13 -> 52.6295 | P15: =Test!F13 -> 10324.27 | Q15: =Test!G13 -> 22.04 | R15: 2.867852778 | T15: =bdrate(D15:D18,E15:E18,L15:L18,M15:M18) -> -0.1281213775 | U15: =bdrate(D15:D18,F15:F18,L15:L18,N15:N18) -> -0.1217683431 | V15: =bdrate(D15:D18,G15:G18,L15:L18,O15:O18) -> -0.1253034167 | W15: =bdrateOld(D15:D18,E15:E18,L15:L18,M15:M18) -> -0.1280658516 | X15: =bdrateOld(D15:D18,F15:F18,L15:L18,N15:N18) -> -0.1213807837 | Y15: =bdrateOld(D15:D18,G15:G18,L15:L18,O15:O18) -> -0.1250183852 | AA15: =Anchor!H13 -> 52.0437 | AB15: =Anchor!I13 -> 50.6855 | AC15: =Anchor!J13 -> 50.7617 | AE15: =Test!H13 -> 53.4768 | AF15: =Test!I13 -> 52.3325 | AG15: =Test!J13 -> 52.2012
C16: 27 | D16: =Anchor!B14 -> 8951.3008 | E16: =Anchor!C14 -> 46.7828 | F16: =Anchor!D14 -> 45.9551 | G16: =Anchor!E14 -> 45.7449 | H16: =Anchor!F14 -> 11059.59 | I16: =Anchor!G14 -> 22.01 | J16: 3.072108333 | L16: =Test!B14 -> 8639.412 | M16: =Test!C14 -> 49.6189 | N16: =Test!D14 -> 48.3727 | O16: =Test!E14 -> 48.3118 | P16: =Test!F14 -> 9914.07 | Q16: =Test!G14 -> 21.23 | R16: 2.753908333 | AA16: =Anchor!H14 -> 46.6503 | AB16: =Anchor!I14 -> 45.8131 | AC16: =Anchor!J14 -> 45.6355 | AE16: =Test!H14 -> 49.1198 | AF16: =Test!I14 -> 47.9873 | AG16: =Test!J14 -> 47.9609
C17: 32 | D17: =Anchor!B15 -> 7161.9496 | E17: =Anchor!C15 -> 43.0414 | F17: =Anchor!D15 -> 41.8342 | G17: =Anchor!E15 -> 41.6578 | H17: =Anchor!F15 -> 10213.91 | I17: =Anchor!G15 -> 21.1 | J17: 2.837197222 | L17: =Test!B15 -> 7132.6688 | M17: =Test!C15 -> 45.3998 | N17: =Test!D15 -> 44.1199 | O17: =Test!E15 -> 44.0543 | P17: =Test!F15 -> 9329.2 | Q17: =Test!G15 -> 20.61 | R17: 2.591444444 | AA17: =Anchor!H15 -> 42.9172 | AB17: =Anchor!I15 -> 41.7192 | AC17: =Anchor!J15 -> 41.5741 | AE17: =Test!H15 -> 44.9902 | AF17: =Test!I15 -> 43.809 | AG17: =Test!J15 -> 43.7913
C18: 37 | D18: =Anchor!B16 -> 5378.7168 | E18: =Anchor!C16 -> 36.3278 | F18: =Anchor!D16 -> 35.7092 | G18: =Anchor!E16 -> 35.5542 | H18: =Anchor!F16 -> 10399.88 | I18: =Anchor!G16 -> 20.19 | J18: 2.888855556 | L18: =Test!B16 -> 5427.8728 | M18: =Test!C16 -> 39.036 | N18: =Test!D16 -> 38.0953 | O18: =Test!E16 -> 37.9763 | P18: =Test!F16 -> 9396.03 | Q18: =Test!G16 -> 19.73 | R18: 2.610008333 | AA18: =Anchor!H16 -> 36.2968 | AB18: =Anchor!I16 -> 35.6726 | AC18: =Anchor!J16 -> 35.5234 | AE18: =Test!H16 -> 38.8856 | AF18: =Test!I16 -> 37.9581 | AG18: =Test!J16 -> 37.864
B19: sc_map_1280x720_60_8bit | C19: 22 | D19: =Anchor!B17 -> 67042.4464 | E19: =Anchor!C17 -> 47.3586 | F19: =Anchor!D17 -> 46.5093 | G19: =Anchor!E17 -> 46.7784 | H19: =Anchor!F17 -> 34566.5 | I19: =Anchor!G17 -> 72.27 | J19: 9.601805556 | L19: =Test!B17 -> 64243.8368 | M19: =Test!C17 -> 48.6434 | N19: =Test!D17 -> 47.823 | O19: =Test!E17 -> 48.1001 | P19: =Test!F17 -> 34638.14 | Q19: =Test!G17 -> 60.65 | R19: 9.621705556 | T19: =bdrate(D19:D22,E19:E22,L19:L22,M19:M22) -> -0.06128847075 | U19: =bdrate(D19:D22,F19:F22,L19:L22,N19:N22) -> -0.06478888936 | V19: =bdrate(D19:D22,G19:G22,L19:L22,O19:O22) -> -0.0692119324 | W19: =bdrateOld(D19:D22,E19:E22,L19:L22,M19:M22) -> -0.06125195403 | X19: =bdrateOld(D19:D22,F19:F22,L19:L22,N19:N22) -> -0.0646766978 | Y19: =bdrateOld(D19:D22,G19:G22,L19:L22,O19:O22) -> -0.0691931838 | AA19: =Anchor!H17 -> 46.9459 | AB19: =Anchor!I17 -> 46.0949 | AC19: =Anchor!J17 -> 46.377 | AE19: =Test!H17 -> 48.2201 | AF19: =Test!I17 -> 47.3555 | AG19: =Test!J17 -> 47.7118
C20: 27 | D20: =Anchor!B18 -> 45932.0256 | E20: =Anchor!C18 -> 42.9643 | F20: =Anchor!D18 -> 42.1489 | G20: =Anchor!E18 -> 42.5974 | H20: =Anchor!F18 -> 31400.45 | I20: =Anchor!G18 -> 65.06 | J20: 8.722347222 | L20: =Test!B18 -> 45975.5128 | M20: =Test!C18 -> 43.7944 | N20: =Test!D18 -> 42.9956 | O20: =Test!E18 -> 43.4733 | P20: =Test!F18 -> 32014.65 | Q20: =Test!G18 -> 60.01 | R20: 8.892958333 | AA20: =Anchor!H18 -> 42.4864 | AB20: =Anchor!I18 -> 41.6739 | AC20: =Anchor!J18 -> 42.1743 | AE20: =Test!H18 -> 43.3418 | AF20: =Test!I18 -> 42.5171 | AG20: =Test!J18 -> 43.068
C21: 32 | D21: =Anchor!B19 -> 29652.7312 | E21: =Anchor!C19 -> 38.6019 | F21: =Anchor!D19 -> 37.86 | G21: =Anchor!E19 -> 38.5526 | H21: =Anchor!F19 -> 28621.78 | I21: =Anchor!G19 -> 58.15 | J21: 7.950494444 | L21: =Test!B19 -> 30173.7416 | M21: =Test!C19 -> 39.1752 | N21: =Test!D19 -> 38.4879 | O21: =Test!E19 -> 39.1728 | P21: =Test!F19 -> 29102.23 | Q21: =Test!G19 -> 56.38 | R21: 8.083952778 | AA21: =Anchor!H19 -> 38.0413 | AB21: =Anchor!I19 -> 37.3234 | AC21: =Anchor!J19 -> 38.0798 | AE21: =Test!H19 -> 38.5872 | AF21: =Test!I19 -> 37.9071 | AG21: =Test!J19 -> 38.6695
C22: 37 | D22: =Anchor!B20 -> 18561.8216 | E22: =Anchor!C20 -> 34.5189 | F22: =Anchor!D20 -> 33.937 | G22: =Anchor!E20 -> 34.7236 | H22: =Anchor!F20 -> 24347.1 | I22: =Anchor!G20 -> 51.83 | J22: 6.763083333 | L22: =Test!B20 -> 19012.4056 | M22: =Test!C20 -> 35.0779 | N22: =Test!D20 -> 34.4477 | O22: =Test!E20 -> 35.2922 | P22: =Test!F20 -> 24554.96 | Q22: =Test!G20 -> 51.49 | R22: 6.820822222 | AA22: =Anchor!H20 -> 34.0145 | AB22: =Anchor!I20 -> 33.4002 | AC22: =Anchor!J20 -> 34.2772 | AE22: =Test!H20 -> 34.4738 | AF22: =Test!I20 -> 33.8311 | AG22: =Test!J20 -> 34.7642
B23: sc_programming_1280x720_60_8bit | C23: 22 | D23: =Anchor!B21 -> 61192.2816 | E23: =Anchor!C21 -> 47.5135 | F23: =Anchor!D21 -> 47.0468 | G23: =Anchor!E21 -> 46.932 | H23: =Anchor!F21 -> 28800.11 | I23: =Anchor!G21 -> 65.23 | J23: 8.000030556 | L23: =Test!B21 -> 60661.544 | M23: =Test!C21 -> 47.9877 | N23: =Test!D21 -> 47.3812 | O23: =Test!E21 -> 47.2532 | P23: =Test!F21 -> 29235.91 | Q23: =Test!G21 -> 64.82 | R23: 8.121086111 | T23: =bdrate(D23:D26,E23:E26,L23:L26,M23:M26) -> -0.04415405613 | U23: =bdrate(D23:D26,F23:F26,L23:L26,N23:N26) -> -0.02563886261 | V23: =bdrate(D23:D26,G23:G26,L23:L26,O23:O26) -> -0.02920703589 | W23: =bdrateOld(D23:D26,E23:E26,L23:L26,M23:M26) -> -0.04413993995 | X23: =bdrateOld(D23:D26,F23:F26,L23:L26,N23:N26) -> -0.02566947913 | Y23: =bdrateOld(D23:D26,G23:G26,L23:L26,O23:O26) -> -0.02919232997 | AA23: =Anchor!H21 -> 47.4974 | AB23: =Anchor!I21 -> 47.0067 | AC23: =Anchor!J21 -> 46.9061 | AE23: =Test!H21 -> 47.961 | AF23: =Test!I21 -> 47.3312 | AG23: =Test!J21 -> 47.2213
C24: 27 | D24: =Anchor!B22 -> 44752.9672 | E24: =Anchor!C22 -> 43.3337 | F24: =Anchor!D22 -> 42.4996 | G24: =Anchor!E22 -> 42.6971 | H24: =Anchor!F22 -> 27280.89 | I24: =Anchor!G22 -> 60.12 | J24: 7.578025 | L24: =Test!B22 -> 44559.1776 | M24: =Test!C22 -> 43.8237 | N24: =Test!D22 -> 42.7982 | O24: =Test!E22 -> 43.033 | P24: =Test!F22 -> 27925.15 | Q24: =Test!G22 -> 60.13 | R24: 7.756986111 | AA24: =Anchor!H22 -> 43.3176 | AB24: =Anchor!I22 -> 42.475 | AC24: =Anchor!J22 -> 42.6795 | AE24: =Test!H22 -> 43.7968 | AF24: =Test!I22 -> 42.7672 | AG24: =Test!J22 -> 43.0108
C25: 32 | D25: =Anchor!B23 -> 31355.0648 | E25: =Anchor!C23 -> 39.0436 | F25: =Anchor!D23 -> 37.9729 | G25: =Anchor!E23 -> 38.3148 | H25: =Anchor!F23 -> 25314.13 | I25: =Anchor!G23 -> 55.7 | J25: 7.031702778 | L25: =Test!B23 -> 31577.0312 | M25: =Test!C23 -> 39.6446 | N25: =Test!D23 -> 38.3259 | O25: =Test!E23 -> 38.708 | P25: =Test!F23 -> 26045.36 | Q25: =Test!G23 -> 55.86 | R25: 7.234822222 | AA25: =Anchor!H23 -> 39.0348 | AB25: =Anchor!I23 -> 37.9595 | AC25: =Anchor!J23 -> 38.3033 | AE25: =Test!H23 -> 39.6232 | AF25: =Test!I23 -> 38.3056 | AG25: =Test!J23 -> 38.6915
C26: 37 | D26: =Anchor!B24 -> 20942.504 | E26: =Anchor!C24 -> 34.689 | F26: =Anchor!D24 -> 33.6165 | G26: =Anchor!E24 -> 33.955 | H26: =Anchor!F24 -> 22942.6 | I26: =Anchor!G24 -> 51.05 | J26: 6.372944444 | L26: =Test!B24 -> 21196.8 | M26: =Test!C24 -> 35.3727 | N26: =Test!D24 -> 34.053 | O26: =Test!E24 -> 34.4405 | P26: =Test!F24 -> 23703.67 | Q26: =Test!G24 -> 51.56 | R26: 6.584352778 | AA26: =Anchor!H24 -> 34.6785 | AB26: =Anchor!I24 -> 33.6049 | AC26: =Anchor!J24 -> 33.9434 | AE26: =Test!H24 -> 35.3554 | AF26: =Test!I24 -> 34.0386 | AG26: =Test!J24 -> 34.4279
B27: sc_SlideShow_1280x720_20_8bit_500 | C27: 22 | D27: =Anchor!B25 -> 7406.5098 | E27: =Anchor!C25 -> 51.0702 | F27: =Anchor!D25 -> 50.6343 | G27: =Anchor!E25 -> 50.755 | H27: =Anchor!F25 -> 14287.05 | I27: =Anchor!G25 -> 38.89 | J27: 3.968625 | L27: =Test!B25 -> 7383.1693 | M27: =Test!C25 -> 51.173 | N27: =Test!D25 -> 50.7245 | O27: =Test!E25 -> 50.8609 | P27: =Test!F25 -> 14766.24 | Q27: =Test!G25 -> 39.73 | R27: 4.101733333 | T27: =bdrate(D27:D30,E27:E30,L27:L30,M27:M30) -> -0.02869800035 | U27: =bdrate(D27:D30,F27:F30,L27:L30,N27:N30) -> -0.02258120752 | V27: =bdrate(D27:D30,G27:G30,L27:L30,O27:O30) -> -0.02517450424 | W27: =bdrateOld(D27:D30,E27:E30,L27:L30,M27:M30) -> -0.02868822704 | X27: =bdrateOld(D27:D30,F27:F30,L27:L30,N27:N30) -> -0.02253081153 | Y27: =bdrateOld(D27:D30,G27:G30,L27:L30,O27:O30) -> -0.02514984406 | AA27: =Anchor!H25 -> 49.9158 | AB27: =Anchor!I25 -> 49.4667 | AC27: =Anchor!J25 -> 49.6399 | AE27: =Test!H25 -> 49.9862 | AF27: =Test!I25 -> 49.5275 | AG27: =Test!J25 -> 49.7177
C28: 27 | D28: =Anchor!B26 -> 4822.665 | E28: =Anchor!C26 -> 47.5083 | F28: =Anchor!D26 -> 47.0114 | G28: =Anchor!E26 -> 47.1667 | H28: =Anchor!F26 -> 12834.4 | I28: =Anchor!G26 -> 35.19 | J28: 3.565111111 | L28: =Test!B26 -> 4808.7357 | M28: =Test!C26 -> 47.68 | N28: =Test!D26 -> 47.1444 | O28: =Test!E26 -> 47.3232 | P28: =Test!F26 -> 13525.52 | Q28: =Test!G26 -> 35.83 | R28: 3.757088889 | AA28: =Anchor!H26 -> 46.4032 | AB28: =Anchor!I26 -> 45.8959 | AC28: =Anchor!J26 -> 46.1171 | AE28: =Test!H26 -> 46.5172 | AF28: =Test!I26 -> 45.9941 | AG28: =Test!J26 -> 46.2268
C29: 32 | D29: =Anchor!B27 -> 3124.1539 | E29: =Anchor!C27 -> 43.9632 | F29: =Anchor!D27 -> 43.5571 | G29: =Anchor!E27 -> 43.6825 | H29: =Anchor!F27 -> 11468.6 | I29: =Anchor!G27 -> 32.53 | J29: 3.185722222 | L29: =Test!B27 -> 3134.4262 | M29: =Test!C27 -> 44.271 | N29: =Test!D27 -> 43.7909 | O29: =Test!E27 -> 43.9448 | P29: =Test!F27 -> 12101.03 | Q29: =Test!G27 -> 32.83 | R29: 3.361397222 | AA29: =Anchor!H27 -> 42.9274 | AB29: =Anchor!I27 -> 42.5015 | AC29: =Anchor!J27 -> 42.6927 | AE29: =Test!H27 -> 43.147 | AF29: =Test!I27 -> 42.6674 | AG29: =Test!J27 -> 42.887
C30: 37 | D30: =Anchor!B28 -> 2008.5539 | E30: =Anchor!C28 -> 40.2587 | F30: =Anchor!D28 -> 39.8883 | G30: =Anchor!E28 -> 40.0106 | H30: =Anchor!F28 -> 10696.52 | I30: =Anchor!G28 -> 29.68 | J30: 2.971255556 | L30: =Test!B28 -> 2043.3245 | M30: =Test!C28 -> 40.7677 | N30: =Test!D28 -> 40.326 | O30: =Test!E28 -> 40.4482 | P30: =Test!F28 -> 10922.07 | Q30: =Test!G28 -> 30.27 | R30: 3.033908333 | AA30: =Anchor!H28 -> 39.336 | AB30: =Anchor!I28 -> 38.9344 | AC30: =Anchor!J28 -> 39.1363 | AE30: =Test!H28 -> 39.7225 | AF30: =Test!I28 -> 39.2587 | AG30: =Test!J28 -> 39.4705
A31: RGB, mixed content, 1440p | B31: Basketball_Screen_2560x1440_60p_8b444 | C31: 22 | D31: =Anchor!B29 -> 207507.3936 | E31: =Anchor!C29 -> 46.2177 | F31: =Anchor!D29 -> 45.6521 | G31: =Anchor!E29 -> 45.5612 | H31: =Anchor!F29 -> 64311.81 | I31: =Anchor!G29 -> 137.11 | J31: 17.86439167 | L31: =Test!B29 -> 206537.16 | M31: =Test!C29 -> 46.3108 | N31: =Test!D29 -> 45.7332 | O31: =Test!E29 -> 45.6281 | P31: =Test!F29 -> 66894.56 | Q31: =Test!G29 -> 136.72 | R31: 18.58182222 | T31: =bdrate(D31:D34,E31:E34,L31:L34,M31:M34) -> -0.01614116869 | U31: =bdrate(D31:D34,F31:F34,L31:L34,N31:N34) -> -0.01323035056 | V31: =bdrate(D31:D34,G31:G34,L31:L34,O31:O34) -> -0.01331214861 | W31: =bdrateOld(D31:D34,E31:E34,L31:L34,M31:M34) -> -0.01613954741 | X31: =bdrateOld(D31:D34,F31:F34,L31:L34,N31:N34) -> -0.01322995044 | Y31: =bdrateOld(D31:D34,G31:G34,L31:L34,O31:O34) -> -0.01331318277 | AA31: =Anchor!H29 -> 46.2176 | AB31: =Anchor!I29 -> 45.652 | AC31: =Anchor!J29 -> 45.5611 | AE31: =Test!H29 -> 46.3107 | AF31: =Test!I29 -> 45.7331 | AG31: =Test!J29 -> 45.628
C32: 27 | D32: =Anchor!B30 -> 138472.6304 | E32: =Anchor!C30 -> 42.5402 | F32: =Anchor!D30 -> 41.877 | G32: =Anchor!E30 -> 41.8841 | H32: =Anchor!F30 -> 62040.22 | I32: =Anchor!G30 -> 123.06 | J32: 17.23339444 | L32: =Test!B30 -> 137907.2064 | M32: =Test!C30 -> 42.664 | N32: =Test!D30 -> 41.9761 | O32: =Test!E30 -> 41.9875 | P32: =Test!F30 -> 63378.18 | Q32: =Test!G30 -> 122.61 | R32: 17.60505 | AA32: =Anchor!H30 -> 42.5402 | AB32: =Anchor!I30 -> 41.8769 | AC32: =Anchor!J30 -> 41.884 | AE32: =Test!H30 -> 42.664 | AF32: =Test!I30 -> 41.976 | AG32: =Test!J30 -> 41.9875
C33: 32 | D33: =Anchor!B31 -> 94935.3392 | E33: =Anchor!C31 -> 38.8181 | F33: =Anchor!D31 -> 38.2729 | G33: =Anchor!E31 -> 38.2662 | H33: =Anchor!F31 -> 53999.55 | I33: =Anchor!G31 -> 112.57 | J33: 14.999875 | L33: =Test!B31 -> 94888.072 | M33: =Test!C31 -> 38.9794 | N33: =Test!D31 -> 38.4021 | O33: =Test!E31 -> 38.4023 | P33: =Test!F31 -> 56274.24 | Q33: =Test!G31 -> 112.45 | R33: 15.63173333 | AA33: =Anchor!H31 -> 38.818 | AB33: =Anchor!I31 -> 38.2728 | AC33: =Anchor!J31 -> 38.2661 | AE33: =Test!H31 -> 38.9794 | AF33: =Test!I31 -> 38.4021 | AG33: =Test!J31 -> 38.4023
C34: 37 | D34: =Anchor!B32 -> 64390.448 | E34: =Anchor!C32 -> 35.0253 | F34: =Anchor!D32 -> 34.508 | G34: =Anchor!E32 -> 34.4643 | H34: =Anchor!F32 -> 48215.12 | I34: =Anchor!G32 -> 102.88 | J34: 13.39308889 | L34: =Test!B32 -> 64873.3648 | M34: =Test!C32 -> 35.2237 | N34: =Test!D32 -> 34.6563 | O34: =Test!E32 -> 34.6 | P34: =Test!F32 -> 49437.14 | Q34: =Test!G32 -> 103.57 | R34: 13.73253889 | AA34: =Anchor!H32 -> 35.0251 | AB34: =Anchor!I32 -> 34.5078 | AC34: =Anchor!J32 -> 34.4642 | AE34: =Test!H32 -> 35.2236 | AF34: =Test!I32 -> 34.6561 | AG34: =Test!J32 -> 34.5998
B35: MissionControlClip2_2560x1440_60p_8b444 | C35: 22 | D35: =Anchor!B33 -> 161191.1344 | E35: =Anchor!C33 -> 45.9456 | F35: =Anchor!D33 -> 45.3562 | G35: =Anchor!E33 -> 45.4566 | H35: =Anchor!F33 -> 62048.16 | I35: =Anchor!G33 -> 131.98 | J35: 17.2356 | L35: =Test!B33 -> 161117.0032 | M35: =Test!C33 -> 45.9953 | N35: =Test!D33 -> 45.4023 | O35: =Test!E33 -> 45.4987 | P35: =Test!F33 -> 64249.8 | Q35: =Test!G33 -> 133.28 | R35: 17.84716667 | T35: =bdrate(D35:D38,E35:E38,L35:L38,M35:M38) -> -0.008810495209 | U35: =bdrate(D35:D38,F35:F38,L35:L38,N35:N38) -> -0.009438236807 | V35: =bdrate(D35:D38,G35:G38,L35:L38,O35:O38) -> -0.008082455945 | W35: =bdrateOld(D35:D38,E35:E38,L35:L38,M35:M38) -> -0.008829141519 | X35: =bdrateOld(D35:D38,F35:F38,L35:L38,N35:N38) -> -0.00944972308 | Y35: =bdrateOld(D35:D38,G35:G38,L35:L38,O35:O38) -> -0.008091550493 | AA35: =Anchor!H33 -> 45.8563 | AB35: =Anchor!I33 -> 45.264 | AC35: =Anchor!J33 -> 45.3638 | AE35: =Test!H33 -> 45.8932 | AF35: =Test!I33 -> 45.298 | AG35: =Test!J33 -> 45.3944
C36: 27 | D36: =Anchor!B34 -> 107709.9392 | E36: =Anchor!C34 -> 42.624 | F36: =Anchor!D34 -> 42.2328 | G36: =Anchor!E34 -> 42.1898 | H36: =Anchor!F34 -> 52604.28 | I36: =Anchor!G34 -> 120.12 | J36: 14.6123 | L36: =Test!B34 -> 107636.8304 | M36: =Test!C34 -> 42.6716 | N36: =Test!D34 -> 42.2865 | O36: =Test!E34 -> 42.2385 | P36: =Test!F34 -> 54450.71 | Q36: =Test!G34 -> 121.48 | R36: 15.12519722 | AA36: =Anchor!H34 -> 42.5425 | AB36: =Anchor!I34 -> 42.1691 | AC36: =Anchor!J34 -> 42.1158 | AE36: =Test!H34 -> 42.5778 | AF36: =Test!I34 -> 42.2108 | AG36: =Test!J34 -> 42.1539
C37: 32 | D37: =Anchor!B35 -> 69839.7616 | E37: =Anchor!C35 -> 39.0887 | F37: =Anchor!D35 -> 38.9146 | G37: =Anchor!E35 -> 38.759 | H37: =Anchor!F35 -> 42427.07 | I37: =Anchor!G35 -> 110.21 | J37: 11.78529722 | L37: =Test!B35 -> 69963.7536 | M37: =Test!C35 -> 39.1833 | N37: =Test!D35 -> 39.0077 | O37: =Test!E35 -> 38.8421 | P37: =Test!F35 -> 43829.99 | Q37: =Test!G35 -> 111.44 | R37: 12.17499722 | AA37: =Anchor!H35 -> 39.0279 | AB37: =Anchor!I35 -> 38.8742 | AC37: =Anchor!J35 -> 38.7043 | AE37: =Test!H35 -> 39.1094 | AF37: =Test!I35 -> 38.9558 | AG37: =Test!J35 -> 38.7777
C38: 37 | D38: =Anchor!B36 -> 44020.7104 | E38: =Anchor!C36 -> 35.7274 | F38: =Anchor!D36 -> 35.5927 | G38: =Anchor!E36 -> 35.403 | H38: =Anchor!F36 -> 35767.92 | I38: =Anchor!G36 -> 99.56 | J38: 9.935533333 | L38: =Test!B36 -> 44267.792 | M38: =Test!C36 -> 35.8612 | N38: =Test!D36 -> 35.7293 | O38: =Test!E36 -> 35.5229 | P38: =Test!F36 -> 37535.73 | Q38: =Test!G36 -> 100.63 | R38: 10.42659167 | AA38: =Anchor!H36 -> 35.6776 | AB38: =Anchor!I36 -> 35.5684 | AC38: =Anchor!J36 -> 35.3562 | AE38: =Test!H36 -> 35.8048 | AF38: =Test!I36 -> 35.7011 | AG38: =Test!J36 -> 35.471
A39: RGB, mixed content, 1080p | B39: MissionControlClip3_1920x1080_60p_8b444 | C39: 22 | D39: =Anchor!B37 -> 106610.1488 | E39: =Anchor!C37 -> 46.8235 | F39: =Anchor!D37 -> 46.2537 | G39: =Anchor!E37 -> 46.2853 | H39: =Anchor!F37 -> 66891.92 | I39: =Anchor!G37 -> 148.07 | J39: 18.58108889 | L39: =Test!B37 -> 106079.7608 | M39: =Test!C37 -> 46.9837 | N39: =Test!D37 -> 46.4065 | O39: =Test!E37 -> 46.4376 | P39: =Test!F37 -> 69671.92 | Q39: =Test!G37 -> 148.4 | R39: 19.35331111 | T39: =bdrate(D39:D42,E39:E42,L39:L42,M39:M42) -> -0.02214064791 | U39: =bdrate(D39:D42,F39:F42,L39:L42,N39:N42) -> -0.02345319113 | V39: =bdrate(D39:D42,G39:G42,L39:L42,O39:O42) -> -0.02108558239 | W39: =bdrateOld(D39:D42,E39:E42,L39:L42,M39:M42) -> -0.02214155155 | X39: =bdrateOld(D39:D42,F39:F42,L39:L42,N39:N42) -> -0.02348572536 | Y39: =bdrateOld(D39:D42,G39:G42,L39:L42,O39:O42) -> -0.02109429514 | AA39: =Anchor!H37 -> 46.6635 | AB39: =Anchor!I37 -> 46.0999 | AC39: =Anchor!J37 -> 46.1327 | AE39: =Test!H37 -> 46.8047 | AF39: =Test!I37 -> 46.2355 | AG39: =Test!J37 -> 46.268
C40: 27 | D40: =Anchor!B38 -> 75410.5856 | E40: =Anchor!C38 -> 43.0352 | F40: =Anchor!D38 -> 42.5019 | G40: =Anchor!E38 -> 42.4788 | H40: =Anchor!F38 -> 63626.34 | I40: =Anchor!G38 -> 135.26 | J40: 17.67398333 | L40: =Test!B38 -> 75112.1488 | M40: =Test!C38 -> 43.2341 | N40: =Test!D38 -> 42.689 | O40: =Test!E38 -> 42.6579 | P40: =Test!F38 -> 64182.72 | Q40: =Test!G38 -> 135.79 | R40: 17.82853333 | AA40: =Anchor!H38 -> 42.8991 | AB40: =Anchor!I38 -> 42.397 | AC40: =Anchor!J38 -> 42.3623 | AE40: =Test!H38 -> 43.0749 | AF40: =Test!I38 -> 42.5668 | AG40: =Test!J38 -> 42.524
C41: 32 | D41: =Anchor!B39 -> 52771.4192 | E41: =Anchor!C39 -> 38.969 | F41: =Anchor!D39 -> 38.6377 | G41: =Anchor!E39 -> 38.4801 | H41: =Anchor!F39 -> 55697.28 | I41: =Anchor!G39 -> 124.87 | J41: 15.47146667 | L41: =Test!B39 -> 52641.9464 | M41: =Test!C39 -> 39.2053 | N41: =Test!D39 -> 38.9056 | O41: =Test!E39 -> 38.7068 | P41: =Test!F39 -> 55999.12 | Q41: =Test!G39 -> 125.75 | R41: 15.55531111 | AA41: =Anchor!H39 -> 38.8605 | AB41: =Anchor!I39 -> 38.5623 | AC41: =Anchor!J39 -> 38.3895 | AE41: =Test!H39 -> 39.0788 | AF41: =Test!I39 -> 38.8168 | AG41: =Test!J39 -> 38.6041
C42: 37 | D42: =Anchor!B40 -> 35886.1976 | E42: =Anchor!C40 -> 34.863 | F42: =Anchor!D40 -> 34.6624 | G42: =Anchor!E40 -> 34.4632 | H42: =Anchor!F40 -> 49251.57 | I42: =Anchor!G40 -> 114.68 | J42: 13.68099167 | L42: =Test!B40 -> 36043.5728 | M42: =Test!C40 -> 35.138 | N42: =Test!D40 -> 34.9378 | O42: =Test!E40 -> 34.7189 | P42: =Test!F40 -> 50364.28 | Q42: =Test!G40 -> 115.58 | R42: 13.99007778 | AA42: =Anchor!H40 -> 34.7893 | AB42: =Anchor!I40 -> 34.62 | AC42: =Anchor!J40 -> 34.3982 | AE42: =Test!H40 -> 35.0529 | AF42: =Test!I40 -> 34.8865 | AG42: =Test!J40 -> 34.6475
A43: RGB, Animation, 720p | B43: sc_robot_1280x720_30_8bit_300 | C43: 22 | D43: =Anchor!B41 -> 68515.3672 | E43: =Anchor!C41 -> 42.3534 | F43: =Anchor!D41 -> 42.3175 | G43: =Anchor!E41 -> 41.8831 | H43: =Anchor!F41 -> 27308.24 | I43: =Anchor!G41 -> 61.48 | J43: 7.585622222 | L43: =Test!B41 -> 68513.0208 | M43: =Test!C41 -> 42.3554 | N43: =Test!D41 -> 42.329 | O43: =Test!E41 -> 41.8894 | P43: =Test!F41 -> 28729.63 | Q43: =Test!G41 -> 61.72 | R43: 7.980452778 | T43: =bdrate(D43:D46,E43:E46,L43:L46,M43:M46) -> 0.0007719151319 | U43: =bdrate(D43:D46,F43:F46,L43:L46,N43:N46) -> -0.0005798045342 | V43: =bdrate(D43:D46,G43:G46,L43:L46,O43:O46) -> -0.0004261423964 | W43: =bdrateOld(D43:D46,E43:E46,L43:L46,M43:M46) -> 0.0007716722949 | X43: =bdrateOld(D43:D46,F43:F46,L43:L46,N43:N46) -> -0.0006714680797 | Y43: =bdrateOld(D43:D46,G43:G46,L43:L46,O43:O46) -> -0.0004738735443 | AA43: =Anchor!H41 -> 42.3533 | AB43: =Anchor!I41 -> 42.3173 | AC43: =Anchor!J41 -> 41.8826 | AE43: =Test!H41 -> 42.3553 | AF43: =Test!I41 -> 42.3288 | AG43: =Test!J41 -> 41.889
C44: 27 | D44: =Anchor!B42 -> 36715.2048 | E44: =Anchor!C42 -> 38.1804 | F44: =Anchor!D42 -> 38.4704 | G44: =Anchor!E42 -> 37.8208 | H44: =Anchor!F42 -> 24568.68 | I44: =Anchor!G42 -> 49.33 | J44: 6.824633333 | L44: =Test!B42 -> 36758.6536 | M44: =Test!C42 -> 38.1828 | N44: =Test!D42 -> 38.4838 | O44: =Test!E42 -> 37.8322 | P44: =Test!F42 -> 24588.37 | Q44: =Test!G42 -> 49.02 | R44: 6.830102778 | AA44: =Anchor!H42 -> 38.1801 | AB44: =Anchor!I42 -> 38.4694 | AC44: =Anchor!J42 -> 37.8202 | AE44: =Test!H42 -> 38.1825 | AF44: =Test!I42 -> 38.4827 | AG44: =Test!J42 -> 37.8317
C45: 32 | D45: =Anchor!B43 -> 16854.4216 | E45: =Anchor!C43 -> 34.7183 | F45: =Anchor!D43 -> 35.33 | G45: =Anchor!E43 -> 34.4593 | H45: =Anchor!F43 -> 19653.24 | I45: =Anchor!G43 -> 37.11 | J45: 5.459233333 | L45: =Test!B43 -> 16886.2864 | M45: =Test!C43 -> 34.7208 | N45: =Test!D43 -> 35.334 | O45: =Test!E43 -> 34.4655 | P45: =Test!F43 -> 20261.57 | Q45: =Test!G43 -> 37.86 | R45: 5.628213889 | AA45: =Anchor!H43 -> 34.717 | AB45: =Anchor!I43 -> 35.3271 | AC45: =Anchor!J43 -> 34.4583 | AE45: =Test!H43 -> 34.7195 | AF45: =Test!I43 -> 35.3312 | AG45: =Test!J43 -> 34.4645
C46: 37 | D46: =Anchor!B44 -> 7769.864 | E46: =Anchor!C44 -> 32.1685 | F46: =Anchor!D44 -> 32.8676 | G46: =Anchor!E44 -> 31.8298 | H46: =Anchor!F44 -> 13800.05 | I46: =Anchor!G44 -> 29.38 | J46: 3.833347222 | L46: =Test!B44 -> 7778.5504 | M46: =Test!C44 -> 32.168 | N46: =Test!D44 -> 32.8673 | O46: =Test!E44 -> 31.8309 | P46: =Test!F44 -> 14239.54 | Q46: =Test!G44 -> 30.29 | R46: 3.955427778 | AA46: =Anchor!H44 -> 32.1667 | AB46: =Anchor!I44 -> 32.8637 | AC46: =Anchor!J44 -> 31.8285 | AE46: =Test!H44 -> 32.1662 | AF46: =Test!I44 -> 32.8634 | AG46: =Test!J44 -> 31.8296
A47: RGB, camera captured, 1080p | B47: EBURainFruits_1920x1080_50_10bit_444 | C47: 22 | D47: =Anchor!B45 -> 135801.136 | E47: =Anchor!C45 -> 43.5088 | F47: =Anchor!D45 -> 41.6288 | G47: =Anchor!E45 -> 44.0131 | H47: =Anchor!F45 -> 42228.51 | I47: =Anchor!G45 -> 85.98 | J47: 11.73014167 | L47: =Test!B45 -> 135813.3232 | M47: =Test!C45 -> 43.5081 | N47: =Test!D45 -> 41.6286 | O47: =Test!E45 -> 44.0127 | P47: =Test!F45 -> 43597.87 | Q47: =Test!G45 -> 86.01 | R47: 12.11051944 | T47: =bdrate(D47:D50,E47:E50,L47:L50,M47:M50) -> 0.0002264260814 | U47: =bdrate(D47:D50,F47:F50,L47:L50,N47:N50) -> 0.0002223767805 | V47: =bdrate(D47:D50,G47:G50,L47:L50,O47:O50) -> 0.0001771007926 | W47: =bdrateOld(D47:D50,E47:E50,L47:L50,M47:M50) -> 0.000226619797 | X47: =bdrateOld(D47:D50,F47:F50,L47:L50,N47:N50) -> 0.000222312069 | Y47: =bdrateOld(D47:D50,G47:G50,L47:L50,O47:O50) -> 0.0001769246272 | AA47: =Anchor!H45 -> 43.5087 | AB47: =Anchor!I45 -> 41.6288 | AC47: =Anchor!J45 -> 44.0129 | AE47: =Test!H45 -> 43.508 | AF47: =Test!I45 -> 41.6286 | AG47: =Test!J45 -> 44.0126
C48: 27 | D48: =Anchor!B46 -> 76278.032 | E48: =Anchor!C46 -> 40.5323 | F48: =Anchor!D46 -> 38.8663 | G48: =Anchor!E46 -> 41.031 | H48: =Anchor!F46 -> 33743.61 | I48: =Anchor!G46 -> 73.84 | J48: 9.373225 | L48: =Test!B46 -> 76282.4016 | M48: =Test!C46 -> 40.5316 | N48: =Test!D46 -> 38.866 | O48: =Test!E46 -> 41.0303 | P48: =Test!F46 -> 34861.01 | Q48: =Test!G46 -> 74.23 | R48: 9.683613889 | AA48: =Anchor!H46 -> 40.5319 | AB48: =Anchor!I46 -> 38.8659 | AC48: =Anchor!J46 -> 41.0306 | AE48: =Test!H46 -> 40.5312 | AF48: =Test!I46 -> 38.8656 | AG48: =Test!J46 -> 41.0299
C49: 32 | D49: =Anchor!B47 -> 42635.0512 | E49: =Anchor!C47 -> 37.4718 | F49: =Anchor!D47 -> 36.1672 | G49: =Anchor!E47 -> 38.0015 | H49: =Anchor!F47 -> 26594.41 | I49: =Anchor!G47 -> 64.81 | J49: 7.387336111 | L49: =Test!B47 -> 42634.3456 | M49: =Test!C47 -> 37.4713 | N49: =Test!D47 -> 36.166 | O49: =Test!E47 -> 38.0012 | P49: =Test!F47 -> 27946.66 | Q49: =Test!G47 -> 65.22 | R49: 7.762961111 | AA49: =Anchor!H47 -> 37.4705 | AB49: =Anchor!I47 -> 36.1657 | AC49: =Anchor!J47 -> 38.0008 | AE49: =Test!H47 -> 37.4701 | AF49: =Test!I47 -> 36.1644 | AG49: =Test!J47 -> 38.0004
C50: 37 | D50: =Anchor!B48 -> 23373.552 | E50: =Anchor!C48 -> 34.4762 | F50: =Anchor!D48 -> 33.5005 | G50: =Anchor!E48 -> 35.021 | H50: =Anchor!F48 -> 20438.46 | I50: =Anchor!G48 -> 56.14 | J50: 5.67735 | L50: =Test!B48 -> 23385.4672 | M50: =Test!C48 -> 34.4749 | N50: =Test!D48 -> 33.5003 | O50: =Test!E48 -> 35.0208 | P50: =Test!F48 -> 21084.48 | Q50: =Test!G48 -> 56.4 | R50: 5.8568 | AA50: =Anchor!H48 -> 34.4737 | AB50: =Anchor!I48 -> 33.497 | AC50: =Anchor!J48 -> 35.0196 | AE50: =Test!H48 -> 34.4724 | AF50: =Test!I48 -> 33.4969 | AG50: =Test!J48 -> 35.0194
B51: Kimono1_1920x1080_24_10bit_444 | C51: 22 | D51: =Anchor!B49 -> 112021.5312 | E51: =Anchor!C49 -> 41.4372 | F51: =Anchor!D49 -> 40.4417 | G51: =Anchor!E49 -> 40.5505 | H51: =Anchor!F49 -> 21102.85 | I51: =Anchor!G49 -> 43.41 | J51: 5.861902778 | L51: =Test!B49 -> 112032.7376 | M51: =Test!C49 -> 41.4375 | N51: =Test!D49 -> 40.4417 | O51: =Test!E49 -> 40.5506 | P51: =Test!F49 -> 21610.9 | Q51: =Test!G49 -> 43.68 | R51: 6.003027778 | T51: =bdrate(D51:D54,E51:E54,L51:L54,M51:M54) -> 0.0001913975665 | U51: =bdrate(D51:D54,F51:F54,L51:L54,N51:N54) -> 6.116709889e-05 | V51: =bdrate(D51:D54,G51:G54,L51:L54,O51:O54) -> 0.000330357384 | W51: =bdrateOld(D51:D54,E51:E54,L51:L54,M51:M54) -> 0.0002041077298 | X51: =bdrateOld(D51:D54,F51:F54,L51:L54,N51:N54) -> 0.000346559401 | Y51: =bdrateOld(D51:D54,G51:G54,L51:L54,O51:O54) -> 0.0001540861577 | AA51: =Anchor!H49 -> 41.4369 | AB51: =Anchor!I49 -> 40.4417 | AC51: =Anchor!J49 -> 40.5503 | AE51: =Test!H49 -> 41.4371 | AF51: =Test!I49 -> 40.4416 | AG51: =Test!J49 -> 40.5504
C52: 27 | D52: =Anchor!B50 -> 45165.0256 | E52: =Anchor!C50 -> 40.1769 | F52: =Anchor!D50 -> 35.45 | G52: =Anchor!E50 -> 38.8342 | H52: =Anchor!F50 -> 18140.44 | I52: =Anchor!G50 -> 33.55 | J52: 5.039011111 | L52: =Test!B50 -> 45165.232 | M52: =Test!C50 -> 40.1766 | N52: =Test!D50 -> 35.4501 | O52: =Test!E50 -> 38.8336 | P52: =Test!F50 -> 18356.84 | Q52: =Test!G50 -> 33.93 | R52: 5.099122222 | AA52: =Anchor!H50 -> 40.1765 | AB52: =Anchor!I50 -> 35.4498 | AC52: =Anchor!J50 -> 38.8338 | AE52: =Test!H50 -> 40.1761 | AF52: =Test!I50 -> 35.4499 | AG52: =Test!J50 -> 38.8333
C53: 32 | D53: =Anchor!B51 -> 13732.1936 | E53: =Anchor!C51 -> 38.7393 | F53: =Anchor!D51 -> 32.6883 | G53: =Anchor!E51 -> 37.4714 | H53: =Anchor!F51 -> 11428.81 | I53: =Anchor!G51 -> 27.44 | J53: 3.174669444 | L53: =Test!B51 -> 13734.8976 | M53: =Test!C51 -> 38.7391 | N53: =Test!D51 -> 32.6882 | O53: =Test!E51 -> 37.4712 | P53: =Test!F51 -> 11995.93 | Q53: =Test!G51 -> 27.75 | R53: 3.332202778 | AA53: =Anchor!H51 -> 38.7384 | AB53: =Anchor!I51 -> 32.6873 | AC53: =Anchor!J51 -> 37.4708 | AE53: =Test!H51 -> 38.7382 | AF53: =Test!I51 -> 32.6872 | AG53: =Test!J51 -> 37.4707
C54: 37 | D54: =Anchor!B52 -> 7111.7776 | E54: =Anchor!C52 -> 36.7602 | F54: =Anchor!D52 -> 31.9277 | G54: =Anchor!E52 -> 35.5466 | H54: =Anchor!F52 -> 7206.57 | I54: =Anchor!G52 -> 24.71 | J54: 2.001825 | L54: =Test!B52 -> 7111.208 | M54: =Test!C52 -> 36.76 | N54: =Test!D52 -> 31.9266 | O54: =Test!E52 -> 35.5432 | P54: =Test!F52 -> 7563.41 | Q54: =Test!G52 -> 25.17 | R54: 2.100947222 | AA54: =Anchor!H52 -> 36.7586 | AB54: =Anchor!I52 -> 31.9268 | AC54: =Anchor!J52 -> 35.5457 | AE54: =Test!H52 -> 36.7583 | AF54: =Test!I52 -> 31.9257 | AG54: =Test!J52 -> 35.5424
A55: YUV, text & graphics with motion, 1080p | B55: sc_flyingGraphics_1920x1080_60_8bit_444 | C55: 22 | D55: =Anchor!B53 -> 81798.6448 | E55: =Anchor!C53 -> 48.4887 | F55: =Anchor!D53 -> 49.1028 | G55: =Anchor!E53 -> 49.226 | H55: =Anchor!F53 -> 32483.66 | I55: =Anchor!G53 -> 62.51 | J55: 9.023238889 | L55: =Test!B53 -> 79733.8464 | M55: =Test!C53 -> 49.3812 | N55: =Test!D53 -> 50.3556 | O55: =Test!E53 -> 50.5407 | P55: =Test!F53 -> 30960.17 | Q55: =Test!G53 -> 58.74 | R55: 8.600047222 | T55: =bdrate(D55:D58,E55:E58,L55:L58,M55:M58) -> -0.06440221855 | U55: =bdrate(D55:D58,F55:F58,L55:L58,N55:N58) -> -0.09690434682 | V55: =bdrate(D55:D58,G55:G58,L55:L58,O55:O58) -> -0.09841722268 | W55: =bdrateOld(D55:D58,E55:E58,L55:L58,M55:M58) -> -0.06435775355 | X55: =bdrateOld(D55:D58,F55:F58,L55:L58,N55:N58) -> -0.09669371726 | Y55: =bdrateOld(D55:D58,G55:G58,L55:L58,O55:O58) -> -0.09825994787 | AA55: =Anchor!H53 -> 48.4825 | AB55: =Anchor!I53 -> 49.0929 | AC55: =Anchor!J53 -> 49.216 | AE55: =Test!H53 -> 49.3695 | AF55: =Test!I53 -> 50.3387 | AG55: =Test!J53 -> 50.5251
C56: 27 | D56: =Anchor!B54 -> 62143.9264 | E56: =Anchor!C54 -> 43.6403 | F56: =Anchor!D54 -> 44.4884 | G56: =Anchor!E54 -> 44.6075 | H56: =Anchor!F54 -> 33205.3 | I56: =Anchor!G54 -> 58.94 | J56: 9.223694444 | L56: =Test!B54 -> 60978.952 | M56: =Test!C54 -> 44.4426 | N56: =Test!D54 -> 45.6691 | O56: =Test!E54 -> 45.8249 | P56: =Test!F54 -> 30830.4 | Q56: =Test!G54 -> 56.31 | R56: 8.564 | AA56: =Anchor!H54 -> 43.6337 | AB56: =Anchor!I54 -> 44.4752 | AC56: =Anchor!J54 -> 44.5942 | AE56: =Test!H54 -> 44.432 | AF56: =Test!I54 -> 45.6536 | AG56: =Test!J54 -> 45.8113
C57: 32 | D57: =Anchor!B55 -> 45344.0416 | E57: =Anchor!C55 -> 38.8065 | F57: =Anchor!D55 -> 40.1802 | G57: =Anchor!E55 -> 40.3351 | H57: =Anchor!F55 -> 31622.56 | I57: =Anchor!G55 -> 56.09 | J57: 8.784044444 | L57: =Test!B55 -> 44813.424 | M57: =Test!C55 -> 39.5809 | N57: =Test!D55 -> 41.3997 | O57: =Test!E55 -> 41.5402 | P57: =Test!F55 -> 28811.04 | Q57: =Test!G55 -> 53.93 | R57: 8.003066667 | AA57: =Anchor!H55 -> 38.801 | AB57: =Anchor!I55 -> 40.1638 | AC57: =Anchor!J55 -> 40.3231 | AE57: =Test!H55 -> 39.5723 | AF57: =Test!I55 -> 41.3856 | AG57: =Test!J55 -> 41.5296
C58: 37 | D58: =Anchor!B56 -> 31330.168 | E58: =Anchor!C56 -> 34.0697 | F58: =Anchor!D56 -> 36.1773 | G58: =Anchor!E56 -> 36.3279 | H58: =Anchor!F56 -> 28681.91 | I58: =Anchor!G56 -> 53.08 | J58: 7.967197222 | L58: =Test!B56 -> 31285.312 | M58: =Test!C56 -> 34.8064 | N58: =Test!D56 -> 37.2507 | O58: =Test!E56 -> 37.4628 | P58: =Test!F56 -> 25133.18 | Q58: =Test!G56 -> 51.4 | R58: 6.981438889 | AA58: =Anchor!H56 -> 34.0652 | AB58: =Anchor!I56 -> 36.158 | AC58: =Anchor!J56 -> 36.3145 | AE58: =Test!H56 -> 34.8005 | AF58: =Test!I56 -> 37.2354 | AG58: =Test!J56 -> 37.4513
B59: sc_desktop_1920x1080_60_8bit_444 | C59: 22 | D59: =Anchor!B57 -> 51728.308 | E59: =Anchor!C57 -> 49.3956 | F59: =Anchor!D57 -> 50.0497 | G59: =Anchor!E57 -> 50.4841 | H59: =Anchor!F57 -> 51495.55 | I59: =Anchor!G57 -> 103.57 | J59: 14.30431944 | L59: =Test!B57 -> 47933.8008 | M59: =Test!C57 -> 53.4057 | N59: =Test!D57 -> 54.0843 | O59: =Test!E57 -> 54.3481 | P59: =Test!F57 -> 49176.48 | Q59: =Test!G57 -> 93.68 | R59: 13.66013333 | T59: =bdrate(D59:D62,E59:E62,L59:L62,M59:M62) -> -0.1220246195 | U59: =bdrate(D59:D62,F59:F62,L59:L62,N59:N62) -> -0.121926935 | V59: =bdrate(D59:D62,G59:G62,L59:L62,O59:O62) -> -0.1258154009 | W59: =bdrateOld(D59:D62,E59:E62,L59:L62,M59:M62) -> -0.1215725849 | X59: =bdrateOld(D59:D62,F59:F62,L59:L62,N59:N62) -> -0.1212183486 | Y59: =bdrateOld(D59:D62,G59:G62,L59:L62,O59:O62) -> -0.1250857215 | AA59: =Anchor!H57 -> 49.3846 | AB59: =Anchor!I57 -> 50.022 | AC59: =Anchor!J57 -> 50.4576 | AE59: =Test!H57 -> 53.4032 | AF59: =Test!I57 -> 54.0687 | AG59: =Test!J57 -> 54.3349
C60: 27 | D60: =Anchor!B58 -> 43221.6536 | E60: =Anchor!C58 -> 44.8596 | F60: =Anchor!D58 -> 45.3773 | G60: =Anchor!E58 -> 45.7087 | H60: =Anchor!F58 -> 52327.46 | I60: =Anchor!G58 -> 101.41 | J60: 14.53540556 | L60: =Test!B58 -> 41808.136 | M60: =Test!C58 -> 48.1129 | N60: =Test!D58 -> 48.5446 | O60: =Test!E58 -> 49.1385 | P60: =Test!F58 -> 48246.94 | Q60: =Test!G58 -> 94.25 | R60: 13.40192778 | AA60: =Anchor!H58 -> 44.8494 | AB60: =Anchor!I58 -> 45.3457 | AC60: =Anchor!J58 -> 45.6802 | AE60: =Test!H58 -> 48.1078 | AF60: =Test!I58 -> 48.525 | AG60: =Test!J58 -> 49.1236
C61: 32 | D61: =Anchor!B59 -> 35510.2296 | E61: =Anchor!C59 -> 39.8255 | F61: =Anchor!D59 -> 40.8359 | G61: =Anchor!E59 -> 40.9879 | H61: =Anchor!F59 -> 50611.03 | I61: =Anchor!G59 -> 98.87 | J61: 14.05861944 | L61: =Test!B59 -> 35232.8064 | M61: =Test!C59 -> 42.6642 | N61: =Test!D59 -> 43.3244 | O61: =Test!E59 -> 43.7207 | P61: =Test!F59 -> 46431.77 | Q61: =Test!G59 -> 93.9 | R61: 12.89771389 | AA61: =Anchor!H59 -> 39.8134 | AB61: =Anchor!I59 -> 40.8007 | AC61: =Anchor!J59 -> 40.9578 | AE61: =Test!H59 -> 42.659 | AF61: =Test!I59 -> 43.3003 | AG61: =Test!J59 -> 43.7028
C62: 37 | D62: =Anchor!B60 -> 27705.572 | E62: =Anchor!C60 -> 34.8945 | F62: =Anchor!D60 -> 36.5569 | G62: =Anchor!E60 -> 36.3194 | H62: =Anchor!F60 -> 47601.26 | I62: =Anchor!G60 -> 97 | J62: 13.22257222 | L62: =Test!B60 -> 27659.1576 | M62: =Test!C60 -> 36.7984 | N62: =Test!D60 -> 38.1893 | O62: =Test!E60 -> 38.2021 | P62: =Test!F60 -> 44942.49 | Q62: =Test!G60 -> 93.17 | R62: 12.484025 | AA62: =Anchor!H60 -> 34.8807 | AB62: =Anchor!I60 -> 36.503 | AC62: =Anchor!J60 -> 36.2767 | AE62: =Test!H60 -> 36.7897 | AF62: =Test!I60 -> 38.1378 | AG62: =Test!J60 -> 38.154
B63: sc_console_1920x1080_60_8bit_444 | C63: 22 | D63: =Anchor!B61 -> 43863.7672 | E63: =Anchor!C61 -> 51.6822 | F63: =Anchor!D61 -> 53.256 | G63: =Anchor!E61 -> 53.8813 | H63: =Anchor!F61 -> 44396.12 | I63: =Anchor!G61 -> 98.47 | J63: 12.33225556 | L63: =Test!B61 -> 40925.8072 | M63: =Test!C61 -> 55.9833 | N63: =Test!D61 -> 57.3132 | O63: =Test!E61 -> 56.8561 | P63: =Test!F61 -> 42927.83 | Q63: =Test!G61 -> 87.21 | R63: 11.92439722 | T63: =bdrate(D63:D66,E63:E66,L63:L66,M63:M66) -> -0.1515405223 | U63: =bdrate(D63:D66,F63:F66,L63:L66,N63:N66) -> -0.1608644674 | V63: =bdrate(D63:D66,G63:G66,L63:L66,O63:O66) -> -0.1291685141 | W63: =bdrateOld(D63:D66,E63:E66,L63:L66,M63:M66) -> -0.1504569773 | X63: =bdrateOld(D63:D66,F63:F66,L63:L66,N63:N66) -> -0.1605786676 | Y63: =bdrateOld(D63:D66,G63:G66,L63:L66,O63:O66) -> -0.127801513 | AA63: =Anchor!H61 -> 51.6669 | AB63: =Anchor!I61 -> 53.2488 | AC63: =Anchor!J61 -> 53.8725 | AE63: =Test!H61 -> 55.9694 | AF63: =Test!I61 -> 57.2904 | AG63: =Test!J61 -> 56.8424
C64: 27 | D64: =Anchor!B62 -> 35884.4544 | E64: =Anchor!C62 -> 46.8125 | F64: =Anchor!D62 -> 48.8471 | G64: =Anchor!E62 -> 48.8941 | H64: =Anchor!F62 -> 44367.99 | I64: =Anchor!G62 -> 96.51 | J64: 12.32444167 | L64: =Test!B62 -> 34390.8088 | M64: =Test!C62 -> 50.5037 | N64: =Test!D62 -> 52.1024 | O64: =Test!E62 -> 51.6852 | P64: =Test!F62 -> 43106.79 | Q64: =Test!G62 -> 87.5 | R64: 11.97410833 | AA64: =Anchor!H62 -> 46.7986 | AB64: =Anchor!I62 -> 48.8403 | AC64: =Anchor!J62 -> 48.8872 | AE64: =Test!H62 -> 50.4922 | AF64: =Test!I62 -> 52.0841 | AG64: =Test!J62 -> 51.6723
C65: 32 | D65: =Anchor!B63 -> 28993.4968 | E65: =Anchor!C63 -> 41.6249 | F65: =Anchor!D63 -> 45.1329 | G65: =Anchor!E63 -> 44.1489 | H65: =Anchor!F63 -> 43168.89 | I65: =Anchor!G63 -> 94.79 | J65: 11.99135833 | L65: =Test!B63 -> 28440.1584 | M65: =Test!C63 -> 44.8109 | N65: =Test!D63 -> 47.7195 | O65: =Test!E63 -> 46.3172 | P65: =Test!F63 -> 39914.95 | Q65: =Test!G63 -> 87.82 | R65: 11.08748611 | AA65: =Anchor!H63 -> 41.6158 | AB65: =Anchor!I63 -> 45.1248 | AC65: =Anchor!J63 -> 44.1375 | AE65: =Test!H63 -> 44.7962 | AF65: =Test!I63 -> 47.7026 | AG65: =Test!J63 -> 46.2865
C66: 37 | D66: =Anchor!B64 -> 21455.1632 | E66: =Anchor!C64 -> 35.8963 | F66: =Anchor!D64 -> 40.9387 | G66: =Anchor!E64 -> 39.4335 | H66: =Anchor!F64 -> 40954.16 | I66: =Anchor!G64 -> 92.01 | J66: 11.37615556 | L66: =Test!B64 -> 21927.6584 | M66: =Test!C64 -> 38.9687 | N66: =Test!D64 -> 43.1883 | O66: =Test!E64 -> 41.6422 | P66: =Test!F64 -> 38347.2 | Q66: =Test!G64 -> 86.52 | R66: 10.652 | AA66: =Anchor!H64 -> 35.8863 | AB66: =Anchor!I64 -> 40.9306 | AC66: =Anchor!J64 -> 39.4231 | AE66: =Test!H64 -> 38.9577 | AF66: =Test!I64 -> 43.1735 | AG66: =Test!J64 -> 41.6187
A67: YUV, text & graphics with motion,720p | B67: sc_web_browsing_1280x720_30_8bit_300_444_r1 | C67: 22 | D67: =Anchor!B65 -> 9065.1112 | E67: =Anchor!C65 -> 49.3706 | F67: =Anchor!D65 -> 50.7512 | G67: =Anchor!E65 -> 51.4991 | H67: =Anchor!F65 -> 10093.2 | I67: =Anchor!G65 -> 21.93 | J67: 2.803666667 | L67: =Test!B65 -> 8846.0272 | M67: =Test!C65 -> 52.9752 | N67: =Test!D65 -> 54.767 | O67: =Test!E65 -> 55.0235 | P67: =Test!F65 -> 9553.95 | Q67: =Test!G65 -> 20.81 | R67: 2.653875 | T67: =bdrate(D67:D70,E67:E70,L67:L70,M67:M70) -> -0.1196623964 | U67: =bdrate(D67:D70,F67:F70,L67:L70,N67:N70) -> -0.1241756131 | V67: =bdrate(D67:D70,G67:G70,L67:L70,O67:O70) -> -0.137467279 | W67: =bdrateOld(D67:D70,E67:E70,L67:L70,M67:M70) -> -0.1185461488 | X67: =bdrateOld(D67:D70,F67:F70,L67:L70,N67:N70) -> -0.1230519353 | Y67: =bdrateOld(D67:D70,G67:G70,L67:L70,O67:O70) -> -0.1368711897 | AA67: =Anchor!H65 -> 49.3207 | AB67: =Anchor!I65 -> 50.7271 | AC67: =Anchor!J65 -> 51.4706 | AE67: =Test!H65 -> 52.6252 | AF67: =Test!I65 -> 54.6437 | AG67: =Test!J65 -> 54.9199
C68: 27 | D68: =Anchor!B66 -> 6981.76 | E68: =Anchor!C66 -> 45.2653 | F68: =Anchor!D66 -> 46.1617 | G68: =Anchor!E66 -> 46.5949 | H68: =Anchor!F66 -> 10136.39 | I68: =Anchor!G66 -> 20.67 | J68: 2.815663889 | L68: =Test!B66 -> 7039.4672 | M68: =Test!C66 -> 48.3229 | N68: =Test!D66 -> 49.5181 | O68: =Test!E66 -> 49.9628 | P68: =Test!F66 -> 9320.81 | Q68: =Test!G66 -> 20.35 | R68: 2.589113889 | AA68: =Anchor!H66 -> 45.21 | AB68: =Anchor!I66 -> 46.1355 | AC68: =Anchor!J66 -> 46.5616 | AE68: =Test!H66 -> 48.0419 | AF68: =Test!I66 -> 49.4736 | AG68: =Test!J66 -> 49.9044
C69: 32 | D69: =Anchor!B67 -> 5151.404 | E69: =Anchor!C67 -> 40.8392 | F69: =Anchor!D67 -> 41.7939 | G69: =Anchor!E67 -> 42.1067 | H69: =Anchor!F67 -> 9465.29 | I69: =Anchor!G67 -> 20.2 | J69: =secToHours(H69) -> 2.629247222 | L69: =Test!B67 -> 5215.8624 | M69: =Test!C67 -> 42.5921 | N69: =Test!D67 -> 43.5316 | O69: =Test!E67 -> 44.2281 | P69: =Test!F67 -> 8791.53 | Q69: =Test!G67 -> 20.01 | R69: =secToHours(P69) -> 2.442091667 | AA69: =Anchor!H67 -> 40.7989 | AB69: =Anchor!I67 -> 41.7708 | AC69: =Anchor!J67 -> 42.0778 | AE69: =Test!H67 -> 42.4467 | AF69: =Test!I67 -> 43.4828 | AG69: =Test!J67 -> 44.1704
C70: 37 | D70: =Anchor!B68 -> 3480.2608 | E70: =Anchor!C68 -> 35.9974 | F70: =Anchor!D68 -> 36.5037 | G70: =Anchor!E68 -> 36.7787 | H70: =Anchor!F68 -> 8415.63 | I70: =Anchor!G68 -> 19.02 | J70: 2.337675 | L70: =Test!B68 -> 3551.0456 | M70: =Test!C68 -> 37.1037 | N70: =Test!D68 -> 38.0273 | O70: =Test!E68 -> 38.7022 | P70: =Test!F68 -> 8381.96 | Q70: =Test!G68 -> 19.18 | R70: 2.328322222 | AA70: =Anchor!H68 -> 35.9704 | AB70: =Anchor!I68 -> 36.4726 | AC70: =Anchor!J68 -> 36.7333 | AE70: =Test!H68 -> 37.0525 | AF70: =Test!I68 -> 37.9774 | AG70: =Test!J68 -> 38.6357
B71: sc_map_1280x720_60_8bit_444 | C71: 22 | D71: =Anchor!B69 -> 44440.4264 | E71: =Anchor!C69 -> 46.968 | F71: =Anchor!D69 -> 49.4613 | G71: =Anchor!E69 -> 50.7589 | H71: =Anchor!F69 -> 26920.42 | I71: =Anchor!G69 -> 64.24 | J71: 7.477894444 | L71: =Test!B69 -> 44616.0256 | M71: =Test!C69 -> 47.5788 | N71: =Test!D69 -> 50.8302 | O71: =Test!E69 -> 52.3772 | P71: =Test!F69 -> 27517.79 | Q71: =Test!G69 -> 60.5 | R71: 7.643830556 | T71: =bdrate(D71:D74,E71:E74,L71:L74,M71:M74) -> -0.0353183489 | U71: =bdrate(D71:D74,F71:F74,L71:L74,N71:N74) -> -0.0969163401 | V71: =bdrate(D71:D74,G71:G74,L71:L74,O71:O74) -> -0.1482747977 | W71: =bdrateOld(D71:D74,E71:E74,L71:L74,M71:M74) -> -0.03514336801 | X71: =bdrateOld(D71:D74,F71:F74,L71:L74,N71:N74) -> -0.09699088656 | Y71: =bdrateOld(D71:D74,G71:G74,L71:L74,O71:O74) -> -0.1490004402 | AA71: =Anchor!H69 -> 46.5727 | AB71: =Anchor!I69 -> 48.983 | AC71: =Anchor!J69 -> 50.2938 | AE71: =Test!H69 -> 47.1188 | AF71: =Test!I69 -> 50.1986 | AG71: =Test!J69 -> 51.7933
C72: 27 | D72: =Anchor!B70 -> 29738.5536 | E72: =Anchor!C70 -> 42.495 | F72: =Anchor!D70 -> 46.1243 | G72: =Anchor!E70 -> 47.8206 | H72: =Anchor!F70 -> 25053.21 | I72: =Anchor!G70 -> 57.89 | J72: 6.959225 | L72: =Test!B70 -> 29769.5208 | M72: =Test!C70 -> 42.8533 | N72: =Test!D70 -> 46.9551 | O72: =Test!E70 -> 48.9318 | P72: =Test!F70 -> 25655.43 | Q72: =Test!G70 -> 57.41 | R72: 7.126508333 | AA72: =Anchor!H70 -> 42.0357 | AB72: =Anchor!I70 -> 45.5828 | AC72: =Anchor!J70 -> 47.4266 | AE72: =Test!H70 -> 42.3114 | AF72: =Test!I70 -> 46.2337 | AG72: =Test!J70 -> 48.3389
C73: 32 | D73: =Anchor!B71 -> 18890.0264 | E73: =Anchor!C71 -> 38.061 | F73: =Anchor!D71 -> 42.5898 | G73: =Anchor!E71 -> 44.8881 | H73: =Anchor!F71 -> 21311.12 | I73: =Anchor!G71 -> 51.6 | J73: 5.919755556 | L73: =Test!B71 -> 18847.7048 | M73: =Test!C71 -> 38.3784 | N73: =Test!D71 -> 43.3191 | O73: =Test!E71 -> 45.927 | P73: =Test!F71 -> 21262.41 | Q73: =Test!G71 -> 52.17 | R73: 5.906225 | AA73: =Anchor!H71 -> 37.5497 | AB73: =Anchor!I71 -> 42.1166 | AC73: =Anchor!J71 -> 44.6329 | AE73: =Test!H71 -> 37.7703 | AF73: =Test!I71 -> 42.6531 | AG73: =Test!J71 -> 45.4822
C74: 37 | D74: =Anchor!B72 -> 11754.3056 | E74: =Anchor!C72 -> 34.3004 | F74: =Anchor!D72 -> 38.9264 | G74: =Anchor!E72 -> 41.4923 | H74: =Anchor!F72 -> 17255.05 | I74: =Anchor!G72 -> 45.2 | J74: 4.793069444 | L74: =Test!B72 -> 11848.4008 | M74: =Test!C72 -> 34.5827 | N74: =Test!D72 -> 39.7762 | O74: =Test!E72 -> 42.7459 | P74: =Test!F72 -> 17394.24 | Q74: =Test!G72 -> 46.07 | R74: 4.831733333 | AA74: =Anchor!H72 -> 33.8627 | AB74: =Anchor!I72 -> 38.5534 | AC74: =Anchor!J72 -> 41.3703 | AE74: =Test!H72 -> 34.06 | AF74: =Test!I72 -> 39.1696 | AG74: =Test!J72 -> 42.456
B75: sc_programming_1280x720_60_8bit_444 | C75: 22 | D75: =Anchor!B73 -> 43134.4016 | E75: =Anchor!C73 -> 48.0075 | F75: =Anchor!D73 -> 47.8505 | G75: =Anchor!E73 -> 48.3123 | H75: =Anchor!F73 -> 24802.48 | I75: =Anchor!G73 -> 60.59 | J75: 6.889577778 | L75: =Test!B73 -> 42959.0392 | M75: =Test!C73 -> 48.334 | N75: =Test!D73 -> 48.1025 | O75: =Test!E73 -> 48.63 | P75: =Test!F73 -> 25093.04 | Q75: =Test!G73 -> 61.3 | R75: 6.970288889 | T75: =bdrate(D75:D78,E75:E78,L75:L78,M75:M78) -> -0.03273768935 | U75: =bdrate(D75:D78,F75:F78,L75:L78,N75:N78) -> -0.02900904174 | V75: =bdrate(D75:D78,G75:G78,L75:L78,O75:O78) -> -0.03842092392 | W75: =bdrateOld(D75:D78,E75:E78,L75:L78,M75:M78) -> -0.0328576853 | X75: =bdrateOld(D75:D78,F75:F78,L75:L78,N75:N78) -> -0.02877033342 | Y75: =bdrateOld(D75:D78,G75:G78,L75:L78,O75:O78) -> -0.03807549288 | AA75: =Anchor!H73 -> 47.9774 | AB75: =Anchor!I73 -> 47.832 | AC75: =Anchor!J73 -> 48.297 | AE75: =Test!H73 -> 48.2991 | AF75: =Test!I73 -> 48.0794 | AG75: =Test!J73 -> 48.6101
C76: 27 | D76: =Anchor!B74 -> 29511.3008 | E76: =Anchor!C74 -> 43.7961 | F76: =Anchor!D74 -> 43.6287 | G76: =Anchor!E74 -> 44.2279 | H76: =Anchor!F74 -> 23593.17 | I76: =Anchor!G74 -> 55.83 | J76: 6.553658333 | L76: =Test!B74 -> 29618.8424 | M76: =Test!C74 -> 44.1502 | N76: =Test!D74 -> 43.9221 | O76: =Test!E74 -> 44.5625 | P76: =Test!F74 -> 23995.3 | Q76: =Test!G74 -> 56.56 | R76: 6.665361111 | AA76: =Anchor!H74 -> 43.7647 | AB76: =Anchor!I74 -> 43.6114 | AC76: =Anchor!J74 -> 44.214 | AE76: =Test!H74 -> 44.1133 | AF76: =Test!I74 -> 43.9012 | AG76: =Test!J74 -> 44.5461
C77: 32 | D77: =Anchor!B75 -> 19448.4128 | E77: =Anchor!C75 -> 39.2705 | F77: =Anchor!D75 -> 39.6393 | G77: =Anchor!E75 -> 40.4672 | H77: =Anchor!F75 -> 21445.93 | I77: =Anchor!G75 -> 50.45 | J77: 5.957202778 | L77: =Test!B75 -> 19659.8264 | M77: =Test!C75 -> 39.8078 | N77: =Test!D75 -> 40.0332 | O77: =Test!E75 -> 40.9516 | P77: =Test!F75 -> 21512.96 | Q77: =Test!G75 -> 51.97 | R77: 5.975822222 | AA77: =Anchor!H75 -> 39.2469 | AB77: =Anchor!I75 -> 39.6162 | AC77: =Anchor!J75 -> 40.4432 | AE77: =Test!H75 -> 39.7777 | AF77: =Test!I75 -> 40.0065 | AG77: =Test!J75 -> 40.9285
C78: 37 | D78: =Anchor!B76 -> 12819.74 | E78: =Anchor!C76 -> 34.9152 | F78: =Anchor!D76 -> 36.4374 | G78: =Anchor!E76 -> 37.4017 | H78: =Anchor!F76 -> 18503.47 | I78: =Anchor!G76 -> 46.01 | J78: 5.139852778 | L78: =Test!B76 -> 12910.6096 | M78: =Test!C76 -> 35.2753 | N78: =Test!D76 -> 36.7437 | O78: =Test!E76 -> 37.8288 | P78: =Test!F76 -> 18784.05 | Q78: =Test!G76 -> 47.7 | R78: 5.217791667 | AA78: =Anchor!H76 -> 34.8946 | AB78: =Anchor!I76 -> 36.3928 | AC78: =Anchor!J76 -> 37.3465 | AE78: =Test!H76 -> 35.2457 | AF78: =Test!I76 -> 36.6949 | AG78: =Test!J76 -> 37.7799
B79: sc_SlideShow_1280x720_20_8bit_500_444 | C79: 22 | D79: =Anchor!B77 -> 4661.9338 | E79: =Anchor!C77 -> 51.0132 | F79: =Anchor!D77 -> 55.5555 | G79: =Anchor!E77 -> 56.7125 | H79: =Anchor!F77 -> 11832.48 | I79: =Anchor!G77 -> 34.16 | J79: 3.2868 | L79: =Test!B77 -> 4657.6701 | M79: =Test!C77 -> 51.125 | N79: =Test!D77 -> 55.7748 | O79: =Test!E77 -> 56.9552 | P79: =Test!F77 -> 12311.42 | Q79: =Test!G77 -> 34.92 | R79: 3.419838889 | T79: =bdrate(D79:D82,E79:E82,L79:L82,M79:M82) -> -0.01691062688 | U79: =bdrate(D79:D82,F79:F82,L79:L82,N79:N82) -> -0.0451796899 | V79: =bdrate(D79:D82,G79:G82,L79:L82,O79:O82) -> -0.05703983695 | W79: =bdrateOld(D79:D82,E79:E82,L79:L82,M79:M82) -> -0.0169418398 | X79: =bdrateOld(D79:D82,F79:F82,L79:L82,N79:N82) -> -0.04515655553 | Y79: =bdrateOld(D79:D82,G79:G82,L79:L82,O79:O82) -> -0.05704035574 | AA79: =Anchor!H77 -> 49.9197 | AB79: =Anchor!I77 -> 54.1913 | AC79: =Anchor!J77 -> 55.1781 | AE79: =Test!H77 -> 49.9821 | AF79: =Test!I77 -> 54.3508 | AG79: =Test!J77 -> 55.3341
C80: 27 | D80: =Anchor!B78 -> 2964.2166 | E80: =Anchor!C78 -> 47.4822 | F80: =Anchor!D78 -> 52.534 | G80: =Anchor!E78 -> 53.8595 | H80: =Anchor!F78 -> 10575.1 | I80: =Anchor!G78 -> 30.86 | J80: 2.937527778 | L80: =Test!B78 -> 2961.6435 | M80: =Test!C78 -> 47.6004 | N80: =Test!D78 -> 52.7971 | O80: =Test!E78 -> 54.1486 | P80: =Test!F78 -> 11375.51 | Q80: =Test!G78 -> 32.24 | R80: 3.159863889 | AA80: =Anchor!H78 -> 46.4488 | AB80: =Anchor!I78 -> 51.0411 | AC80: =Anchor!J78 -> 52.2186 | AE80: =Test!H78 -> 46.5215 | AF80: =Test!I78 -> 51.2422 | AG80: =Test!J78 -> 52.4216
C81: 32 | D81: =Anchor!B79 -> 1904.7302 | E81: =Anchor!C79 -> 43.775 | F81: =Anchor!D79 -> 49.5766 | G81: =Anchor!E79 -> 51.1869 | H81: =Anchor!F79 -> 9555.25 | I81: =Anchor!G79 -> 29.32 | J81: 2.654236111 | L81: =Test!B79 -> 1906.375 | M81: =Test!C79 -> 43.9399 | N81: =Test!D79 -> 49.9432 | O81: =Test!E79 -> 51.5919 | P81: =Test!F79 -> 10262.31 | Q81: =Test!G79 -> 30.03 | R81: 2.850641667 | AA81: =Anchor!H79 -> 42.8671 | AB81: =Anchor!I79 -> 47.9851 | AC81: =Anchor!J79 -> 49.4901 | AE81: =Test!H79 -> 42.9904 | AF81: =Test!I79 -> 48.2576 | AG81: =Test!J79 -> 49.7825
C82: 37 | D82: =Anchor!B80 -> 1211.6022 | E82: =Anchor!C80 -> 39.8222 | F82: =Anchor!D80 -> 46.631 | G82: =Anchor!E80 -> 48.3726 | H82: =Anchor!F80 -> 8822.65 | I82: =Anchor!G80 -> 27.29 | J82: 2.450736111 | L82: =Test!B80 -> 1218.2915 | M82: =Test!C80 -> 40.035 | N82: =Test!D80 -> 46.9871 | O82: =Test!E80 -> 48.9701 | P82: =Test!F80 -> 9334.64 | Q82: =Test!G80 -> 27.86 | R82: 2.592955556 | AA82: =Anchor!H80 -> 39.0328 | AB82: =Anchor!I80 -> 45.0759 | AC82: =Anchor!J80 -> 46.8009 | AE82: =Test!H80 -> 39.2455 | AF82: =Test!I80 -> 45.328 | AG82: =Test!J80 -> 47.1684
A83: YUV, mixed content, 1440p | B83: Basketball_Screen_2560x1440_60p_8b444 | C83: 22 | D83: =Anchor!B81 -> 135472.7744 | E83: =Anchor!C81 -> 46.22 | F83: =Anchor!D81 -> 49.8086 | G83: =Anchor!E81 -> 49.8021 | H83: =Anchor!F81 -> 43046.5 | I83: =Anchor!G81 -> 123.6 | J83: 11.95736111 | L83: =Test!B81 -> 135112.448 | M83: =Test!C81 -> 46.3062 | N83: =Test!D81 -> 49.9498 | O83: =Test!E81 -> 49.9606 | P83: =Test!F81 -> 42521.36 | Q83: =Test!G81 -> 120.36 | R83: 11.81148889 | T83: =bdrate(D83:D86,E83:E86,L83:L86,M83:M86) -> -0.01133725958 | U83: =bdrate(D83:D86,F83:F86,L83:L86,N83:N86) -> -0.02950361496 | V83: =bdrate(D83:D86,G83:G86,L83:L86,O83:O86) -> -0.02943462116 | W83: =bdrateOld(D83:D86,E83:E86,L83:L86,M83:M86) -> -0.01134765229 | X83: =bdrateOld(D83:D86,F83:F86,L83:L86,N83:N86) -> -0.0295630175 | Y83: =bdrateOld(D83:D86,G83:G86,L83:L86,O83:O86) -> -0.02943807255 | AA83: =Anchor!H81 -> 46.22 | AB83: =Anchor!I81 -> 49.8084 | AC83: =Anchor!J81 -> 49.8019 | AE83: =Test!H81 -> 46.3062 | AF83: =Test!I81 -> 49.9496 | AG83: =Test!J81 -> 49.9605
C84: 27 | D84: =Anchor!B82 -> 92226.5952 | E84: =Anchor!C82 -> 42.5251 | F84: =Anchor!D82 -> 46.1417 | G84: =Anchor!E82 -> 46.1467 | H84: =Anchor!F82 -> 40814.43 | I84: =Anchor!G82 -> 111.19 | J84: 11.33734167 | L84: =Test!B82 -> 92186.12 | M84: =Test!C82 -> 42.64 | N84: =Test!D82 -> 46.3707 | O84: =Test!E82 -> 46.3969 | P84: =Test!F82 -> 40063.65 | Q84: =Test!G82 -> 109.97 | R84: 11.12879167 | AA84: =Anchor!H82 -> 42.525 | AB84: =Anchor!I82 -> 46.1414 | AC84: =Anchor!J82 -> 46.1465 | AE84: =Test!H82 -> 42.6399 | AF84: =Test!I82 -> 46.3705 | AG84: =Test!J82 -> 46.3966
C85: 32 | D85: =Anchor!B83 -> 62061.6176 | E85: =Anchor!C83 -> 38.6583 | F85: =Anchor!D83 -> 42.3235 | G85: =Anchor!E83 -> 42.3359 | H85: =Anchor!F83 -> 36793.26 | I85: =Anchor!G83 -> 100.83 | J85: 10.22035 | L85: =Test!B83 -> 62549.7824 | M85: =Test!C83 -> 38.8686 | N85: =Test!D83 -> 42.7929 | O85: =Test!E83 -> 42.7725 | P85: =Test!F83 -> 36157.61 | Q85: =Test!G83 -> 101.57 | R85: 10.04378056 | AA85: =Anchor!H83 -> 38.6582 | AB85: =Anchor!I83 -> 42.3232 | AC85: =Anchor!J83 -> 42.3357 | AE85: =Test!H83 -> 38.8685 | AF85: =Test!I83 -> 42.7926 | AG85: =Test!J83 -> 42.7721
C86: 37 | D86: =Anchor!B84 -> 40752.6016 | E86: =Anchor!C84 -> 34.762 | F86: =Anchor!D84 -> 38.6301 | G86: =Anchor!E84 -> 38.6246 | H86: =Anchor!F84 -> 31649.5 | I86: =Anchor!G84 -> 93.75 | J86: 8.791527778 | L86: =Test!B84 -> 41049.3232 | M86: =Test!C84 -> 34.8342 | N86: =Test!D84 -> 38.8465 | O86: =Test!E84 -> 38.8596 | P86: =Test!F84 -> 32357.55 | Q86: =Test!G84 -> 94.13 | R86: 8.988208333 | AA86: =Anchor!H84 -> 34.7619 | AB86: =Anchor!I84 -> 38.6297 | AC86: =Anchor!J84 -> 38.6244 | AE86: =Test!H84 -> 34.8341 | AF86: =Test!I84 -> 38.8462 | AG86: =Test!J84 -> 38.8592
B87: MissionControlClip2_2560x1440_60p_8b444 | C87: 22 | D87: =Anchor!B85 -> 107239.7936 | E87: =Anchor!C85 -> 46.1718 | F87: =Anchor!D85 -> 50.765 | G87: =Anchor!E85 -> 51.7116 | H87: =Anchor!F85 -> 34842.4 | I87: =Anchor!G85 -> 116.6 | J87: 9.678444444 | L87: =Test!B85 -> 107208.4688 | M87: =Test!C85 -> 46.2112 | N87: =Test!D85 -> 50.8572 | O87: =Test!E85 -> 51.8041 | P87: =Test!F85 -> 35518.27 | Q87: =Test!G85 -> 117.94 | R87: 9.866186111 | T87: =bdrate(D87:D90,E87:E90,L87:L90,M87:M90) -> -0.00815274954 | U87: =bdrate(D87:D90,F87:F90,L87:L90,N87:N90) -> -0.0229652994 | V87: =bdrate(D87:D90,G87:G90,L87:L90,O87:O90) -> -0.01997549282 | W87: =bdrateOld(D87:D90,E87:E90,L87:L90,M87:M90) -> -0.008189565486 | X87: =bdrateOld(D87:D90,F87:F90,L87:L90,N87:N90) -> -0.02294390567 | Y87: =bdrateOld(D87:D90,G87:G90,L87:L90,O87:O90) -> -0.01990339038 | AA87: =Anchor!H85 -> 46.0901 | AB87: =Anchor!I85 -> 50.6996 | AC87: =Anchor!J85 -> 51.6273 | AE87: =Test!H85 -> 46.1183 | AF87: =Test!I85 -> 50.7904 | AG87: =Test!J85 -> 51.7285
C88: 27 | D88: =Anchor!B86 -> 69919.9888 | E88: =Anchor!C86 -> 42.6903 | F88: =Anchor!D86 -> 47.7688 | G88: =Anchor!E86 -> 48.4789 | H88: =Anchor!F86 -> 31593.44 | I88: =Anchor!G86 -> 106.22 | J88: 8.775955556 | L88: =Test!B86 -> 69930.792 | M88: =Test!C86 -> 42.7541 | N88: =Test!D86 -> 47.9327 | O88: =Test!E86 -> 48.6198 | P88: =Test!F86 -> 31698.04 | Q88: =Test!G86 -> 107.2 | R88: 8.805011111 | AA88: =Anchor!H86 -> 42.6224 | AB88: =Anchor!I86 -> 47.6323 | AC88: =Anchor!J86 -> 48.3078 | AE88: =Test!H86 -> 42.6728 | AF88: =Test!I86 -> 47.8138 | AG88: =Test!J86 -> 48.4627
C89: 32 | D89: =Anchor!B87 -> 42911.2528 | E89: =Anchor!C87 -> 39.19 | F89: =Anchor!D87 -> 44.5443 | G89: =Anchor!E87 -> 45.1953 | H89: =Anchor!F87 -> 28216.71 | I89: =Anchor!G87 -> 95.87 | J89: 7.837975 | L89: =Test!B87 -> 42968.8464 | M89: =Test!C87 -> 39.2712 | N89: =Test!D87 -> 44.7205 | O89: =Test!E87 -> 45.3569 | P89: =Test!F87 -> 28162.85 | Q89: =Test!G87 -> 97.27 | R89: 7.823013889 | AA89: =Anchor!H87 -> 39.1427 | AB89: =Anchor!I87 -> 44.3041 | AC89: =Anchor!J87 -> 44.8803 | AE89: =Test!H87 -> 39.2154 | AF89: =Test!I87 -> 44.5333 | AG89: =Test!J87 -> 45.1182
C90: 37 | D90: =Anchor!B88 -> 26026.7792 | E90: =Anchor!C88 -> 35.6363 | F90: =Anchor!D88 -> 41.512 | G90: =Anchor!E88 -> 42.3436 | H90: =Anchor!F88 -> 25592.58 | I90: =Anchor!G88 -> 86.55 | J90: 7.10905 | L90: =Test!B88 -> 26109.5136 | M90: =Test!C88 -> 35.6974 | N90: =Test!D88 -> 41.6487 | O90: =Test!E88 -> 42.4497 | P90: =Test!F88 -> 25788.41 | Q90: =Test!G88 -> 87.78 | R90: 7.163447222 | AA90: =Anchor!H88 -> 35.5825 | AB90: =Anchor!I88 -> 41.1039 | AC90: =Anchor!J88 -> 41.8545 | AE90: =Test!H88 -> 35.648 | AF90: =Test!I88 -> 41.3402 | AG90: =Test!J88 -> 42.0634
A91: YUV, mixed content, 1080p | B91: MissionControlClip3_1920x1080_60p_8b444 | C91: 22 | D91: =Anchor!B89 -> 74375.7184 | E91: =Anchor!C89 -> 46.8389 | F91: =Anchor!D89 -> 49.7004 | G91: =Anchor!E89 -> 50.0185 | H91: =Anchor!F89 -> 39616.76 | I91: =Anchor!G89 -> 131.76 | J91: 11.00465556 | L91: =Test!B89 -> 74194.4112 | M91: =Test!C89 -> 46.9907 | N91: =Test!D89 -> 49.9216 | O91: =Test!E89 -> 50.2845 | P91: =Test!F89 -> 40443.74 | Q91: =Test!G89 -> 132.38 | R91: 11.23437222 | T91: =bdrate(D91:D94,E91:E94,L91:L94,M91:M94) -> -0.02422626909 | U91: =bdrate(D91:D94,F91:F94,L91:L94,N91:N94) -> -0.03537995647 | V91: =bdrate(D91:D94,G91:G94,L91:L94,O91:O94) -> -0.03354991986 | W91: =bdrateOld(D91:D94,E91:E94,L91:L94,M91:M94) -> -0.02432010339 | X91: =bdrateOld(D91:D94,F91:F94,L91:L94,N91:N94) -> -0.03519999103 | Y91: =bdrateOld(D91:D94,G91:G94,L91:L94,O91:O94) -> -0.03347841115 | AA91: =Anchor!H89 -> 46.6962 | AB91: =Anchor!I89 -> 49.6281 | AC91: =Anchor!J89 -> 49.9462 | AE91: =Test!H89 -> 46.8311 | AF91: =Test!I89 -> 49.8556 | AG91: =Test!J89 -> 50.2267
C92: 27 | D92: =Anchor!B90 -> 51725.8032 | E92: =Anchor!C90 -> 42.9003 | F92: =Anchor!D90 -> 45.9183 | G92: =Anchor!E90 -> 46.2111 | H92: =Anchor!F90 -> 37548.64 | I92: =Anchor!G90 -> 121.12 | J92: 10.43017778 | L92: =Test!B90 -> 51645.872 | M92: =Test!C90 -> 43.1205 | N92: =Test!D90 -> 46.1592 | O92: =Test!E90 -> 46.4544 | P92: =Test!F90 -> 37509.76 | Q92: =Test!G90 -> 121.61 | R92: 10.41937778 | AA92: =Anchor!H90 -> 42.7785 | AB92: =Anchor!I90 -> 45.8411 | AC92: =Anchor!J90 -> 46.1069 | AE92: =Test!H90 -> 42.9787 | AF92: =Test!I90 -> 46.0918 | AG92: =Test!J90 -> 46.3655
C93: 32 | D93: =Anchor!B91 -> 34844.8432 | E93: =Anchor!C91 -> 38.7178 | F93: =Anchor!D91 -> 41.9232 | G93: =Anchor!E91 -> 42.5141 | H93: =Anchor!F91 -> 34784.82 | I93: =Anchor!G91 -> 112.01 | J93: 9.66245 | L93: =Test!B91 -> 34903.6176 | M93: =Test!C91 -> 39.0713 | N93: =Test!D91 -> 42.4184 | O93: =Test!E91 -> 42.9484 | P93: =Test!F91 -> 34783.65 | Q93: =Test!G91 -> 112.24 | R93: 9.662125 | AA93: =Anchor!H91 -> 38.6303 | AB93: =Anchor!I91 -> 41.8028 | AC93: =Anchor!J91 -> 42.3486 | AE93: =Test!H91 -> 38.959 | AF93: =Test!I91 -> 42.3314 | AG93: =Test!J91 -> 42.8198
C94: 37 | D94: =Anchor!B92 -> 22731.8696 | E94: =Anchor!C92 -> 34.5668 | F94: =Anchor!D92 -> 38.4028 | G94: =Anchor!E92 -> 38.9397 | H94: =Anchor!F92 -> 31072.09 | I94: =Anchor!G92 -> 101.97 | J94: 8.631136111 | L94: =Test!B92 -> 22871.8976 | M94: =Test!C92 -> 34.7463 | N94: =Test!D92 -> 38.7097 | O94: =Test!E92 -> 39.2035 | P94: =Test!F92 -> 31370.97 | Q94: =Test!G92 -> 102.92 | R94: 8.714158333 | AA94: =Anchor!H92 -> 34.4977 | AB94: =Anchor!I92 -> 38.2011 | AC94: =Anchor!J92 -> 38.6139 | AE94: =Test!H92 -> 34.67 | AF94: =Test!I92 -> 38.5258 | AG94: =Test!J92 -> 38.9056
A95: YUV, Animation, 720p | B95: sc_robot_1280x720_30_8bit_300_444 | C95: 22 | D95: =Anchor!B93 -> 37505.268 | E95: =Anchor!C93 -> 42.4796 | F95: =Anchor!D93 -> 45.1993 | G95: =Anchor!E93 -> 44.7968 | H95: =Anchor!F93 -> 20994.14 | I95: =Anchor!G93 -> 46.55 | J95: 5.831705556 | L95: =Test!B93 -> 37563.6528 | M95: =Test!C93 -> 42.4807 | N95: =Test!D93 -> 45.2202 | O95: =Test!E93 -> 44.8198 | P95: =Test!F93 -> 20241.57 | Q95: =Test!G93 -> 47.16 | R95: 5.622658333 | T95: =bdrate(D95:D98,E95:E98,L95:L98,M95:M98) -> 0.001238477961 | U95: =bdrate(D95:D98,F95:F98,L95:L98,N95:N98) -> -0.0007502526794 | V95: =bdrate(D95:D98,G95:G98,L95:L98,O95:O98) -> -0.0005430766231 | W95: =bdrateOld(D95:D98,E95:E98,L95:L98,M95:M98) -> 0.001273456603 | X95: =bdrateOld(D95:D98,F95:F98,L95:L98,N95:N98) -> -0.0006940131762 | Y95: =bdrateOld(D95:D98,G95:G98,L95:L98,O95:O98) -> -0.0004783532969 | AA95: =Anchor!H93 -> 42.4795 | AB95: =Anchor!I93 -> 45.1978 | AC95: =Anchor!J93 -> 44.7954 | AE95: =Test!H93 -> 42.4806 | AF95: =Test!I93 -> 45.2187 | AG95: =Test!J93 -> 44.8184
C96: 27 | D96: =Anchor!B94 -> 17515.8392 | E96: =Anchor!C94 -> 38.6205 | F96: =Anchor!D94 -> 42.4279 | G96: =Anchor!E94 -> 41.8045 | H96: =Anchor!F94 -> 17189.44 | I96: =Anchor!G94 -> 35.89 | J96: 4.774844444 | L96: =Test!B94 -> 17543.5344 | M96: =Test!C94 -> 38.6214 | N96: =Test!D94 -> 42.4357 | O96: =Test!E94 -> 41.8119 | P96: =Test!F94 -> 17890.04 | Q96: =Test!G94 -> 36.61 | R96: 4.969455556 | AA96: =Anchor!H94 -> 38.62 | AB96: =Anchor!I94 -> 42.4249 | AC96: =Anchor!J94 -> 41.8012 | AE96: =Test!H94 -> 38.6208 | AF96: =Test!I94 -> 42.4327 | AG96: =Test!J94 -> 41.8086
C97: 32 | D97: =Anchor!B95 -> 7948.1488 | E97: =Anchor!C95 -> 35.6274 | F97: =Anchor!D95 -> 40.3394 | G97: =Anchor!E95 -> 39.7834 | H97: =Anchor!F95 -> 11982.96 | I97: =Anchor!G95 -> 28.36 | J97: 3.3286 | L97: =Test!B95 -> 7955.3504 | M97: =Test!C95 -> 35.6274 | N97: =Test!D95 -> 40.3408 | O97: =Test!E95 -> 39.784 | P97: =Test!F95 -> 12311.14 | Q97: =Test!G95 -> 29.22 | R97: 3.419761111 | AA97: =Anchor!H95 -> 35.6262 | AB97: =Anchor!I95 -> 40.336 | AC97: =Anchor!J95 -> 39.7775 | AE97: =Test!H95 -> 35.6261 | AF97: =Test!I95 -> 40.3374 | AG97: =Test!J95 -> 39.7781
C98: 37 | D98: =Anchor!B96 -> 3748.0216 | E98: =Anchor!C96 -> 33.1546 | F98: =Anchor!D96 -> 38.4116 | G98: =Anchor!E96 -> 38.1188 | H98: =Anchor!F96 -> 7734.83 | I98: =Anchor!G96 -> 23.15 | J98: 2.148563889 | L98: =Test!B96 -> 3753.1912 | M98: =Test!C96 -> 33.1544 | N98: =Test!D96 -> 38.4135 | O98: =Test!E96 -> 38.1178 | P98: =Test!F96 -> 8138.05 | Q98: =Test!G96 -> 23.9 | R98: 2.260569444 | AA98: =Anchor!H96 -> 33.1532 | AB98: =Anchor!I96 -> 38.4079 | AC98: =Anchor!J96 -> 38.1111 | AE98: =Test!H96 -> 33.153 | AF98: =Test!I96 -> 38.4098 | AG98: =Test!J96 -> 38.1103
A99: YUV, camera captured, 1080p | B99: EBURainFruits_1920x1080_50_10bit_444 | C99: 22 | D99: =Anchor!B97 -> 87791.6896 | E99: =Anchor!C97 -> 43.671 | F99: =Anchor!D97 -> 47.0061 | G99: =Anchor!E97 -> 48.4076 | H99: =Anchor!F97 -> 26013.34 | I99: =Anchor!G97 -> 72.22 | J99: 7.225927778 | L99: =Test!B97 -> 87814.3984 | M99: =Test!C97 -> 43.6714 | N99: =Test!D97 -> 47.0056 | O99: =Test!E97 -> 48.4082 | P99: =Test!F97 -> 25459.38 | Q99: =Test!G97 -> 73.57 | R99: 7.07205 | T99: =bdrate(D99:D102,E99:E102,L99:L102,M99:M102) -> 0.0005330898851 | U99: =bdrate(D99:D102,F99:F102,L99:L102,N99:N102) -> 0.0002165023314 | V99: =bdrate(D99:D102,G99:G102,L99:L102,O99:O102) -> 0.0005817151012 | W99: =bdrateOld(D99:D102,E99:E102,L99:L102,M99:M102) -> 0.000533005795 | X99: =bdrateOld(D99:D102,F99:F102,L99:L102,N99:N102) -> 0.0002161840591 | Y99: =bdrateOld(D99:D102,G99:G102,L99:L102,O99:O102) -> 0.0005817676125 | AA99: =Anchor!H97 -> 43.6709 | AB99: =Anchor!I97 -> 47.0052 | AC99: =Anchor!J97 -> 48.4067 | AE99: =Test!H97 -> 43.6713 | AF99: =Test!I97 -> 47.0047 | AG99: =Test!J97 -> 48.4073
C100: 27 | D100: =Anchor!B98 -> 51904.5728 | E100: =Anchor!C98 -> 40.5634 | F100: =Anchor!D98 -> 45.3101 | G100: =Anchor!E98 -> 46.5538 | H100: =Anchor!F98 -> 21862.46 | I100: =Anchor!G98 -> 62.53 | J100: 6.072905556 | L100: =Test!B98 -> 51920.8656 | M100: =Test!C98 -> 40.5631 | N100: =Test!D98 -> 45.3102 | O100: =Test!E98 -> 46.5539 | P100: =Test!F98 -> 21007.71 | Q100: =Test!G98 -> 63.94 | R100: 5.835475 | AA100: =Anchor!H98 -> 40.5629 | AB100: =Anchor!I98 -> 45.3084 | AC100: =Anchor!J98 -> 46.5529 | AE100: =Test!H98 -> 40.5627 | AF100: =Test!I98 -> 45.3085 | AG100: =Test!J98 -> 46.5529
C101: 32 | D101: =Anchor!B99 -> 29548.32 | E101: =Anchor!C99 -> 37.37 | F101: =Anchor!D99 -> 43.5034 | G101: =Anchor!E99 -> 44.5098 | H101: =Anchor!F99 -> 17626.25 | I101: =Anchor!G99 -> 54.91 | J101: 4.896180556 | L101: =Test!B99 -> 29563.4416 | M101: =Test!C99 -> 37.3692 | N101: =Test!D99 -> 43.5046 | O101: =Test!E99 -> 44.5091 | P101: =Test!F99 -> 17236.1 | Q101: =Test!G99 -> 55.44 | R101: 4.787805556 | AA101: =Anchor!H99 -> 37.3688 | AB101: =Anchor!I99 -> 43.501 | AC101: =Anchor!J99 -> 44.5089 | AE101: =Test!H99 -> 37.368 | AF101: =Test!I99 -> 43.5022 | AG101: =Test!J99 -> 44.5083
C102: 37 | D102: =Anchor!B100 -> 16239.6224 | E102: =Anchor!C100 -> 34.2491 | F102: =Anchor!D100 -> 41.7464 | G102: =Anchor!E100 -> 42.23 | H102: =Anchor!F100 -> 14071.52 | I102: =Anchor!G100 -> 46.82 | J102: 3.908755556 | L102: =Test!B100 -> 16251.9456 | M102: =Test!C100 -> 34.2479 | N102: =Test!D100 -> 41.7482 | O102: =Test!E100 -> 42.2277 | P102: =Test!F100 -> 14281.26 | Q102: =Test!G100 -> 47.82 | R102: 3.967016667 | AA102: =Anchor!H100 -> 34.2464 | AB102: =Anchor!I100 -> 41.7426 | AC102: =Anchor!J100 -> 42.2286 | AE102: =Test!H100 -> 34.2452 | AF102: =Test!I100 -> 41.7445 | AG102: =Test!J100 -> 42.2264
B103: Kimono1_1920x1080_24_10bit_444 | C103: 22 | D103: =Anchor!B101 -> 45860.1504 | E103: =Anchor!C101 -> 42.999 | F103: =Anchor!D101 -> 40.5202 | G103: =Anchor!E101 -> 42.924 | H103: =Anchor!F101 -> 15099.59 | I103: =Anchor!G101 -> 33.21 | J103: 4.194330556 | L103: =Test!B101 -> 45859.6192 | M103: =Test!C101 -> 42.9991 | N103: =Test!D101 -> 40.52 | O103: =Test!E101 -> 42.9237 | P103: =Test!F101 -> 14745.38 | Q103: =Test!G101 -> 33.77 | R103: 4.095938889 | T103: =bdrate(D103:D106,E103:E106,L103:L106,M103:M106) -> 0.0001194699951 | U103: =bdrate(D103:D106,F103:F106,L103:L106,N103:N106) -> 0.0003561956566 | V103: =bdrate(D103:D106,G103:G106,L103:L106,O103:O106) -> 0.0003734675122 | W103: =bdrateOld(D103:D106,E103:E106,L103:L106,M103:M106) -> 0.0001429962896 | X103: =bdrateOld(D103:D106,F103:F106,L103:L106,N103:N106) -> 0.002739459906 | Y103: =bdrateOld(D103:D106,G103:G106,L103:L106,O103:O106) -> 0.0004360501788 | AA103: =Anchor!H101 -> 42.9986 | AB103: =Anchor!I101 -> 40.52 | AC103: =Anchor!J101 -> 42.9237 | AE103: =Test!H101 -> 42.9987 | AF103: =Test!I101 -> 40.5198 | AG103: =Test!J101 -> 42.9234
C104: 27 | D104: =Anchor!B102 -> 14113.344 | E104: =Anchor!C102 -> 41.6514 | F104: =Anchor!D102 -> 37.8821 | G104: =Anchor!E102 -> 42.0455 | H104: =Anchor!F102 -> 10187.45 | I104: =Anchor!G102 -> 26.43 | J104: 2.829847222 | L104: =Test!B102 -> 14114.968 | M104: =Test!C102 -> 41.651 | N104: =Test!D102 -> 37.8815 | O104: =Test!E102 -> 42.0453 | P104: =Test!F102 -> 11201.65 | Q104: =Test!G102 -> 26.79 | R104: 3.111569444 | AA104: =Anchor!H102 -> 41.6507 | AB104: =Anchor!I102 -> 37.8812 | AC104: =Anchor!J102 -> 42.0452 | AE104: =Test!H102 -> 41.6503 | AF104: =Test!I102 -> 37.8806 | AG104: =Test!J102 -> 42.045
C105: 32 | D105: =Anchor!B103 -> 7471.1504 | E105: =Anchor!C103 -> 39.8158 | F105: =Anchor!D103 -> 37.35 | G105: =Anchor!E103 -> 40.947 | H105: =Anchor!F103 -> 6521.14 | I105: =Anchor!G103 -> 23.34 | J105: 1.811427778 | L105: =Test!B103 -> 7471.1152 | M105: =Test!C103 -> 39.816 | N105: =Test!D103 -> 37.3501 | O105: =Test!E103 -> 40.9467 | P105: =Test!F103 -> 7324.03 | Q105: =Test!G103 -> 23.9 | R105: 2.034452778 | AA105: =Anchor!H103 -> 39.8144 | AB105: =Anchor!I103 -> 37.3491 | AC105: =Anchor!J103 -> 40.9465 | AE105: =Test!H103 -> 39.8145 | AF105: =Test!I103 -> 37.3493 | AG105: =Test!J103 -> 40.9462
C106: 37 | D106: =Anchor!B104 -> 4008.5696 | E106: =Anchor!C104 -> 37.4204 | F106: =Anchor!D104 -> 36.7689 | G106: =Anchor!E104 -> 39.7672 | H106: =Anchor!F104 -> 5082.67 | I106: =Anchor!G104 -> 20.25 | J106: 1.411852778 | L106: =Test!B104 -> 4008.8144 | M106: =Test!C104 -> 37.4189 | N106: =Test!D104 -> 36.7675 | O106: =Test!E104 -> 39.7651 | P106: =Test!F104 -> 5118.82 | Q106: =Test!G104 -> 20.61 | R106: 1.421894444 | AA106: =Anchor!H104 -> 37.4184 | AB106: =Anchor!I104 -> 36.7681 | AC106: =Anchor!J104 -> 39.7663 | AE106: =Test!H104 -> 37.4168 | AF106: =Test!I104 -> 36.7667 | AG106: =Test!J104 -> 39.7641
B107: =$A3 -> RGB, text & graphics with motion, 1080p | I107: =geometricMean(I3:I14) -> 85.08060274 | J107: =geometricMean(J3:J14) -> 12.48251748 | Q107: =geometricMean(Q3:Q14) -> 78.82670757 | R107: =geometricMean(R3:R14) -> 11.65551818 | T107: =AVERAGE(T3:T14) -> -0.1158830317 | U107: -0.1156172776 | V107: -0.115079695 | W107: -0.1164911185 | X107: -0.117549272 | Y107: -0.1168150323
B108: =$A15 -> RGB, text & graphics with motion,720p | I108: =geometricMean(I15:I30) -> 40.10196539 | J108: =geometricMean(J15:J30) -> 4.932150173 | Q108: =geometricMean(Q15:Q30) -> 39.26523832 | R108: =geometricMean(R15:R30) -> 4.922547194 | T108: =AVERAGE(T15:T30) -> -0.06556547617 | U108: -0.05869432566 | V108: -0.06222422231 | W108: -0.06553649315 | X108: -0.05856444304 | Y108: -0.06213843575
B109: =$A31 -> RGB, mixed content, 1440p | I109: =geometricMean(I31:I38) -> 116.5255403 | J109: =geometricMean(J31:J38) -> 14.37558478 | Q109: =geometricMean(Q31:Q38) -> 117.1382456 | R109: =geometricMean(R31:R38) -> 14.88231997 | T109: =AVERAGE(T31:T38) -> -0.01247583195 | U109: -0.01133429368 | V109: -0.01069730228 | W109: -0.01248434446 | X109: -0.01133983676 | Y109: -0.01070236663
B110: =$A39 -> RGB, mixed content, 1080p | I110: =geometricMean(I39:I42) -> 130.1354337 | J110: =geometricMean(J39:J42) -> 16.23729446 | Q110: =geometricMean(Q39:Q42) -> 130.8196833 | R110: =geometricMean(R39:R42) -> 16.55359904 | T110: =AVERAGE(T39:T42) -> -0.02214064791 | U110: -0.02345319113 | V110: -0.02108558239 | W110: -0.02214155155 | X110: -0.02348572536 | Y110: -0.02109429514
B111: =$A43 -> RGB, Animation, 720p | I111: =geometricMean(I43:I46) -> 42.64291945 | J111: =geometricMean(J43:J46) -> 5.737135238 | Q111: =geometricMean(Q43:Q46) -> 43.15884133 | R111: =geometricMean(R43:R46) -> 5.902074755 | T111: =AVERAGE(T43:T46) -> 0.0007719151319 | U111: -0.0005798045342 | V111: -0.0004261423964 | W111: 0.0007716722949 | X111: -0.0006714680797 | Y111: -0.0004738735443
B112: =$A47 -> RGB, camera captured, 1080p | I112: =geometricMean(I47:I54) -> 46.7485172 | J112: =geometricMean(J44:J47) -> 6.397688623 | Q112: =geometricMean(Q47:Q54) -> 47.12215298 | R112: =geometricMean(R44:R47) -> 6.550712143 | T112: =AVERAGE(T47:T54) -> 0.000208911824 | U112: 0.0001417719397 | V112: 0.0002537290883 | W112: 0.0002153637634 | X112: 0.000284435735 | Y112: 0.0001655053925
B113: =$A55 -> YUV, text & graphics with motion, 1080p | I113: =geometricMean(I55:I66) -> 81.93763067 | J113: =geometricMean(J55:J66) -> 11.36993134 | Q113: =geometricMean(Q55:Q66) -> 76.64001864 | R113: =geometricMean(R55:R66) -> 10.61453629 | T113: =AVERAGE(T55:T66) -> -0.1126557868 | U113: -0.1265652497 | V113: -0.1178003792 | W113: -0.1121291052 | X113: -0.1261635778 | Y113: -0.1170490608
B114: =$A67 -> YUV, text & graphics with motion,720p | I114: =geometricMean(I67:I82) -> 36.51847156 | J114: =geometricMean(J67:J82) -> 4.093691206 | Q114: =geometricMean(Q67:Q82) -> 36.73225178 | R114: =geometricMean(R67:R82) -> 4.125014722 | T114: =AVERAGE(T67:T82) -> -0.05115726539 | U114: -0.0738201712 | V114: -0.09530070939 | W114: -0.05087226047 | X114: -0.07349242771 | Y114: -0.09524686963
B115: =$A83 -> YUV, mixed content, 1440p | I115: =geometricMean(I83:I90) -> 103.678209 | J115: =geometricMean(J83:J90) -> 9.334670983 | Q115: =geometricMean(Q83:Q90) -> 103.9764629 | R115: =geometricMean(R83:R90) -> 9.337106185 | T115: =AVERAGE(T83:T90) -> -0.009745004562 | U115: -0.02623445718 | V115: -0.02470505699 | W115: -0.009768608888 | X115: -0.02625346158 | Y115: -0.02467073147
B116: =$A91 -> YUV, mixed content, 1080p | I116: =geometricMean(I91:I94) -> 116.1935889 | J116: =geometricMean(J91:J94) -> 9.891356331 | Q116: =geometricMean(Q91:Q94) -> 116.7776618 | R116: =geometricMean(R91:R94) -> 9.963735107 | T116: =AVERAGE(T91:T94) -> -0.02422626909 | U116: -0.03537995647 | V116: -0.03354991986 | W116: -0.02432010339 | X116: -0.03519999103 | Y116: -0.03347841115
B117: =$A95 -> YUV, Animation, 720p | I117: =geometricMean(I95:I98) -> 32.36216676 | J117: =geometricMean(J95:J98) -> 3.756567304 | Q117: =geometricMean(Q95:Q98) -> 33.13697876 | R117: =geometricMean(R95:R98) -> 3.833681524 | T117: =AVERAGE(T95:T98) -> 0.001238477961 | U117: -0.0007502526794 | V117: -0.0005430766231 | W117: 0.001273456603 | X117: -0.0006940131762 | Y117: -0.0004783532969
B118: =$A99 -> YUV, camera captured, 1080p | I118: =geometricMean(I99:I106) -> 38.48930645 | J118: =geometricMean(J96:J99) -> 3.963379706 | Q118: =geometricMean(Q99:Q106) -> 39.18417713 | R118: =geometricMean(R96:R99) -> 4.05991498 | T118: =AVERAGE(T99:T106) -> 0.0003262799401 | U118: 0.000286348994 | V118: 0.0004775913067 | W118: 0.0003380010423 | X118: 0.001477821982 | Y118: 0.0005089088956
B119: All | T119: =AVERAGE(T3:T106) -> -0.04770135519 | U119: -0.05350192439 | V119: -0.0559110288 | W119: -0.04766582265 | X119: -0.05350305044 | Y119: -0.05600214622
B120: Time geomean | I120: =geometricMean(I3:I106) -> 59.7593379 | J120: =geometricMean(J3:J106) -> 7.052817963 | Q120: =geometricMean(Q3:Q106) -> 58.89982911 | R120: =geometricMean(R3:R106) -> 7.014026965
B121: Time sum (hours) | I121: =secToHours(macroSum(I3:I106)) -> 2.006186111 | J121: =SUM(J3:J106) -> 871.4876417 | Q121: =secToHours(macroSum(Q3:Q106)) -> 1.967202778 | R121: =SUM(R3:R106) -> 861.9653
C124: Time Ratio
C125: Decoding | D125: Encoding
B126: RGB, text & graphics with motion, 1080p | C126: =Q107/I107 -> 0.9264944656 | D126: =R107/J107 -> 0.9337473949
B127: RGB, text & graphics with motion,720p | C127: 0.9791350111 | D127: 0.9980529833
B128: RGB, mixed content, 1440p | C128: 1.005258121 | D128: 1.03524971
B129: RGB, mixed content, 1080p | C129: 1.00525798 | D129: 1.019480128
B130: RGB, Animation, 720p | C130: 1.012098653 | D130: 1.028749456
B131: RGB, camera captured, 1080p | C131: 1.007992463 | D131: 1.023918563
B132: YUV, text & graphics with motion, 1080p | C132: 0.9353457992 | D132: 0.9335620396
B133: YUV, text & graphics with motion,720p | C133: 1.00585403 | D133: 1.007651656
B134: YUV, mixed content, 1440p | C134: 1.002876727 | D134: 1.000260877
B135: YUV, mixed content, 1080p | C135: 1.005026722 | D135: 1.007317376
B136: YUV, Animation, 720p | C136: 1.023941908 | D136: 1.020527842
B137: YUV, camera captured, 1080p | C137: 1.018053604 | D137: 1.024356807
B138: All | C138: =Q120/I120 -> 0.9856171634 | D138: =R120/J120 -> 0.9944999292

Sheet RA-SCC
D1: =Summary!H2 -> Anchor (SCM-1.0) | L1: =Summary!H3 -> Tested (Rnnnn) | T1: BD-rate (piecewise cubic) | W1: BD-rate (cubic) | AA1: MSE PSNR (anchor) | AE1: MSE PSNR (tested)
C2: QPISlice | D2: kbps | E2: G/Y psnr | F2: B/U psnr | G2: R/V psnr | H2: Enc T [s] | I2: Dec T [s] | J2: Enc T [h] | L2: kbps | M2: G/Y psnr | N2: B/U psnr | O2: R/V psnr | P2: Enc T [s] | Q2: Dec T [s] | R2: Enc T [h] | T2: G/Y | U2: B/U | V2: R/V | W2: G/Y | X2: B/U | Y2: R/V | AA2: G/Y | AB2: B/U | AC2: R/V | AE2: G/Y | AF2: B/U | AG2: R/V
A3: RGB, text & graphics with motion, 1080p | B3: sc_flyingGraphics_1920x1080_60_8bit_rgb | C3: 22 | D3: =Anchor!B105 -> 49177.4592 | E3: =Anchor!C105 -> 44.7351 | F3: =Anchor!D105 -> 44.5196 | G3: =Anchor!E105 -> 44.2725 | H3: =Anchor!F105 -> 144976.21 | I3: =Anchor!G105 -> 54.64 | J3: =secToHours(H3) -> 40.27116944 | L3: =Test!B105 -> 48453.6048 | M3: =Test!C105 -> 45.1523 | N3: =Test!D105 -> 44.9957 | O3: =Test!E105 -> 44.7289 | P3: =Test!F105 -> 144781.36 | Q3: =Test!G105 -> 53.56 | R3: =secToHours(P3) -> 40.21704444 | T3: =bdrate(D3:D6,E3:E6,L3:L6,M3:M6) -> -0.04511407769 | U3: =bdrate(D3:D6,F3:F6,L3:L6,N3:N6) -> -0.05089091435 | V3: =bdrate(D3:D6,G3:G6,L3:L6,O3:O6) -> -0.05026715457 | W3: =bdrateOld(D3:D6,E3:E6,L3:L6,M3:M6) -> -0.04519086617 | X3: =bdrateOld(D3:D6,F3:F6,L3:L6,N3:N6) -> -0.0509356504 | Y3: =bdrateOld(D3:D6,G3:G6,L3:L6,O3:O6) -> -0.05019569185 | AA3: =Anchor!H105 -> 44.3778 | AB3: =Anchor!I105 -> 44.1626 | AC3: =Anchor!J105 -> 43.9192 | AE3: =Test!H105 -> 44.7124 | AF3: =Test!I105 -> 44.5544 | AG3: =Test!J105 -> 44.2977
C4: 27 | D4: =Anchor!B106 -> 30768.4592 | E4: =Anchor!C106 -> 39.4733 | F4: =Anchor!D106 -> 39.3074 | G4: =Anchor!E106 -> 39.2005 | H4: =Anchor!F106 -> 129851.46 | I4: =Anchor!G106 -> 49.14 | J4: =secToHours(H4) -> 36.06985 | L4: =Test!B106 -> 30360.976 | M4: =Test!C106 -> 39.7975 | N4: =Test!D106 -> 39.7032 | O4: =Test!E106 -> 39.566 | P4: =Test!F106 -> 131215.21 | Q4: =Test!G106 -> 48.8 | R4: =secToHours(P4) -> 36.44866944 | AA4: =Anchor!H106 -> 39.1175 | AB4: =Anchor!I106 -> 38.9338 | AC4: =Anchor!J106 -> 38.8523 | AE4: =Test!H106 -> 39.38 | AF4: =Test!I106 -> 39.2571 | AG4: =Test!J106 -> 39.1569
C5: 32 | D5: =Anchor!B107 -> 18603.832 | E5: =Anchor!C107 -> 34.9944 | F5: =Anchor!D107 -> 34.6289 | G5: =Anchor!E107 -> 34.6954 | H5: =Anchor!F107 -> 115003.4 | I5: =Anchor!G107 -> 43.5 | J5: =secToHours(H5) -> 31.94538889 | L5: =Test!B107 -> 18423.6576 | M5: =Test!C107 -> 35.2885 | N5: =Test!D107 -> 34.9961 | O5: =Test!E107 -> 35.0553 | P5: =Test!F107 -> 115524.5 | Q5: =Test!G107 -> 43.73 | R5: =secToHours(P5) -> 32.09013889 | AA5: =Anchor!H107 -> 34.7114 | AB5: =Anchor!I107 -> 34.2904 | AC5: =Anchor!J107 -> 34.4044 | AE5: =Test!H107 -> 34.9508 | AF5: =Test!I107 -> 34.5953 | AG5: =Test!J107 -> 34.7092
C6: 37 | D6: =Anchor!B108 -> 11577.752 | E6: =Anchor!C108 -> 31.275 | F6: =Anchor!D108 -> 30.6104 | G6: =Anchor!E108 -> 30.8982 | H6: =Anchor!F108 -> 96348.17 | I6: =Anchor!G108 -> 39.12 | J6: 26.76338056 | L6: =Test!B108 -> 11532.9456 | M6: =Test!C108 -> 31.6142 | N6: =Test!D108 -> 31.0182 | O6: =Test!E108 -> 31.269 | P6: =Test!F108 -> 97732.37 | Q6: =Test!G108 -> 39.58 | R6: 27.14788056 | AA6: =Anchor!H108 -> 31.064 | AB6: =Anchor!I108 -> 30.332 | AC6: =Anchor!J108 -> 30.6687 | AE6: =Test!H108 -> 31.3513 | AF6: =Test!I108 -> 30.6788 | AG6: =Test!J108 -> 30.9899
B7: sc_desktop_1920x1080_60_8bit_rgb | C7: 22 | D7: =Anchor!B109 -> 2139.1184 | E7: =Anchor!C109 -> 53.6095 | F7: =Anchor!D109 -> 53.1244 | G7: =Anchor!E109 -> 52.6362 | H7: =Anchor!F109 -> 33986.82 | I7: =Anchor!G109 -> 43.74 | J7: 9.440783333 | L7: =Test!B109 -> 1990.76 | M7: =Test!C109 -> 55.7177 | N7: =Test!D109 -> 54.905 | O7: =Test!E109 -> 54.2644 | P7: =Test!F109 -> 34228.95 | Q7: =Test!G109 -> 45.77 | R7: 9.508041667 | T7: =bdrate(D7:D10,E7:E10,L7:L10,M7:M10) -> -0.08000763197 | U7: =bdrate(D7:D10,F7:F10,L7:L10,N7:N10) -> -0.07731646525 | V7: =bdrate(D7:D10,G7:G10,L7:L10,O7:O10) -> -0.07866003129 | W7: =bdrateOld(D7:D10,E7:E10,L7:L10,M7:M10) -> -0.0798073382 | X7: =bdrateOld(D7:D10,F7:F10,L7:L10,N7:N10) -> -0.07742750432 | Y7: =bdrateOld(D7:D10,G7:G10,L7:L10,O7:O10) -> -0.07886106809 | AA7: =Anchor!H109 -> 53.5799 | AB7: =Anchor!I109 -> 53.099 | AC7: =Anchor!J109 -> 52.6131 | AE7: =Test!H109 -> 55.693 | AF7: =Test!I109 -> 54.8874 | AG7: =Test!J109 -> 54.2494
C8: 27 | D8: =Anchor!B110 -> 1944.652 | E8: =Anchor!C110 -> 48.7078 | F8: =Anchor!D110 -> 47.916 | G8: =Anchor!E110 -> 47.3133 | H8: =Anchor!F110 -> 33139.89 | I8: =Anchor!G110 -> 44.19 | J8: 9.205525 | L8: =Test!B110 -> 1840.7304 | M8: =Test!C110 -> 50.9044 | N8: =Test!D110 -> 49.7548 | O8: =Test!E110 -> 49.3238 | P8: =Test!F110 -> 33263.35 | Q8: =Test!G110 -> 45.96 | R8: 9.239819444 | AA8: =Anchor!H110 -> 48.6572 | AB8: =Anchor!I110 -> 47.8683 | AC8: =Anchor!J110 -> 47.2789 | AE8: =Test!H110 -> 50.86 | AF8: =Test!I110 -> 49.726 | AG8: =Test!J110 -> 49.2984
C9: 32 | D9: =Anchor!B111 -> 1735.348 | E9: =Anchor!C111 -> 44.0323 | F9: =Anchor!D111 -> 43.1641 | G9: =Anchor!E111 -> 42.7636 | H9: =Anchor!F111 -> 31663.95 | I9: =Anchor!G111 -> 44.39 | J9: 8.795541667 | L9: =Test!B111 -> 1679.0104 | M9: =Test!C111 -> 45.852 | N9: =Test!D111 -> 44.8874 | O9: =Test!E111 -> 44.4732 | P9: =Test!F111 -> 31931.93 | Q9: =Test!G111 -> 46.1 | R9: 8.869980556 | AA9: =Anchor!H111 -> 43.9482 | AB9: =Anchor!I111 -> 43.1009 | AC9: =Anchor!J111 -> 42.7055 | AE9: =Test!H111 -> 45.7669 | AF9: =Test!I111 -> 44.8251 | AG9: =Test!J111 -> 44.4159
C10: 37 | D10: =Anchor!B112 -> 1512.9016 | E10: =Anchor!C112 -> 37.4186 | F10: =Anchor!D112 -> 37.2065 | G10: =Anchor!E112 -> 36.9374 | H10: =Anchor!F112 -> 29920.75 | I10: =Anchor!G112 -> 44.35 | J10: 8.311319444 | L10: =Test!B112 -> 1499.1384 | M10: =Test!C112 -> 40.1878 | N10: =Test!D112 -> 39.5903 | O10: =Test!E112 -> 39.2155 | P10: =Test!F112 -> 30195.38 | Q10: =Test!G112 -> 46.1 | R10: 8.387605556 | AA10: =Anchor!H112 -> 37.3724 | AB10: =Anchor!I112 -> 37.1549 | AC10: =Anchor!J112 -> 36.884 | AE10: =Test!H112 -> 40.0931 | AF10: =Test!I112 -> 39.5158 | AG10: =Test!J112 -> 39.1398
B11: sc_console_1920x1080_60_8bit_rgb | C11: 22 | D11: =Anchor!B113 -> 6970.968 | E11: =Anchor!C113 -> 54.6096 | F11: =Anchor!D113 -> 54.9889 | G11: =Anchor!E113 -> 53.7551 | H11: =Anchor!F113 -> 83995.23 | I11: =Anchor!G113 -> 47.19 | J11: 23.33200833 | L11: =Test!B113 -> 6784.4672 | M11: =Test!C113 -> 56.1235 | N11: =Test!D113 -> 56.1341 | O11: =Test!E113 -> 55.3253 | P11: =Test!F113 -> 85353.35 | Q11: =Test!G113 -> 48.38 | R11: 23.70926389 | T11: =bdrate(D11:D14,E11:E14,L11:L14,M11:M14) -> -0.07481054799 | U11: =bdrate(D11:D14,F11:F14,L11:L14,N11:N14) -> -0.07863781108 | V11: =bdrate(D11:D14,G11:G14,L11:L14,O11:O14) -> -0.08166114289 | W11: =bdrateOld(D11:D14,E11:E14,L11:L14,M11:M14) -> -0.07518115993 | X11: =bdrateOld(D11:D14,F11:F14,L11:L14,N11:N14) -> -0.07968214325 | Y11: =bdrateOld(D11:D14,G11:G14,L11:L14,O11:O14) -> -0.08241617947 | AA11: =Anchor!H113 -> 54.5289 | AB11: =Anchor!I113 -> 54.9202 | AC11: =Anchor!J113 -> 53.6944 | AE11: =Test!H113 -> 55.9718 | AF11: =Test!I113 -> 56.0225 | AG11: =Test!J113 -> 55.2229
C12: 27 | D12: =Anchor!B114 -> 5885.6664 | E12: =Anchor!C114 -> 48.9803 | F12: =Anchor!D114 -> 48.7678 | G12: =Anchor!E114 -> 47.9606 | H12: =Anchor!F114 -> 80716.37 | I12: =Anchor!G114 -> 47.23 | J12: 22.42121389 | L12: =Test!B114 -> 5730.6144 | M12: =Test!C114 -> 50.6871 | N12: =Test!D114 -> 50.5322 | O12: =Test!E114 -> 49.8931 | P12: =Test!F114 -> 80894.5 | Q12: =Test!G114 -> 48.21 | R12: 22.47069444 | AA12: =Anchor!H114 -> 48.8657 | AB12: =Anchor!I114 -> 48.6788 | AC12: =Anchor!J114 -> 47.8719 | AE12: =Test!H114 -> 50.4603 | AF12: =Test!I114 -> 50.3692 | AG12: =Test!J114 -> 49.7323
C13: 32 | D13: =Anchor!B115 -> 4798.3872 | E13: =Anchor!C115 -> 43.9816 | F13: =Anchor!D115 -> 43.9242 | G13: =Anchor!E115 -> 43.1639 | H13: =Anchor!F115 -> 74345.32 | I13: =Anchor!G115 -> 46.82 | J13: 20.65147778 | L13: =Test!B115 -> 4704.144 | M13: =Test!C115 -> 45.3107 | N13: =Test!D115 -> 45.433 | O13: =Test!E115 -> 44.6933 | P13: =Test!F115 -> 74440.41 | Q13: =Test!G115 -> 47.77 | R13: 20.67789167 | AA13: =Anchor!H115 -> 43.7793 | AB13: =Anchor!I115 -> 43.7726 | AC13: =Anchor!J115 -> 42.9976 | AE13: =Test!H115 -> 44.978 | AF13: =Test!I115 -> 45.1775 | AG13: =Test!J115 -> 44.4176
C14: 37 | D14: =Anchor!B116 -> 3851.7584 | E14: =Anchor!C116 -> 38.6531 | F14: =Anchor!D116 -> 38.8759 | G14: =Anchor!E116 -> 37.8694 | H14: =Anchor!F116 -> 67185.28 | I14: =Anchor!G116 -> 46.2 | J14: 18.66257778 | L14: =Test!B116 -> 3820.9624 | M14: =Test!C116 -> 40.1483 | N14: =Test!D116 -> 40.5552 | O14: =Test!E116 -> 39.4358 | P14: =Test!F116 -> 67235.67 | Q14: =Test!G116 -> 47.35 | R14: 18.676575 | AA14: =Anchor!H116 -> 38.5037 | AB14: =Anchor!I116 -> 38.758 | AC14: =Anchor!J116 -> 37.6783 | AE14: =Test!H116 -> 39.8734 | AF14: =Test!I116 -> 40.3228 | AG14: =Test!J116 -> 39.1288
A15: RGB, text & graphics with motion,720p | B15: sc_web_browsing_1280x720_30_8bit_300_rgb | C15: 22 | D15: =Anchor!B117 -> 549.2392 | E15: =Anchor!C117 -> 53.4109 | F15: =Anchor!D117 -> 52.2152 | G15: =Anchor!E117 -> 52.077 | H15: =Anchor!F117 -> 3988.69 | I15: =Anchor!G117 -> 9.71 | J15: 1.107969444 | L15: =Test!B117 -> 516.1008 | M15: =Test!C117 -> 54.6129 | N15: =Test!D117 -> 53.3108 | O15: =Test!E117 -> 53.203 | P15: =Test!F117 -> 4006.32 | Q15: =Test!G117 -> 10.33 | R15: 1.112866667 | T15: =bdrate(D15:D18,E15:E18,L15:L18,M15:M18) -> -0.1089594243 | U15: =bdrate(D15:D18,F15:F18,L15:L18,N15:N18) -> -0.1017772154 | V15: =bdrate(D15:D18,G15:G18,L15:L18,O15:O18) -> -0.1082895533 | W15: =bdrateOld(D15:D18,E15:E18,L15:L18,M15:M18) -> -0.1084451757 | X15: =bdrateOld(D15:D18,F15:F18,L15:L18,N15:N18) -> -0.1014276793 | Y15: =bdrateOld(D15:D18,G15:G18,L15:L18,O15:O18) -> -0.1081441745 | AA15: =Anchor!H117 -> 52.8677 | AB15: =Anchor!I117 -> 51.8279 | AC15: =Anchor!J117 -> 51.7332 | AE15: =Test!H117 -> 53.8492 | AF15: =Test!I117 -> 52.7412 | AG15: =Test!J117 -> 52.6613
C16: 27 | D16: =Anchor!B118 -> 434.344 | E16: =Anchor!C118 -> 48.5162 | F16: =Anchor!D118 -> 47.5009 | G16: =Anchor!E118 -> 47.3001 | H16: =Anchor!F118 -> 3913.36 | I16: =Anchor!G118 -> 9.85 | J16: 1.087044444 | L16: =Test!B118 -> 415.8752 | M16: =Test!C118 -> 50.2499 | N16: =Test!D118 -> 48.9947 | O16: =Test!E118 -> 48.9909 | P16: =Test!F118 -> 4084.18 | Q16: =Test!G118 -> 10.35 | R16: 1.134494444 | AA16: =Anchor!H118 -> 48.1485 | AB16: =Anchor!I118 -> 47.1823 | AC16: =Anchor!J118 -> 47.0397 | AE16: =Test!H118 -> 49.5994 | AF16: =Test!I118 -> 48.4951 | AG16: =Test!J118 -> 48.5182
C17: 32 | D17: =Anchor!B119 -> 345.676 | E17: =Anchor!C119 -> 44.5531 | F17: =Anchor!D119 -> 43.4801 | G17: =Anchor!E119 -> 43.2089 | H17: =Anchor!F119 -> 3932.32 | I17: =Anchor!G119 -> 9.82 | J17: 1.092311111 | L17: =Test!B119 -> 341.008 | M17: =Test!C119 -> 46.4446 | N17: =Test!D119 -> 45.139 | O17: =Test!E119 -> 45.0677 | P17: =Test!F119 -> 3841.46 | Q17: =Test!G119 -> 10.4 | R17: 1.067072222 | AA17: =Anchor!H119 -> 44.2545 | AB17: =Anchor!I119 -> 43.1985 | AC17: =Anchor!J119 -> 42.9672 | AE17: =Test!H119 -> 45.7625 | AF17: =Test!I119 -> 44.6268 | AG17: =Test!J119 -> 44.6063
C18: 37 | D18: =Anchor!B120 -> 263.6 | E18: =Anchor!C120 -> 37.3924 | F18: =Anchor!D120 -> 37.0512 | G18: =Anchor!E120 -> 36.9329 | H18: =Anchor!F120 -> 3723.91 | I18: =Anchor!G120 -> 9.83 | J18: 1.034419444 | L18: =Test!B120 -> 264.8832 | M18: =Test!C120 -> 40.4064 | N18: =Test!D120 -> 39.6218 | O18: =Test!E120 -> 39.4248 | P18: =Test!F120 -> 3825.29 | Q18: =Test!G120 -> 10.34 | R18: 1.062580556 | AA18: =Anchor!H120 -> 37.3168 | AB18: =Anchor!I120 -> 36.9556 | AC18: =Anchor!J120 -> 36.8451 | AE18: =Test!H120 -> 40.1644 | AF18: =Test!I120 -> 39.3839 | AG18: =Test!J120 -> 39.2324
B19: sc_map_1280x720_60_8bit | C19: 22 | D19: =Anchor!B121 -> 3321.1256 | E19: =Anchor!C121 -> 47.769 | F19: =Anchor!D121 -> 47.016 | G19: =Anchor!E121 -> 47.2708 | H19: =Anchor!F121 -> 18255.18 | I19: =Anchor!G121 -> 21.5 | J19: 5.070883333 | L19: =Test!B121 -> 3228.6848 | M19: =Test!C121 -> 48.8967 | N19: =Test!D121 -> 48.1413 | O19: =Test!E121 -> 48.4255 | P19: =Test!F121 -> 18513.03 | Q19: =Test!G121 -> 22.37 | R19: 5.142508333 | T19: =bdrate(D19:D22,E19:E22,L19:L22,M19:M22) -> -0.06877449172 | U19: =bdrate(D19:D22,F19:F22,L19:L22,N19:N22) -> -0.06821542897 | V19: =bdrate(D19:D22,G19:G22,L19:L22,O19:O22) -> -0.0721510991 | W19: =bdrateOld(D19:D22,E19:E22,L19:L22,M19:M22) -> -0.0687695494 | X19: =bdrateOld(D19:D22,F19:F22,L19:L22,N19:N22) -> -0.06813614322 | Y19: =bdrateOld(D19:D22,G19:G22,L19:L22,O19:O22) -> -0.07212050327 | AA19: =Anchor!H121 -> 47.183 | AB19: =Anchor!I121 -> 46.4295 | AC19: =Anchor!J121 -> 46.7459 | AE19: =Test!H121 -> 48.2261 | AF19: =Test!I121 -> 47.4257 | AG19: =Test!J121 -> 47.8404
C20: 27 | D20: =Anchor!B122 -> 2119.66 | E20: =Anchor!C122 -> 43.4018 | F20: =Anchor!D122 -> 42.692 | G20: =Anchor!E122 -> 43.1359 | H20: =Anchor!F122 -> 16519.92 | I20: =Anchor!G122 -> 20.99 | J20: 4.588866667 | L20: =Test!B122 -> 2116.4104 | M20: =Test!C122 -> 44.1926 | N20: =Test!D122 -> 43.4404 | O20: =Test!E122 -> 43.9204 | P20: =Test!F122 -> 17200.46 | Q20: =Test!G122 -> 21.98 | R20: 4.777905556 | AA20: =Anchor!H122 -> 42.7727 | AB20: =Anchor!I122 -> 42.0401 | AC20: =Anchor!J122 -> 42.5708 | AE20: =Test!H122 -> 43.5365 | AF20: =Test!I122 -> 42.7429 | AG20: =Test!J122 -> 43.3476
C21: 32 | D21: =Anchor!B123 -> 1330.228 | E21: =Anchor!C123 -> 39.0793 | F21: =Anchor!D123 -> 38.3872 | G21: =Anchor!E123 -> 39.081 | H21: =Anchor!F123 -> 15044.18 | I21: =Anchor!G123 -> 20.58 | J21: 4.178938889 | L21: =Test!B123 -> 1351.412 | M21: =Test!C123 -> 39.6825 | N21: =Test!D123 -> 39.0129 | O21: =Test!E123 -> 39.6839 | P21: =Test!F123 -> 15310.25 | Q21: =Test!G123 -> 21.6 | R21: 4.252847222 | AA21: =Anchor!H123 -> 38.439 | AB21: =Anchor!I123 -> 37.7239 | AC21: =Anchor!J123 -> 38.5081 | AE21: =Test!H123 -> 38.9904 | AF21: =Test!I123 -> 38.2856 | AG21: =Test!J123 -> 39.0814
C22: 37 | D22: =Anchor!B124 -> 813.1872 | E22: =Anchor!C124 -> 34.9416 | F22: =Anchor!D124 -> 34.3452 | G22: =Anchor!E124 -> 35.1932 | H22: =Anchor!F124 -> 13377.63 | I22: =Anchor!G124 -> 20.15 | J22: 3.716008333 | L22: =Test!B124 -> 837.7016 | M22: =Test!C124 -> 35.5912 | N22: =Test!D124 -> 34.9464 | O22: =Test!E124 -> 35.7915 | P22: =Test!F124 -> 13595.15 | Q22: =Test!G124 -> 21.29 | R22: 3.776430556 | AA22: =Anchor!H124 -> 34.3575 | AB22: =Anchor!I124 -> 33.7059 | AC22: =Anchor!J124 -> 34.6645 | AE22: =Test!H124 -> 34.8894 | AF22: =Test!I124 -> 34.1971 | AG22: =Test!J124 -> 35.1792
B23: sc_programming_1280x720_60_8bit | C23: 22 | D23: =Anchor!B125 -> 9838.188 | E23: =Anchor!C125 -> 46.9811 | F23: =Anchor!D125 -> 46.4829 | G23: =Anchor!E125 -> 46.1663 | H23: =Anchor!F125 -> 44842.42 | I23: =Anchor!G125 -> 27.85 | J23: 12.45622778 | L23: =Test!B125 -> 9742.6584 | M23: =Test!C125 -> 47.2756 | N23: =Test!D125 -> 46.6816 | O23: =Test!E125 -> 46.3823 | P23: =Test!F125 -> 45379.94 | Q23: =Test!G125 -> 28.55 | R23: 12.60553889 | T23: =bdrate(D23:D26,E23:E26,L23:L26,M23:M26) -> -0.04484860687 | U23: =bdrate(D23:D26,F23:F26,L23:L26,N23:N26) -> -0.01980675552 | V23: =bdrate(D23:D26,G23:G26,L23:L26,O23:O26) -> -0.02473607972 | W23: =bdrateOld(D23:D26,E23:E26,L23:L26,M23:M26) -> -0.04473739853 | X23: =bdrateOld(D23:D26,F23:F26,L23:L26,N23:N26) -> -0.01974688852 | Y23: =bdrateOld(D23:D26,G23:G26,L23:L26,O23:O26) -> -0.0247284549 | AA23: =Anchor!H125 -> 46.832 | AB23: =Anchor!I125 -> 46.2928 | AC23: =Anchor!J125 -> 45.9951 | AE23: =Test!H125 -> 47.1113 | AF23: =Test!I125 -> 46.4806 | AG23: =Test!J125 -> 46.2052
C24: 27 | D24: =Anchor!B126 -> 5930.4112 | E24: =Anchor!C126 -> 42.6662 | F24: =Anchor!D126 -> 41.5812 | G24: =Anchor!E126 -> 41.7035 | H24: =Anchor!F126 -> 37566.17 | I24: =Anchor!G126 -> 25.23 | J24: 10.43504722 | L24: =Test!B126 -> 5947.3024 | M24: =Test!C126 -> 42.9669 | N24: =Test!D126 -> 41.7593 | O24: =Test!E126 -> 41.9027 | P24: =Test!F126 -> 38619.98 | Q24: =Test!G126 -> 26.21 | R24: 10.72777222 | AA24: =Anchor!H126 -> 42.4658 | AB24: =Anchor!I126 -> 41.3154 | AC24: =Anchor!J126 -> 41.4775 | AE24: =Test!H126 -> 42.7344 | AF24: =Test!I126 -> 41.4728 | AG24: =Test!J126 -> 41.6535
C25: 32 | D25: =Anchor!B127 -> 3238.0216 | E25: =Anchor!C127 -> 38.4469 | F25: =Anchor!D127 -> 36.8146 | G25: =Anchor!E127 -> 37.3343 | H25: =Anchor!F127 -> 31826.51 | I25: =Anchor!G127 -> 23.43 | J25: 8.840697222 | L25: =Test!B127 -> 3264.6 | M25: =Test!C127 -> 38.8351 | N25: =Test!D127 -> 37.0029 | O25: =Test!E127 -> 37.5399 | P25: =Test!F127 -> 32264.72 | Q25: =Test!G127 -> 24.46 | R25: 8.962422222 | AA25: =Anchor!H127 -> 38.266 | AB25: =Anchor!I127 -> 36.5371 | AC25: =Anchor!J127 -> 37.1226 | AE25: =Test!H127 -> 38.6145 | AF25: =Test!I127 -> 36.6975 | AG25: =Test!J127 -> 37.3035
C26: 37 | D26: =Anchor!B128 -> 1676.3408 | E26: =Anchor!C128 -> 34.5824 | F26: =Anchor!D128 -> 32.8182 | G26: =Anchor!E128 -> 33.5084 | H26: =Anchor!F128 -> 26344.04 | I26: =Anchor!G128 -> 21.95 | J26: 7.317788889 | L26: =Test!B128 -> 1699.2056 | M26: =Test!C128 -> 35.0115 | N26: =Test!D128 -> 33.0232 | O26: =Test!E128 -> 33.7616 | P26: =Test!F128 -> 26784.8 | Q26: =Test!G128 -> 23.06 | R26: 7.440222222 | AA26: =Anchor!H128 -> 34.4579 | AB26: =Anchor!I128 -> 32.6266 | AC26: =Anchor!J128 -> 33.3683 | AE26: =Test!H128 -> 34.861 | AF26: =Test!I128 -> 32.8084 | AG26: =Test!J128 -> 33.603
B27: sc_SlideShow_1280x720_20_8bit_500 | C27: 22 | D27: =Anchor!B129 -> 1206.5203 | E27: =Anchor!C129 -> 50.7266 | F27: =Anchor!D129 -> 50.2464 | G27: =Anchor!E129 -> 50.4035 | H27: =Anchor!F129 -> 25585.73 | I27: =Anchor!G129 -> 20.81 | J27: 7.107147222 | L27: =Test!B129 -> 1205.5974 | M27: =Test!C129 -> 50.8786 | N27: =Test!D129 -> 50.3902 | O27: =Test!E129 -> 50.5602 | P27: =Test!F129 -> 25931.14 | Q27: =Test!G129 -> 21.63 | R27: 7.203094444 | T27: =bdrate(D27:D30,E27:E30,L27:L30,M27:M30) -> -0.02795105854 | U27: =bdrate(D27:D30,F27:F30,L27:L30,N27:N30) -> -0.02270205082 | V27: =bdrate(D27:D30,G27:G30,L27:L30,O27:O30) -> -0.02510891052 | W27: =bdrateOld(D27:D30,E27:E30,L27:L30,M27:M30) -> -0.02795290218 | X27: =bdrateOld(D27:D30,F27:F30,L27:L30,N27:N30) -> -0.02268345634 | Y27: =bdrateOld(D27:D30,G27:G30,L27:L30,O27:O30) -> -0.02505073109 | AA27: =Anchor!H129 -> 49.5678 | AB27: =Anchor!I129 -> 49.0725 | AC27: =Anchor!J129 -> 49.2745 | AE27: =Test!H129 -> 49.6845 | AF27: =Test!I129 -> 49.1859 | AG27: =Test!J129 -> 49.3925
C28: 27 | D28: =Anchor!B130 -> 722.3155 | E28: =Anchor!C130 -> 47.0479 | F28: =Anchor!D130 -> 46.4323 | G28: =Anchor!E130 -> 46.6582 | H28: =Anchor!F130 -> 22222.86 | I28: =Anchor!G130 -> 19.75 | J28: 6.173016667 | L28: =Test!B130 -> 721.927 | M28: =Test!C130 -> 47.2361 | N28: =Test!D130 -> 46.587 | O28: =Test!E130 -> 46.8263 | P28: =Test!F130 -> 22792.77 | Q28: =Test!G130 -> 20.57 | R28: 6.331325 | AA28: =Anchor!H130 -> 45.8402 | AB28: =Anchor!I130 -> 45.1515 | AC28: =Anchor!J130 -> 45.4515 | AE28: =Test!H130 -> 45.9899 | AF28: =Test!I130 -> 45.2777 | AG28: =Test!J130 -> 45.5931
C29: 32 | D29: =Anchor!B131 -> 438.2042 | E29: =Anchor!C131 -> 43.605 | F29: =Anchor!D131 -> 42.9305 | G29: =Anchor!E131 -> 43.1985 | H29: =Anchor!F131 -> 19476.01 | I29: =Anchor!G131 -> 18.9 | J29: 5.410002778 | L29: =Test!B131 -> 441.7603 | M29: =Test!C131 -> 43.8713 | N29: =Test!D131 -> 43.1578 | O29: =Test!E131 -> 43.4511 | P29: =Test!F131 -> 19778.8 | Q29: =Test!G131 -> 19.69 | R29: 5.494111111 | AA29: =Anchor!H131 -> 42.3986 | AB29: =Anchor!I131 -> 41.6063 | AC29: =Anchor!J131 -> 41.9727 | AE29: =Test!H131 -> 42.6026 | AF29: =Test!I131 -> 41.7683 | AG29: =Test!J131 -> 42.1564
C30: 37 | D30: =Anchor!B132 -> 279.0182 | E30: =Anchor!C132 -> 40.191 | F30: =Anchor!D132 -> 39.5677 | G30: =Anchor!E132 -> 39.8061 | H30: =Anchor!F132 -> 17491.14 | I30: =Anchor!G132 -> 18.29 | J30: 4.85865 | L30: =Test!B132 -> 284.9373 | M30: =Test!C132 -> 40.6372 | N30: =Test!D132 -> 39.9407 | O30: =Test!E132 -> 40.184 | P30: =Test!F132 -> 17681.8 | Q30: =Test!G132 -> 19.09 | R30: 4.911611111 | AA30: =Anchor!H132 -> 39.0832 | AB30: =Anchor!I132 -> 38.3357 | AC30: =Anchor!J132 -> 38.7119 | AE30: =Test!H132 -> 39.4181 | AF30: =Test!I132 -> 38.6035 | AG30: =Test!J132 -> 38.9913
A31: RGB, mixed content, 1440p | B31: Basketball_Screen_2560x1440_60p_8b444 | C31: 22 | D31: =Anchor!B133 -> 13726.9888 | E31: =Anchor!C133 -> 46.1616 | F31: =Anchor!D133 -> 45.3274 | G31: =Anchor!E133 -> 45.4774 | H31: =Anchor!F133 -> 40097.42 | I31: =Anchor!G133 -> 43.23 | J31: 11.13817222 | L31: =Test!B133 -> 13701.9872 | M31: =Test!C133 -> 46.2219 | N31: =Test!D133 -> 45.3719 | O31: =Test!E133 -> 45.508 | P31: =Test!F133 -> 40809.36 | Q31: =Test!G133 -> 45.73 | R31: 11.33593333 | T31: =bdrate(D31:D34,E31:E34,L31:L34,M31:M34) -> -0.02047767798 | U31: =bdrate(D31:D34,F31:F34,L31:L34,N31:N34) -> -0.01388655613 | V31: =bdrate(D31:D34,G31:G34,L31:L34,O31:O34) -> -0.01485286322 | W31: =bdrateOld(D31:D34,E31:E34,L31:L34,M31:M34) -> -0.02052883818 | X31: =bdrateOld(D31:D34,F31:F34,L31:L34,N31:N34) -> -0.01388861039 | Y31: =bdrateOld(D31:D34,G31:G34,L31:L34,O31:O34) -> -0.014852421 | AA31: =Anchor!H133 -> 46.1503 | AB31: =Anchor!I133 -> 45.3031 | AC31: =Anchor!J133 -> 45.4599 | AE31: =Test!H133 -> 46.2106 | AF31: =Test!I133 -> 45.3472 | AG31: =Test!J133 -> 45.4904
C32: 27 | D32: =Anchor!B134 -> 6562.5136 | E32: =Anchor!C134 -> 42.8201 | F32: =Anchor!D134 -> 41.9629 | G32: =Anchor!E134 -> 42.0357 | H32: =Anchor!F134 -> 32623.34 | I32: =Anchor!G134 -> 40.94 | J32: 9.062038889 | L32: =Test!B134 -> 6545.0592 | M32: =Test!C134 -> 42.8914 | N32: =Test!D134 -> 42.0111 | O32: =Test!E134 -> 42.0981 | P32: =Test!F134 -> 33301.5 | Q32: =Test!G134 -> 42.66 | R32: 9.250416667 | AA32: =Anchor!H134 -> 42.8106 | AB32: =Anchor!I134 -> 41.949 | AC32: =Anchor!J134 -> 42.0221 | AE32: =Test!H134 -> 42.8823 | AF32: =Test!I134 -> 41.9973 | AG32: =Test!J134 -> 42.0846
C33: 32 | D33: =Anchor!B135 -> 3621.8128 | E33: =Anchor!C135 -> 39.3283 | F33: =Anchor!D135 -> 38.6821 | G33: =Anchor!E135 -> 38.6766 | H33: =Anchor!F135 -> 27481.17 | I33: =Anchor!G135 -> 39.4 | J33: 7.633658333 | L33: =Test!B135 -> 3614.48 | M33: =Test!C135 -> 39.4777 | N33: =Test!D135 -> 38.7596 | O33: =Test!E135 -> 38.7645 | P33: =Test!F135 -> 27910.66 | Q33: =Test!G135 -> 41.61 | R33: 7.752961111 | AA33: =Anchor!H135 -> 39.3194 | AB33: =Anchor!I135 -> 38.6723 | AC33: =Anchor!J135 -> 38.6654 | AE33: =Test!H135 -> 39.469 | AF33: =Test!I135 -> 38.7501 | AG33: =Test!J135 -> 38.7537
C34: 37 | D34: =Anchor!B136 -> 2176.6096 | E34: =Anchor!C136 -> 35.7907 | F34: =Anchor!D136 -> 35.1944 | G34: =Anchor!E136 -> 35.146 | H34: =Anchor!F136 -> 23747.48 | I34: =Anchor!G136 -> 38.71 | J34: 6.596522222 | L34: =Test!B136 -> 2185.2208 | M34: =Test!C136 -> 35.9885 | N34: =Test!D136 -> 35.3643 | O34: =Test!E136 -> 35.3122 | P34: =Test!F136 -> 24180.92 | Q34: =Test!G136 -> 40.88 | R34: 6.716922222 | AA34: =Anchor!H136 -> 35.7812 | AB34: =Anchor!I136 -> 35.1855 | AC34: =Anchor!J136 -> 35.1362 | AE34: =Test!H136 -> 35.9801 | AF34: =Test!I136 -> 35.3564 | AG34: =Test!J136 -> 35.3036
B35: MissionControlClip2_2560x1440_60p_8b444 | C35: 22 | D35: =Anchor!B137 -> 12981.096 | E35: =Anchor!C137 -> 45.8531 | F35: =Anchor!D137 -> 45.4082 | G35: =Anchor!E137 -> 45.4569 | H35: =Anchor!F137 -> 55851.32 | I35: =Anchor!G137 -> 46.49 | J35: 15.51425556 | L35: =Test!B137 -> 12979.9136 | M35: =Test!C137 -> 45.8881 | N35: =Test!D137 -> 45.4308 | O35: =Test!E137 -> 45.4765 | P35: =Test!F137 -> 55511.57 | Q35: =Test!G137 -> 48.51 | R35: 15.41988056 | T35: =bdrate(D35:D38,E35:E38,L35:L38,M35:M38) -> -0.007781116725 | U35: =bdrate(D35:D38,F35:F38,L35:L38,N35:N38) -> -0.008498515977 | V35: =bdrate(D35:D38,G35:G38,L35:L38,O35:O38) -> -0.006338879288 | W35: =bdrateOld(D35:D38,E35:E38,L35:L38,M35:M38) -> -0.007792653119 | X35: =bdrateOld(D35:D38,F35:F38,L35:L38,N35:N38) -> -0.008501355116 | Y35: =bdrateOld(D35:D38,G35:G38,L35:L38,O35:O38) -> -0.006344045685 | AA35: =Anchor!H137 -> 45.7241 | AB35: =Anchor!I137 -> 45.2886 | AC35: =Anchor!J137 -> 45.3219 | AE35: =Test!H137 -> 45.7468 | AF35: =Test!I137 -> 45.3043 | AG35: =Test!J137 -> 45.3346
C36: 27 | D36: =Anchor!B138 -> 7419.5632 | E36: =Anchor!C138 -> 42.585 | F36: =Anchor!D138 -> 42.2343 | G36: =Anchor!E138 -> 42.2065 | H36: =Anchor!F138 -> 46458.72 | I36: =Anchor!G138 -> 44.59 | J36: 12.9052 | L36: =Test!B138 -> 7412.6688 | M36: =Test!C138 -> 42.6195 | N36: =Test!D138 -> 42.2793 | O36: =Test!E138 -> 42.2306 | P36: =Test!F138 -> 47331.02 | Q36: =Test!G138 -> 46.6 | R36: 13.14750556 | AA36: =Anchor!H138 -> 42.4049 | AB36: =Anchor!I138 -> 42.0998 | AC36: =Anchor!J138 -> 42.0387 | AE36: =Test!H138 -> 42.4285 | AF36: =Test!I138 -> 42.1328 | AG36: =Test!J138 -> 42.0566
C37: 32 | D37: =Anchor!B139 -> 4198.0192 | E37: =Anchor!C139 -> 39.1625 | F37: =Anchor!D139 -> 39.0022 | G37: =Anchor!E139 -> 38.8455 | H37: =Anchor!F139 -> 39531.85 | I37: =Anchor!G139 -> 42.96 | J37: 10.98106944 | L37: =Test!B139 -> 4209.6368 | M37: =Test!C139 -> 39.2299 | N37: =Test!D139 -> 39.0716 | O37: =Test!E139 -> 38.9061 | P37: =Test!F139 -> 40134.64 | Q37: =Test!G139 -> 44.95 | R37: 11.14851111 | AA37: =Anchor!H139 -> 38.967 | AB37: =Anchor!I139 -> 38.8561 | AC37: =Anchor!J139 -> 38.6668 | AE37: =Test!H139 -> 39.0204 | AF37: =Test!I139 -> 38.9142 | AG37: =Test!J139 -> 38.7179
C38: 37 | D38: =Anchor!B140 -> 2433.7728 | E38: =Anchor!C140 -> 35.9717 | F38: =Anchor!D140 -> 35.8865 | G38: =Anchor!E140 -> 35.6728 | H38: =Anchor!F140 -> 33679.1 | I38: =Anchor!G140 -> 41.65 | J38: 9.355305556 | L38: =Test!B140 -> 2453.856 | M38: =Test!C140 -> 36.0805 | N38: =Test!D140 -> 35.9867 | O38: =Test!E140 -> 35.777 | P38: =Test!F140 -> 34207.31 | Q38: =Test!G140 -> 43.72 | R38: 9.502030556 | AA38: =Anchor!H140 -> 35.8058 | AB38: =Anchor!I140 -> 35.768 | AC38: =Anchor!J140 -> 35.5235 | AE38: =Test!H140 -> 35.9023 | AF38: =Test!I140 -> 35.8599 | AG38: =Test!J140 -> 35.6187
A39: RGB, mixed content, 1080p | B39: MissionControlClip3_1920x1080_60p_8b444 | C39: 22 | D39: =Anchor!B141 -> 5155.5528 | E39: =Anchor!C141 -> 47.2042 | F39: =Anchor!D141 -> 46.6341 | G39: =Anchor!E141 -> 46.6883 | H39: =Anchor!F141 -> 43996.89 | I39: =Anchor!G141 -> 49.17 | J39: 12.22135833 | L39: =Test!B141 -> 5139.0072 | M39: =Test!C141 -> 47.302 | N39: =Test!D141 -> 46.7334 | O39: =Test!E141 -> 46.7815 | P39: =Test!F141 -> 44774.23 | Q39: =Test!G141 -> 51.27 | R39: 12.43728611 | T39: =bdrate(D39:D42,E39:E42,L39:L42,M39:M42) -> -0.02107748257 | U39: =bdrate(D39:D42,F39:F42,L39:L42,N39:N42) -> -0.02253809072 | V39: =bdrate(D39:D42,G39:G42,L39:L42,O39:O42) -> -0.01986996708 | W39: =bdrateOld(D39:D42,E39:E42,L39:L42,M39:M42) -> -0.02114931207 | X39: =bdrateOld(D39:D42,F39:F42,L39:L42,N39:N42) -> -0.02260355396 | Y39: =bdrateOld(D39:D42,G39:G42,L39:L42,O39:O42) -> -0.01990476467 | AA39: =Anchor!H141 -> 46.9791 | AB39: =Anchor!I141 -> 46.4501 | AC39: =Anchor!J141 -> 46.4883 | AE39: =Test!H141 -> 47.0638 | AF39: =Test!I141 -> 46.537 | AG39: =Test!J141 -> 46.5683
C40: 27 | D40: =Anchor!B142 -> 3036.2864 | E40: =Anchor!C142 -> 43.6524 | F40: =Anchor!D142 -> 43.1138 | G40: =Anchor!E142 -> 43.1063 | H40: =Anchor!F142 -> 36767.39 | I40: =Anchor!G142 -> 47.41 | J40: 10.21316389 | L40: =Test!B142 -> 3027.4544 | M40: =Test!C142 -> 43.7559 | N40: =Test!D142 -> 43.2192 | O40: =Test!E142 -> 43.21 | P40: =Test!F142 -> 37493.27 | Q40: =Test!G142 -> 49.55 | R40: 10.41479722 | AA40: =Anchor!H142 -> 43.4074 | AB40: =Anchor!I142 -> 42.9375 | AC40: =Anchor!J142 -> 42.906 | AE40: =Test!H142 -> 43.494 | AF40: =Test!I142 -> 43.031 | AG40: =Test!J142 -> 42.9977
C41: 32 | D41: =Anchor!B143 -> 1871.7072 | E41: =Anchor!C143 -> 39.7922 | F41: =Anchor!D143 -> 39.4583 | G41: =Anchor!E143 -> 39.3414 | H41: =Anchor!F143 -> 31926.23 | I41: =Anchor!G143 -> 46.26 | J41: 8.868397222 | L41: =Test!B143 -> 1863.6136 | M41: =Test!C143 -> 39.9587 | N41: =Test!D143 -> 39.645 | O41: =Test!E143 -> 39.4886 | P41: =Test!F143 -> 32559.94 | Q41: =Test!G143 -> 48.4 | R41: 9.044427778 | AA41: =Anchor!H143 -> 39.5636 | AB41: =Anchor!I143 -> 39.2971 | AC41: =Anchor!J143 -> 39.1486 | AE41: =Test!H143 -> 39.7142 | AF41: =Test!I143 -> 39.4702 | AG41: =Test!J143 -> 39.2861
C42: 37 | D42: =Anchor!B144 -> 1193.7672 | E42: =Anchor!C144 -> 35.8319 | F42: =Anchor!D144 -> 35.6804 | G42: =Anchor!E144 -> 35.4876 | H42: =Anchor!F144 -> 28663.45 | I42: =Anchor!G144 -> 45.19 | J42: 7.962069444 | L42: =Test!B144 -> 1194.4432 | M42: =Test!C144 -> 36.0812 | N42: =Test!D144 -> 35.9079 | O42: =Test!E144 -> 35.7012 | P42: =Test!F144 -> 28952.6 | Q42: =Test!G144 -> 47.51 | R42: 8.042388889 | AA42: =Anchor!H144 -> 35.672 | AB42: =Anchor!I144 -> 35.5728 | AC42: =Anchor!J144 -> 35.3478 | AE42: =Test!H144 -> 35.9149 | AF42: =Test!I144 -> 35.7949 | AG42: =Test!J144 -> 35.5565
A43: RGB, Animation, 720p | B43: sc_robot_1280x720_30_8bit_300 | C43: 22 | D43: =Anchor!B145 -> 10838.1104 | E43: =Anchor!C145 -> 40.4144 | F43: =Anchor!D145 -> 40.9634 | G43: =Anchor!E145 -> 40.2254 | H43: =Anchor!F145 -> 40044.49 | I43: =Anchor!G145 -> 24.28 | J43: 11.12346944 | L43: =Test!B145 -> 10832.968 | M43: =Test!C145 -> 40.4173 | N43: =Test!D145 -> 40.9667 | O43: =Test!E145 -> 40.2253 | P43: =Test!F145 -> 41231.58 | Q43: =Test!G145 -> 24.8 | R43: 11.45321667 | T43: =bdrate(D43:D46,E43:E46,L43:L46,M43:M46) -> -0.0001564964177 | U43: =bdrate(D43:D46,F43:F46,L43:L46,N43:N46) -> -0.001233543744 | V43: =bdrate(D43:D46,G43:G46,L43:L46,O43:O46) -> -0.0001580433752 | W43: =bdrateOld(D43:D46,E43:E46,L43:L46,M43:M46) -> -0.0002310888217 | X43: =bdrateOld(D43:D46,F43:F46,L43:L46,N43:N46) -> -0.001245668668 | Y43: =bdrateOld(D43:D46,G43:G46,L43:L46,O43:O46) -> -0.0002921486102 | AA43: =Anchor!H145 -> 40.3182 | AB43: =Anchor!I145 -> 40.8941 | AC43: =Anchor!J145 -> 40.1223 | AE43: =Test!H145 -> 40.3211 | AF43: =Test!I145 -> 40.8972 | AG43: =Test!J145 -> 40.1222
C44: 27 | D44: =Anchor!B146 -> 4408.4424 | E44: =Anchor!C146 -> 37.0047 | F44: =Anchor!D146 -> 37.6597 | G44: =Anchor!E146 -> 36.6878 | H44: =Anchor!F146 -> 27566.2 | I44: =Anchor!G146 -> 18.52 | J44: 7.657277778 | L44: =Test!B146 -> 4410.9224 | M44: =Test!C146 -> 37.0094 | N44: =Test!D146 -> 37.666 | O44: =Test!E146 -> 36.6915 | P44: =Test!F146 -> 28273.25 | Q44: =Test!G146 -> 19.14 | R44: 7.853680556 | AA44: =Anchor!H146 -> 36.9573 | AB44: =Anchor!I146 -> 37.6211 | AC44: =Anchor!J146 -> 36.6336 | AE44: =Test!H146 -> 36.9618 | AF44: =Test!I146 -> 37.6271 | AG44: =Test!J146 -> 36.6371
C45: 32 | D45: =Anchor!B147 -> 1678.4504 | E45: =Anchor!C147 -> 34.2029 | F45: =Anchor!D147 -> 34.9622 | G45: =Anchor!E147 -> 33.8568 | H45: =Anchor!F147 -> 19883.17 | I45: =Anchor!G147 -> 14.93 | J45: 5.523102778 | L45: =Test!B147 -> 1681.1272 | M45: =Test!C147 -> 34.2044 | N45: =Test!D147 -> 34.9692 | O45: =Test!E147 -> 33.8586 | P45: =Test!F147 -> 20279.54 | Q45: =Test!G147 -> 15.51 | R45: 5.633205556 | AA45: =Anchor!H147 -> 34.1819 | AB45: =Anchor!I147 -> 34.9418 | AC45: =Anchor!J147 -> 33.8335 | AE45: =Test!H147 -> 34.1835 | AF45: =Test!I147 -> 34.9488 | AG45: =Test!J147 -> 33.8352
C46: 37 | D46: =Anchor!B148 -> 701.8168 | E46: =Anchor!C148 -> 32.0429 | F46: =Anchor!D148 -> 32.8392 | G46: =Anchor!E148 -> 31.6588 | H46: =Anchor!F148 -> 15686.67 | I46: =Anchor!G148 -> 13 | J46: 4.357408333 | L46: =Test!B148 -> 702.4232 | M46: =Test!C148 -> 32.0425 | N46: =Test!D148 -> 32.8426 | O46: =Test!E148 -> 31.6639 | P46: =Test!F148 -> 15858.69 | Q46: =Test!G148 -> 13.58 | R46: 4.405191667 | AA46: =Anchor!H148 -> 32.0316 | AB46: =Anchor!I148 -> 32.8262 | AC46: =Anchor!J148 -> 31.6475 | AE46: =Test!H148 -> 32.0312 | AF46: =Test!I148 -> 32.8298 | AG46: =Test!J148 -> 31.6528
A47: RGB, camera captured, 1080p | B47: EBURainFruits_1920x1080_50_10bit_444 | C47: 22 | D47: =Anchor!B149 -> 21330.496 | E47: =Anchor!C149 -> 42.3449 | F47: =Anchor!D149 -> 39.9522 | G47: =Anchor!E149 -> 42.8704 | H47: =Anchor!F149 -> 58624 | I47: =Anchor!G149 -> 43.8 | J47: 16.28444444 | L47: =Test!B149 -> 21343.168 | M47: =Test!C149 -> 42.3464 | N47: =Test!D149 -> 39.9523 | O47: =Test!E149 -> 42.8721 | P47: =Test!F149 -> 60180.76 | Q47: =Test!G149 -> 45.05 | R47: 16.71687778 | T47: =bdrate(D47:D50,E47:E50,L47:L50,M47:M50) -> 0.0002990698489 | U47: =bdrate(D47:D50,F47:F50,L47:L50,N47:N50) -> 0.0004466110725 | V47: =bdrate(D47:D50,G47:G50,L47:L50,O47:O50) -> 0.0005683834678 | W47: =bdrateOld(D47:D50,E47:E50,L47:L50,M47:M50) -> 0.0002998479631 | X47: =bdrateOld(D47:D50,F47:F50,L47:L50,N47:N50) -> 0.0004455741299 | Y47: =bdrateOld(D47:D50,G47:G50,L47:L50,O47:O50) -> 0.0005685114176 | AA47: =Anchor!H149 -> 42.3176 | AB47: =Anchor!I149 -> 39.8834 | AC47: =Anchor!J149 -> 42.8323 | AE47: =Test!H149 -> 42.3191 | AF47: =Test!I149 -> 39.8835 | AG47: =Test!J149 -> 42.834
C48: 27 | D48: =Anchor!B150 -> 8687.3328 | E48: =Anchor!C150 -> 39.8335 | F48: =Anchor!D150 -> 37.8147 | G48: =Anchor!E150 -> 40.2175 | H48: =Anchor!F150 -> 37776.13 | I48: =Anchor!G150 -> 32.29 | J48: 10.49336944 | L48: =Test!B150 -> 8685.8432 | M48: =Test!C150 -> 39.8341 | N48: =Test!D150 -> 37.8149 | O48: =Test!E150 -> 40.2159 | P48: =Test!F150 -> 38227.32 | Q48: =Test!G150 -> 33.36 | R48: 10.6187 | AA48: =Anchor!H150 -> 39.8206 | AB48: =Anchor!I150 -> 37.7832 | AC48: =Anchor!J150 -> 40.197 | AE48: =Test!H150 -> 39.8213 | AF48: =Test!I150 -> 37.7835 | AG48: =Test!J150 -> 40.1955
C49: 32 | D49: =Anchor!B151 -> 4090.6768 | E49: =Anchor!C151 -> 37.2372 | F49: =Anchor!D151 -> 35.6639 | G49: =Anchor!E151 -> 37.6183 | H49: =Anchor!F151 -> 27867.36 | I49: =Anchor!G151 -> 27.84 | J49: 7.740933333 | L49: =Test!B151 -> 4091.3024 | M49: =Test!C151 -> 37.2357 | N49: =Test!D151 -> 35.6618 | O49: =Test!E151 -> 37.617 | P49: =Test!F151 -> 28552.1 | Q49: =Test!G151 -> 28.84 | R49: 7.931138889 | AA49: =Anchor!H151 -> 37.2304 | AB49: =Anchor!I151 -> 35.6494 | AC49: =Anchor!J151 -> 37.6085 | AE49: =Test!H151 -> 37.229 | AF49: =Test!I151 -> 35.6474 | AG49: =Test!J151 -> 37.6072
C50: 37 | D50: =Anchor!B152 -> 2060.8464 | E50: =Anchor!C152 -> 34.5967 | F50: =Anchor!D152 -> 33.4759 | G50: =Anchor!E152 -> 35.0163 | H50: =Anchor!F152 -> 23458.91 | I50: =Anchor!G152 -> 25.42 | J50: 6.516363889 | L50: =Test!B152 -> 2063.4784 | M50: =Test!C152 -> 34.595 | N50: =Test!D152 -> 33.4762 | O50: =Test!E152 -> 35.0131 | P50: =Test!F152 -> 23947.8 | Q50: =Test!G152 -> 26.47 | R50: 6.652166667 | AA50: =Anchor!H152 -> 34.5917 | AB50: =Anchor!I152 -> 33.4686 | AC50: =Anchor!J152 -> 35.0107 | AE50: =Test!H152 -> 34.5901 | AF50: =Test!I152 -> 33.4688 | AG50: =Test!J152 -> 35.0073
B51: Kimono1_1920x1080_24_10bit_444 | C51: 22 | D51: =Anchor!B153 -> 45194.0016 | E51: =Anchor!C153 -> 40.3017 | F51: =Anchor!D153 -> 35.7796 | G51: =Anchor!E153 -> 38.9377 | H51: =Anchor!F153 -> 82155.18 | I51: =Anchor!G153 -> 34.32 | J51: 22.82088333 | L51: =Test!B153 -> 45198.64 | M51: =Test!C153 -> 40.3022 | N51: =Test!D153 -> 35.7806 | O51: =Test!E153 -> 38.9377 | P51: =Test!F153 -> 83083.12 | Q51: =Test!G153 -> 34.88 | R51: 23.07864444 | T51: =bdrate(D51:D54,E51:E54,L51:L54,M51:M54) -> 0.0005030413768 | U51: =bdrate(D51:D54,F51:F54,L51:L54,N51:N54) -> -0.0001928082705 | V51: =bdrate(D51:D54,G51:G54,L51:L54,O51:O54) -> 0.00043592918 | W51: =bdrateOld(D51:D54,E51:E54,L51:L54,M51:M54) -> 0.0005236575104 | X51: =bdrateOld(D51:D54,F51:F54,L51:L54,N51:N54) -> -0.001269064584 | Y51: =bdrateOld(D51:D54,G51:G54,L51:L54,O51:O54) -> 0.0004475560243 | AA51: =Anchor!H153 -> 40.2632 | AB51: =Anchor!I153 -> 35.1621 | AC51: =Anchor!J153 -> 38.873 | AE51: =Test!H153 -> 40.2638 | AF51: =Test!I153 -> 35.1639 | AG51: =Test!J153 -> 38.873
C52: 27 | D52: =Anchor!B154 -> 10043.208 | E52: =Anchor!C154 -> 38.9156 | F52: =Anchor!D154 -> 32.7764 | G52: =Anchor!E154 -> 37.4388 | H52: =Anchor!F154 -> 45547.83 | I52: =Anchor!G154 -> 22.71 | J52: 12.652175 | L52: =Test!B154 -> 10049.1792 | M52: =Test!C154 -> 38.9166 | N52: =Test!D154 -> 32.7775 | O52: =Test!E154 -> 37.4396 | P52: =Test!F154 -> 46275.77 | Q52: =Test!G154 -> 23.24 | R52: 12.85438056 | AA52: =Anchor!H154 -> 38.8772 | AB52: =Anchor!I154 -> 32.663 | AC52: =Anchor!J154 -> 37.3901 | AE52: =Test!H154 -> 38.8782 | AF52: =Test!I154 -> 32.6642 | AG52: =Test!J154 -> 37.3909
C53: 32 | D53: =Anchor!B155 -> 2942.7264 | E53: =Anchor!C155 -> 37.1774 | F53: =Anchor!D155 -> 31.8988 | G53: =Anchor!E155 -> 35.6771 | H53: =Anchor!F155 -> 28183.68 | I53: =Anchor!G155 -> 17.11 | J53: 7.8288 | L53: =Test!B155 -> 2942.6864 | M53: =Test!C155 -> 37.1751 | N53: =Test!D155 -> 31.8985 | O53: =Test!E155 -> 35.6756 | P53: =Test!F155 -> 29253.37 | Q53: =Test!G155 -> 17.69 | R53: 8.125936111 | AA53: =Anchor!H155 -> 37.1234 | AB53: =Anchor!I155 -> 31.8847 | AC53: =Anchor!J155 -> 35.6145 | AE53: =Test!H155 -> 37.1209 | AF53: =Test!I155 -> 31.8844 | AG53: =Test!J155 -> 35.6127
C54: 37 | D54: =Anchor!B156 -> 1325.7344 | E54: =Anchor!C156 -> 35.1728 | F54: =Anchor!D156 -> 31.1639 | G54: =Anchor!E156 -> 33.792 | H54: =Anchor!F156 -> 20714.06 | I54: =Anchor!G156 -> 14.47 | J54: 5.753905556 | L54: =Test!B156 -> 1327.9632 | M54: =Test!C156 -> 35.1763 | N54: =Test!D156 -> 31.1656 | O54: =Test!E156 -> 33.7948 | P54: =Test!F156 -> 21189.8 | Q54: =Test!G156 -> 14.91 | R54: 5.886055556 | AA54: =Anchor!H156 -> 35.1187 | AB54: =Anchor!I156 -> 31.1514 | AC54: =Anchor!J156 -> 33.7309 | AE54: =Test!H156 -> 35.1227 | AF54: =Test!I156 -> 31.1531 | AG54: =Test!J156 -> 33.7339
A55: YUV, text & graphics with motion, 1080p | B55: sc_flyingGraphics_1920x1080_60_8bit_444 | C55: 22 | D55: =Anchor!B157 -> 34083.3712 | E55: =Anchor!C157 -> 44.3778 | F55: =Anchor!D157 -> 46.6048 | G55: =Anchor!E157 -> 46.6594 | H55: =Anchor!F157 -> 118526.63 | I55: =Anchor!G157 -> 50.99 | J55: 32.92406389 | L55: =Test!B157 -> 33677.1584 | M55: =Test!C157 -> 44.6829 | N55: =Test!D157 -> 47.2191 | O55: =Test!E157 -> 47.2873 | P55: =Test!F157 -> 119099.01 | Q55: =Test!G157 -> 50.3 | R55: 33.08305833 | T55: =bdrate(D55:D58,E55:E58,L55:L58,M55:M58) -> -0.0341350878 | U55: =bdrate(D55:D58,F55:F58,L55:L58,N55:N58) -> -0.07954529739 | V55: =bdrate(D55:D58,G55:G58,L55:L58,O55:O58) -> -0.08340664325 | W55: =bdrateOld(D55:D58,E55:E58,L55:L58,M55:M58) -> -0.03405742585 | X55: =bdrateOld(D55:D58,F55:F58,L55:L58,N55:N58) -> -0.07929936418 | Y55: =bdrateOld(D55:D58,G55:G58,L55:L58,O55:O58) -> -0.08334373026 | AA55: =Anchor!H157 -> 44.0046 | AB55: =Anchor!I157 -> 46.4185 | AC55: =Anchor!J157 -> 46.4738 | AE55: =Test!H157 -> 44.2474 | AF55: =Test!I157 -> 46.9821 | AG55: =Test!J157 -> 47.0469
C56: 27 | D56: =Anchor!B158 -> 20366.5184 | E56: =Anchor!C158 -> 39.3087 | F56: =Anchor!D158 -> 42.0784 | G56: =Anchor!E158 -> 42.2534 | H56: =Anchor!F158 -> 102118.56 | I56: =Anchor!G158 -> 45.13 | J56: 28.36626667 | L56: =Test!B158 -> 20151.088 | M56: =Test!C158 -> 39.5411 | N56: =Test!D158 -> 42.6423 | O56: =Test!E158 -> 42.8308 | P56: =Test!F158 -> 102794.71 | Q56: =Test!G158 -> 44.97 | R56: 28.55408611 | AA56: =Anchor!H158 -> 38.979 | AB56: =Anchor!I158 -> 41.8935 | AC56: =Anchor!J158 -> 42.0894 | AE56: =Test!H158 -> 39.165 | AF56: =Test!I158 -> 42.4064 | AG56: =Test!J158 -> 42.6142
C57: 32 | D57: =Anchor!B159 -> 11813.1744 | E57: =Anchor!C159 -> 34.9225 | F57: =Anchor!D159 -> 37.7837 | G57: =Anchor!E159 -> 38.1887 | H57: =Anchor!F159 -> 88773.27 | I57: =Anchor!G159 -> 39.57 | J57: 24.65924167 | L57: =Test!B159 -> 11773.4176 | M57: =Test!C159 -> 35.1459 | N57: =Test!D159 -> 38.4062 | O57: =Test!E159 -> 38.8053 | P57: =Test!F159 -> 89753.66 | Q57: =Test!G159 -> 40.02 | R57: 24.93157222 | AA57: =Anchor!H159 -> 34.6488 | AB57: =Anchor!I159 -> 37.5866 | AC57: =Anchor!J159 -> 38.0273 | AE57: =Test!H159 -> 34.8297 | AF57: =Test!I159 -> 38.155 | AG57: =Test!J159 -> 38.5942
C58: 37 | D58: =Anchor!B160 -> 6852.6464 | E58: =Anchor!C160 -> 31.1523 | F58: =Anchor!D160 -> 34.18 | G58: =Anchor!E160 -> 34.6208 | H58: =Anchor!F160 -> 76215.94 | I58: =Anchor!G160 -> 35.4 | J58: 21.17109444 | L58: =Test!B160 -> 6915.712 | M58: =Test!C160 -> 31.3725 | N58: =Test!D160 -> 34.7927 | O58: =Test!E160 -> 35.2987 | P58: =Test!F160 -> 76910.33 | Q58: =Test!G160 -> 36.02 | R58: 21.36398056 | AA58: =Anchor!H160 -> 30.9365 | AB58: =Anchor!I160 -> 34.0244 | AC58: =Anchor!J160 -> 34.5007 | AE58: =Test!H160 -> 31.1219 | AF58: =Test!I160 -> 34.5974 | AG58: =Test!J160 -> 35.1421
B59: sc_desktop_1920x1080_60_8bit_444 | C59: 22 | D59: =Anchor!B161 -> 1977.2728 | E59: =Anchor!C161 -> 51.1256 | F59: =Anchor!D161 -> 51.52 | G59: =Anchor!E161 -> 51.7677 | H59: =Anchor!F161 -> 31177.77 | I59: =Anchor!G161 -> 43.7 | J59: 8.660491667 | L59: =Test!B161 -> 1857.5856 | M59: =Test!C161 -> 54.3959 | N59: =Test!D161 -> 54.9487 | O59: =Test!E161 -> 55.1824 | P59: =Test!F161 -> 31321.91 | Q59: =Test!G161 -> 45.37 | R59: 8.700530556 | T59: =bdrate(D59:D62,E59:E62,L59:L62,M59:M62) -> -0.08864178477 | U59: =bdrate(D59:D62,F59:F62,L59:L62,N59:N62) -> -0.09207395087 | V59: =bdrate(D59:D62,G59:G62,L59:L62,O59:O62) -> -0.09669359799 | W59: =bdrateOld(D59:D62,E59:E62,L59:L62,M59:M62) -> -0.0885475172 | X59: =bdrateOld(D59:D62,F59:F62,L59:L62,N59:N62) -> -0.091665984 | Y59: =bdrateOld(D59:D62,G59:G62,L59:L62,O59:O62) -> -0.09630306039 | AA59: =Anchor!H161 -> 51.0969 | AB59: =Anchor!I161 -> 51.4815 | AC59: =Anchor!J161 -> 51.7322 | AE59: =Test!H161 -> 54.374 | AF59: =Test!I161 -> 54.9263 | AG59: =Test!J161 -> 55.1607
C60: 27 | D60: =Anchor!B162 -> 1734.9176 | E60: =Anchor!C162 -> 46.4477 | F60: =Anchor!D162 -> 46.899 | G60: =Anchor!E162 -> 47.1742 | H60: =Anchor!F162 -> 30091.88 | I60: =Anchor!G162 -> 43.77 | J60: 8.358855556 | L60: =Test!B162 -> 1674.4896 | M60: =Test!C162 -> 49.2852 | N60: =Test!D162 -> 49.6163 | O60: =Test!E162 -> 50.1831 | P60: =Test!F162 -> 30106.28 | Q60: =Test!G162 -> 45.48 | R60: 8.362855556 | AA60: =Anchor!H162 -> 46.4082 | AB60: =Anchor!I162 -> 46.8507 | AC60: =Anchor!J162 -> 47.1216 | AE60: =Test!H162 -> 49.239 | AF60: =Test!I162 -> 49.5758 | AG60: =Test!J162 -> 50.1372
C61: 32 | D61: =Anchor!B163 -> 1508.9456 | E61: =Anchor!C163 -> 41.4947 | F61: =Anchor!D163 -> 42.2894 | G61: =Anchor!E163 -> 42.5439 | H61: =Anchor!F163 -> 29302.69 | I61: =Anchor!G163 -> 43.92 | J61: 8.139636111 | L61: =Test!B163 -> 1481.32 | M61: =Test!C163 -> 43.9462 | N61: =Test!D163 -> 44.631 | O61: =Test!E163 -> 45.0796 | P61: =Test!F163 -> 28681.06 | Q61: =Test!G163 -> 45.64 | R61: 7.966961111 | AA61: =Anchor!H163 -> 41.4391 | AB61: =Anchor!I163 -> 42.2277 | AC61: =Anchor!J163 -> 42.4865 | AE61: =Test!H163 -> 43.8663 | AF61: =Test!I163 -> 44.5769 | AG61: =Test!J163 -> 45.0196
C62: 37 | D62: =Anchor!B164 -> 1266.5448 | E62: =Anchor!C164 -> 36.3353 | F62: =Anchor!D164 -> 38.1898 | G62: =Anchor!E164 -> 38.1038 | H62: =Anchor!F164 -> 27237.29 | I62: =Anchor!G164 -> 43.78 | J62: 7.565913889 | L62: =Test!B164 -> 1257.8976 | M62: =Test!C164 -> 37.8735 | N62: =Test!D164 -> 39.4524 | O62: =Test!E164 -> 39.672 | P62: =Test!F164 -> 27393.74 | Q62: =Test!G164 -> 45.64 | R62: 7.609372222 | AA62: =Anchor!H164 -> 36.2807 | AB62: =Anchor!I164 -> 38.126 | AC62: =Anchor!J164 -> 38.0512 | AE62: =Test!H164 -> 37.8061 | AF62: =Test!I164 -> 39.3999 | AG62: =Test!J164 -> 39.6191
B63: sc_console_1920x1080_60_8bit_444 | C63: 22 | D63: =Anchor!B165 -> 5778.3576 | E63: =Anchor!C165 -> 52.6964 | F63: =Anchor!D165 -> 53.93 | G63: =Anchor!E165 -> 53.739 | H63: =Anchor!F165 -> 74917.21 | I63: =Anchor!G165 -> 47.37 | J63: 20.81033611 | L63: =Test!B165 -> 5673.7232 | M63: =Test!C165 -> 54.7875 | N63: =Test!D165 -> 56.0745 | O63: =Test!E165 -> 55.4006 | P63: =Test!F165 -> 76362.78 | Q63: =Test!G165 -> 48.22 | R63: 21.21188333 | T63: =bdrate(D63:D66,E63:E66,L63:L66,M63:M66) -> -0.07910326316 | U63: =bdrate(D63:D66,F63:F66,L63:L66,N63:N66) -> -0.09138631133 | V63: =bdrate(D63:D66,G63:G66,L63:L66,O63:O66) -> -0.07030046871 | W63: =bdrateOld(D63:D66,E63:E66,L63:L66,M63:M66) -> -0.07892577618 | X63: =bdrateOld(D63:D66,F63:F66,L63:L66,N63:N66) -> -0.09142516869 | Y63: =bdrateOld(D63:D66,G63:G66,L63:L66,O63:O66) -> -0.07014553096 | AA63: =Anchor!H165 -> 52.6523 | AB63: =Anchor!I165 -> 53.8799 | AC63: =Anchor!J165 -> 53.6678 | AE63: =Test!H165 -> 54.6692 | AF63: =Test!I165 -> 55.9326 | AG63: =Test!J165 -> 55.2489
C64: 27 | D64: =Anchor!B166 -> 4563.9496 | E64: =Anchor!C166 -> 47.6567 | F64: =Anchor!D166 -> 49.2391 | G64: =Anchor!E166 -> 48.712 | H64: =Anchor!F166 -> 72258.72 | I64: =Anchor!G166 -> 46.4 | J64: 20.07186667 | L64: =Test!B166 -> 4506.1336 | M64: =Test!C166 -> 49.359 | N64: =Test!D166 -> 51.0027 | O64: =Test!E166 -> 50.136 | P64: =Test!F166 -> 72742.44 | Q64: =Test!G166 -> 47.77 | R64: 20.20623333 | AA64: =Anchor!H166 -> 47.5685 | AB64: =Anchor!I166 -> 49.1688 | AC64: =Anchor!J166 -> 48.6027 | AE64: =Test!H166 -> 49.1745 | AF64: =Test!I166 -> 50.8408 | AG64: =Test!J166 -> 49.9295
C65: 32 | D65: =Anchor!B167 -> 3549.3584 | E65: =Anchor!C167 -> 42.1347 | F65: =Anchor!D167 -> 45.1197 | G65: =Anchor!E167 -> 43.8888 | H65: =Anchor!F167 -> 67483.89 | I65: =Anchor!G167 -> 45.53 | J65: 18.745525 | L65: =Test!B167 -> 3531.2264 | M65: =Test!C167 -> 43.6651 | N65: =Test!D167 -> 46.4511 | O65: =Test!E167 -> 44.9799 | P65: =Test!F167 -> 67041.06 | Q65: =Test!G167 -> 47.22 | R65: 18.62251667 | AA65: =Anchor!H167 -> 42.0028 | AB65: =Anchor!I167 -> 45.0092 | AC65: =Anchor!J167 -> 43.7507 | AE65: =Test!H167 -> 43.4081 | AF65: =Test!I167 -> 46.2462 | AG65: =Test!J167 -> 44.7554
C66: 37 | D66: =Anchor!B168 -> 2663.008 | E66: =Anchor!C168 -> 36.6381 | F66: =Anchor!D168 -> 41.0197 | G66: =Anchor!E168 -> 39.2887 | H66: =Anchor!F168 -> 59577.62 | I66: =Anchor!G168 -> 44.79 | J66: 16.54933889 | L66: =Test!B168 -> 2679.9384 | M66: =Test!C168 -> 37.9657 | N66: =Test!D168 -> 42.1162 | O66: =Test!E168 -> 40.2768 | P66: =Test!F168 -> 61162.2 | Q66: =Test!G168 -> 46.55 | R66: 16.9895 | AA66: =Anchor!H168 -> 36.5328 | AB66: =Anchor!I168 -> 40.9046 | AC66: =Anchor!J168 -> 39.123 | AE66: =Test!H168 -> 37.7806 | AF66: =Test!I168 -> 41.9138 | AG66: =Test!J168 -> 40.017
A67: YUV, text & graphics with motion,720p | B67: sc_web_browsing_1280x720_30_8bit_300_444_r1 | C67: 22 | D67: =Anchor!B169 -> 437.7488 | E67: =Anchor!C169 -> 50.4862 | F67: =Anchor!D169 -> 51.6437 | G67: =Anchor!E169 -> 52.402 | H67: =Anchor!F169 -> 3864.84 | I67: =Anchor!G169 -> 9.77 | J67: 1.073566667 | L67: =Test!B169 -> 418.5848 | M67: =Test!C169 -> 53.8179 | N67: =Test!D169 -> 55.6085 | O67: =Test!E169 -> 55.8549 | P67: =Test!F169 -> 3889.55 | Q67: =Test!G169 -> 10.33 | R67: 1.080430556 | T67: =bdrate(D67:D70,E67:E70,L67:L70,M67:M70) -> -0.1290278363 | U67: =bdrate(D67:D70,F67:F70,L67:L70,N67:N70) -> -0.1257622639 | V67: =bdrate(D67:D70,G67:G70,L67:L70,O67:O70) -> -0.1187181984 | W67: =bdrateOld(D67:D70,E67:E70,L67:L70,M67:M70) -> -0.1283557916 | X67: =bdrateOld(D67:D70,F67:F70,L67:L70,N67:N70) -> -0.1242092403 | Y67: =bdrateOld(D67:D70,G67:G70,L67:L70,O67:O70) -> -0.1174431491 | AA67: =Anchor!H169 -> 50.3443 | AB67: =Anchor!I169 -> 51.5897 | AC67: =Anchor!J169 -> 52.3483 | AE67: =Test!H169 -> 53.3022 | AF67: =Test!I169 -> 55.3961 | AG67: =Test!J169 -> 55.6669
C68: 27 | D68: =Anchor!B170 -> 339.224 | E68: =Anchor!C170 -> 46.1935 | F68: =Anchor!D170 -> 47.5075 | G68: =Anchor!E170 -> 48.3633 | H68: =Anchor!F170 -> 3718.22 | I68: =Anchor!G170 -> 9.78 | J68: 1.032838889 | L68: =Test!B170 -> 336.0632 | M68: =Test!C170 -> 49.3044 | N68: =Test!D170 -> 50.6765 | O68: =Test!E170 -> 51.0885 | P68: =Test!F170 -> 3830.56 | Q68: =Test!G170 -> 10.34 | R68: 1.064044444 | AA68: =Anchor!H170 -> 46.0723 | AB68: =Anchor!I170 -> 47.4396 | AC68: =Anchor!J170 -> 48.2934 | AE68: =Test!H170 -> 48.8623 | AF68: =Test!I170 -> 50.5652 | AG68: =Test!J170 -> 50.9671
C69: 32 | D69: =Anchor!B171 -> 256.3328 | E69: =Anchor!C171 -> 42.0836 | F69: =Anchor!D171 -> 43.3899 | G69: =Anchor!E171 -> 43.7747 | H69: =Anchor!F171 -> 3697.99 | I69: =Anchor!G171 -> 9.87 | J69: =secToHours(H69) -> 1.027219444 | L69: =Test!B171 -> 257.5416 | M69: =Test!C171 -> 44.0459 | N69: =Test!D171 -> 45.1058 | O69: =Test!E171 -> 45.4385 | P69: =Test!F171 -> 3719.43 | Q69: =Test!G171 -> 10.35 | R69: =secToHours(P69) -> 1.033175 | AA69: =Anchor!H171 -> 41.9739 | AB69: =Anchor!I171 -> 43.3473 | AC69: =Anchor!J171 -> 43.7028 | AE69: =Test!H171 -> 43.7896 | AF69: =Test!I171 -> 45.0394 | AG69: =Test!J171 -> 45.3685
C70: 37 | D70: =Anchor!B172 -> 181.56 | E70: =Anchor!C172 -> 37.2893 | F70: =Anchor!D172 -> 37.556 | G70: =Anchor!E172 -> 38.018 | H70: =Anchor!F172 -> 3588.1 | I70: =Anchor!G172 -> 9.8 | J70: 0.9966944444 | L70: =Test!B172 -> 183.4832 | M70: =Test!C172 -> 38.3536 | N70: =Test!D172 -> 39.5572 | O70: =Test!E172 -> 40.322 | P70: =Test!F172 -> 3633.87 | Q70: =Test!G172 -> 10.32 | R70: 1.009408333 | AA70: =Anchor!H172 -> 37.2113 | AB70: =Anchor!I172 -> 37.523 | AC70: =Anchor!J172 -> 37.9691 | AE70: =Test!H172 -> 38.2447 | AF70: =Test!I172 -> 39.4841 | AG70: =Test!J172 -> 40.2421
B71: sc_map_1280x720_60_8bit_444 | C71: 22 | D71: =Anchor!B173 -> 2110.2008 | E71: =Anchor!C173 -> 47.4294 | F71: =Anchor!D173 -> 50.0791 | G71: =Anchor!E173 -> 51.3206 | H71: =Anchor!F173 -> 16388.18 | I71: =Anchor!G173 -> 20.87 | J71: 4.552272222 | L71: =Test!B173 -> 2117.0936 | M71: =Test!C173 -> 47.9391 | N71: =Test!D173 -> 51.3385 | O71: =Test!E173 -> 52.8795 | P71: =Test!F173 -> 16302.94 | Q71: =Test!G173 -> 21.93 | R71: 4.528594444 | T71: =bdrate(D71:D74,E71:E74,L71:L74,M71:M74) -> -0.03137655021 | U71: =bdrate(D71:D74,F71:F74,L71:L74,N71:N74) -> -0.09167025705 | V71: =bdrate(D71:D74,G71:G74,L71:L74,O71:O74) -> -0.1468424496 | W71: =bdrateOld(D71:D74,E71:E74,L71:L74,M71:M74) -> -0.03126820478 | X71: =bdrateOld(D71:D74,F71:F74,L71:L74,N71:N74) -> -0.09169490404 | Y71: =bdrateOld(D71:D74,G71:G74,L71:L74,O71:O74) -> -0.1473754647 | AA71: =Anchor!H173 -> 46.8827 | AB71: =Anchor!I173 -> 49.5399 | AC71: =Anchor!J173 -> 50.845 | AE71: =Test!H173 -> 47.3103 | AF71: =Test!I173 -> 50.6337 | AG71: =Test!J173 -> 52.2683
C72: 27 | D72: =Anchor!B174 -> 1344.9312 | E72: =Anchor!C174 -> 43.0097 | F72: =Anchor!D174 -> 46.7844 | G72: =Anchor!E174 -> 48.5277 | H72: =Anchor!F174 -> 15154.77 | I72: =Anchor!G174 -> 20.5 | J72: 4.209658333 | L72: =Test!B174 -> 1349.776 | M72: =Test!C174 -> 43.3223 | N72: =Test!D174 -> 47.5765 | O72: =Test!E174 -> 49.5705 | P72: =Test!F174 -> 15333.68 | Q72: =Test!G174 -> 21.57 | R72: 4.259355556 | AA72: =Anchor!H174 -> 42.4128 | AB72: =Anchor!I174 -> 46.2014 | AC72: =Anchor!J174 -> 48.0837 | AE72: =Test!H174 -> 42.6387 | AF72: =Test!I174 -> 46.8278 | AG72: =Test!J174 -> 48.9692
C73: 32 | D73: =Anchor!B175 -> 829.5816 | E73: =Anchor!C175 -> 38.5016 | F73: =Anchor!D175 -> 43.3287 | G73: =Anchor!E175 -> 45.7788 | H73: =Anchor!F175 -> 13548.65 | I73: =Anchor!G175 -> 20.16 | J73: 3.763513889 | L73: =Test!B175 -> 829.508 | M73: =Test!C175 -> 38.7769 | N73: =Test!D175 -> 43.9177 | O73: =Test!E175 -> 46.6582 | P73: =Test!F175 -> 13718.94 | Q73: =Test!G175 -> 21.24 | R73: 3.810816667 | AA73: =Anchor!H175 -> 37.8708 | AB73: =Anchor!I175 -> 42.7744 | AC73: =Anchor!J175 -> 45.4449 | AE73: =Test!H175 -> 38.0525 | AF73: =Test!I175 -> 43.2039 | AG73: =Test!J175 -> 46.1857
C74: 37 | D74: =Anchor!B176 -> 501.2288 | E74: =Anchor!C176 -> 34.6906 | F74: =Anchor!D176 -> 39.7834 | G74: =Anchor!E176 -> 42.4715 | H74: =Anchor!F176 -> 11887.03 | I74: =Anchor!G176 -> 19.69 | J74: 3.301952778 | L74: =Test!B176 -> 503.5848 | M74: =Test!C176 -> 34.9164 | N74: =Test!D176 -> 40.4092 | O74: =Test!E176 -> 43.5084 | P74: =Test!F176 -> 12053.53 | Q74: =Test!G176 -> 20.85 | R74: 3.348202778 | AA74: =Anchor!H176 -> 34.122 | AB74: =Anchor!I176 -> 39.279 | AC74: =Anchor!J176 -> 42.2787 | AE74: =Test!H176 -> 34.2734 | AF74: =Test!I176 -> 39.7314 | AG74: =Test!J176 -> 43.169
B75: sc_programming_1280x720_60_8bit_444 | C75: 22 | D75: =Anchor!B177 -> 6127.7408 | E75: =Anchor!C177 -> 47.5507 | F75: =Anchor!D177 -> 47.1858 | G75: =Anchor!E177 -> 47.9205 | H75: =Anchor!F177 -> 39744.01 | I75: =Anchor!G177 -> 25.59 | J75: 11.04000278 | L75: =Test!B177 -> 6133.2112 | M75: =Test!C177 -> 47.693 | N75: =Test!D177 -> 47.3184 | O75: =Test!E177 -> 48.1018 | P75: =Test!F177 -> 39777.67 | Q75: =Test!G177 -> 26.45 | R75: 11.04935278 | T75: =bdrate(D75:D78,E75:E78,L75:L78,M75:M78) -> -0.02772785097 | U75: =bdrate(D75:D78,F75:F78,L75:L78,N75:N78) -> -0.02661590721 | V75: =bdrate(D75:D78,G75:G78,L75:L78,O75:O78) -> -0.04646948962 | W75: =bdrateOld(D75:D78,E75:E78,L75:L78,M75:M78) -> -0.02762197723 | X75: =bdrateOld(D75:D78,F75:F78,L75:L78,N75:N78) -> -0.02665861519 | Y75: =bdrateOld(D75:D78,G75:G78,L75:L78,O75:O78) -> -0.04613832514 | AA75: =Anchor!H177 -> 47.3782 | AB75: =Anchor!I177 -> 47.0296 | AC75: =Anchor!J177 -> 47.8057 | AE75: =Test!H177 -> 47.5099 | AF75: =Test!I177 -> 47.1472 | AG75: =Test!J177 -> 47.9727
C76: 27 | D76: =Anchor!B178 -> 3274.1568 | E76: =Anchor!C178 -> 43.1804 | F76: =Anchor!D178 -> 42.8011 | G76: =Anchor!E178 -> 43.9819 | H76: =Anchor!F178 -> 33628.35 | I76: =Anchor!G178 -> 23.32 | J76: 9.341208333 | L76: =Test!B178 -> 3289.9088 | M76: =Test!C178 -> 43.3382 | N76: =Test!D178 -> 42.9574 | O76: =Test!E178 -> 44.1748 | P76: =Test!F178 -> 33977.85 | Q76: =Test!G178 -> 24.37 | R76: 9.438291667 | AA76: =Anchor!H178 -> 42.9532 | AB76: =Anchor!I178 -> 42.5777 | AC76: =Anchor!J178 -> 43.8608 | AE76: =Test!H178 -> 43.0976 | AF76: =Test!I178 -> 42.7165 | AG76: =Test!J178 -> 44.0404
C77: 32 | D77: =Anchor!B179 -> 1585.0736 | E77: =Anchor!C179 -> 38.8437 | F77: =Anchor!D179 -> 38.8322 | G77: =Anchor!E179 -> 40.4511 | H77: =Anchor!F179 -> 27159.18 | I77: =Anchor!G179 -> 21.9 | J77: 7.544216667 | L77: =Test!B179 -> 1603.3144 | M77: =Test!C179 -> 39.1206 | N77: =Test!D179 -> 39.0453 | O77: =Test!E179 -> 40.7881 | P77: =Test!F179 -> 27562.85 | Q77: =Test!G179 -> 23.01 | R77: 7.656347222 | AA77: =Anchor!H179 -> 38.6537 | AB77: =Anchor!I179 -> 38.5969 | AC77: =Anchor!J179 -> 40.3514 | AE77: =Test!H179 -> 38.9053 | AF77: =Test!I179 -> 38.7836 | AG77: =Test!J179 -> 40.6711
C78: 37 | D78: =Anchor!B180 -> 781.3816 | E78: =Anchor!C180 -> 34.9615 | F78: =Anchor!D180 -> 35.8291 | G78: =Anchor!E180 -> 37.5869 | H78: =Anchor!F180 -> 22192.58 | I78: =Anchor!G180 -> 20.75 | J78: 6.164605556 | L78: =Test!B180 -> 787.4088 | M78: =Test!C180 -> 35.2119 | N78: =Test!D180 -> 36.0642 | O78: =Test!E180 -> 37.9854 | P78: =Test!F180 -> 22550.25 | Q78: =Test!G180 -> 21.86 | R78: 6.263958333 | AA78: =Anchor!H180 -> 34.8509 | AB78: =Anchor!I180 -> 35.6405 | AC78: =Anchor!J180 -> 37.4895 | AE78: =Test!H180 -> 35.09 | AF78: =Test!I180 -> 35.8578 | AG78: =Test!J180 -> 37.8732
B79: sc_SlideShow_1280x720_20_8bit_500_444 | C79: 22 | D79: =Anchor!B181 -> 726.9373 | E79: =Anchor!C181 -> 50.5643 | F79: =Anchor!D181 -> 55.6145 | G79: =Anchor!E181 -> 56.8482 | H79: =Anchor!F181 -> 22727.44 | I79: =Anchor!G181 -> 19.76 | J79: 6.313177778 | L79: =Test!B181 -> 725.2195 | M79: =Test!C181 -> 50.6597 | N79: =Test!D181 -> 55.7707 | O79: =Test!E181 -> 57.0605 | P79: =Test!F181 -> 22779.32 | Q79: =Test!G181 -> 20.61 | R79: 6.327588889 | T79: =bdrate(D79:D82,E79:E82,L79:L82,M79:M82) -> -0.01781727472 | U79: =bdrate(D79:D82,F79:F82,L79:L82,N79:N82) -> -0.04751627525 | V79: =bdrate(D79:D82,G79:G82,L79:L82,O79:O82) -> -0.05062520402 | W79: =bdrateOld(D79:D82,E79:E82,L79:L82,M79:M82) -> -0.01781950778 | X79: =bdrateOld(D79:D82,F79:F82,L79:L82,N79:N82) -> -0.04742305919 | Y79: =bdrateOld(D79:D82,G79:G82,L79:L82,O79:O82) -> -0.05077855503 | AA79: =Anchor!H181 -> 49.3773 | AB79: =Anchor!I181 -> 54.3379 | AC79: =Anchor!J181 -> 55.4666 | AE79: =Test!H181 -> 49.4548 | AF79: =Test!I181 -> 54.4966 | AG79: =Test!J181 -> 55.6508
C80: 27 | D80: =Anchor!B182 -> 431.7018 | E80: =Anchor!C182 -> 46.9146 | F80: =Anchor!D182 -> 52.6184 | G80: =Anchor!E182 -> 54.0236 | H80: =Anchor!F182 -> 19853.36 | I80: =Anchor!G182 -> 19 | J80: 5.514822222 | L80: =Test!B182 -> 429.8358 | M80: =Test!C182 -> 47.0088 | N80: =Test!D182 -> 52.8468 | O80: =Test!E182 -> 54.2975 | P80: =Test!F182 -> 20126.7 | Q80: =Test!G182 -> 19.78 | R80: 5.59075 | AA80: =Anchor!H182 -> 45.6342 | AB80: =Anchor!I182 -> 51.2356 | AC80: =Anchor!J182 -> 52.5584 | AE80: =Test!H182 -> 45.7205 | AF80: =Test!I182 -> 51.466 | AG80: =Test!J182 -> 52.8029
C81: 32 | D81: =Anchor!B183 -> 266.6234 | E81: =Anchor!C183 -> 43.3673 | F81: =Anchor!D183 -> 49.6872 | G81: =Anchor!E183 -> 51.3776 | H81: =Anchor!F183 -> 17494.76 | I81: =Anchor!G183 -> 18.3 | J81: 4.859655556 | L81: =Test!B183 -> 266.4016 | M81: =Test!C183 -> 43.5207 | N81: =Test!D183 -> 50.0652 | O81: =Test!E183 -> 51.6481 | P81: =Test!F183 -> 17774.61 | Q81: =Test!G183 -> 19.17 | R81: 4.937391667 | AA81: =Anchor!H183 -> 42.0916 | AB81: =Anchor!I183 -> 48.2493 | AC81: =Anchor!J183 -> 49.8253 | AE81: =Test!H183 -> 42.2186 | AF81: =Test!I183 -> 48.5373 | AG81: =Test!J183 -> 50.1054
C82: 37 | D82: =Anchor!B184 -> 170.3206 | E82: =Anchor!C184 -> 39.7113 | F82: =Anchor!D184 -> 46.9136 | G82: =Anchor!E184 -> 48.7305 | H82: =Anchor!F184 -> 15848.32 | I82: =Anchor!G184 -> 17.8 | J82: 4.402311111 | L82: =Test!B184 -> 171.4099 | M82: =Test!C184 -> 39.8768 | N82: =Test!D184 -> 47.2149 | O82: =Test!E184 -> 49.1475 | P82: =Test!F184 -> 16133.61 | Q82: =Test!G184 -> 18.7 | R82: 4.481558333 | AA82: =Anchor!H184 -> 38.5735 | AB82: =Anchor!I184 -> 45.3669 | AC82: =Anchor!J184 -> 47.2061 | AE82: =Test!H184 -> 38.7572 | AF82: =Test!I184 -> 45.6498 | AG82: =Test!J184 -> 47.5147
A83: YUV, mixed content, 1440p | B83: Basketball_Screen_2560x1440_60p_8b444 | C83: 22 | D83: =Anchor!B185 -> 6577.48 | E83: =Anchor!C185 -> 46.3215 | F83: =Anchor!D185 -> 50.0209 | G83: =Anchor!E185 -> 50.0328 | H83: =Anchor!F185 -> 33388.4 | I83: =Anchor!G185 -> 40.22 | J83: 9.274555556 | L83: =Test!B185 -> 6565.928 | M83: =Test!C185 -> 46.3652 | N83: =Test!D185 -> 50.1296 | O83: =Test!E185 -> 50.169 | P83: =Test!F185 -> 33577.54 | Q83: =Test!G185 -> 42.33 | R83: 9.327094444 | T83: =bdrate(D83:D86,E83:E86,L83:L86,M83:M86) -> -0.01260525633 | U83: =bdrate(D83:D86,F83:F86,L83:L86,N83:N86) -> -0.04596081484 | V83: =bdrate(D83:D86,G83:G86,L83:L86,O83:O86) -> -0.03922373778 | W83: =bdrateOld(D83:D86,E83:E86,L83:L86,M83:M86) -> -0.01262493587 | X83: =bdrateOld(D83:D86,F83:F86,L83:L86,N83:N86) -> -0.04598130412 | Y83: =bdrateOld(D83:D86,G83:G86,L83:L86,O83:O86) -> -0.03932323375 | AA83: =Anchor!H185 -> 46.3107 | AB83: =Anchor!I185 -> 50.0148 | AC83: =Anchor!J185 -> 50.0242 | AE83: =Test!H185 -> 46.3546 | AF83: =Test!I185 -> 50.1236 | AG83: =Test!J185 -> 50.1606
C84: 27 | D84: =Anchor!B186 -> 3567.0304 | E84: =Anchor!C186 -> 42.9382 | F84: =Anchor!D186 -> 46.7543 | G84: =Anchor!E186 -> 46.7162 | H84: =Anchor!F186 -> 27915.58 | I84: =Anchor!G186 -> 39.15 | J84: 7.754327778 | L84: =Test!B186 -> 3563.3888 | M84: =Test!C186 -> 42.9985 | N84: =Test!D186 -> 46.9671 | O84: =Test!E186 -> 46.8848 | P84: =Test!F186 -> 28466.65 | Q84: =Test!G186 -> 41.3 | R84: 7.907402778 | AA84: =Anchor!H186 -> 42.9279 | AB84: =Anchor!I186 -> 46.7496 | AC84: =Anchor!J186 -> 46.7098 | AE84: =Test!H186 -> 42.9887 | AF84: =Test!I186 -> 46.9636 | AG84: =Test!J186 -> 46.8789
C85: 32 | D85: =Anchor!B187 -> 2091.5664 | E85: =Anchor!C187 -> 39.2905 | F85: =Anchor!D187 -> 43.2252 | G85: =Anchor!E187 -> 43.1973 | H85: =Anchor!F187 -> 24226.32 | I85: =Anchor!G187 -> 39.06 | J85: 6.729533333 | L85: =Test!B187 -> 2099.4256 | M85: =Test!C187 -> 39.4424 | N85: =Test!D187 -> 43.6897 | O85: =Test!E187 -> 43.5779 | P85: =Test!F187 -> 24426.77 | Q85: =Test!G187 -> 40.91 | R85: 6.785213889 | AA85: =Anchor!H187 -> 39.2797 | AB85: =Anchor!I187 -> 43.2199 | AC85: =Anchor!J187 -> 43.1912 | AE85: =Test!H187 -> 39.4335 | AF85: =Test!I187 -> 43.6864 | AG85: =Test!J187 -> 43.5733
C86: 37 | D86: =Anchor!B188 -> 1270.7392 | E86: =Anchor!C188 -> 35.5628 | F86: =Anchor!D188 -> 39.7351 | G86: =Anchor!E188 -> 39.6271 | H86: =Anchor!F188 -> 21309.39 | I86: =Anchor!G188 -> 38.64 | J86: 5.919275 | L86: =Test!B188 -> 1276.9776 | M86: =Test!C188 -> 35.6457 | N86: =Test!D188 -> 40.0683 | O86: =Test!E188 -> 39.9915 | P86: =Test!F188 -> 21566.22 | Q86: =Test!G188 -> 40.55 | R86: 5.990616667 | AA86: =Anchor!H188 -> 35.5528 | AB86: =Anchor!I188 -> 39.7303 | AC86: =Anchor!J188 -> 39.6224 | AE86: =Test!H188 -> 35.6362 | AF86: =Test!I188 -> 40.0635 | AG86: =Test!J188 -> 39.987
B87: MissionControlClip2_2560x1440_60p_8b444 | C87: 22 | D87: =Anchor!B189 -> 7710.8912 | E87: =Anchor!C189 -> 46.0144 | F87: =Anchor!D189 -> 50.8416 | G87: =Anchor!E189 -> 51.8454 | H87: =Anchor!F189 -> 44753.19 | I87: =Anchor!G189 -> 44.11 | J87: 12.43144167 | L87: =Test!B189 -> 7722.8256 | M87: =Test!C189 -> 46.0446 | N87: =Test!D189 -> 50.9052 | O87: =Test!E189 -> 51.9188 | P87: =Test!F189 -> 46103.07 | Q87: =Test!G189 -> 46.05 | R87: 12.80640833 | T87: =bdrate(D87:D90,E87:E90,L87:L90,M87:M90) -> -0.007857753137 | U87: =bdrate(D87:D90,F87:F90,L87:L90,N87:N90) -> -0.02905196609 | V87: =bdrate(D87:D90,G87:G90,L87:L90,O87:O90) -> -0.02383540985 | W87: =bdrateOld(D87:D90,E87:E90,L87:L90,M87:M90) -> -0.007854541093 | X87: =bdrateOld(D87:D90,F87:F90,L87:L90,N87:N90) -> -0.02907780972 | Y87: =bdrateOld(D87:D90,G87:G90,L87:L90,O87:O90) -> -0.023825169 | AA87: =Anchor!H189 -> 45.8758 | AB87: =Anchor!I189 -> 50.7376 | AC87: =Anchor!J189 -> 51.7317 | AE87: =Test!H189 -> 45.8958 | AF87: =Test!I189 -> 50.7972 | AG87: =Test!J189 -> 51.8109
C88: 27 | D88: =Anchor!B190 -> 4339.2048 | E88: =Anchor!C190 -> 42.6046 | F88: =Anchor!D190 -> 48.0513 | G88: =Anchor!E190 -> 48.8363 | H88: =Anchor!F190 -> 40459.34 | I88: =Anchor!G190 -> 42.75 | J88: 11.23870556 | L88: =Test!B190 -> 4342.64 | M88: =Test!C190 -> 42.6475 | N88: =Test!D190 -> 48.1901 | O88: =Test!E190 -> 48.947 | P88: =Test!F190 -> 40874.95 | Q88: =Test!G190 -> 44.67 | R88: 11.35415278 | AA88: =Anchor!H190 -> 42.4244 | AB88: =Anchor!I190 -> 47.8845 | AC88: =Anchor!J190 -> 48.6645 | AE88: =Test!H190 -> 42.4543 | AF88: =Test!I190 -> 48.0333 | AG88: =Test!J190 -> 48.7808
C89: 32 | D89: =Anchor!B191 -> 2402.704 | E89: =Anchor!C191 -> 39.1709 | F89: =Anchor!D191 -> 45.0464 | G89: =Anchor!E191 -> 45.7176 | H89: =Anchor!F191 -> 33961.71 | I89: =Anchor!G191 -> 41.56 | J89: 9.433808333 | L89: =Test!B191 -> 2404.5152 | M89: =Test!C191 -> 39.241 | N89: =Test!D191 -> 45.2372 | O89: =Test!E191 -> 45.8753 | P89: =Test!F191 -> 34812.44 | Q89: =Test!G191 -> 43.56 | R89: 9.670122222 | AA89: =Anchor!H191 -> 38.9766 | AB89: =Anchor!I191 -> 44.8236 | AC89: =Anchor!J191 -> 45.4655 | AE89: =Test!H191 -> 39.0289 | AF89: =Test!I191 -> 45.061 | AG89: =Test!J191 -> 45.6778
C90: 37 | D90: =Anchor!B192 -> 1380.9728 | E90: =Anchor!C192 -> 35.8215 | F90: =Anchor!D192 -> 42.0115 | G90: =Anchor!E192 -> 42.8084 | H90: =Anchor!F192 -> 29816.7 | I90: =Anchor!G192 -> 40.43 | J90: 8.282416667 | L90: =Test!B192 -> 1388.9712 | M90: =Test!C192 -> 35.8979 | N90: =Test!D192 -> 42.2263 | O90: =Test!E192 -> 43.0066 | P90: =Test!F192 -> 30434.53 | Q90: =Test!G192 -> 42.47 | R90: 8.454036111 | AA90: =Anchor!H192 -> 35.6608 | AB90: =Anchor!I192 -> 41.6542 | AC90: =Anchor!J192 -> 42.384 | AE90: =Test!H192 -> 35.7283 | AF90: =Test!I192 -> 41.9801 | AG90: =Test!J192 -> 42.7204
A91: YUV, mixed content, 1080p | B91: MissionControlClip3_1920x1080_60p_8b444 | C91: 22 | D91: =Anchor!B193 -> 3096.3088 | E91: =Anchor!C193 -> 47.216 | F91: =Anchor!D193 -> 50.3538 | G91: =Anchor!E193 -> 50.7206 | H91: =Anchor!F193 -> 34730.66 | I91: =Anchor!G193 -> 47.22 | J91: 9.647405556 | L91: =Test!B193 -> 3087.6136 | M91: =Test!C193 -> 47.3058 | N91: =Test!D193 -> 50.5373 | O91: =Test!E193 -> 50.9325 | P91: =Test!F193 -> 35630.27 | Q91: =Test!G193 -> 49.23 | R91: 9.897297222 | T91: =bdrate(D91:D94,E91:E94,L91:L94,M91:M94) -> -0.02374309013 | U91: =bdrate(D91:D94,F91:F94,L91:L94,N91:N94) -> -0.04747681468 | V91: =bdrate(D91:D94,G91:G94,L91:L94,O91:O94) -> -0.04532518134 | W91: =bdrateOld(D91:D94,E91:E94,L91:L94,M91:M94) -> -0.02375821103 | X91: =bdrateOld(D91:D94,F91:F94,L91:L94,N91:N94) -> -0.04749748624 | Y91: =bdrateOld(D91:D94,G91:G94,L91:L94,O91:O94) -> -0.04527481125 | AA91: =Anchor!H193 -> 47.0032 | AB91: =Anchor!I193 -> 50.248 | AC91: =Anchor!J193 -> 50.6283 | AE91: =Test!H193 -> 47.082 | AF91: =Test!I193 -> 50.4343 | AG91: =Test!J193 -> 50.8514
C92: 27 | D92: =Anchor!B194 -> 1875.1704 | E92: =Anchor!C194 -> 43.5325 | F92: =Anchor!D194 -> 46.8369 | G92: =Anchor!E194 -> 47.1113 | H92: =Anchor!F194 -> 31308.1 | I92: =Anchor!G194 -> 45.99 | J92: 8.696694444 | L92: =Test!B194 -> 1870.136 | M92: =Test!C194 -> 43.6926 | N92: =Test!D194 -> 47.0466 | O92: =Test!E194 -> 47.3382 | P92: =Test!F194 -> 31051.35 | Q92: =Test!G194 -> 48.1 | R92: 8.625375 | AA92: =Anchor!H194 -> 43.3053 | AB92: =Anchor!I194 -> 46.73 | AC92: =Anchor!J194 -> 46.9886 | AE92: =Test!H194 -> 43.4454 | AF92: =Test!I194 -> 46.944 | AG92: =Test!J194 -> 47.2311
C93: 32 | D93: =Anchor!B195 -> 1166.2176 | E93: =Anchor!C195 -> 39.6241 | F93: =Anchor!D195 -> 43.0779 | G93: =Anchor!E195 -> 43.6033 | H93: =Anchor!F195 -> 28236.05 | I93: =Anchor!G195 -> 45.05 | J93: 7.843347222 | L93: =Test!B195 -> 1164.9128 | M93: =Test!C195 -> 39.854 | N93: =Test!D195 -> 43.5842 | O93: =Test!E195 -> 44.0187 | P93: =Test!F195 -> 28314.63 | Q93: =Test!G195 -> 47.07 | R93: 7.865175 | AA93: =Anchor!H195 -> 39.4187 | AB93: =Anchor!I195 -> 42.9524 | AC93: =Anchor!J195 -> 43.437 | AE93: =Test!H195 -> 39.6258 | AF93: =Test!I195 -> 43.4865 | AG93: =Test!J195 -> 43.8983
C94: 37 | D94: =Anchor!B196 -> 738.1032 | E94: =Anchor!C196 -> 35.5718 | F94: =Anchor!D196 -> 39.4304 | G94: =Anchor!E196 -> 39.9617 | H94: =Anchor!F196 -> 26062.23 | I94: =Anchor!G196 -> 44.42 | J94: 7.239508333 | L94: =Test!B196 -> 740.268 | M94: =Test!C196 -> 35.7903 | N94: =Test!D196 -> 40.0012 | O94: =Test!E196 -> 40.5514 | P94: =Test!F196 -> 26606.94 | Q94: =Test!G196 -> 46.69 | R94: 7.390816667 | AA94: =Anchor!H196 -> 35.4336 | AB94: =Anchor!I196 -> 39.2491 | AC94: =Anchor!J196 -> 39.6776 | AE94: =Test!H196 -> 35.641 | AF94: =Test!I196 -> 39.8749 | AG94: =Test!J196 -> 40.3616
A95: YUV, Animation, 720p | B95: sc_robot_1280x720_30_8bit_300_444 | C95: 22 | D95: =Anchor!B197 -> 5143.2776 | E95: =Anchor!C197 -> 40.921 | F95: =Anchor!D197 -> 44.6705 | G95: =Anchor!E197 -> 44.1695 | H95: =Anchor!F197 -> 28640.33 | I95: =Anchor!G197 -> 19.43 | J95: 7.955647222 | L95: =Test!B197 -> 5145.3888 | M95: =Test!C197 -> 40.9223 | N95: =Test!D197 -> 44.6786 | O95: =Test!E197 -> 44.1785 | P95: =Test!F197 -> 28536.24 | Q95: =Test!G197 -> 20.03 | R95: 7.926733333 | T95: =bdrate(D95:D98,E95:E98,L95:L98,M95:M98) -> 0.001382048783 | U95: =bdrate(D95:D98,F95:F98,L95:L98,N95:N98) -> -0.002210665104 | V95: =bdrate(D95:D98,G95:G98,L95:L98,O95:O98) -> 0.0003579347771 | W95: =bdrateOld(D95:D98,E95:E98,L95:L98,M95:M98) -> 0.001330701356 | X95: =bdrateOld(D95:D98,F95:F98,L95:L98,N95:N98) -> -0.002349427599 | Y95: =bdrateOld(D95:D98,G95:G98,L95:L98,O95:O98) -> 0.0001128365855 | AA95: =Anchor!H197 -> 40.8453 | AB95: =Anchor!I197 -> 44.6472 | AC95: =Anchor!J197 -> 44.1448 | AE95: =Test!H197 -> 40.8467 | AF95: =Test!I197 -> 44.655 | AG95: =Test!J197 -> 44.1534
C96: 27 | D96: =Anchor!B198 -> 1879.2176 | E96: =Anchor!C198 -> 37.6731 | F96: =Anchor!D198 -> 42.2306 | G96: =Anchor!E198 -> 41.6292 | H96: =Anchor!F198 -> 20974.03 | I96: =Anchor!G198 -> 15.24 | J96: 5.826119444 | L96: =Test!B198 -> 1881.9024 | M96: =Test!C198 -> 37.6745 | N96: =Test!D198 -> 42.2431 | O96: =Test!E198 -> 41.638 | P96: =Test!F198 -> 21255.07 | Q96: =Test!G198 -> 15.87 | R96: 5.904186111 | AA96: =Anchor!H198 -> 37.636 | AB96: =Anchor!I198 -> 42.2184 | AC96: =Anchor!J198 -> 41.6152 | AE96: =Test!H198 -> 37.6372 | AF96: =Test!I198 -> 42.231 | AG96: =Test!J198 -> 41.624
C97: 32 | D97: =Anchor!B199 -> 721.0576 | E97: =Anchor!C199 -> 35.1145 | F97: =Anchor!D199 -> 40.3953 | G97: =Anchor!E199 -> 39.8111 | H97: =Anchor!F199 -> 15986.31 | I97: =Anchor!G199 -> 13.02 | J97: 4.440641667 | L97: =Test!B199 -> 723.1504 | M97: =Test!C199 -> 35.1158 | N97: =Test!D199 -> 40.4033 | O97: =Test!E199 -> 39.8088 | P97: =Test!F199 -> 16406.17 | Q97: =Test!G199 -> 13.63 | R97: 4.557269444 | AA97: =Anchor!H199 -> 35.0951 | AB97: =Anchor!I199 -> 40.3875 | AC97: =Anchor!J199 -> 39.7998 | AE97: =Test!H199 -> 35.0966 | AF97: =Test!I199 -> 40.3954 | AG97: =Test!J199 -> 39.7975
C98: 37 | D98: =Anchor!B200 -> 316.12 | E98: =Anchor!C200 -> 32.9462 | F98: =Anchor!D200 -> 38.7295 | G98: =Anchor!E200 -> 38.351 | H98: =Anchor!F200 -> 13251.29 | I98: =Anchor!G200 -> 11.92 | J98: 3.680913889 | L98: =Test!B200 -> 316.8232 | M98: =Test!C200 -> 32.9461 | N98: =Test!D200 -> 38.724 | O98: =Test!E200 -> 38.3382 | P98: =Test!F200 -> 13512.35 | Q98: =Test!G200 -> 12.48 | R98: 3.753430556 | AA98: =Anchor!H200 -> 32.9338 | AB98: =Anchor!I200 -> 38.7228 | AC98: =Anchor!J200 -> 38.3398 | AE98: =Test!H200 -> 32.9335 | AF98: =Test!I200 -> 38.7171 | AG98: =Test!J200 -> 38.3268
A99: YUV, camera captured, 1080p | B99: EBURainFruits_1920x1080_50_10bit_444 | C99: 22 | D99: =Anchor!B201 -> 10388.112 | E99: =Anchor!C201 -> 42.3296 | F99: =Anchor!D201 -> 46.532 | G99: =Anchor!E201 -> 48.2166 | H99: =Anchor!F201 -> 35397.96 | I99: =Anchor!G201 -> 34.73 | J99: 9.832766667 | L99: =Test!B201 -> 10392.12 | M99: =Test!C201 -> 42.3307 | N99: =Test!D201 -> 46.5322 | O99: =Test!E201 -> 48.213 | P99: =Test!F201 -> 35879.36 | Q99: =Test!G201 -> 35.83 | R99: 9.966488889 | T99: =bdrate(D99:D102,E99:E102,L99:L102,M99:M102) -> 0.000806213414 | U99: =bdrate(D99:D102,F99:F102,L99:L102,N99:N102) -> -8.84735587e-05 | V99: =bdrate(D99:D102,G99:G102,L99:L102,O99:O102) -> 0.001331737628 | W99: =bdrateOld(D99:D102,E99:E102,L99:L102,M99:M102) -> 0.000801061939 | X99: =bdrateOld(D99:D102,F99:F102,L99:L102,N99:N102) -> -0.0001980831259 | Y99: =bdrateOld(D99:D102,G99:G102,L99:L102,O99:O102) -> 0.001542608216 | AA99: =Anchor!H201 -> 42.2947 | AB99: =Anchor!I201 -> 46.5278 | AC99: =Anchor!J201 -> 48.213 | AE99: =Test!H201 -> 42.2959 | AF99: =Test!I201 -> 46.528 | AG99: =Test!J201 -> 48.2095
C100: 27 | D100: =Anchor!B202 -> 4877.4624 | E100: =Anchor!C202 -> 39.5861 | F100: =Anchor!D202 -> 45.2718 | G100: =Anchor!E202 -> 46.629 | H100: =Anchor!F202 -> 26011.15 | I100: =Anchor!G202 -> 28.41 | J100: 7.225319444 | L100: =Test!B202 -> 4879.984 | M100: =Test!C202 -> 39.5838 | N100: =Test!D202 -> 45.2709 | O100: =Test!E202 -> 46.638 | P100: =Test!F202 -> 26592.1 | Q100: =Test!G202 -> 29.35 | R100: 7.386694444 | AA100: =Anchor!H202 -> 39.5666 | AB100: =Anchor!I202 -> 45.2686 | AC100: =Anchor!J202 -> 46.6255 | AE100: =Test!H202 -> 39.5644 | AF100: =Test!I202 -> 45.2678 | AG100: =Test!J202 -> 46.6345
C101: 32 | D101: =Anchor!B203 -> 2475.7216 | E101: =Anchor!C203 -> 36.822 | F101: =Anchor!D203 -> 43.7316 | G101: =Anchor!E203 -> 44.7872 | H101: =Anchor!F203 -> 22414.33 | I101: =Anchor!G203 -> 25.56 | J101: 6.226202778 | L101: =Test!B203 -> 2475.0304 | M101: =Test!C203 -> 36.82 | N101: =Test!D203 -> 43.7287 | O101: =Test!E203 -> 44.7739 | P101: =Test!F203 -> 22920.55 | Q101: =Test!G203 -> 26.57 | R101: 6.366819444 | AA101: =Anchor!H203 -> 36.8096 | AB101: =Anchor!I203 -> 43.7272 | AC101: =Anchor!J203 -> 44.7823 | AE101: =Test!H203 -> 36.8078 | AF101: =Test!I203 -> 43.7242 | AG101: =Test!J203 -> 44.7688
C102: 37 | D102: =Anchor!B204 -> 1276.3664 | E102: =Anchor!C204 -> 34.0355 | F102: =Anchor!D204 -> 42.0718 | G102: =Anchor!E204 -> 42.7105 | H102: =Anchor!F204 -> 19494.9 | I102: =Anchor!G204 -> 23.91 | J102: 5.41525 | L102: =Test!B204 -> 1278.5856 | M102: =Test!C204 -> 34.0325 | N102: =Test!D204 -> 42.0921 | O102: =Test!E204 -> 42.707 | P102: =Test!F204 -> 19596.31 | Q102: =Test!G204 -> 24.89 | R102: 5.443419444 | AA102: =Anchor!H204 -> 34.0265 | AB102: =Anchor!I204 -> 42.0648 | AC102: =Anchor!J204 -> 42.704 | AE102: =Test!H204 -> 34.0236 | AF102: =Test!I204 -> 42.0858 | AG102: =Test!J204 -> 42.7002
B103: Kimono1_1920x1080_24_10bit_444 | C103: 22 | D103: =Anchor!B205 -> 12674.1072 | E103: =Anchor!C205 -> 41.8188 | F103: =Anchor!D205 -> 38.204 | G103: =Anchor!E205 -> 42.2465 | H103: =Anchor!F205 -> 38044.1 | I103: =Anchor!G205 -> 24.54 | J103: 10.56780556 | L103: =Test!B205 -> 12671.9808 | M103: =Test!C205 -> 41.8203 | N103: =Test!D205 -> 38.2034 | O103: =Test!E205 -> 42.2478 | P103: =Test!F205 -> 39263.82 | Q103: =Test!G205 -> 25.04 | R103: 10.90661667 | T103: =bdrate(D103:D106,E103:E106,L103:L106,M103:M106) -> 3.994326366e-05 | U103: =bdrate(D103:D106,F103:F106,L103:L106,N103:N106) -> 0.001789972351 | V103: =bdrate(D103:D106,G103:G106,L103:L106,O103:O106) -> 0.0004755607631 | W103: =bdrateOld(D103:D106,E103:E106,L103:L106,M103:M106) -> 5.999260558e-05 | X103: =bdrateOld(D103:D106,F103:F106,L103:L106,N103:N106) -> 0.002264456427 | Y103: =bdrateOld(D103:D106,G103:G106,L103:L106,O103:O106) -> 0.0006606148734 | AA103: =Anchor!H205 -> 41.7769 | AB103: =Anchor!I205 -> 38.1011 | AC103: =Anchor!J205 -> 42.2353 | AE103: =Test!H205 -> 41.7785 | AF103: =Test!I205 -> 38.1005 | AG103: =Test!J205 -> 42.2366
C104: 27 | D104: =Anchor!B206 -> 3472.4176 | E104: =Anchor!C206 -> 39.91 | F104: =Anchor!D206 -> 37.424 | G104: =Anchor!E206 -> 41.4257 | H104: =Anchor!F206 -> 25237.61 | I104: =Anchor!G206 -> 17.53 | J104: 7.010447222 | L104: =Test!B206 -> 3471.6224 | M104: =Test!C206 -> 39.9087 | N104: =Test!D206 -> 37.4222 | O104: =Test!E206 -> 41.425 | P104: =Test!F206 -> 26367.56 | Q104: =Test!G206 -> 18.04 | R104: 7.324322222 | AA104: =Anchor!H206 -> 39.8285 | AB104: =Anchor!I206 -> 37.4182 | AC104: =Anchor!J206 -> 41.4177 | AE104: =Test!H206 -> 39.8272 | AF104: =Test!I206 -> 37.4164 | AG104: =Test!J206 -> 41.4168
C105: 32 | D105: =Anchor!B207 -> 1517.3552 | E105: =Anchor!C207 -> 37.4721 | F105: =Anchor!D207 -> 37.0036 | G105: =Anchor!E207 -> 40.5105 | H105: =Anchor!F207 -> 18908.13 | I105: =Anchor!G207 -> 14.51 | J105: 5.252258333 | L105: =Test!B207 -> 1519.128 | M105: =Test!C207 -> 37.4748 | N105: =Test!D207 -> 37.0044 | O105: =Test!E207 -> 40.5123 | P105: =Test!F207 -> 19384.84 | Q105: =Test!G207 -> 15 | R105: 5.384677778 | AA105: =Anchor!H207 -> 37.3569 | AB105: =Anchor!I207 -> 37.0004 | AC105: =Anchor!J207 -> 40.5034 | AE105: =Test!H207 -> 37.3592 | AF105: =Test!I207 -> 37.0012 | AG105: =Test!J207 -> 40.5053
C106: 37 | D106: =Anchor!B208 -> 724.9792 | E106: =Anchor!C208 -> 34.9977 | F106: =Anchor!D208 -> 36.5154 | G106: =Anchor!E208 -> 39.5829 | H106: =Anchor!F208 -> 15744.53 | I106: =Anchor!G208 -> 12.92 | J106: 4.373480556 | L106: =Test!B208 -> 724.8432 | M106: =Test!C208 -> 34.9993 | N106: =Test!D208 -> 36.5133 | O106: =Test!E208 -> 39.5754 | P106: =Test!F208 -> 16126.73 | Q106: =Test!G208 -> 13.4 | R106: 4.479647222 | AA106: =Anchor!H208 -> 34.8906 | AB106: =Anchor!I208 -> 36.5127 | AC106: =Anchor!J208 -> 39.578 | AE106: =Test!H208 -> 34.8922 | AF106: =Test!I208 -> 36.5105 | AG106: =Test!J208 -> 39.5705
B107: =$A3 -> RGB, text & graphics with motion, 1080p | I107: =geometricMean(I3:I14) -> 45.73826997 | J107: =geometricMean(J3:J14) -> 18.48421059 | Q107: =geometricMean(Q3:Q14) -> 46.66734085 | R107: =geometricMean(R3:R14) -> 18.60248887 | T107: =AVERAGE(T3:T14) -> -0.06664408589 | U107: -0.06894839689 | V107: -0.07019610958 | W107: -0.06672645477 | X107: -0.06934843266 | Y107: -0.0704909798
B108: =$A15 -> RGB, text & graphics with motion,720p | I108: =geometricMean(I15:I30) -> 17.65010257 | J108: =geometricMean(J15:J30) -> 4.026244948 | Q108: =geometricMean(Q15:Q30) -> 18.47047487 | R108: =geometricMean(R15:R30) -> 4.095665944 | T108: =AVERAGE(T15:T30) -> -0.06263339536 | U108: -0.05312536267 | V108: -0.05757141066 | W108: -0.06247625646 | X108: -0.05299854184 | Y108: -0.05751096593
B109: =$A31 -> RGB, mixed content, 1440p | I109: =geometricMean(I31:I38) -> 42.17606865 | J109: =geometricMean(J31:J38) -> 10.05566361 | Q109: =geometricMean(Q31:Q38) -> 44.26594214 | R109: =geometricMean(R31:R38) -> 10.20121196 | T109: =AVERAGE(T31:T38) -> -0.01412939735 | U109: -0.01119253605 | V109: -0.01059587125 | W109: -0.01416074565 | X109: -0.01119498275 | Y109: -0.01059823334
B110: =$A39 -> RGB, mixed content, 1080p | I110: =geometricMean(I39:I42) -> 46.98449176 | J110: =geometricMean(J39:J42) -> 9.689195512 | Q110: =geometricMean(Q39:Q42) -> 49.16254332 | R110: =geometricMean(R39:R42) -> 9.852255186 | T110: =AVERAGE(T39:T42) -> -0.02107748257 | U110: -0.02253809072 | V110: -0.01986996708 | W110: -0.02114931207 | X110: -0.02260355396 | Y110: -0.01990476467
B111: =$A43 -> RGB, Animation, 720p | I111: =geometricMean(I43:I46) -> 17.18791535 | J111: =geometricMean(J43:J46) -> 6.728705384 | Q111: =geometricMean(Q43:Q46) -> 17.78182351 | R111: =geometricMean(R43:R46) -> 6.873537071 | T111: =AVERAGE(T43:T46) -> -0.0001564964177 | U111: -0.001233543744 | V111: -0.0001580433752 | W111: -0.0002310888217 | X111: -0.001245668668 | Y111: -0.0002921486102
B112: =$A47 -> RGB, camera captured, 1080p | I112: =geometricMean(I47:I54) -> 25.74742109 | J112: =geometricMean(J44:J47) -> 7.401413763 | Q112: =geometricMean(Q47:Q54) -> 26.52839735 | R112: =geometricMean(R44:R47) -> 7.555047548 | T112: =AVERAGE(T47:T54) -> 0.0004010556129 | U112: 0.000126901401 | V112: 0.0005021563239 | W112: 0.0004117527367 | X112: -0.0004117452272 | Y112: 0.0005080337209
B113: =$A55 -> YUV, text & graphics with motion, 1080p | I113: =geometricMean(I55:I66) -> 44.03364641 | J113: =geometricMean(J55:J66) -> 16.0009202 | Q113: =geometricMean(Q55:Q66) -> 45.10780462 | R113: =geometricMean(R55:R66) -> 16.0895636 | T113: =AVERAGE(T55:T66) -> -0.06729337857 | U113: -0.08766851986 | V113: -0.08346690332 | W113: -0.06717690641 | X113: -0.08746350562 | Y113: -0.0832641072
B114: =$A67 -> YUV, text & graphics with motion,720p | I114: =geometricMean(I67:I82) -> 17.07178244 | J114: =geometricMean(J67:J82) -> 3.643805906 | Q114: =geometricMean(Q67:Q82) -> 17.92154264 | R114: =geometricMean(R67:R82) -> 3.684825178 | T114: =AVERAGE(T67:T82) -> -0.05148737806 | U114: -0.07289117584 | V114: -0.09066383543 | W114: -0.05126637034 | X114: -0.07249645469 | Y114: -0.09043387348
B115: =$A83 -> YUV, mixed content, 1440p | I115: =geometricMean(I83:I90) -> 40.70047294 | J115: =geometricMean(J83:J90) -> 8.647619657 | Q115: =geometricMean(Q83:Q90) -> 42.69276641 | R115: =geometricMean(R83:R90) -> 8.789955595 | T115: =AVERAGE(T83:T90) -> -0.01023150473 | U115: -0.03750639046 | V115: -0.03152957381 | W115: -0.01023973848 | X115: -0.03752955692 | Y115: -0.03157420138
B116: =$A91 -> YUV, mixed content, 1080p | I116: =geometricMean(I91:I94) -> 45.65787402 | J116: =geometricMean(J91:J94) -> 8.307948874 | Q116: =geometricMean(Q91:Q94) -> 47.76235652 | R116: =geometricMean(R91:R94) -> 8.393128156 | T116: =AVERAGE(T91:T94) -> -0.02374309013 | U116: -0.04747681468 | V116: -0.04532518134 | W116: -0.02375821103 | X116: -0.04749748624 | Y116: -0.04527481125
B117: =$A95 -> YUV, Animation, 720p | I117: =geometricMean(I95:I98) -> 14.64152292 | J117: =geometricMean(J95:J98) -> 5.246432288 | Q117: =geometricMean(Q95:Q98) -> 15.2490251 | R117: =geometricMean(R95:R98) -> 5.319206427 | T117: =AVERAGE(T95:T98) -> 0.001382048783 | U117: -0.002210665104 | V117: 0.0003579347771 | W117: 0.001330701356 | X117: -0.002349427599 | Y117: 0.0001128365855
B118: =$A99 -> YUV, camera captured, 1080p | I118: =geometricMean(I99:I106) -> 21.6701968 | J118: =geometricMean(J96:J99) -> 5.531770146 | Q118: =geometricMean(Q99:Q106) -> 22.38939122 | R118: =geometricMean(R96:R99) -> 5.632598943 | T118: =AVERAGE(T99:T106) -> 0.0004230783388 | U118: 0.0008507493962 | V118: 0.0009036491957 | W118: 0.0004305272723 | X118: 0.001033186651 | Y118: 0.001101611545
B119: All | T119: =AVERAGE(T3:T106) -> -0.03649861706 | U119: -0.04395456039 | V119: -0.04616786766 | W119: -0.03644634267 | X119: -0.04393531284 | Y119: -0.04613573406
B120: Time geomean | I120: =geometricMean(I3:I106) -> 27.74573361 | J120: =geometricMean(J3:J106) -> 7.718483304 | Q120: =geometricMean(Q3:Q106) -> 28.82372085 | R120: =geometricMean(R3:R106) -> 7.826569896
B121: Time sum (hours) | I121: =secToHours(macroSum(I3:I106)) -> 0.8976027778 | J121: =SUM(J3:J106) -> 1055.006819 | Q121: =secToHours(macroSum(Q3:Q106)) -> 0.9303416667 | R121: =SUM(R3:R106) -> 1067.824497
C124: Time Ratio
C125: Decoding | D125: Encoding
B126: RGB, text & graphics with motion, 1080p | C126: =Q107/I107 -> 1.020312768 | D126: =R107/J107 -> 1.006398882
B127: RGB, text & graphics with motion,720p | C127: 1.046479747 | D127: 1.017242119
B128: RGB, mixed content, 1440p | C128: 1.049551169 | D128: 1.014474265
B129: RGB, mixed content, 1080p | C129: 1.046356819 | D129: 1.016829021
B130: RGB, Animation, 720p | C130: 1.034553822 | D130: 1.021524451
B131: RGB, camera captured, 1080p | C131: 1.030332213 | D131: 1.020757357
B132: YUV, text & graphics with motion, 1080p | C132: 1.024394033 | D132: 1.005539894
B133: YUV, text & graphics with motion,720p | C133: 1.049775716 | D133: 1.01125726
B134: YUV, mixed content, 1440p | C134: 1.048950131 | D134: 1.016459551
B135: YUV, mixed content, 1080p | C135: 1.046092433 | D135: 1.010252745
B136: YUV, Animation, 720p | C136: 1.041491734 | D136: 1.013871167
B137: YUV, camera captured, 1080p | C137: 1.033188181 | D137: 1.018227221
B138: All | C138: =Q120/I120 -> 1.03885236 | D138: =R120/J120 -> 1.014003605

Sheet LB-SCC
D1: =Summary!H2 -> Anchor (SCM-1.0) | L1: =Summary!H3 -> Tested (Rnnnn) | T1: BD-rate (piecewise cubic) | W1: BD-rate (cubic) | AA1: MSE PSNR (anchor) | AE1: MSE PSNR (tested)
C2: QPISlice | D2: kbps | E2: G/Y psnr | F2: B/U psnr | G2: R/V psnr | H2: Enc T [s] | I2: Dec T [s] | J2: Enc T [h] | L2: kbps | M2: G/Y psnr | N2: B/U psnr | O2: R/V psnr | P2: Enc T [s] | Q2: Dec T [s] | R2: Enc T [h] | T2: G/Y | U2: B/U | V2: R/V | W2: G/Y | X2: B/U | Y2: R/V | AA2: G/Y | AB2: B/U | AC2: R/V | AE2: G/Y | AF2: B/U | AG2: R/V
A3: RGB, text & graphics with motion, 1080p | B3: sc_flyingGraphics_1920x1080_60_8bit_rgb | C3: 22 | D3: =Anchor!B209 -> 55866.8416 | E3: =Anchor!C209 -> 45.3833 | F3: =Anchor!D209 -> 45.1363 | G3: =Anchor!E209 -> 44.8563 | H3: =Anchor!F209 -> 199627.25 | I3: =Anchor!G209 -> 58.23 | J3: =secToHours(H3) -> 55.45201389 | L3: =Test!B209 -> 55488.5024 | M3: =Test!C209 -> 45.8817 | N3: =Test!D209 -> 45.6965 | O3: =Test!E209 -> 45.3722 | P3: =Test!F209 -> 200899.61 | Q3: =Test!G209 -> 57.53 | R3: =secToHours(P3) -> 55.80544722 | T3: =bdrate(D3:D6,E3:E6,L3:L6,M3:M6) -> -0.03437801547 | U3: =bdrate(D3:D6,F3:F6,L3:L6,N3:N6) -> -0.0401342888 | V3: =bdrate(D3:D6,G3:G6,L3:L6,O3:O6) -> -0.03891180596 | W3: =bdrateOld(D3:D6,E3:E6,L3:L6,M3:M6) -> -0.03419516773 | X3: =bdrateOld(D3:D6,F3:F6,L3:L6,N3:N6) -> -0.04009438037 | Y3: =bdrateOld(D3:D6,G3:G6,L3:L6,O3:O6) -> -0.03884221939 | AA3: =Anchor!H209 -> 45.233 | AB3: =Anchor!I209 -> 44.9774 | AC3: =Anchor!J209 -> 44.6879 | AE3: =Test!H209 -> 45.6964 | AF3: =Test!I209 -> 45.4984 | AG3: =Test!J209 -> 45.1671
C4: 27 | D4: =Anchor!B210 -> 34822.4736 | E4: =Anchor!C210 -> 40.0711 | F4: =Anchor!D210 -> 40.0341 | G4: =Anchor!E210 -> 39.8218 | H4: =Anchor!F210 -> 173057.67 | I4: =Anchor!G210 -> 52.34 | J4: =secToHours(H4) -> 48.071575 | L4: =Test!B210 -> 34691.8928 | M4: =Test!C210 -> 40.3868 | N4: =Test!D210 -> 40.4247 | O4: =Test!E210 -> 40.1842 | P4: =Test!F210 -> 172654.65 | Q4: =Test!G210 -> 52.25 | R4: =secToHours(P4) -> 47.959625 | AA4: =Anchor!H210 -> 39.8445 | AB4: =Anchor!I210 -> 39.8089 | AC4: =Anchor!J210 -> 39.5945 | AE4: =Test!H210 -> 40.1213 | AF4: =Test!I210 -> 40.156 | AG4: =Test!J210 -> 39.9194
C5: 32 | D5: =Anchor!B211 -> 20822.648 | E5: =Anchor!C211 -> 35.565 | F5: =Anchor!D211 -> 35.352 | G5: =Anchor!E211 -> 35.3357 | H5: =Anchor!F211 -> 143269.7 | I5: =Anchor!G211 -> 45.57 | J5: =secToHours(H5) -> 39.79713889 | L5: =Test!B211 -> 20779.848 | M5: =Test!C211 -> 35.8184 | N5: =Test!D211 -> 35.659 | O5: =Test!E211 -> 35.6276 | P5: =Test!F211 -> 144849.67 | Q5: =Test!G211 -> 45.99 | R5: =secToHours(P5) -> 40.23601944 | AA5: =Anchor!H211 -> 35.3324 | AB5: =Anchor!I211 -> 35.0841 | AC5: =Anchor!J211 -> 35.0958 | AE5: =Test!H211 -> 35.5594 | AF5: =Test!I211 -> 35.3579 | AG5: =Test!J211 -> 35.3589
C6: 37 | D6: =Anchor!B212 -> 12931.6064 | E6: =Anchor!C212 -> 31.7535 | F6: =Anchor!D212 -> 31.1561 | G6: =Anchor!E212 -> 31.363 | H6: =Anchor!F212 -> 120019.81 | I6: =Anchor!G212 -> 40.74 | J6: 33.33883611 | L6: =Test!B212 -> 12973.4976 | M6: =Test!C212 -> 31.9891 | N6: =Test!D212 -> 31.4756 | O6: =Test!E212 -> 31.6507 | P6: =Test!F212 -> 121499.26 | Q6: =Test!G212 -> 41.45 | R6: 33.74979444 | AA6: =Anchor!H212 -> 31.5761 | AB6: =Anchor!I212 -> 30.9349 | AC6: =Anchor!J212 -> 31.1775 | AE6: =Test!H212 -> 31.7907 | AF6: =Test!I212 -> 31.2267 | AG6: =Test!J212 -> 31.4479
B7: sc_desktop_1920x1080_60_8bit_rgb | C7: 22 | D7: =Anchor!B213 -> 1253.6144 | E7: =Anchor!C213 -> 52.759 | F7: =Anchor!D213 -> 51.9402 | G7: =Anchor!E213 -> 51.6584 | H7: =Anchor!F213 -> 42928.75 | I7: =Anchor!G213 -> 36.81 | J7: 11.92465278 | L7: =Test!B213 -> 1212.5712 | M7: =Test!C213 -> 54.2113 | N7: =Test!D213 -> 53.2945 | O7: =Test!E213 -> 52.9057 | P7: =Test!F213 -> 42645.96 | Q7: =Test!G213 -> 38.92 | R7: 11.8461 | T7: =bdrate(D7:D10,E7:E10,L7:L10,M7:M10) -> -0.03316786278 | U7: =bdrate(D7:D10,F7:F10,L7:L10,N7:N10) -> -0.0320223465 | V7: =bdrate(D7:D10,G7:G10,L7:L10,O7:O10) -> -0.03282339954 | W7: =bdrateOld(D7:D10,E7:E10,L7:L10,M7:M10) -> -0.03297818495 | X7: =bdrateOld(D7:D10,F7:F10,L7:L10,N7:N10) -> -0.03192140366 | Y7: =bdrateOld(D7:D10,G7:G10,L7:L10,O7:O10) -> -0.0327005595 | AA7: =Anchor!H213 -> 52.7082 | AB7: =Anchor!I213 -> 51.8913 | AC7: =Anchor!J213 -> 51.6235 | AE7: =Test!H213 -> 54.1494 | AF7: =Test!I213 -> 53.2509 | AG7: =Test!J213 -> 52.8766
C8: 27 | D8: =Anchor!B214 -> 1176.9232 | E8: =Anchor!C214 -> 47.9791 | F8: =Anchor!D214 -> 47.1679 | G8: =Anchor!E214 -> 46.6577 | H8: =Anchor!F214 -> 42542.07 | I8: =Anchor!G214 -> 36.88 | J8: 11.81724167 | L8: =Test!B214 -> 1151.652 | M8: =Test!C214 -> 49.4525 | N8: =Test!D214 -> 48.3985 | O8: =Test!E214 -> 48.0847 | P8: =Test!F214 -> 42797.67 | Q8: =Test!G214 -> 39.01 | R8: 11.88824167 | AA8: =Anchor!H214 -> 47.926 | AB8: =Anchor!I214 -> 47.1144 | AC8: =Anchor!J214 -> 46.6361 | AE8: =Test!H214 -> 49.3704 | AF8: =Test!I214 -> 48.3486 | AG8: =Test!J214 -> 48.0571
C9: 32 | D9: =Anchor!B215 -> 1091.9376 | E9: =Anchor!C215 -> 42.9986 | F9: =Anchor!D215 -> 42.255 | G9: =Anchor!E215 -> 42.0358 | H9: =Anchor!F215 -> 41988.3 | I9: =Anchor!G215 -> 36.78 | J9: 11.66341667 | L9: =Test!B215 -> 1080.096 | M9: =Test!C215 -> 44.1594 | N9: =Test!D215 -> 43.2799 | O9: =Test!E215 -> 43.0793 | P9: =Test!F215 -> 42070.36 | Q9: =Test!G215 -> 38.95 | R9: 11.68621111 | AA9: =Anchor!H215 -> 42.8563 | AB9: =Anchor!I215 -> 42.1805 | AC9: =Anchor!J215 -> 41.9702 | AE9: =Test!H215 -> 44.0085 | AF9: =Test!I215 -> 43.2008 | AG9: =Test!J215 -> 43.0223
C10: 37 | D10: =Anchor!B216 -> 985.744 | E10: =Anchor!C216 -> 36.3767 | F10: =Anchor!D216 -> 36.0741 | G10: =Anchor!E216 -> 36.022 | H10: =Anchor!F216 -> 40082.72 | I10: =Anchor!G216 -> 36.57 | J10: 11.13408889 | L10: =Test!B216 -> 986.56 | M10: =Test!C216 -> 38.0896 | N10: =Test!D216 -> 37.7171 | O10: =Test!E216 -> 37.4461 | P10: =Test!F216 -> 38980.8 | Q10: =Test!G216 -> 38.86 | R10: 10.828 | AA10: =Anchor!H216 -> 36.3233 | AB10: =Anchor!I216 -> 36.0385 | AC10: =Anchor!J216 -> 35.9819 | AE10: =Test!H216 -> 37.9256 | AF10: =Test!I216 -> 37.6311 | AG10: =Test!J216 -> 37.3586
B11: sc_console_1920x1080_60_8bit_rgb | C11: 22 | D11: =Anchor!B217 -> 6550.7184 | E11: =Anchor!C217 -> 53.5797 | F11: =Anchor!D217 -> 53.6942 | G11: =Anchor!E217 -> 52.5463 | H11: =Anchor!F217 -> 110709.93 | I11: =Anchor!G217 -> 46.21 | J11: 30.75275833 | L11: =Test!B217 -> 6416.5944 | M11: =Test!C217 -> 54.539 | N11: =Test!D217 -> 54.5521 | O11: =Test!E217 -> 53.7405 | P11: =Test!F217 -> 109779.17 | Q11: =Test!G217 -> 47.5 | R11: 30.49421389 | T11: =bdrate(D11:D14,E11:E14,L11:L14,M11:M14) -> -0.04905493614 | U11: =bdrate(D11:D14,F11:F14,L11:L14,N11:N14) -> -0.05722164009 | V11: =bdrate(D11:D14,G11:G14,L11:L14,O11:O14) -> -0.05823488311 | W11: =bdrateOld(D11:D14,E11:E14,L11:L14,M11:M14) -> -0.04896215731 | X11: =bdrateOld(D11:D14,F11:F14,L11:L14,N11:N14) -> -0.0571557874 | Y11: =bdrateOld(D11:D14,G11:G14,L11:L14,O11:O14) -> -0.05817714032 | AA11: =Anchor!H217 -> 53.5392 | AB11: =Anchor!I217 -> 53.6476 | AC11: =Anchor!J217 -> 52.5149 | AE11: =Test!H217 -> 54.4791 | AF11: =Test!I217 -> 54.49 | AG11: =Test!J217 -> 53.6947
C12: 27 | D12: =Anchor!B218 -> 5664.0904 | E12: =Anchor!C218 -> 48.314 | F12: =Anchor!D218 -> 48.0831 | G12: =Anchor!E218 -> 47.2462 | H12: =Anchor!F218 -> 107058.71 | I12: =Anchor!G218 -> 46.38 | J12: 29.73853056 | L12: =Test!B218 -> 5525.8128 | M12: =Test!C218 -> 49.2246 | N12: =Test!D218 -> 49.2588 | O12: =Test!E218 -> 48.5843 | P12: =Test!F218 -> 106229.43 | Q12: =Test!G218 -> 47.67 | R12: 29.508175 | AA12: =Anchor!H218 -> 48.1967 | AB12: =Anchor!I218 -> 47.9957 | AC12: =Anchor!J218 -> 47.1733 | AE12: =Test!H218 -> 49.0788 | AF12: =Test!I218 -> 49.1364 | AG12: =Test!J218 -> 48.4872
C13: 32 | D13: =Anchor!B219 -> 4754.3624 | E13: =Anchor!C219 -> 42.8003 | F13: =Anchor!D219 -> 42.9962 | G13: =Anchor!E219 -> 42.2733 | H13: =Anchor!F219 -> 98407.59 | I13: =Anchor!G219 -> 45.73 | J13: 27.33544167 | L13: =Test!B219 -> 4656.7496 | M13: =Test!C219 -> 43.6643 | N13: =Test!D219 -> 44.0791 | O13: =Test!E219 -> 43.328 | P13: =Test!F219 -> 99510.03 | Q13: =Test!G219 -> 47.34 | R13: 27.641675 | AA13: =Anchor!H219 -> 42.5772 | AB13: =Anchor!I219 -> 42.8247 | AC13: =Anchor!J219 -> 42.1028 | AE13: =Test!H219 -> 43.3954 | AF13: =Test!I219 -> 43.8506 | AG13: =Test!J219 -> 43.1118
C14: 37 | D14: =Anchor!B220 -> 3798.472 | E14: =Anchor!C220 -> 37.5349 | F14: =Anchor!D220 -> 38.0469 | G14: =Anchor!E220 -> 37.0138 | H14: =Anchor!F220 -> 89545.15 | I14: =Anchor!G220 -> 44.79 | J14: 24.87365278 | L14: =Test!B220 -> 3758.8864 | M14: =Test!C220 -> 38.2965 | N14: =Test!D220 -> 39.0604 | O14: =Test!E220 -> 37.8385 | P14: =Test!F220 -> 90516.66 | Q14: =Test!G220 -> 46.42 | R14: 25.14351667 | AA14: =Anchor!H220 -> 37.3792 | AB14: =Anchor!I220 -> 37.9169 | AC14: =Anchor!J220 -> 36.8304 | AE14: =Test!H220 -> 38.096 | AF14: =Test!I220 -> 38.8715 | AG14: =Test!J220 -> 37.6144
A15: RGB, text & graphics with motion,720p | B15: sc_web_browsing_1280x720_30_8bit_300_rgb | C15: 22 | D15: =Anchor!B221 -> 268.08 | E15: =Anchor!C221 -> 51.6475 | F15: =Anchor!D221 -> 50.9398 | G15: =Anchor!E221 -> 50.8048 | H15: =Anchor!F221 -> 6522.58 | I15: =Anchor!G221 -> 7.79 | J15: 1.811827778 | L15: =Test!B221 -> 255.7816 | M15: =Test!C221 -> 52.6337 | N15: =Test!D221 -> 51.5006 | O15: =Test!E221 -> 51.4482 | P15: =Test!F221 -> 6691.03 | Q15: =Test!G221 -> 8.3 | R15: 1.858619444 | T15: =bdrate(D15:D18,E15:E18,L15:L18,M15:M18) -> -0.07671120273 | U15: =bdrate(D15:D18,F15:F18,L15:L18,N15:N18) -> -0.07131565155 | V15: =bdrate(D15:D18,G15:G18,L15:L18,O15:O18) -> -0.07861619404 | W15: =bdrateOld(D15:D18,E15:E18,L15:L18,M15:M18) -> -0.07674939593 | X15: =bdrateOld(D15:D18,F15:F18,L15:L18,N15:N18) -> -0.07119293353 | Y15: =bdrateOld(D15:D18,G15:G18,L15:L18,O15:O18) -> -0.07846476314 | AA15: =Anchor!H221 -> 51.1528 | AB15: =Anchor!I221 -> 50.5049 | AC15: =Anchor!J221 -> 50.4121 | AE15: =Test!H221 -> 51.9582 | AF15: =Test!I221 -> 51.0129 | AG15: =Test!J221 -> 50.9845
C16: 27 | D16: =Anchor!B222 -> 216.1448 | E16: =Anchor!C222 -> 47.6899 | F16: =Anchor!D222 -> 46.5894 | G16: =Anchor!E222 -> 46.5164 | H16: =Anchor!F222 -> 6762.31 | I16: =Anchor!G222 -> 7.77 | J16: 1.878419444 | L16: =Test!B222 -> 206.2736 | M16: =Test!C222 -> 48.2448 | N16: =Test!D222 -> 47.1243 | O16: =Test!E222 -> 47.1474 | P16: =Test!F222 -> 6463.21 | Q16: =Test!G222 -> 8.34 | R16: 1.795336111 | AA16: =Anchor!H222 -> 47.1499 | AB16: =Anchor!I222 -> 46.1638 | AC16: =Anchor!J222 -> 46.149 | AE16: =Test!H222 -> 47.6509 | AF16: =Test!I222 -> 46.6509 | AG16: =Test!J222 -> 46.7119
C17: 32 | D17: =Anchor!B223 -> 169.9008 | E17: =Anchor!C223 -> 42.7896 | F17: =Anchor!D223 -> 41.7745 | G17: =Anchor!E223 -> 41.7236 | H17: =Anchor!F223 -> 6650.27 | I17: =Anchor!G223 -> 7.68 | J17: 1.847297222 | L17: =Test!B223 -> 166.6256 | M17: =Test!C223 -> 43.9112 | N17: =Test!D223 -> 42.8442 | O17: =Test!E223 -> 42.9401 | P17: =Test!F223 -> 6424.82 | Q17: =Test!G223 -> 8.29 | R17: 1.784672222 | AA17: =Anchor!H223 -> 42.4443 | AB17: =Anchor!I223 -> 41.4664 | AC17: =Anchor!J223 -> 41.4757 | AE17: =Test!H223 -> 43.3932 | AF17: =Test!I223 -> 42.3891 | AG17: =Test!J223 -> 42.5428
C18: 37 | D18: =Anchor!B224 -> 128.9424 | E18: =Anchor!C224 -> 36.7462 | F18: =Anchor!D224 -> 35.7807 | G18: =Anchor!E224 -> 35.7122 | H18: =Anchor!F224 -> 6025.75 | I18: =Anchor!G224 -> 7.64 | J18: 1.673819444 | L18: =Test!B224 -> 127.6768 | M18: =Test!C224 -> 38.7367 | N18: =Test!D224 -> 37.3868 | O18: =Test!E224 -> 37.7132 | P18: =Test!F224 -> 6306.46 | Q18: =Test!G224 -> 8.24 | R18: 1.751794444 | AA18: =Anchor!H224 -> 36.6278 | AB18: =Anchor!I224 -> 35.6712 | AC18: =Anchor!J224 -> 35.6209 | AE18: =Test!H224 -> 38.444 | AF18: =Test!I224 -> 37.1546 | AG18: =Test!J224 -> 37.4996
B19: sc_map_1280x720_60_8bit | C19: 22 | D19: =Anchor!B225 -> 2703.1392 | E19: =Anchor!C225 -> 46.4941 | F19: =Anchor!D225 -> 45.9001 | G19: =Anchor!E225 -> 46.2423 | H19: =Anchor!F225 -> 27980.47 | I19: =Anchor!G225 -> 18.79 | J19: 7.772352778 | L19: =Test!B225 -> 2658.4792 | M19: =Test!C225 -> 47.1901 | N19: =Test!D225 -> 46.5188 | O19: =Test!E225 -> 46.9044 | P19: =Test!F225 -> 28829.85 | Q19: =Test!G225 -> 19.75 | R19: 8.008291667 | T19: =bdrate(D19:D22,E19:E22,L19:L22,M19:M22) -> -0.03637807394 | U19: =bdrate(D19:D22,F19:F22,L19:L22,N19:N22) -> -0.03263405199 | V19: =bdrate(D19:D22,G19:G22,L19:L22,O19:O22) -> -0.03627213843 | W19: =bdrateOld(D19:D22,E19:E22,L19:L22,M19:M22) -> -0.03635841651 | X19: =bdrateOld(D19:D22,F19:F22,L19:L22,N19:N22) -> -0.03264524502 | Y19: =bdrateOld(D19:D22,G19:G22,L19:L22,O19:O22) -> -0.03626275927 | AA19: =Anchor!H225 -> 45.9522 | AB19: =Anchor!I225 -> 45.3806 | AC19: =Anchor!J225 -> 45.7519 | AE19: =Test!H225 -> 46.6288 | AF19: =Test!I225 -> 45.9674 | AG19: =Test!J225 -> 46.4152
C20: 27 | D20: =Anchor!B226 -> 1705.9296 | E20: =Anchor!C226 -> 42.192 | F20: =Anchor!D226 -> 41.5911 | G20: =Anchor!E226 -> 42.0865 | H20: =Anchor!F226 -> 26003.2 | I20: =Anchor!G226 -> 18.11 | J20: 7.223111111 | L20: =Test!B226 -> 1703.9744 | M20: =Test!C226 -> 42.5579 | N20: =Test!D226 -> 41.9164 | O20: =Test!E226 -> 42.4377 | P20: =Test!F226 -> 25837.91 | Q20: =Test!G226 -> 19.26 | R20: 7.177197222 | AA20: =Anchor!H226 -> 41.596 | AB20: =Anchor!I226 -> 40.9854 | AC20: =Anchor!J226 -> 41.5503 | AE20: =Test!H226 -> 41.9621 | AF20: =Test!I226 -> 41.3002 | AG20: =Test!J226 -> 41.9193
C21: 32 | D21: =Anchor!B227 -> 1045.0032 | E21: =Anchor!C227 -> 37.7916 | F21: =Anchor!D227 -> 37.1891 | G21: =Anchor!E227 -> 37.9273 | H21: =Anchor!F227 -> 23239.16 | I21: =Anchor!G227 -> 17.41 | J21: 6.455322222 | L21: =Test!B227 -> 1056.1448 | M21: =Test!C227 -> 38.0947 | N21: =Test!D227 -> 37.4621 | O21: =Test!E227 -> 38.2094 | P21: =Test!F227 -> 22595.54 | Q21: =Test!G227 -> 18.66 | R21: 6.276538889 | AA21: =Anchor!H227 -> 37.1535 | AB21: =Anchor!I227 -> 36.5534 | AC21: =Anchor!J227 -> 37.3757 | AE21: =Test!H227 -> 37.4332 | AF21: =Test!I227 -> 36.8058 | AG21: =Test!J227 -> 37.6456
C22: 37 | D22: =Anchor!B228 -> 623.3104 | E22: =Anchor!C228 -> 33.8526 | F22: =Anchor!D228 -> 33.1465 | G22: =Anchor!E228 -> 34.0968 | H22: =Anchor!F228 -> 19519.74 | I22: =Anchor!G228 -> 16.78 | J22: 5.42215 | L22: =Test!B228 -> 629.584 | M22: =Test!C228 -> 34.0694 | N22: =Test!D228 -> 33.374 | O22: =Test!E228 -> 34.3248 | P22: =Test!F228 -> 20110.55 | Q22: =Test!G228 -> 18.02 | R22: 5.586263889 | AA22: =Anchor!H228 -> 33.281 | AB22: =Anchor!I228 -> 32.5391 | AC22: =Anchor!J228 -> 33.5847 | AE22: =Test!H228 -> 33.4807 | AF22: =Test!I228 -> 32.7446 | AG22: =Test!J228 -> 33.8023
B23: sc_programming_1280x720_60_8bit | C23: 22 | D23: =Anchor!B229 -> 10359.7656 | E23: =Anchor!C229 -> 46.5074 | F23: =Anchor!D229 -> 46.0402 | G23: =Anchor!E229 -> 45.6941 | H23: =Anchor!F229 -> 63688.75 | I23: =Anchor!G229 -> 521 | J23: 17.69131944 | L23: =Test!B229 -> 10212.6432 | M23: =Test!C229 -> 46.6213 | N23: =Test!D229 -> 46.1116 | O23: =Test!E229 -> 45.7882 | P23: =Test!F229 -> 65441.18 | Q23: =Test!G229 -> 27.99 | R23: 18.17810556 | T23: =bdrate(D23:D26,E23:E26,L23:L26,M23:M26) -> -0.01738945465 | U23: =bdrate(D23:D26,F23:F26,L23:L26,N23:N26) -> -0.008358507023 | V23: =bdrate(D23:D26,G23:G26,L23:L26,O23:O26) -> -0.00921193636 | W23: =bdrateOld(D23:D26,E23:E26,L23:L26,M23:M26) -> -0.01738413364 | X23: =bdrateOld(D23:D26,F23:F26,L23:L26,N23:N26) -> -0.008306144529 | Y23: =bdrateOld(D23:D26,G23:G26,L23:L26,O23:O26) -> -0.009235272749 | AA23: =Anchor!H229 -> 46.4479 | AB23: =Anchor!I229 -> 45.9702 | AC23: =Anchor!J229 -> 45.6194 | AE23: =Test!H229 -> 46.5602 | AF23: =Test!I229 -> 46.0404 | AG23: =Test!J229 -> 45.7118
C24: 27 | D24: =Anchor!B230 -> 6493.2552 | E24: =Anchor!C230 -> 42.2864 | F24: =Anchor!D230 -> 41.4255 | G24: =Anchor!E230 -> 41.3834 | H24: =Anchor!F230 -> 55349.71 | I24: =Anchor!G230 -> 24.56 | J24: 15.37491944 | L24: =Test!B230 -> 6538.7296 | M24: =Test!C230 -> 42.4449 | N24: =Test!D230 -> 41.4993 | O24: =Test!E230 -> 41.522 | P24: =Test!F230 -> 55604.08 | Q24: =Test!G230 -> 25.6 | R24: 15.44557778 | AA24: =Anchor!H230 -> 42.1989 | AB24: =Anchor!I230 -> 41.3273 | AC24: =Anchor!J230 -> 41.2791 | AE24: =Test!H230 -> 42.3469 | AF24: =Test!I230 -> 41.3995 | AG24: =Test!J230 -> 41.4108
C25: 32 | D25: =Anchor!B231 -> 3594.5888 | E25: =Anchor!C231 -> 37.9597 | F25: =Anchor!D231 -> 36.6289 | G25: =Anchor!E231 -> 36.9411 | H25: =Anchor!F231 -> 47073.81 | I25: =Anchor!G231 -> 22.3 | J25: 13.07605833 | L25: =Test!B231 -> 3638.0672 | M25: =Test!C231 -> 38.13 | N25: =Test!D231 -> 36.7739 | O25: =Test!E231 -> 37.0187 | P25: =Test!F231 -> 47675.2 | Q25: =Test!G231 -> 23.45 | R25: 13.24311111 | AA25: =Anchor!H231 -> 37.842 | AB25: =Anchor!I231 -> 36.5039 | AC25: =Anchor!J231 -> 36.8186 | AE25: =Test!H231 -> 37.9962 | AF25: =Test!I231 -> 36.6369 | AG25: =Test!J231 -> 36.884
C26: 37 | D26: =Anchor!B232 -> 1773.9152 | E26: =Anchor!C232 -> 33.8959 | F26: =Anchor!D232 -> 32.3422 | G26: =Anchor!E232 -> 32.7857 | H26: =Anchor!F232 -> 38722.94 | I26: =Anchor!G232 -> 20.06 | J26: 10.75637222 | L26: =Test!B232 -> 1787.7992 | M26: =Test!C232 -> 34.1295 | N26: =Test!D232 -> 32.487 | O26: =Test!E232 -> 32.958 | P26: =Test!F232 -> 38922.42 | Q26: =Test!G232 -> 21.32 | R26: 10.81178333 | AA26: =Anchor!H232 -> 33.7933 | AB26: =Anchor!I232 -> 32.2259 | AC26: =Anchor!J232 -> 32.6852 | AE26: =Test!H232 -> 34.0093 | AF26: =Test!I232 -> 32.3575 | AG26: =Test!J232 -> 32.8483
B27: sc_SlideShow_1280x720_20_8bit_500 | C27: 22 | D27: =Anchor!B233 -> 1060.2877 | E27: =Anchor!C233 -> 49.4432 | F27: =Anchor!D233 -> 49.1087 | G27: =Anchor!E233 -> 49.2057 | H27: =Anchor!F233 -> 39753.77 | I27: =Anchor!G233 -> 18.22 | J27: 11.04271389 | L27: =Test!B233 -> 1058.241 | M27: =Test!C233 -> 49.552 | N27: =Test!D233 -> 49.1756 | O27: =Test!E233 -> 49.2792 | P27: =Test!F233 -> 40176.65 | Q27: =Test!G233 -> 19.13 | R27: 11.16018056 | T27: =bdrate(D27:D30,E27:E30,L27:L30,M27:M30) -> -0.02399729029 | U27: =bdrate(D27:D30,F27:F30,L27:L30,N27:N30) -> -0.0224051812 | V27: =bdrate(D27:D30,G27:G30,L27:L30,O27:O30) -> -0.02381514506 | W27: =bdrateOld(D27:D30,E27:E30,L27:L30,M27:M30) -> -0.02393961156 | X27: =bdrateOld(D27:D30,F27:F30,L27:L30,N27:N30) -> -0.02234880288 | Y27: =bdrateOld(D27:D30,G27:G30,L27:L30,O27:O30) -> -0.02375830753 | AA27: =Anchor!H233 -> 48.4345 | AB27: =Anchor!I233 -> 48.1079 | AC27: =Anchor!J233 -> 48.2192 | AE27: =Test!H233 -> 48.5109 | AF27: =Test!I233 -> 48.1603 | AG27: =Test!J233 -> 48.2748
C28: 27 | D28: =Anchor!B234 -> 629.1155 | E28: =Anchor!C234 -> 45.7571 | F28: =Anchor!D234 -> 45.2987 | G28: =Anchor!E234 -> 45.4523 | H28: =Anchor!F234 -> 35106.1 | I28: =Anchor!G234 -> 17.17 | J28: 9.751694444 | L28: =Test!B234 -> 629.0355 | M28: =Test!C234 -> 45.8852 | N28: =Test!D234 -> 45.4091 | O28: =Test!E234 -> 45.5673 | P28: =Test!F234 -> 35240.71 | Q28: =Test!G234 -> 18.11 | R28: 9.789086111 | AA28: =Anchor!H234 -> 44.7838 | AB28: =Anchor!I234 -> 44.318 | AC28: =Anchor!J234 -> 44.51 | AE28: =Test!H234 -> 44.8659 | AF28: =Test!I234 -> 44.4 | AG28: =Test!J234 -> 44.5764
C29: 32 | D29: =Anchor!B235 -> 366.3472 | E29: =Anchor!C235 -> 42.1252 | F29: =Anchor!D235 -> 41.5489 | G29: =Anchor!E235 -> 41.7324 | H29: =Anchor!F235 -> 31255.51 | I29: =Anchor!G235 -> 16.23 | J29: 8.682086111 | L29: =Test!B235 -> 368.5469 | M29: =Test!C235 -> 42.3668 | N29: =Test!D235 -> 41.7957 | O29: =Test!E235 -> 41.9934 | P29: =Test!F235 -> 30956.88 | Q29: =Test!G235 -> 17.16 | R29: 8.599133333 | AA29: =Anchor!H235 -> 41.1814 | AB29: =Anchor!I235 -> 40.5644 | AC29: =Anchor!J235 -> 40.8078 | AE29: =Test!H235 -> 41.3404 | AF29: =Test!I235 -> 40.7287 | AG29: =Test!J235 -> 40.9953
C30: 37 | D30: =Anchor!B236 -> 222.5066 | E30: =Anchor!C236 -> 38.5014 | F30: =Anchor!D236 -> 37.8831 | G30: =Anchor!E236 -> 38.1184 | H30: =Anchor!F236 -> 27950.56 | I30: =Anchor!G236 -> 15.36 | J30: 7.764044444 | L30: =Test!B236 -> 225.2701 | M30: =Test!C236 -> 38.8535 | N30: =Test!D236 -> 38.2642 | O30: =Test!E236 -> 38.4985 | P30: =Test!F236 -> 28118.14 | Q30: =Test!G236 -> 16.31 | R30: 7.810594444 | AA30: =Anchor!H236 -> 37.6182 | AB30: =Anchor!I236 -> 36.9654 | AC30: =Anchor!J236 -> 37.2719 | AE30: =Test!H236 -> 37.9009 | AF30: =Test!I236 -> 37.2164 | AG30: =Test!J236 -> 37.5482
A31: RGB, mixed content, 1440p | B31: Basketball_Screen_2560x1440_60p_8b444 | C31: 22 | D31: =Anchor!B237 -> 12623.6912 | E31: =Anchor!C237 -> 45.8271 | F31: =Anchor!D237 -> 45.0897 | G31: =Anchor!E237 -> 45.2001 | H31: =Anchor!F237 -> 56291.35 | I31: =Anchor!G237 -> 40.02 | J31: 15.63648611 | L31: =Test!B237 -> 12623.8208 | M31: =Test!C237 -> 45.8734 | N31: =Test!D237 -> 45.1408 | O31: =Test!E237 -> 45.2269 | P31: =Test!F237 -> 57823.43 | Q31: =Test!G237 -> 42.14 | R31: 16.06206389 | T31: =bdrate(D31:D34,E31:E34,L31:L34,M31:M34) -> -0.01700093303 | U31: =bdrate(D31:D34,F31:F34,L31:L34,N31:N34) -> -0.01712707778 | V31: =bdrate(D31:D34,G31:G34,L31:L34,O31:O34) -> -0.0144671893 | W31: =bdrateOld(D31:D34,E31:E34,L31:L34,M31:M34) -> -0.0170151566 | X31: =bdrateOld(D31:D34,F31:F34,L31:L34,N31:N34) -> -0.01707196175 | Y31: =bdrateOld(D31:D34,G31:G34,L31:L34,O31:O34) -> -0.01442059751 | AA31: =Anchor!H237 -> 45.8232 | AB31: =Anchor!I237 -> 45.0778 | AC31: =Anchor!J237 -> 45.1929 | AE31: =Test!H237 -> 45.8694 | AF31: =Test!I237 -> 45.1287 | AG31: =Test!J237 -> 45.2196
C32: 27 | D32: =Anchor!B238 -> 5383.1536 | E32: =Anchor!C238 -> 42.4115 | F32: =Anchor!D238 -> 41.6085 | G32: =Anchor!E238 -> 41.6822 | H32: =Anchor!F238 -> 45478.06 | I32: =Anchor!G238 -> 36.48 | J32: 12.63279444 | L32: =Test!B238 -> 5378.9664 | M32: =Test!C238 -> 42.4725 | N32: =Test!D238 -> 41.6903 | O32: =Test!E238 -> 41.7593 | P32: =Test!F238 -> 45904.22 | Q32: =Test!G238 -> 38.74 | R32: 12.75117222 | AA32: =Anchor!H238 -> 42.4079 | AB32: =Anchor!I238 -> 41.6009 | AC32: =Anchor!J238 -> 41.6754 | AE32: =Test!H238 -> 42.4687 | AF32: =Test!I238 -> 41.6824 | AG32: =Test!J238 -> 41.7522
C33: 32 | D33: =Anchor!B239 -> 2589.9408 | E33: =Anchor!C239 -> 38.8566 | F33: =Anchor!D239 -> 38.2185 | G33: =Anchor!E239 -> 38.2186 | H33: =Anchor!F239 -> 38456.32 | I33: =Anchor!G239 -> 34.43 | J33: 10.68231111 | L33: =Test!B239 -> 2594.9376 | M33: =Test!C239 -> 38.9707 | N33: =Test!D239 -> 38.3017 | O33: =Test!E239 -> 38.2938 | P33: =Test!F239 -> 39456.6 | Q33: =Test!G239 -> 36.72 | R33: 10.96016667 | AA33: =Anchor!H239 -> 38.8534 | AB33: =Anchor!I239 -> 38.2134 | AC33: =Anchor!J239 -> 38.2127 | AE33: =Test!H239 -> 38.9672 | AF33: =Test!I239 -> 38.2963 | AG33: =Test!J239 -> 38.2876
C34: 37 | D34: =Anchor!B240 -> 1378.2272 | E34: =Anchor!C240 -> 35.2032 | F34: =Anchor!D240 -> 34.6066 | G34: =Anchor!E240 -> 34.5734 | H34: =Anchor!F240 -> 33940.23 | I34: =Anchor!G240 -> 33.05 | J34: 9.427841667 | L34: =Test!B240 -> 1377.3776 | M34: =Test!C240 -> 35.3313 | N34: =Test!D240 -> 34.7471 | O34: =Test!E240 -> 34.6789 | P34: =Test!F240 -> 34398.02 | Q34: =Test!G240 -> 35.2 | R34: 9.555005556 | AA34: =Anchor!H240 -> 35.2012 | AB34: =Anchor!I240 -> 34.6041 | AC34: =Anchor!J240 -> 34.5702 | AE34: =Test!H240 -> 35.3292 | AF34: =Test!I240 -> 34.7445 | AG34: =Test!J240 -> 34.6755
B35: MissionControlClip2_2560x1440_60p_8b444 | C35: 22 | D35: =Anchor!B241 -> 11987.4176 | E35: =Anchor!C241 -> 44.9954 | F35: =Anchor!D241 -> 44.6373 | G35: =Anchor!E241 -> 44.6608 | H35: =Anchor!F241 -> 78465.24 | I35: =Anchor!G241 -> 41.31 | J35: 21.7959 | L35: =Test!B241 -> 11967.7584 | M35: =Test!C241 -> 45.0129 | N35: =Test!D241 -> 44.6615 | O35: =Test!E241 -> 44.6786 | P35: =Test!F241 -> 79282.91 | Q35: =Test!G241 -> 43.42 | R35: 22.02303056 | T35: =bdrate(D35:D38,E35:E38,L35:L38,M35:M38) -> -0.008078921074 | U35: =bdrate(D35:D38,F35:F38,L35:L38,N35:N38) -> -0.009360739517 | V35: =bdrate(D35:D38,G35:G38,L35:L38,O35:O38) -> -0.006307682898 | W35: =bdrateOld(D35:D38,E35:E38,L35:L38,M35:M38) -> -0.008079144573 | X35: =bdrateOld(D35:D38,F35:F38,L35:L38,N35:N38) -> -0.009363552043 | Y35: =bdrateOld(D35:D38,G35:G38,L35:L38,O35:O38) -> -0.00630450912 | AA35: =Anchor!H241 -> 44.8766 | AB35: =Anchor!I241 -> 44.5304 | AC35: =Anchor!J241 -> 44.541 | AE35: =Test!H241 -> 44.8823 | AF35: =Test!I241 -> 44.545 | AG35: =Test!J241 -> 44.5487
C36: 27 | D36: =Anchor!B242 -> 6863.4688 | E36: =Anchor!C242 -> 41.6798 | F36: =Anchor!D242 -> 41.4214 | G36: =Anchor!E242 -> 41.3432 | H36: =Anchor!F242 -> 67421.39 | I36: =Anchor!G242 -> 39.19 | J36: 18.72816389 | L36: =Test!B242 -> 6865.5632 | M36: =Test!C242 -> 41.7149 | N36: =Test!D242 -> 41.4698 | O36: =Test!E242 -> 41.3668 | P36: =Test!F242 -> 68404.07 | Q36: =Test!G242 -> 41.32 | R36: 19.00113056 | AA36: =Anchor!H242 -> 41.5296 | AB36: =Anchor!I242 -> 41.3078 | AC36: =Anchor!J242 -> 41.1949 | AE36: =Test!H242 -> 41.5556 | AF36: =Test!I242 -> 41.3429 | AG36: =Test!J242 -> 41.2103
C37: 32 | D37: =Anchor!B243 -> 3709.0544 | E37: =Anchor!C243 -> 38.3171 | F37: =Anchor!D243 -> 38.1299 | G37: =Anchor!E243 -> 37.9498 | H37: =Anchor!F243 -> 55920.81 | I37: =Anchor!G243 -> 29.79 | J37: 15.53355833 | L37: =Test!B243 -> 3710.4048 | M37: =Test!C243 -> 38.369 | N37: =Test!D243 -> 38.1845 | O37: =Test!E243 -> 37.9866 | P37: =Test!F243 -> 57176.05 | Q37: =Test!G243 -> 39.1 | R37: 15.88223611 | AA37: =Anchor!H243 -> 38.1291 | AB37: =Anchor!I243 -> 37.9873 | AC37: =Anchor!J243 -> 37.7689 | AE37: =Test!H243 -> 38.1682 | AF37: =Test!I243 -> 38.0289 | AG37: =Test!J243 -> 37.7973
C38: 37 | D38: =Anchor!B244 -> 1974.3616 | E38: =Anchor!C244 -> 35.0982 | F38: =Anchor!D244 -> 34.8969 | G38: =Anchor!E244 -> 34.6422 | H38: =Anchor!F244 -> 47604.11 | I38: =Anchor!G244 -> 34.92 | J38: 13.22336389 | L38: =Test!B244 -> 1971.0032 | M38: =Test!C244 -> 35.1627 | N38: =Test!D244 -> 34.9583 | O38: =Test!E244 -> 34.7123 | P38: =Test!F244 -> 47447.3 | Q38: =Test!G244 -> 36.92 | R38: 13.17980556 | AA38: =Anchor!H244 -> 34.9288 | AB38: =Anchor!I244 -> 34.7712 | AC38: =Anchor!J244 -> 34.4842 | AE38: =Test!H244 -> 34.9849 | AF38: =Test!I244 -> 34.8242 | AG38: =Test!J244 -> 34.5474
A39: RGB, mixed content, 1080p | B39: MissionControlClip3_1920x1080_60p_8b444 | C39: 22 | D39: =Anchor!B245 -> 3999.6232 | E39: =Anchor!C245 -> 46.3777 | F39: =Anchor!D245 -> 45.9073 | G39: =Anchor!E245 -> 45.9378 | H39: =Anchor!F245 -> 65287.67 | I39: =Anchor!G245 -> 44.91 | J39: 18.13546389 | L39: =Test!B245 -> 3995.2464 | M39: =Test!C245 -> 46.4948 | N39: =Test!D245 -> 45.9837 | O39: =Test!E245 -> 46.0029 | P39: =Test!F245 -> 65356.03 | Q39: =Test!G245 -> 47.32 | R39: 18.15445278 | T39: =bdrate(D39:D42,E39:E42,L39:L42,M39:M42) -> -0.018398744 | U39: =bdrate(D39:D42,F39:F42,L39:L42,N39:N42) -> -0.02063970859 | V39: =bdrate(D39:D42,G39:G42,L39:L42,O39:O42) -> -0.0180514151 | W39: =bdrateOld(D39:D42,E39:E42,L39:L42,M39:M42) -> -0.01851567896 | X39: =bdrateOld(D39:D42,F39:F42,L39:L42,N39:N42) -> -0.02061597366 | Y39: =bdrateOld(D39:D42,G39:G42,L39:L42,O39:O42) -> -0.01815496723 | AA39: =Anchor!H245 -> 46.0997 | AB39: =Anchor!I245 -> 45.6805 | AC39: =Anchor!J245 -> 45.6928 | AE39: =Test!H245 -> 46.1932 | AF39: =Test!I245 -> 45.7441 | AG39: =Test!J245 -> 45.7476
C40: 27 | D40: =Anchor!B246 -> 2168.912 | E40: =Anchor!C246 -> 42.797 | F40: =Anchor!D246 -> 42.3307 | G40: =Anchor!E246 -> 42.2636 | H40: =Anchor!F246 -> 55009.19 | I40: =Anchor!G246 -> 42.42 | J40: 15.28033056 | L40: =Test!B246 -> 2167.7272 | M40: =Test!C246 -> 42.8757 | N40: =Test!D246 -> 42.4452 | O40: =Test!E246 -> 42.3257 | P40: =Test!F246 -> 55304.88 | Q40: =Test!G246 -> 44.73 | R40: 15.36246667 | AA40: =Anchor!H246 -> 42.503 | AB40: =Anchor!I246 -> 42.1212 | AC40: =Anchor!J246 -> 42.0273 | AE40: =Test!H246 -> 42.5684 | AF40: =Test!I246 -> 42.2245 | AG40: =Test!J246 -> 42.0853
C41: 32 | D41: =Anchor!B247 -> 1190.424 | E41: =Anchor!C247 -> 38.8609 | F41: =Anchor!D247 -> 38.5869 | G41: =Anchor!E247 -> 38.3743 | H41: =Anchor!F247 -> 46072.08 | I41: =Anchor!G247 -> 39.97 | J41: 12.7978 | L41: =Test!B247 -> 1186.1984 | M41: =Test!C247 -> 38.9828 | N41: =Test!D247 -> 38.7069 | O41: =Test!E247 -> 38.5251 | P41: =Test!F247 -> 47290.44 | Q41: =Test!G247 -> 42.43 | R41: 13.13623333 | AA41: =Anchor!H247 -> 38.6012 | AB41: =Anchor!I247 -> 38.404 | AC41: =Anchor!J247 -> 38.1642 | AE41: =Test!H247 -> 38.7064 | AF41: =Test!I247 -> 38.5124 | AG41: =Test!J247 -> 38.2965
C42: 37 | D42: =Anchor!B248 -> 677.2232 | E42: =Anchor!C248 -> 34.7999 | F42: =Anchor!D248 -> 34.6515 | G42: =Anchor!E248 -> 34.4549 | H42: =Anchor!F248 -> 40732.47 | I42: =Anchor!G248 -> 38.04 | J42: 11.314575 | L42: =Test!B248 -> 674.8552 | M42: =Test!C248 -> 34.9384 | N42: =Test!D248 -> 34.8229 | O42: =Test!E248 -> 34.586 | P42: =Test!F248 -> 41025.53 | Q42: =Test!G248 -> 40.55 | R42: 11.39598056 | AA42: =Anchor!H248 -> 34.6342 | AB42: =Anchor!I248 -> 34.542 | AC42: =Anchor!J248 -> 34.2976 | AE42: =Test!H248 -> 34.7604 | AF42: =Test!I248 -> 34.6989 | AG42: =Test!J248 -> 34.4234
A43: RGB, Animation, 720p | B43: sc_robot_1280x720_30_8bit_300 | C43: 22 | D43: =Anchor!B249 -> 12202.748 | E43: =Anchor!C249 -> 40.1889 | F43: =Anchor!D249 -> 40.6682 | G43: =Anchor!E249 -> 40.0821 | H43: =Anchor!F249 -> 60945.63 | I43: =Anchor!G249 -> 27 | J43: 16.92934167 | L43: =Test!B249 -> 12202.2176 | M43: =Test!C249 -> 40.1892 | N43: =Test!D249 -> 40.6698 | O43: =Test!E249 -> 40.0848 | P43: =Test!F249 -> 62783.29 | Q43: =Test!G249 -> 27.55 | R43: 17.43980278 | T43: =bdrate(D43:D46,E43:E46,L43:L46,M43:M46) -> 0.0006142085439 | U43: =bdrate(D43:D46,F43:F46,L43:L46,N43:N46) -> 0.000325044996 | V43: =bdrate(D43:D46,G43:G46,L43:L46,O43:O46) -> 0.001157623478 | W43: =bdrateOld(D43:D46,E43:E46,L43:L46,M43:M46) -> 0.0005568128162 | X43: =bdrateOld(D43:D46,F43:F46,L43:L46,N43:N46) -> 0.0004417671617 | Y43: =bdrateOld(D43:D46,G43:G46,L43:L46,O43:O46) -> 0.001325725367 | AA43: =Anchor!H249 -> 40.1374 | AB43: =Anchor!I249 -> 40.6233 | AC43: =Anchor!J249 -> 40.024 | AE43: =Test!H249 -> 40.1377 | AF43: =Test!I249 -> 40.625 | AG43: =Test!J249 -> 40.0266
C44: 27 | D44: =Anchor!B250 -> 4467.8456 | E44: =Anchor!C250 -> 36.5036 | F44: =Anchor!D250 -> 37.1706 | G44: =Anchor!E250 -> 36.3041 | H44: =Anchor!F250 -> 42556.55 | I44: =Anchor!G250 -> 19.96 | J44: 11.82126389 | L44: =Test!B250 -> 4472.5904 | M44: =Test!C250 -> 36.5068 | N44: =Test!D250 -> 37.1732 | O44: =Test!E250 -> 36.3043 | P44: =Test!F250 -> 42065.67 | Q44: =Test!G250 -> 20.63 | R44: 11.68490833 | AA44: =Anchor!H250 -> 36.4686 | AB44: =Anchor!I250 -> 37.1384 | AC44: =Anchor!J250 -> 36.2626 | AE44: =Test!H250 -> 36.472 | AF44: =Test!I250 -> 37.1409 | AG44: =Test!J250 -> 36.2626
C45: 32 | D45: =Anchor!B251 -> 1540.6232 | E45: =Anchor!C251 -> 33.6394 | F45: =Anchor!D251 -> 34.3846 | G45: =Anchor!E251 -> 33.3274 | H45: =Anchor!F251 -> 29741.9 | I45: =Anchor!G251 -> 15.28 | J45: 8.261638889 | L45: =Test!B251 -> 1543.3464 | M45: =Test!C251 -> 33.6401 | N45: =Test!D251 -> 34.3891 | O45: =Test!E251 -> 33.3294 | P45: =Test!F251 -> 29576.49 | Q45: =Test!G251 -> 16.03 | R45: 8.215691667 | AA45: =Anchor!H251 -> 33.6181 | AB45: =Anchor!I251 -> 34.3596 | AC45: =Anchor!J251 -> 33.3016 | AE45: =Test!H251 -> 33.619 | AF45: =Test!I251 -> 34.364 | AG45: =Test!J251 -> 33.3037
C46: 37 | D46: =Anchor!B252 -> 578.544 | E46: =Anchor!C252 -> 31.4172 | F46: =Anchor!D252 -> 32.1726 | G46: =Anchor!E252 -> 31.0068 | H46: =Anchor!F252 -> 22450.28 | I46: =Anchor!G252 -> 12.49 | J46: 6.236188889 | L46: =Test!B252 -> 579.2176 | M46: =Test!C252 -> 31.4153 | N46: =Test!D252 -> 32.1672 | O46: =Test!E252 -> 30.9967 | P46: =Test!F252 -> 23043.83 | Q46: =Test!G252 -> 13.09 | R46: 6.401063889 | AA46: =Anchor!H252 -> 31.4034 | AB46: =Anchor!I252 -> 32.1551 | AC46: =Anchor!J252 -> 30.992 | AE46: =Test!H252 -> 31.4012 | AF46: =Test!I252 -> 32.1497 | AG46: =Test!J252 -> 30.9819
A47: RGB, camera captured, 1080p | B47: EBURainFruits_1920x1080_50_10bit_444 | C47: 22 | D47: =Anchor!B253 -> 29079.1296 | E47: =Anchor!C253 -> 41.9464 | F47: =Anchor!D253 -> 40.0497 | G47: =Anchor!E253 -> 42.5165 | H47: =Anchor!F253 -> 99594.18 | I47: =Anchor!G253 -> 53.91 | J47: 27.66505 | L47: =Test!B253 -> 29083.4304 | M47: =Test!C253 -> 41.9459 | N47: =Test!D253 -> 40.0492 | O47: =Test!E253 -> 42.5154 | P47: =Test!F253 -> 101058.16 | Q47: =Test!G253 -> 54.87 | R47: 28.07171111 | T47: =bdrate(D47:D50,E47:E50,L47:L50,M47:M50) -> 0.0005518010408 | U47: =bdrate(D47:D50,F47:F50,L47:L50,N47:N50) -> 0.000135413763 | V47: =bdrate(D47:D50,G47:G50,L47:L50,O47:O50) -> -0.0003700047786 | W47: =bdrateOld(D47:D50,E47:E50,L47:L50,M47:M50) -> 0.000570608701 | X47: =bdrateOld(D47:D50,F47:F50,L47:L50,N47:N50) -> 0.000138518334 | Y47: =bdrateOld(D47:D50,G47:G50,L47:L50,O47:O50) -> -0.0003712031332 | AA47: =Anchor!H253 -> 41.9128 | AB47: =Anchor!I253 -> 39.9929 | AC47: =Anchor!J253 -> 42.4748 | AE47: =Test!H253 -> 41.9123 | AF47: =Test!I253 -> 39.9923 | AG47: =Test!J253 -> 42.4737
C48: 27 | D48: =Anchor!B254 -> 10884.7344 | E48: =Anchor!C254 -> 39.0008 | F48: =Anchor!D254 -> 37.4584 | G48: =Anchor!E254 -> 39.433 | H48: =Anchor!F254 -> 63940.61 | I48: =Anchor!G254 -> 37.83 | J48: 17.76128056 | L48: =Test!B254 -> 10885.9968 | M48: =Test!C254 -> 38.998 | N48: =Test!D254 -> 37.4578 | O48: =Test!E254 -> 39.4364 | P48: =Test!F254 -> 64686.42 | Q48: =Test!G254 -> 38.8 | R48: 17.96845 | AA48: =Anchor!H254 -> 38.9548 | AB48: =Anchor!I254 -> 37.4067 | AC48: =Anchor!J254 -> 39.3773 | AE48: =Test!H254 -> 38.9519 | AF48: =Test!I254 -> 37.4063 | AG48: =Test!J254 -> 39.3806
C49: 32 | D49: =Anchor!B255 -> 4703.6736 | E49: =Anchor!C255 -> 36.1697 | F49: =Anchor!D255 -> 34.995 | G49: =Anchor!E255 -> 36.5667 | H49: =Anchor!F255 -> 45129.47 | I49: =Anchor!G255 -> 29.52 | J49: 12.53596389 | L49: =Test!B255 -> 4700.3872 | M49: =Test!C255 -> 36.168 | N49: =Test!D255 -> 34.9933 | O49: =Test!E255 -> 36.5657 | P49: =Test!F255 -> 46072.42 | Q49: =Test!G255 -> 30.64 | R49: 12.79789444 | AA49: =Anchor!H255 -> 36.1237 | AB49: =Anchor!I255 -> 34.9535 | AC49: =Anchor!J255 -> 36.5196 | AE49: =Test!H255 -> 36.122 | AF49: =Test!I255 -> 34.9518 | AG49: =Test!J255 -> 36.5186
C50: 37 | D50: =Anchor!B256 -> 2161.8768 | E50: =Anchor!C256 -> 33.4441 | F50: =Anchor!D256 -> 32.5734 | G50: =Anchor!E256 -> 33.8134 | H50: =Anchor!F256 -> 35264.75 | I50: =Anchor!G256 -> 24.62 | J50: 9.795763889 | L50: =Test!B256 -> 2161.1616 | M50: =Test!C256 -> 33.4369 | N50: =Test!D256 -> 32.572 | O50: =Test!E256 -> 33.8101 | P50: =Test!F256 -> 35825.98 | Q50: =Test!G256 -> 25.67 | R50: 9.951661111 | AA50: =Anchor!H256 -> 33.4078 | AB50: =Anchor!I256 -> 32.546 | AC50: =Anchor!J256 -> 33.78 | AE50: =Test!H256 -> 33.4008 | AF50: =Test!I256 -> 32.5446 | AG50: =Test!J256 -> 33.7766
B51: Kimono1_1920x1080_24_10bit_444 | C51: 22 | D51: =Anchor!B257 -> 60512.6176 | E51: =Anchor!C257 -> 40.5313 | F51: =Anchor!D257 -> 37.3405 | G51: =Anchor!E257 -> 39.252 | H51: =Anchor!F257 -> 123909.04 | I51: =Anchor!G257 -> 38.48 | J51: 34.41917778 | L51: =Test!B257 -> 60511.7488 | M51: =Test!C257 -> 40.5315 | N51: =Test!D257 -> 37.3402 | O51: =Test!E257 -> 39.2522 | P51: =Test!F257 -> 123999.34 | Q51: =Test!G257 -> 39.25 | R51: 34.44426111 | T51: =bdrate(D51:D54,E51:E54,L51:L54,M51:M54) -> -0.00157251218 | U51: =bdrate(D51:D54,F51:F54,L51:L54,N51:N54) -> 0.0002175840637 | V51: =bdrate(D51:D54,G51:G54,L51:L54,O51:O54) -> -0.0006696001912 | W51: =bdrateOld(D51:D54,E51:E54,L51:L54,M51:M54) -> -0.001492939915 | X51: =bdrateOld(D51:D54,F51:F54,L51:L54,N51:N54) -> 0.004292808655 | Y51: =bdrateOld(D51:D54,G51:G54,L51:L54,O51:O54) -> -0.0006724110166 | AA51: =Anchor!H257 -> 40.5184 | AB51: =Anchor!I257 -> 37.1215 | AC51: =Anchor!J257 -> 39.2233 | AE51: =Test!H257 -> 40.5186 | AF51: =Test!I257 -> 37.121 | AG51: =Test!J257 -> 39.2235
C52: 27 | D52: =Anchor!B258 -> 12218.9168 | E52: =Anchor!C258 -> 39.0769 | F52: =Anchor!D258 -> 33.0548 | G52: =Anchor!E258 -> 37.6477 | H52: =Anchor!F258 -> 79830.77 | I52: =Anchor!G258 -> 26.49 | J52: 22.17521389 | L52: =Test!B258 -> 12221.5536 | M52: =Test!C258 -> 39.0793 | N52: =Test!D258 -> 33.0539 | O52: =Test!E258 -> 37.6478 | P52: =Test!F258 -> 80222.87 | Q52: =Test!G258 -> 27.12 | R52: 22.28413056 | AA52: =Anchor!H258 -> 39.0499 | AB52: =Anchor!I258 -> 32.9445 | AC52: =Anchor!J258 -> 37.6173 | AE52: =Test!H258 -> 39.0524 | AF52: =Test!I258 -> 32.9435 | AG52: =Test!J258 -> 37.6173
C53: 32 | D53: =Anchor!B259 -> 3388.9984 | E53: =Anchor!C259 -> 37.2121 | F53: =Anchor!D259 -> 31.9333 | G53: =Anchor!E259 -> 35.6944 | H53: =Anchor!F259 -> 52746.86 | I53: =Anchor!G259 -> 19.29 | J53: 14.65190556 | L53: =Test!B259 -> 3387.5744 | M53: =Test!C259 -> 37.2147 | N53: =Test!D259 -> 31.9342 | O53: =Test!E259 -> 35.6952 | P53: =Test!F259 -> 52963.32 | Q53: =Test!G259 -> 19.92 | R53: 14.71203333 | AA53: =Anchor!H259 -> 37.1524 | AB53: =Anchor!I259 -> 31.9189 | AC53: =Anchor!J259 -> 35.6219 | AE53: =Test!H259 -> 37.155 | AF53: =Test!I259 -> 31.9199 | AG53: =Test!J259 -> 35.6227
C54: 37 | D54: =Anchor!B260 -> 1514.1584 | E54: =Anchor!C260 -> 35.0373 | F54: =Anchor!D260 -> 31.0976 | G54: =Anchor!E260 -> 33.6097 | H54: =Anchor!F260 -> 38449.19 | I54: =Anchor!G260 -> 15.48 | J54: 10.68033056 | L54: =Test!B260 -> 1510.5424 | M54: =Test!C260 -> 35.0315 | N54: =Test!D260 -> 31.0942 | O54: =Test!E260 -> 33.6098 | P54: =Test!F260 -> 38142.98 | Q54: =Test!G260 -> 15.98 | R54: 10.59527222 | AA54: =Anchor!H260 -> 34.9557 | AB54: =Anchor!I260 -> 31.0796 | AC54: =Anchor!J260 -> 33.5257 | AE54: =Test!H260 -> 34.9494 | AF54: =Test!I260 -> 31.0762 | AG54: =Test!J260 -> 33.5253
A55: YUV, text & graphics with motion, 1080p | B55: sc_flyingGraphics_1920x1080_60_8bit_444 | C55: 22 | D55: =Anchor!B261 -> 38174.4496 | E55: =Anchor!C261 -> 45.0579 | F55: =Anchor!D261 -> 46.7762 | G55: =Anchor!E261 -> 46.8839 | H55: =Anchor!F261 -> 160789.12 | I55: =Anchor!G261 -> 53.91 | J55: 44.66364444 | L55: =Test!B261 -> 37903.2176 | M55: =Test!C261 -> 45.3542 | N55: =Test!D261 -> 47.4439 | O55: =Test!E261 -> 47.5332 | P55: =Test!F261 -> 161252.87 | Q55: =Test!G261 -> 53.74 | R55: 44.79246389 | T55: =bdrate(D55:D58,E55:E58,L55:L58,M55:M58) -> -0.02446633904 | U55: =bdrate(D55:D58,F55:F58,L55:L58,N55:N58) -> -0.07486899597 | V55: =bdrate(D55:D58,G55:G58,L55:L58,O55:O58) -> -0.07383767329 | W55: =bdrateOld(D55:D58,E55:E58,L55:L58,M55:M58) -> -0.02433363872 | X55: =bdrateOld(D55:D58,F55:F58,L55:L58,N55:N58) -> -0.07455791459 | Y55: =bdrateOld(D55:D58,G55:G58,L55:L58,O55:O58) -> -0.07373923211 | AA55: =Anchor!H261 -> 44.8984 | AB55: =Anchor!I261 -> 46.6703 | AC55: =Anchor!J261 -> 46.7816 | AE55: =Test!H261 -> 45.1708 | AF55: =Test!I261 -> 47.3224 | AG55: =Test!J261 -> 47.4092
C56: 27 | D56: =Anchor!B262 -> 22477.064 | E56: =Anchor!C262 -> 39.9036 | F56: =Anchor!D262 -> 42.313 | G56: =Anchor!E262 -> 42.4591 | H56: =Anchor!F262 -> 133605.15 | I56: =Anchor!G262 -> 47.47 | J56: 37.11254167 | L56: =Test!B262 -> 22352.52 | M56: =Test!C262 -> 40.1089 | N56: =Test!D262 -> 42.895 | O56: =Test!E262 -> 43.0231 | P56: =Test!F262 -> 135613.47 | Q56: =Test!G262 -> 47.79 | R56: 37.67040833 | AA56: =Anchor!H262 -> 39.6802 | AB56: =Anchor!I262 -> 42.1902 | AC56: =Anchor!J262 -> 42.3454 | AE56: =Test!H262 -> 39.8637 | AF56: =Test!I262 -> 42.7598 | AG56: =Test!J262 -> 42.896
C57: 32 | D57: =Anchor!B263 -> 13080.1872 | E57: =Anchor!C263 -> 35.5706 | F57: =Anchor!D263 -> 37.8455 | G57: =Anchor!E263 -> 38.1809 | H57: =Anchor!F263 -> 117009.46 | I57: =Anchor!G263 -> 40.91 | J57: 32.50262778 | L57: =Test!B263 -> 13107.2768 | M57: =Test!C263 -> 35.7568 | N57: =Test!D263 -> 38.5001 | O57: =Test!E263 -> 38.7759 | P57: =Test!F263 -> 117090.77 | Q57: =Test!G263 -> 41.39 | R57: 32.52521389 | AA57: =Anchor!H263 -> 35.351 | AB57: =Anchor!I263 -> 37.6949 | AC57: =Anchor!J263 -> 38.0485 | AE57: =Test!H263 -> 35.5188 | AF57: =Test!I263 -> 38.332 | AG57: =Test!J263 -> 38.6346
C58: 37 | D58: =Anchor!B264 -> 7515.4368 | E58: =Anchor!C264 -> 31.5167 | F58: =Anchor!D264 -> 33.969 | G58: =Anchor!E264 -> 34.2961 | H58: =Anchor!F264 -> 102919.08 | I58: =Anchor!G264 -> 36.05 | J58: 28.58863333 | L58: =Test!B264 -> 7638.7456 | M58: =Test!C264 -> 31.6697 | N58: =Test!D264 -> 34.5205 | O58: =Test!E264 -> 34.933 | P58: =Test!F264 -> 102378.47 | Q58: =Test!G264 -> 36.87 | R58: 28.43846389 | AA58: =Anchor!H264 -> 31.3292 | AB58: =Anchor!I264 -> 33.8205 | AC58: =Anchor!J264 -> 34.1704 | AE58: =Test!H264 -> 31.4655 | AF58: =Test!I264 -> 34.3663 | AG58: =Test!J264 -> 34.8044
B59: sc_desktop_1920x1080_60_8bit_444 | C59: 22 | D59: =Anchor!B265 -> 1187.42 | E59: =Anchor!C265 -> 50.5018 | F59: =Anchor!D265 -> 50.384 | G59: =Anchor!E265 -> 50.792 | H59: =Anchor!F265 -> 41068.79 | I59: =Anchor!G265 -> 36.69 | J59: 11.40799722 | L59: =Test!B265 -> 1148.9216 | M59: =Test!C265 -> 52.8429 | N59: =Test!D265 -> 53.1137 | O59: =Test!E265 -> 53.4061 | P59: =Test!F265 -> 40873.42 | Q59: =Test!G265 -> 38.78 | R59: 11.35372778 | T59: =bdrate(D59:D62,E59:E62,L59:L62,M59:M62) -> -0.03975163528 | U59: =bdrate(D59:D62,F59:F62,L59:L62,N59:N62) -> -0.04340753188 | V59: =bdrate(D59:D62,G59:G62,L59:L62,O59:O62) -> -0.04703361836 | W59: =bdrateOld(D59:D62,E59:E62,L59:L62,M59:M62) -> -0.03983173882 | X59: =bdrateOld(D59:D62,F59:F62,L59:L62,N59:N62) -> -0.04345582285 | Y59: =bdrateOld(D59:D62,G59:G62,L59:L62,O59:O62) -> -0.04694326871 | AA59: =Anchor!H265 -> 50.474 | AB59: =Anchor!I265 -> 50.3562 | AC59: =Anchor!J265 -> 50.7499 | AE59: =Test!H265 -> 52.7918 | AF59: =Test!I265 -> 53.0597 | AG59: =Test!J265 -> 53.3482
C60: 27 | D60: =Anchor!B266 -> 1088.8032 | E60: =Anchor!C266 -> 45.7412 | F60: =Anchor!D266 -> 46.0287 | G60: =Anchor!E266 -> 46.2417 | H60: =Anchor!F266 -> 40481.7 | I60: =Anchor!G266 -> 36.67 | J60: 11.24491667 | L60: =Test!B266 -> 1069.34 | M60: =Test!C266 -> 47.5424 | N60: =Test!D266 -> 47.8861 | O60: =Test!E266 -> 48.4099 | P60: =Test!F266 -> 40687.29 | Q60: =Test!G266 -> 38.9 | R60: 11.302025 | AA60: =Anchor!H266 -> 45.7034 | AB60: =Anchor!I266 -> 45.9893 | AC60: =Anchor!J266 -> 46.1893 | AE60: =Test!H266 -> 47.4493 | AF60: =Test!I266 -> 47.8286 | AG60: =Test!J266 -> 48.3294
C61: 32 | D61: =Anchor!B267 -> 982.152 | E61: =Anchor!C267 -> 40.7622 | F61: =Anchor!D267 -> 41.3345 | G61: =Anchor!E267 -> 41.5406 | H61: =Anchor!F267 -> 39341.69 | I61: =Anchor!G267 -> 36.62 | J61: 10.92824722 | L61: =Test!B267 -> 976.552 | M61: =Test!C267 -> 42.2293 | N61: =Test!D267 -> 42.8614 | O61: =Test!E267 -> 43.1648 | P61: =Test!F267 -> 38690.83 | Q61: =Test!G267 -> 38.92 | R61: 10.74745278 | AA61: =Anchor!H267 -> 40.7009 | AB61: =Anchor!I267 -> 41.2812 | AC61: =Anchor!J267 -> 41.4778 | AE61: =Test!H267 -> 42.0943 | AF61: =Test!I267 -> 42.7859 | AG61: =Test!J267 -> 43.0655
C62: 37 | D62: =Anchor!B268 -> 868.1256 | E62: =Anchor!C268 -> 35.437 | F62: =Anchor!D268 -> 36.7131 | G62: =Anchor!E268 -> 36.5067 | H62: =Anchor!F268 -> 37453.87 | I62: =Anchor!G268 -> 36.48 | J62: 10.40385278 | L62: =Test!B268 -> 868.9072 | M62: =Test!C268 -> 36.2917 | N62: =Test!D268 -> 37.5628 | O62: =Test!E268 -> 37.86 | P62: =Test!F268 -> 37231.61 | Q62: =Test!G268 -> 38.79 | R62: 10.34211389 | AA62: =Anchor!H268 -> 35.3935 | AB62: =Anchor!I268 -> 36.6575 | AC62: =Anchor!J268 -> 36.4572 | AE62: =Test!H268 -> 36.2173 | AF62: =Test!I268 -> 37.5082 | AG62: =Test!J268 -> 37.8003
B63: sc_console_1920x1080_60_8bit_444 | C63: 22 | D63: =Anchor!B269 -> 5397.6376 | E63: =Anchor!C269 -> 52.0968 | F63: =Anchor!D269 -> 52.9588 | G63: =Anchor!E269 -> 52.748 | H63: =Anchor!F269 -> 102334.78 | I63: =Anchor!G269 -> 46.2 | J63: 28.42632778 | L63: =Test!B269 -> 5361.3392 | M63: =Test!C269 -> 53.1754 | N63: =Test!D269 -> 54.2484 | O63: =Test!E269 -> 53.7093 | P63: =Test!F269 -> 103117.64 | Q63: =Test!G269 -> 47.93 | R63: 28.64378889 | T63: =bdrate(D63:D66,E63:E66,L63:L66,M63:M66) -> -0.03628642906 | U63: =bdrate(D63:D66,F63:F66,L63:L66,N63:N66) -> -0.04770934093 | V63: =bdrate(D63:D66,G63:G66,L63:L66,O63:O66) -> -0.03696589459 | W63: =bdrateOld(D63:D66,E63:E66,L63:L66,M63:M66) -> -0.03616243764 | X63: =bdrateOld(D63:D66,F63:F66,L63:L66,N63:N66) -> -0.04758613117 | Y63: =bdrateOld(D63:D66,G63:G66,L63:L66,O63:O66) -> -0.0369877096 | AA63: =Anchor!H269 -> 52.0542 | AB63: =Anchor!I269 -> 52.9127 | AC63: =Anchor!J269 -> 52.6932 | AE63: =Test!H269 -> 53.1166 | AF63: =Test!I269 -> 54.1734 | AG63: =Test!J269 -> 53.6331
C64: 27 | D64: =Anchor!B270 -> 4382.8808 | E64: =Anchor!C270 -> 46.8292 | F64: =Anchor!D270 -> 48.3395 | G64: =Anchor!E270 -> 47.6569 | H64: =Anchor!F270 -> 99041.44 | I64: =Anchor!G270 -> 45.93 | J64: 27.51151111 | L64: =Test!B270 -> 4361.7696 | M64: =Test!C270 -> 47.6967 | N64: =Test!D270 -> 49.3324 | O64: =Test!E270 -> 48.4515 | P64: =Test!F270 -> 98405.77 | Q64: =Test!G270 -> 47.69 | R64: 27.33493611 | AA64: =Anchor!H270 -> 46.7309 | AB64: =Anchor!I270 -> 48.2643 | AC64: =Anchor!J270 -> 47.5416 | AE64: =Test!H270 -> 47.5681 | AF64: =Test!I270 -> 49.2252 | AG64: =Test!J270 -> 48.3067
C65: 32 | D65: =Anchor!B271 -> 3481.9176 | E65: =Anchor!C271 -> 41.2117 | F65: =Anchor!D271 -> 44.0035 | G65: =Anchor!E271 -> 42.9675 | H65: =Anchor!F271 -> 93712.54 | I65: =Anchor!G271 -> 44.82 | J65: 26.03126111 | L65: =Test!B271 -> 3471.7456 | M65: =Test!C271 -> 41.8755 | N65: =Test!D271 -> 44.7265 | O65: =Test!E271 -> 43.5735 | P65: =Test!F271 -> 93739.04 | Q65: =Test!G271 -> 46.99 | R65: 26.03862222 | AA65: =Anchor!H271 -> 41.0489 | AB65: =Anchor!I271 -> 43.8809 | AC65: =Anchor!J271 -> 42.8152 | AE65: =Test!H271 -> 41.6722 | AF65: =Test!I271 -> 44.5654 | AG65: =Test!J271 -> 43.3847
C66: 37 | D66: =Anchor!B272 -> 2648.3776 | E66: =Anchor!C272 -> 36.1501 | F66: =Anchor!D272 -> 40.0117 | G66: =Anchor!E272 -> 38.122 | H66: =Anchor!F272 -> 83537.68 | I66: =Anchor!G272 -> 43.58 | J66: 23.20491111 | L66: =Test!B272 -> 2635.8808 | M66: =Test!C272 -> 36.6515 | N66: =Test!D272 -> 40.5119 | O66: =Test!E272 -> 38.6591 | P66: =Test!F272 -> 85334.78 | Q66: =Test!G272 -> 45.73 | R66: 23.70410556 | AA66: =Anchor!H272 -> 36.0255 | AB66: =Anchor!I272 -> 39.8882 | AC66: =Anchor!J272 -> 37.9294 | AE66: =Test!H272 -> 36.5109 | AF66: =Test!I272 -> 40.3644 | AG66: =Test!J272 -> 38.4473
A67: YUV, text & graphics with motion,720p | B67: sc_web_browsing_1280x720_30_8bit_300_444_r1 | C67: 22 | D67: =Anchor!B273 -> 200.7224 | E67: =Anchor!C273 -> 49.5095 | F67: =Anchor!D273 -> 50.4069 | G67: =Anchor!E273 -> 50.9537 | H67: =Anchor!F273 -> 6472.15 | I67: =Anchor!G273 -> 7.69 | J67: 1.797819444 | L67: =Test!B273 -> 193.424 | M67: =Test!C273 -> 51.8536 | N67: =Test!D273 -> 53.4191 | O67: =Test!E273 -> 53.4541 | P67: =Test!F273 -> 6534.92 | Q67: =Test!G273 -> 8.27 | R67: 1.815255556 | T67: =bdrate(D67:D70,E67:E70,L67:L70,M67:M70) -> -0.09157383203 | U67: =bdrate(D67:D70,F67:F70,L67:L70,N67:N70) -> -0.1026520138 | V67: =bdrate(D67:D70,G67:G70,L67:L70,O67:O70) -> -0.1070337991 | W67: =bdrateOld(D67:D70,E67:E70,L67:L70,M67:M70) -> -0.09145706872 | X67: =bdrateOld(D67:D70,F67:F70,L67:L70,N67:N70) -> -0.1018119475 | Y67: =bdrateOld(D67:D70,G67:G70,L67:L70,O67:O70) -> -0.1067935652 | AA67: =Anchor!H273 -> 49.3212 | AB67: =Anchor!I273 -> 50.3427 | AC67: =Anchor!J273 -> 50.8858 | AE67: =Test!H273 -> 51.3213 | AF67: =Test!I273 -> 53.189 | AG67: =Test!J273 -> 53.219
C68: 27 | D68: =Anchor!B274 -> 160.0328 | E68: =Anchor!C274 -> 45.2418 | F68: =Anchor!D274 -> 46.215 | G68: =Anchor!E274 -> 46.7211 | H68: =Anchor!F274 -> 6356 | I68: =Anchor!G274 -> 7.67 | J68: 1.765555556 | L68: =Test!B274 -> 156.3104 | M68: =Test!C274 -> 47.3316 | N68: =Test!D274 -> 48.5083 | O68: =Test!E274 -> 48.7202 | P68: =Test!F274 -> 6417.6 | Q68: =Test!G274 -> 8.24 | R68: 1.782666667 | AA68: =Anchor!H274 -> 45.0688 | AB68: =Anchor!I274 -> 46.1581 | AC68: =Anchor!J274 -> 46.6688 | AE68: =Test!H274 -> 46.872 | AF68: =Test!I274 -> 48.3248 | AG68: =Test!J274 -> 48.5549
C69: 32 | D69: =Anchor!B275 -> 120.384 | E69: =Anchor!C275 -> 41.0163 | F69: =Anchor!D275 -> 41.6136 | G69: =Anchor!E275 -> 41.9246 | H69: =Anchor!F275 -> 6230.31 | I69: =Anchor!G275 -> 7.65 | J69: =secToHours(H69) -> 1.730641667 | L69: =Test!B275 -> 121.0256 | M69: =Test!C275 -> 42.402 | N69: =Test!D275 -> 42.9528 | O69: =Test!E275 -> 43.6439 | P69: =Test!F275 -> 6285.57 | Q69: =Test!G275 -> 8.22 | R69: =secToHours(P69) -> 1.745991667 | AA69: =Anchor!H275 -> 40.8524 | AB69: =Anchor!I275 -> 41.5614 | AC69: =Anchor!J275 -> 41.8807 | AE69: =Test!H275 -> 42.1028 | AF69: =Test!I275 -> 42.8693 | AG69: =Test!J275 -> 43.557
C70: 37 | D70: =Anchor!B276 -> 89.4136 | E70: =Anchor!C276 -> 36.0808 | F70: =Anchor!D276 -> 36.5491 | G70: =Anchor!E276 -> 36.8008 | H70: =Anchor!F276 -> 6007.9 | I70: =Anchor!G276 -> 7.54 | J70: 1.668861111 | L70: =Test!B276 -> 90.3888 | M70: =Test!C276 -> 36.8139 | N70: =Test!D276 -> 38.4074 | O70: =Test!E276 -> 38.8959 | P70: =Test!F276 -> 6143.96 | Q70: =Test!G276 -> 8.19 | R70: 1.706655556 | AA70: =Anchor!H276 -> 35.9662 | AB70: =Anchor!I276 -> 36.5216 | AC70: =Anchor!J276 -> 36.7623 | AE70: =Test!H276 -> 36.6516 | AF70: =Test!I276 -> 38.3721 | AG70: =Test!J276 -> 38.8658
B71: sc_map_1280x720_60_8bit_444 | C71: 22 | D71: =Anchor!B277 -> 1602.0104 | E71: =Anchor!C277 -> 46.1325 | F71: =Anchor!D277 -> 48.9016 | G71: =Anchor!E277 -> 50.2775 | H71: =Anchor!F277 -> 25630.23 | I71: =Anchor!G277 -> 17.9 | J71: 7.119508333 | L71: =Test!B277 -> 1603.9984 | M71: =Test!C277 -> 46.3574 | N71: =Test!D277 -> 49.4441 | O71: =Test!E277 -> 51.0021 | P71: =Test!F277 -> 25833.87 | Q71: =Test!G277 -> 19.13 | R71: 7.176075 | T71: =bdrate(D71:D74,E71:E74,L71:L74,M71:M74) -> -0.01623716548 | U71: =bdrate(D71:D74,F71:F74,L71:L74,N71:N74) -> -0.05444168652 | V71: =bdrate(D71:D74,G71:G74,L71:L74,O71:O74) -> -0.08610498365 | W71: =bdrateOld(D71:D74,E71:E74,L71:L74,M71:M74) -> -0.01618128408 | X71: =bdrateOld(D71:D74,F71:F74,L71:L74,N71:N74) -> -0.05446696483 | Y71: =bdrateOld(D71:D74,G71:G74,L71:L74,O71:O74) -> -0.08580228851 | AA71: =Anchor!H277 -> 45.6179 | AB71: =Anchor!I277 -> 48.3532 | AC71: =Anchor!J277 -> 49.8027 | AE71: =Test!H277 -> 45.8057 | AF71: =Test!I277 -> 48.807 | AG71: =Test!J277 -> 50.4537
C72: 27 | D72: =Anchor!B278 -> 1019.4664 | E72: =Anchor!C278 -> 41.671 | F72: =Anchor!D278 -> 45.6301 | G72: =Anchor!E278 -> 47.7096 | H72: =Anchor!F278 -> 23141.08 | I72: =Anchor!G278 -> 17.38 | J72: 6.428077778 | L72: =Test!B278 -> 1020.52 | M72: =Test!C278 -> 41.8292 | N72: =Test!D278 -> 46.0453 | O72: =Test!E278 -> 48.1798 | P72: =Test!F278 -> 23270.67 | Q72: =Test!G278 -> 18.68 | R72: 6.464075 | AA72: =Anchor!H278 -> 41.109 | AB72: =Anchor!I278 -> 45.0514 | AC72: =Anchor!J278 -> 47.2987 | AE72: =Test!H278 -> 41.2323 | AF72: =Test!I278 -> 45.3722 | AG72: =Test!J278 -> 47.6907
C73: 32 | D73: =Anchor!B279 -> 617.3656 | E73: =Anchor!C279 -> 37.298 | F73: =Anchor!D279 -> 42.0325 | G73: =Anchor!E279 -> 45.0283 | H73: =Anchor!F279 -> 20418.75 | I73: =Anchor!G279 -> 16.81 | J73: 5.671875 | L73: =Test!B279 -> 618.2888 | M73: =Test!C279 -> 37.4418 | N73: =Test!D279 -> 42.4179 | O73: =Test!E279 -> 45.5341 | P73: =Test!F279 -> 20481.14 | Q73: =Test!G279 -> 18.04 | R73: 5.689205556 | AA73: =Anchor!H279 -> 36.6797 | AB73: =Anchor!I279 -> 41.5146 | AC73: =Anchor!J279 -> 44.7349 | AE73: =Test!H279 -> 36.7853 | AF73: =Test!I279 -> 41.7859 | AG73: =Test!J279 -> 45.1722
C74: 37 | D74: =Anchor!B280 -> 368.2944 | E74: =Anchor!C280 -> 33.6081 | F74: =Anchor!D280 -> 38.3128 | G74: =Anchor!E280 -> 41.392 | H74: =Anchor!F280 -> 17657.71 | I74: =Anchor!G280 -> 16.22 | J74: 4.904919444 | L74: =Test!B280 -> 368.6496 | M74: =Test!C280 -> 33.7003 | N74: =Test!D280 -> 38.7238 | O74: =Test!E280 -> 42.2148 | P74: =Test!F280 -> 18070.74 | Q74: =Test!G280 -> 17.65 | R74: 5.01965 | AA74: =Anchor!H280 -> 33.0698 | AB74: =Anchor!I280 -> 37.9223 | AC74: =Anchor!J280 -> 41.29 | AE74: =Test!H280 -> 33.1308 | AF74: =Test!I280 -> 38.2296 | AG74: =Test!J280 -> 42.0331
B75: sc_programming_1280x720_60_8bit_444 | C75: 22 | D75: =Anchor!B281 -> 6521.496 | E75: =Anchor!C281 -> 47.105 | F75: =Anchor!D281 -> 46.6298 | G75: =Anchor!E281 -> 47.1123 | H75: =Anchor!F281 -> 57572.08 | I75: =Anchor!G281 -> 24.47 | J75: 15.99224444 | L75: =Test!B281 -> 6543.0824 | M75: =Test!C281 -> 47.1448 | N75: =Test!D281 -> 46.7082 | O75: =Test!E281 -> 47.2432 | P75: =Test!F281 -> 57774.12 | Q75: =Test!G281 -> 25.5 | R75: 16.04836667 | T75: =bdrate(D75:D78,E75:E78,L75:L78,M75:M78) -> -0.0144001784 | U75: =bdrate(D75:D78,F75:F78,L75:L78,N75:N78) -> -0.02149921704 | V75: =bdrate(D75:D78,G75:G78,L75:L78,O75:O78) -> -0.02962523236 | W75: =bdrateOld(D75:D78,E75:E78,L75:L78,M75:M78) -> -0.01447436427 | X75: =bdrateOld(D75:D78,F75:F78,L75:L78,N75:N78) -> -0.0209883201 | Y75: =bdrateOld(D75:D78,G75:G78,L75:L78,O75:O78) -> -0.02889990496 | AA75: =Anchor!H281 -> 47.0383 | AB75: =Anchor!I281 -> 46.5565 | AC75: =Anchor!J281 -> 47.0438 | AE75: =Test!H281 -> 47.0746 | AF75: =Test!I281 -> 46.6295 | AG75: =Test!J281 -> 47.1702
C76: 27 | D76: =Anchor!B282 -> 3573.5248 | E76: =Anchor!C282 -> 42.8076 | F76: =Anchor!D282 -> 42.4116 | G76: =Anchor!E282 -> 43.2716 | H76: =Anchor!F282 -> 49536.76 | I76: =Anchor!G282 -> 22.21 | J76: 13.76021111 | L76: =Test!B282 -> 3595.6352 | M76: =Test!C282 -> 42.9162 | N76: =Test!D282 -> 42.5071 | O76: =Test!E282 -> 43.3865 | P76: =Test!F282 -> 49718.15 | Q76: =Test!G282 -> 23.46 | R76: 13.81059722 | AA76: =Anchor!H282 -> 42.6983 | AB76: =Anchor!I282 -> 42.3039 | AC76: =Anchor!J282 -> 43.1926 | AE76: =Test!H282 -> 42.7978 | AF76: =Test!I282 -> 42.3886 | AG76: =Test!J282 -> 43.2971
C77: 32 | D77: =Anchor!B283 -> 1674.7472 | E77: =Anchor!C283 -> 38.3058 | F77: =Anchor!D283 -> 38.3735 | G77: =Anchor!E283 -> 39.625 | H77: =Anchor!F283 -> 41232.58 | I77: =Anchor!G283 -> 20.5 | J77: 11.45349444 | L77: =Test!B283 -> 1684.896 | M77: =Test!C283 -> 38.4585 | N77: =Test!D283 -> 38.5682 | O77: =Test!E283 -> 39.8501 | P77: =Test!F283 -> 41197.13 | Q77: =Test!G283 -> 21.73 | R77: 11.44364722 | AA77: =Anchor!H283 -> 38.1784 | AB77: =Anchor!I283 -> 38.2252 | AC77: =Anchor!J283 -> 39.5357 | AE77: =Test!H283 -> 38.3188 | AF77: =Test!I283 -> 38.3975 | AG77: =Test!J283 -> 39.7413
C78: 37 | D78: =Anchor!B284 -> 749.3792 | E78: =Anchor!C284 -> 34.0168 | F78: =Anchor!D284 -> 35.353 | G78: =Anchor!E284 -> 36.9056 | H78: =Anchor!F284 -> 34263.05 | I78: =Anchor!G284 -> 18.63 | J78: 9.517513889 | L78: =Test!B284 -> 748.6872 | M78: =Test!C284 -> 34.1031 | N78: =Test!D284 -> 35.4912 | O78: =Test!E284 -> 37.0606 | P78: =Test!F284 -> 34489.92 | Q78: =Test!G284 -> 19.87 | R78: 9.580533333 | AA78: =Anchor!H284 -> 33.9249 | AB78: =Anchor!I284 -> 35.1818 | AC78: =Anchor!J284 -> 36.8111 | AE78: =Test!H284 -> 34.0098 | AF78: =Test!I284 -> 35.3082 | AG78: =Test!J284 -> 36.955
B79: sc_SlideShow_1280x720_20_8bit_500_444 | C79: 22 | D79: =Anchor!B285 -> 616.2397 | E79: =Anchor!C285 -> 49.1791 | F79: =Anchor!D285 -> 54.1841 | G79: =Anchor!E285 -> 55.4296 | H79: =Anchor!F285 -> 36001.78 | I79: =Anchor!G285 -> 16.91 | J79: 10.00049444 | L79: =Test!B285 -> 615.0752 | M79: =Test!C285 -> 49.2225 | N79: =Test!D285 -> 54.3134 | O79: =Test!E285 -> 55.5643 | P79: =Test!F285 -> 36318.75 | Q79: =Test!G285 -> 17.93 | R79: 10.08854167 | T79: =bdrate(D79:D82,E79:E82,L79:L82,M79:M82) -> -0.004456515596 | U79: =bdrate(D79:D82,F79:F82,L79:L82,N79:N82) -> -0.02466572149 | V79: =bdrate(D79:D82,G79:G82,L79:L82,O79:O82) -> -0.04320417029 | W79: =bdrateOld(D79:D82,E79:E82,L79:L82,M79:M82) -> -0.004402155028 | X79: =bdrateOld(D79:D82,F79:F82,L79:L82,N79:N82) -> -0.02461312321 | Y79: =bdrateOld(D79:D82,G79:G82,L79:L82,O79:O82) -> -0.04300735166 | AA79: =Anchor!H285 -> 48.2472 | AB79: =Anchor!I285 -> 52.7959 | AC79: =Anchor!J285 -> 53.8546 | AE79: =Test!H285 -> 48.2698 | AF79: =Test!I285 -> 52.8638 | AG79: =Test!J285 -> 53.9363
C80: 27 | D80: =Anchor!B286 -> 353.2016 | E80: =Anchor!C286 -> 45.4306 | F80: =Anchor!D286 -> 51.1945 | G80: =Anchor!E286 -> 52.6103 | H80: =Anchor!F286 -> 32331.78 | I80: =Anchor!G286 -> 16.13 | J80: 8.98105 | L80: =Test!B286 -> 353.9136 | M80: =Test!C286 -> 45.501 | N80: =Test!D286 -> 51.3598 | O80: =Test!E286 -> 52.8486 | P80: =Test!F286 -> 32495 | Q80: =Test!G286 -> 17.12 | R80: 9.026388889 | AA80: =Anchor!H286 -> 44.5313 | AB80: =Anchor!I286 -> 49.7242 | AC80: =Anchor!J286 -> 51.0193 | AE80: =Test!H286 -> 44.5888 | AF80: =Test!I286 -> 49.821 | AG80: =Test!J286 -> 51.1565
C81: 32 | D81: =Anchor!B287 -> 206.127 | E81: =Anchor!C287 -> 41.629 | F81: =Anchor!D287 -> 48.2392 | G81: =Anchor!E287 -> 49.8232 | H81: =Anchor!F287 -> 28418.94 | I81: =Anchor!G287 -> 15.4 | J81: 7.89415 | L81: =Test!B287 -> 207.0394 | M81: =Test!C287 -> 41.6476 | N81: =Test!D287 -> 48.3793 | O81: =Test!E287 -> 50.039 | P81: =Test!F287 -> 28450.03 | Q81: =Test!G287 -> 16.43 | R81: 7.902786111 | AA81: =Anchor!H287 -> 40.7462 | AB81: =Anchor!I287 -> 46.72 | AC81: =Anchor!J287 -> 48.2213 | AE81: =Test!H287 -> 40.7543 | AF81: =Test!I287 -> 46.8304 | AG81: =Test!J287 -> 48.4252
C82: 37 | D82: =Anchor!B288 -> 127.1843 | E82: =Anchor!C288 -> 37.7377 | F82: =Anchor!D288 -> 45.1446 | G82: =Anchor!E288 -> 46.7411 | H82: =Anchor!F288 -> 25503.22 | I82: =Anchor!G288 -> 14.67 | J82: 7.084227778 | L82: =Test!B288 -> 127.3734 | M82: =Test!C288 -> 37.8272 | N82: =Test!D288 -> 45.3585 | O82: =Test!E288 -> 47.3578 | P82: =Test!F288 -> 25692.67 | Q82: =Test!G288 -> 15.71 | R82: 7.136852778 | AA82: =Anchor!H288 -> 36.9495 | AB82: =Anchor!I288 -> 43.6196 | AC82: =Anchor!J288 -> 45.4162 | AE82: =Test!H288 -> 37.038 | AF82: =Test!I288 -> 43.7917 | AG82: =Test!J288 -> 45.8063
A83: YUV, mixed content, 1440p | B83: Basketball_Screen_2560x1440_60p_8b444 | C83: 22 | D83: =Anchor!B289 -> 5280.6864 | E83: =Anchor!C289 -> 45.9196 | F83: =Anchor!D289 -> 49.6086 | G83: =Anchor!E289 -> 49.5904 | H83: =Anchor!F289 -> 47310.79 | I83: =Anchor!G289 -> 36.03 | J83: 13.14188611 | L83: =Test!B289 -> 5283.8864 | M83: =Test!C289 -> 45.9898 | N83: =Test!D289 -> 49.713 | O83: =Test!E289 -> 49.7146 | P83: =Test!F289 -> 46887.19 | Q83: =Test!G289 -> 38.2 | R83: 13.02421944 | T83: =bdrate(D83:D86,E83:E86,L83:L86,M83:M86) -> -0.006690069446 | U83: =bdrate(D83:D86,F83:F86,L83:L86,N83:N86) -> -0.04617307523 | V83: =bdrate(D83:D86,G83:G86,L83:L86,O83:O86) -> -0.04033377547 | W83: =bdrateOld(D83:D86,E83:E86,L83:L86,M83:M86) -> -0.006860181983 | X83: =bdrateOld(D83:D86,F83:F86,L83:L86,N83:N86) -> -0.04643085695 | Y83: =bdrateOld(D83:D86,G83:G86,L83:L86,O83:O86) -> -0.04058927169 | AA83: =Anchor!H289 -> 45.9163 | AB83: =Anchor!I289 -> 49.6057 | AC83: =Anchor!J289 -> 49.587 | AE83: =Test!H289 -> 45.9863 | AF83: =Test!I289 -> 49.7099 | AG83: =Test!J289 -> 49.7109
C84: 27 | D84: =Anchor!B290 -> 2513.8208 | E84: =Anchor!C290 -> 42.499 | F84: =Anchor!D290 -> 46.2203 | G84: =Anchor!E290 -> 46.2043 | H84: =Anchor!F290 -> 40287.18 | I84: =Anchor!G290 -> 34.21 | J84: 11.19088333 | L84: =Test!B290 -> 2515.5872 | M84: =Test!C290 -> 42.52 | N84: =Test!D290 -> 46.442 | O84: =Test!E290 -> 46.3991 | P84: =Test!F290 -> 40102.39 | Q84: =Test!G290 -> 36.26 | R84: 11.13955278 | AA84: =Anchor!H290 -> 42.4949 | AB84: =Anchor!I290 -> 46.2185 | AC84: =Anchor!J290 -> 46.2011 | AE84: =Test!H290 -> 42.5159 | AF84: =Test!I290 -> 46.4399 | AG84: =Test!J290 -> 46.3957
C85: 32 | D85: =Anchor!B291 -> 1309.3424 | E85: =Anchor!C291 -> 38.8077 | F85: =Anchor!D291 -> 42.637 | G85: =Anchor!E291 -> 42.5931 | H85: =Anchor!F291 -> 34552.08 | I85: =Anchor!G291 -> 32.9 | J85: 9.5978 | L85: =Test!B291 -> 1313.36 | M85: =Test!C291 -> 38.8906 | N85: =Test!D291 -> 43.0286 | O85: =Test!E291 -> 42.9393 | P85: =Test!F291 -> 34444 | Q85: =Test!G291 -> 35 | R85: 9.567777778 | AA85: =Anchor!H291 -> 38.804 | AB85: =Anchor!I291 -> 42.6361 | AC85: =Anchor!J291 -> 42.5913 | AE85: =Test!H291 -> 38.8866 | AF85: =Test!I291 -> 43.0274 | AG85: =Test!J291 -> 42.9371
C86: 37 | D86: =Anchor!B292 -> 743.3968 | E86: =Anchor!C292 -> 34.9926 | F86: =Anchor!D292 -> 38.9648 | G86: =Anchor!E292 -> 38.929 | H86: =Anchor!F292 -> 30262.89 | I86: =Anchor!G292 -> 31.67 | J86: 8.406358333 | L86: =Test!B292 -> 747.9328 | M86: =Test!C292 -> 35.015 | N86: =Test!D292 -> 39.2054 | O86: =Test!E292 -> 39.0947 | P86: =Test!F292 -> 30910.54 | Q86: =Test!G292 -> 33.9 | R86: 8.586261111 | AA86: =Anchor!H292 -> 34.9902 | AB86: =Anchor!I292 -> 38.9644 | AC86: =Anchor!J292 -> 38.9281 | AE86: =Test!H292 -> 35.0125 | AF86: =Test!I292 -> 39.2049 | AG86: =Test!J292 -> 39.0936
B87: MissionControlClip2_2560x1440_60p_8b444 | C87: 22 | D87: =Anchor!B293 -> 6712.4928 | E87: =Anchor!C293 -> 45.0238 | F87: =Anchor!D293 -> 49.9714 | G87: =Anchor!E293 -> 50.8695 | H87: =Anchor!F293 -> 63269 | I87: =Anchor!G293 -> 38.33 | J87: 17.57472222 | L87: =Test!B293 -> 6728.7792 | M87: =Test!C293 -> 45.0416 | N87: =Test!D293 -> 50.0084 | O87: =Test!E293 -> 50.9015 | P87: =Test!F293 -> 64814.2 | Q87: =Test!G293 -> 40.37 | R87: 18.00394444 | T87: =bdrate(D87:D90,E87:E90,L87:L90,M87:M90) -> -0.008257653477 | U87: =bdrate(D87:D90,F87:F90,L87:L90,N87:N90) -> -0.02814076066 | V87: =bdrate(D87:D90,G87:G90,L87:L90,O87:O90) -> -0.02243950718 | W87: =bdrateOld(D87:D90,E87:E90,L87:L90,M87:M90) -> -0.008279588616 | X87: =bdrateOld(D87:D90,F87:F90,L87:L90,N87:N90) -> -0.02812958006 | Y87: =bdrateOld(D87:D90,G87:G90,L87:L90,O87:O90) -> -0.02240561399 | AA87: =Anchor!H293 -> 44.8993 | AB87: =Anchor!I293 -> 49.8749 | AC87: =Anchor!J293 -> 50.7682 | AE87: =Test!H293 -> 44.9086 | AF87: =Test!I293 -> 49.9078 | AG87: =Test!J293 -> 50.8052
C88: 27 | D88: =Anchor!B294 -> 3693.192 | E88: =Anchor!C294 -> 41.5851 | F88: =Anchor!D294 -> 47.1103 | G88: =Anchor!E294 -> 47.893 | H88: =Anchor!F294 -> 57225.35 | I88: =Anchor!G294 -> 36.51 | J88: 15.89593056 | L88: =Test!B294 -> 3690.256 | M88: =Test!C294 -> 41.6242 | N88: =Test!D294 -> 47.1949 | O88: =Test!E294 -> 47.9606 | P88: =Test!F294 -> 57413.91 | Q88: =Test!G294 -> 38.7 | R88: 15.94830833 | AA88: =Anchor!H294 -> 41.4322 | AB88: =Anchor!I294 -> 46.9308 | AC88: =Anchor!J294 -> 47.7286 | AE88: =Test!H294 -> 41.4575 | AF88: =Test!I294 -> 47.0217 | AG88: =Test!J294 -> 47.803
C89: 32 | D89: =Anchor!B295 -> 1951.0384 | E89: =Anchor!C295 -> 38.221 | F89: =Anchor!D295 -> 44.1437 | G89: =Anchor!E295 -> 44.9189 | H89: =Anchor!F295 -> 48384.78 | I89: =Anchor!G295 -> 34.87 | J89: 13.44021667 | L89: =Test!B295 -> 1948.0288 | M89: =Test!C295 -> 38.2691 | N89: =Test!D295 -> 44.3054 | O89: =Test!E295 -> 45.0582 | P89: =Test!F295 -> 49732.47 | Q89: =Test!G295 -> 36.99 | R89: 13.814575 | AA89: =Anchor!H295 -> 38.0323 | AB89: =Anchor!I295 -> 43.9005 | AC89: =Anchor!J295 -> 44.6794 | AE89: =Test!H295 -> 38.0662 | AF89: =Test!I295 -> 44.0984 | AG89: =Test!J295 -> 44.8713
C90: 37 | D90: =Anchor!B296 -> 1039.5136 | E90: =Anchor!C296 -> 34.755 | F90: =Anchor!D296 -> 41.1562 | G90: =Anchor!E296 -> 42.1179 | H90: =Anchor!F296 -> 41800.2 | I90: =Anchor!G296 -> 33.17 | J90: 11.61116667 | L90: =Test!B296 -> 1037.8016 | M90: =Test!C296 -> 34.8032 | N90: =Test!D296 -> 41.419 | O90: =Test!E296 -> 42.2788 | P90: =Test!F296 -> 42559.02 | Q90: =Test!G296 -> 35.35 | R90: 11.82195 | AA90: =Anchor!H296 -> 34.6004 | AB90: =Anchor!I296 -> 40.8054 | AC90: =Anchor!J296 -> 41.7157 | AE90: =Test!H296 -> 34.6369 | AF90: =Test!I296 -> 41.1759 | AG90: =Test!J296 -> 42.0017
A91: YUV, mixed content, 1080p | B91: MissionControlClip3_1920x1080_60p_8b444 | C91: 22 | D91: =Anchor!B297 -> 2135.2904 | E91: =Anchor!C297 -> 46.4015 | F91: =Anchor!D297 -> 49.3548 | G91: =Anchor!E297 -> 49.6642 | H91: =Anchor!F297 -> 54192.09 | I91: =Anchor!G297 -> 42.16 | J91: 15.05335833 | L91: =Test!B297 -> 2132.7016 | M91: =Test!C297 -> 46.4841 | N91: =Test!D297 -> 49.5618 | O91: =Test!E297 -> 49.849 | P91: =Test!F297 -> 55398.28 | Q91: =Test!G297 -> 44.42 | R91: 15.38841111 | T91: =bdrate(D91:D94,E91:E94,L91:L94,M91:M94) -> -0.009726563648 | U91: =bdrate(D91:D94,F91:F94,L91:L94,N91:N94) -> -0.03667242727 | V91: =bdrate(D91:D94,G91:G94,L91:L94,O91:O94) -> -0.02822790872 | W91: =bdrateOld(D91:D94,E91:E94,L91:L94,M91:M94) -> -0.009669286419 | X91: =bdrateOld(D91:D94,F91:F94,L91:L94,N91:N94) -> -0.03666371269 | Y91: =bdrateOld(D91:D94,G91:G94,L91:L94,O91:O94) -> -0.0281984045 | AA91: =Anchor!H297 -> 46.1069 | AB91: =Anchor!I297 -> 49.232 | AC91: =Anchor!J297 -> 49.566 | AE91: =Test!H297 -> 46.1753 | AF91: =Test!I297 -> 49.4418 | AG91: =Test!J297 -> 49.7601
C92: 27 | D92: =Anchor!B298 -> 1180.0096 | E92: =Anchor!C298 -> 42.6009 | F92: =Anchor!D298 -> 45.653 | G92: =Anchor!E298 -> 46.0984 | H92: =Anchor!F298 -> 45915.25 | I92: =Anchor!G298 -> 39.86 | J92: 12.75423611 | L92: =Test!B298 -> 1176.8608 | M92: =Test!C298 -> 42.693 | N92: =Test!D298 -> 45.8461 | O92: =Test!E298 -> 46.2308 | P92: =Test!F298 -> 46786.79 | Q92: =Test!G298 -> 42.3 | R92: 12.99633056 | AA92: =Anchor!H298 -> 42.3143 | AB92: =Anchor!I298 -> 45.5309 | AC92: =Anchor!J298 -> 45.98 | AE92: =Test!H298 -> 42.3976 | AF92: =Test!I298 -> 45.7463 | AG92: =Test!J298 -> 46.1177
C93: 32 | D93: =Anchor!B299 -> 663.8672 | E93: =Anchor!C299 -> 38.6343 | F93: =Anchor!D299 -> 41.8818 | G93: =Anchor!E299 -> 42.4913 | H93: =Anchor!F299 -> 41091.18 | I93: =Anchor!G299 -> 37.98 | J93: 11.41421667 | L93: =Test!B299 -> 665.0008 | M93: =Test!C299 -> 38.6916 | N93: =Test!D299 -> 42.1551 | O93: =Test!E299 -> 42.6906 | P93: =Test!F299 -> 41938.31 | Q93: =Test!G299 -> 40.44 | R93: 11.64953056 | AA93: =Anchor!H299 -> 38.3949 | AB93: =Anchor!I299 -> 41.7357 | AC93: =Anchor!J299 -> 42.3137 | AE93: =Test!H299 -> 38.446 | AF93: =Test!I299 -> 42.0235 | AG93: =Test!J299 -> 42.5222
C94: 37 | D94: =Anchor!B300 -> 393.032 | E94: =Anchor!C300 -> 34.4204 | F94: =Anchor!D300 -> 38.2353 | G94: =Anchor!E300 -> 39.0645 | H94: =Anchor!F300 -> 37288.12 | I94: =Anchor!G300 -> 36.51 | J94: 10.35781111 | L94: =Test!B300 -> 394.3216 | M94: =Test!C300 -> 34.4364 | N94: =Test!D300 -> 38.6073 | O94: =Test!E300 -> 39.3304 | P94: =Test!F300 -> 35661.03 | Q94: =Test!G300 -> 39.04 | R94: 9.905841667 | AA94: =Anchor!H300 -> 34.2616 | AB94: =Anchor!I300 -> 38.0025 | AC94: =Anchor!J300 -> 38.7239 | AE94: =Test!H300 -> 34.2812 | AF94: =Test!I300 -> 38.3733 | AG94: =Test!J300 -> 39.0327
A95: YUV, Animation, 720p | B95: sc_robot_1280x720_30_8bit_300_444 | C95: 22 | D95: =Anchor!B301 -> 5395.2192 | E95: =Anchor!C301 -> 40.5693 | F95: =Anchor!D301 -> 44.1761 | G95: =Anchor!E301 -> 43.5823 | H95: =Anchor!F301 -> 42025.52 | I95: =Anchor!G301 -> 21.14 | J95: 11.67375556 | L95: =Test!B301 -> 5395.7192 | M95: =Test!C301 -> 40.5673 | N95: =Test!D301 -> 44.1849 | O95: =Test!E301 -> 43.5804 | P95: =Test!F301 -> 41828.55 | Q95: =Test!G301 -> 21.73 | R95: 11.61904167 | T95: =bdrate(D95:D98,E95:E98,L95:L98,M95:M98) -> 0.001492973351 | U95: =bdrate(D95:D98,F95:F98,L95:L98,N95:N98) -> -0.002388680002 | V95: =bdrate(D95:D98,G95:G98,L95:L98,O95:O98) -> 0.0001984406705 | W95: =bdrateOld(D95:D98,E95:E98,L95:L98,M95:M98) -> 0.001645535639 | X95: =bdrateOld(D95:D98,F95:F98,L95:L98,N95:N98) -> -0.002467382593 | Y95: =bdrateOld(D95:D98,G95:G98,L95:L98,O95:O98) -> -0.000189636495 | AA95: =Anchor!H301 -> 40.533 | AB95: =Anchor!I301 -> 44.1579 | AC95: =Anchor!J301 -> 43.5616 | AE95: =Test!H301 -> 40.5311 | AF95: =Test!I301 -> 44.1666 | AG95: =Test!J301 -> 43.5598
C96: 27 | D96: =Anchor!B302 -> 1760.5 | E96: =Anchor!C302 -> 37.1305 | F96: =Anchor!D302 -> 41.6789 | G96: =Anchor!E302 -> 41.04 | H96: =Anchor!F302 -> 30323.47 | I96: =Anchor!G302 -> 15.79 | J96: 8.423186111 | L96: =Test!B302 -> 1760.6568 | M96: =Test!C302 -> 37.1292 | N96: =Test!D302 -> 41.6904 | O96: =Test!E302 -> 41.0406 | P96: =Test!F302 -> 31915.3 | Q96: =Test!G302 -> 16.44 | R96: 8.865361111 | AA96: =Anchor!H302 -> 37.1024 | AB96: =Anchor!I302 -> 41.664 | AC96: =Anchor!J302 -> 41.0248 | AE96: =Test!H302 -> 37.1012 | AF96: =Test!I302 -> 41.6758 | AG96: =Test!J302 -> 41.0256
C97: 32 | D97: =Anchor!B303 -> 609.8896 | E97: =Anchor!C303 -> 34.4944 | F97: =Anchor!D303 -> 39.7615 | G97: =Anchor!E303 -> 39.2518 | H97: =Anchor!F303 -> 23828.4 | I97: =Anchor!G303 -> 12.72 | J97: 6.619 | L97: =Test!B303 -> 611.8184 | M97: =Test!C303 -> 34.4996 | N97: =Test!D303 -> 39.7713 | O97: =Test!E303 -> 39.253 | P97: =Test!F303 -> 23191.26 | Q97: =Test!G303 -> 13.33 | R97: 6.442016667 | AA97: =Anchor!H303 -> 34.4731 | AB97: =Anchor!I303 -> 39.7501 | AC97: =Anchor!J303 -> 39.2381 | AE97: =Test!H303 -> 34.4787 | AF97: =Test!I303 -> 39.7597 | AG97: =Test!J303 -> 39.2387
C98: 37 | D98: =Anchor!B304 -> 242.2744 | E98: =Anchor!C304 -> 32.2331 | F98: =Anchor!D304 -> 37.9058 | G98: =Anchor!E304 -> 37.6617 | H98: =Anchor!F304 -> 19037.17 | I98: =Anchor!G304 -> 10.88 | J98: 5.288102778 | L98: =Test!B304 -> 243.8144 | M98: =Test!C304 -> 32.2282 | N98: =Test!D304 -> 37.8963 | O98: =Test!E304 -> 37.6823 | P98: =Test!F304 -> 19479.33 | Q98: =Test!G304 -> 11.46 | R98: 5.410925 | AA98: =Anchor!H304 -> 32.2175 | AB98: =Anchor!I304 -> 37.8946 | AC98: =Anchor!J304 -> 37.6462 | AE98: =Test!H304 -> 32.2126 | AF98: =Test!I304 -> 37.8869 | AG98: =Test!J304 -> 37.6671
A99: YUV, camera captured, 1080p | B99: EBURainFruits_1920x1080_50_10bit_444 | C99: 22 | D99: =Anchor!B305 -> 12562.784 | E99: =Anchor!C305 -> 41.8755 | F99: =Anchor!D305 -> 46.0712 | G99: =Anchor!E305 -> 47.4088 | H99: =Anchor!F305 -> 56511.05 | I99: =Anchor!G305 -> 40.37 | J99: 15.69751389 | L99: =Test!B305 -> 12565.4096 | M99: =Test!C305 -> 41.876 | N99: =Test!D305 -> 46.0714 | O99: =Test!E305 -> 47.4046 | P99: =Test!F305 -> 56754.55 | Q99: =Test!G305 -> 41.32 | R99: 15.76515278 | T99: =bdrate(D99:D102,E99:E102,L99:L102,M99:M102) -> 0.0004771852641 | U99: =bdrate(D99:D102,F99:F102,L99:L102,N99:N102) -> 0.001692930173 | V99: =bdrate(D99:D102,G99:G102,L99:L102,O99:O102) -> -0.0004023529092 | W99: =bdrateOld(D99:D102,E99:E102,L99:L102,M99:M102) -> 0.0005064537484 | X99: =bdrateOld(D99:D102,F99:F102,L99:L102,N99:N102) -> 0.001772138986 | Y99: =bdrateOld(D99:D102,G99:G102,L99:L102,O99:O102) -> -0.0004940764979 | AA99: =Anchor!H305 -> 41.8296 | AB99: =Anchor!I305 -> 46.0651 | AC99: =Anchor!J305 -> 47.4021 | AE99: =Test!H305 -> 41.8302 | AF99: =Test!I305 -> 46.0653 | AG99: =Test!J305 -> 47.3981
C100: 27 | D100: =Anchor!B306 -> 5381.016 | E100: =Anchor!C306 -> 38.6783 | F100: =Anchor!D306 -> 44.5944 | G100: =Anchor!E306 -> 45.657 | H100: =Anchor!F306 -> 42539.59 | I100: =Anchor!G306 -> 30.84 | J100: 11.81655278 | L100: =Test!B306 -> 5382.5264 | M100: =Test!C306 -> 38.676 | N100: =Test!D306 -> 44.5981 | O100: =Test!E306 -> 45.6516 | P100: =Test!F306 -> 42231.6 | Q100: =Test!G306 -> 32 | R100: 11.731 | AA100: =Anchor!H306 -> 38.6106 | AB100: =Anchor!I306 -> 44.5892 | AC100: =Anchor!J306 -> 45.6499 | AE100: =Test!H306 -> 38.6085 | AF100: =Test!I306 -> 44.5929 | AG100: =Test!J306 -> 45.6447
C101: 32 | D101: =Anchor!B307 -> 2517.0288 | E101: =Anchor!C307 -> 35.6796 | F101: =Anchor!D307 -> 42.9349 | G101: =Anchor!E307 -> 43.663 | H101: =Anchor!F307 -> 33431.7 | I101: =Anchor!G307 -> 25.32 | J101: 9.286583333 | L101: =Test!B307 -> 2516.84 | M101: =Test!C307 -> 35.6807 | N101: =Test!D307 -> 42.9278 | O101: =Test!E307 -> 43.6693 | P101: =Test!F307 -> 33958.82 | Q101: =Test!G307 -> 26.46 | R101: 9.433005556 | AA101: =Anchor!H307 -> 35.6118 | AB101: =Anchor!I307 -> 42.9296 | AC101: =Anchor!J307 -> 43.6551 | AE101: =Test!H307 -> 35.6129 | AF101: =Test!I307 -> 42.9228 | AG101: =Test!J307 -> 43.6612
C102: 37 | D102: =Anchor!B308 -> 1211.656 | E102: =Anchor!C308 -> 32.8233 | F102: =Anchor!D308 -> 41.2161 | G102: =Anchor!E308 -> 41.4993 | H102: =Anchor!F308 -> 28986.08 | I102: =Anchor!G308 -> 21.85 | J102: 8.051688889 | L102: =Test!B308 -> 1212.504 | M102: =Test!C308 -> 32.8177 | N102: =Test!D308 -> 41.1986 | O102: =Test!E308 -> 41.5155 | P102: =Test!F308 -> 30166.25 | Q102: =Test!G308 -> 22.91 | R102: 8.379513889 | AA102: =Anchor!H308 -> 32.7757 | AB102: =Anchor!I308 -> 41.2083 | AC102: =Anchor!J308 -> 41.488 | AE102: =Test!H308 -> 32.7701 | AF102: =Test!I308 -> 41.1896 | AG102: =Test!J308 -> 41.5035
B103: Kimono1_1920x1080_24_10bit_444 | C103: 22 | D103: =Anchor!B309 -> 14621.7984 | E103: =Anchor!C309 -> 42.0844 | F103: =Anchor!D309 -> 38.4619 | G103: =Anchor!E309 -> 42.2674 | H103: =Anchor!F309 -> 63456.25 | I103: =Anchor!G309 -> 28.23 | J103: 17.62673611 | L103: =Test!B309 -> 14612.1376 | M103: =Test!C309 -> 42.0836 | N103: =Test!D309 -> 38.4614 | O103: =Test!E309 -> 42.2677 | P103: =Test!F309 -> 64016.18 | Q103: =Test!G309 -> 28.8 | R103: 17.78227222 | T103: =bdrate(D103:D106,E103:E106,L103:L106,M103:M106) -> 0.000623100456 | U103: =bdrate(D103:D106,F103:F106,L103:L106,N103:N106) -> -0.0001143309186 | V103: =bdrate(D103:D106,G103:G106,L103:L106,O103:O106) -> -0.001265123689 | W103: =bdrateOld(D103:D106,E103:E106,L103:L106,M103:M106) -> 0.0005976063409 | X103: =bdrateOld(D103:D106,F103:F106,L103:L106,N103:N106) -> -0.0002983325906 | Y103: =bdrateOld(D103:D106,G103:G106,L103:L106,O103:O106) -> -0.001210491166 | AA103: =Anchor!H309 -> 42.0693 | AB103: =Anchor!I309 -> 38.3831 | AC103: =Anchor!J309 -> 42.2607 | AE103: =Test!H309 -> 42.0685 | AF103: =Test!I309 -> 38.3827 | AG103: =Test!J309 -> 42.261
C104: 27 | D104: =Anchor!B310 -> 3964.68 | E104: =Anchor!C310 -> 40.1926 | F104: =Anchor!D310 -> 37.4171 | G104: =Anchor!E310 -> 41.306 | H104: =Anchor!F310 -> 44056.34 | I104: =Anchor!G310 -> 19.79 | J104: 12.23787222 | L104: =Test!B310 -> 3964.2464 | M104: =Test!C310 -> 40.1901 | N104: =Test!D310 -> 37.4173 | O104: =Test!E310 -> 41.3058 | P104: =Test!F310 -> 43315.58 | Q104: =Test!G310 -> 20.3 | R104: 12.03210556 | AA104: =Anchor!H310 -> 40.1432 | AB104: =Anchor!I310 -> 37.4121 | AC104: =Anchor!J310 -> 41.2961 | AE104: =Test!H310 -> 40.1407 | AF104: =Test!I310 -> 37.4124 | AG104: =Test!J310 -> 41.2959
C105: 32 | D105: =Anchor!B311 -> 1761.704 | E105: =Anchor!C311 -> 37.5611 | F105: =Anchor!D311 -> 36.9133 | G105: =Anchor!E311 -> 40.2847 | H105: =Anchor!F311 -> 32779.96 | I105: =Anchor!G311 -> 15.73 | J105: 9.105544444 | L105: =Test!B311 -> 1762.016 | M105: =Test!C311 -> 37.5603 | N105: =Test!D311 -> 36.9131 | O105: =Test!E311 -> 40.2886 | P105: =Test!F311 -> 33439.46 | Q105: =Test!G311 -> 16.22 | R105: 9.288738889 | AA105: =Anchor!H311 -> 37.4365 | AB105: =Anchor!I311 -> 36.9085 | AC105: =Anchor!J311 -> 40.2765 | AE105: =Test!H311 -> 37.4352 | AF105: =Test!I311 -> 36.9083 | AG105: =Test!J311 -> 40.2804
C106: 37 | D106: =Anchor!B312 -> 822.3328 | E106: =Anchor!C312 -> 34.8364 | F106: =Anchor!D312 -> 36.3352 | G106: =Anchor!E312 -> 39.2934 | H106: =Anchor!F312 -> 26278.33 | I106: =Anchor!G312 -> 13.19 | J106: 7.299536111 | L106: =Test!B312 -> 822.7824 | M106: =Test!C312 -> 34.8358 | N106: =Test!D312 -> 36.3356 | O106: =Test!E312 -> 39.2951 | P106: =Test!F312 -> 26568.9 | Q106: =Test!G312 -> 13.69 | R106: 7.38025 | AA106: =Anchor!H312 -> 34.6793 | AB106: =Anchor!I312 -> 36.331 | AC106: =Anchor!J312 -> 39.2892 | AE106: =Test!H312 -> 34.6792 | AF106: =Test!I312 -> 36.3314 | AG106: =Test!J312 -> 39.2909
B107: =$A3 -> RGB, text & graphics with motion, 1080p | I107: =geometricMean(I3:I14) -> 43.45621658 | J107: =geometricMean(J3:J14) -> 24.1950558 | Q107: =geometricMean(Q3:Q14) -> 44.80914429 | R107: =geometricMean(R3:R14) -> 24.20798489 | T107: =AVERAGE(T3:T14) -> -0.03886693813 | U107: -0.0431260918 | V107: -0.04332336287 | W107: -0.03871183666 | X107: -0.04305719048 | Y107: -0.04323997307
B108: =$A15 -> RGB, text & graphics with motion,720p | I108: =geometricMean(I15:I30) -> 18.29568633 | J108: =geometricMean(J15:J30) -> 6.27254889 | Q108: =geometricMean(Q15:Q30) -> 16.13056499 | R108: =geometricMean(R15:R30) -> 6.302772917 | T108: =AVERAGE(T15:T30) -> -0.0386190054 | U108: -0.03367834794 | V108: -0.03697885347 | W108: -0.03860788941 | X108: -0.03362328149 | Y108: -0.03693027567
B109: =$A31 -> RGB, mixed content, 1440p | I109: =geometricMean(I31:I38) -> 35.9626718 | J109: =geometricMean(J31:J38) -> 14.21591689 | Q109: =geometricMean(Q31:Q38) -> 39.10195829 | R109: =geometricMean(R31:R38) -> 14.42894547 | T109: =AVERAGE(T31:T38) -> -0.01253992705 | U109: -0.01324390865 | V109: -0.0103874361 | W109: -0.01254715059 | X109: -0.0132177569 | Y109: -0.01036255331
B110: =$A39 -> RGB, mixed content, 1080p | I110: =geometricMean(I39:I42) -> 41.25457277 | J110: =geometricMean(J39:J42) -> 14.15333368 | Q110: =geometricMean(Q39:Q42) -> 43.6844509 | R110: =geometricMean(R39:R42) -> 14.29442425 | T110: =AVERAGE(T39:T42) -> -0.018398744 | U110: -0.02063970859 | V110: -0.0180514151 | W110: -0.01851567896 | X110: -0.02061597366 | Y110: -0.01815496723
B111: =$A43 -> RGB, Animation, 720p | I111: =geometricMean(I43:I46) -> 17.90822422 | J111: =geometricMean(J43:J46) -> 10.0767936 | Q111: =geometricMean(Q43:Q46) -> 18.58332833 | R111: =geometricMean(R43:R46) -> 10.17456366 | T111: =AVERAGE(T43:T46) -> 0.0006142085439 | U111: 0.000325044996 | V111: 0.001157623478 | W111: 0.0005568128162 | X111: 0.0004417671617 | Y111: 0.001325725367
B112: =$A47 -> RGB, camera captured, 1080p | I112: =geometricMean(I47:I54) -> 28.62801823 | J112: =geometricMean(J44:J47) -> 11.3931866 | Q112: =geometricMean(Q47:Q54) -> 29.46012575 | R112: =geometricMean(R44:R47) -> 11.46034317 | T112: =AVERAGE(T47:T54) -> -0.0005103555698 | U112: 0.0001764989134 | V112: -0.0005198024849 | W112: -0.0004611656072 | X112: 0.002215663495 | Y112: -0.0005218070749
B113: =$A55 -> YUV, text & graphics with motion, 1080p | I113: =geometricMean(I55:I66) -> 41.75861155 | J113: =geometricMean(J55:J66) -> 21.65129864 | Q113: =geometricMean(Q55:Q66) -> 43.33357863 | R113: =geometricMean(R55:R66) -> 21.67592335 | T113: =AVERAGE(T55:T66) -> -0.03350146779 | U113: -0.05532862293 | V113: -0.05261239541 | W113: -0.03344260506 | X113: -0.05519995621 | Y113: -0.05255673681
B114: =$A67 -> YUV, text & graphics with motion,720p | I114: =geometricMean(I67:I82) -> 14.4692866 | J114: =geometricMean(J67:J82) -> 5.744542368 | Q114: =geometricMean(Q67:Q82) -> 15.46296665 | R114: =geometricMean(R67:R82) -> 5.789736871 | T114: =AVERAGE(T67:T82) -> -0.03166692287 | U114: -0.05081465971 | V114: -0.06649204636 | W114: -0.03162871803 | X114: -0.05047008891 | Y114: -0.06612577759
B115: =$A83 -> YUV, mixed content, 1440p | I115: =geometricMean(I83:I90) -> 34.65182968 | J115: =geometricMean(J83:J90) -> 12.28060541 | Q115: =geometricMean(Q83:Q90) -> 36.79173734 | R115: =geometricMean(R83:R90) -> 12.39989323 | T115: =AVERAGE(T83:T90) -> -0.007473861461 | U115: -0.03715691795 | V115: -0.03138664133 | W115: -0.007569885299 | X115: -0.03728021851 | Y115: -0.03149744284
B116: =$A91 -> YUV, mixed content, 1080p | I116: =geometricMean(I91:I94) -> 39.07069822 | J116: =geometricMean(J91:J94) -> 12.2744061 | Q116: =geometricMean(Q91:Q94) -> 41.50113453 | R116: =geometricMean(R91:R94) -> 12.3254727 | T116: =AVERAGE(T91:T94) -> -0.009726563648 | U116: -0.03667242727 | V116: -0.02822790872 | W116: -0.009669286419 | X116: -0.03666371269 | Y116: -0.0281984045
B117: =$A95 -> YUV, Animation, 720p | I117: =geometricMean(I95:I98) -> 14.66056743 | J117: =geometricMean(J95:J98) -> 7.659401139 | Q117: =geometricMean(Q95:Q98) -> 15.28424803 | R117: =geometricMean(R95:R98) -> 7.740874464 | T117: =AVERAGE(T95:T98) -> 0.001492973351 | U117: -0.002388680002 | V117: 0.0001984406705 | W117: 0.001645535639 | X117: -0.002467382593 | Y117: -0.000189636495
B118: =$A99 -> YUV, camera captured, 1080p | I118: =geometricMean(I99:I106) -> 23.05564659 | J118: =geometricMean(J96:J99) -> 8.248023416 | Q118: =geometricMean(Q99:Q106) -> 23.83189109 | R118: =geometricMean(R96:R99) -> 8.354529428 | T118: =AVERAGE(T99:T106) -> 0.0005501428601 | U118: 0.0007892996275 | V118: -0.0008337382989 | W118: 0.0005520300446 | X118: 0.0007369031977 | Y118: -0.0008522838321
B119: All | T119: =AVERAGE(T3:T106) -> -0.02170057919 | U119: -0.03044546161 | V119: -0.03203343732 | W119: -0.02167095057 | X119: -0.03021311696 | Y119: -0.03197306922
B120: Time geomean | I120: =geometricMean(I3:I106) -> 26.31292467 | J120: =geometricMean(J3:J106) -> 11.45601057 | Q120: =geometricMean(Q3:Q106) -> 26.89814705 | R120: =geometricMean(R3:R106) -> 11.53289245
B121: Time sum (hours) | I121: =secToHours(macroSum(I3:I106)) -> 0.9727611111 | J121: =SUM(J3:J106) -> 1513.606339 | Q121: =secToHours(macroSum(Q3:Q106)) -> 0.8753555556 | R121: =SUM(R3:R106) -> 1523.400628
C124: Time Ratio
C125: Decoding | D125: Encoding
B126: RGB, text & graphics with motion, 1080p | C126: =Q107/I107 -> 1.031133122 | D126: =R107/J107 -> 1.000534369
B127: RGB, text & graphics with motion,720p | C127: 0.8816594636 | D127: 1.00481846
B128: RGB, mixed content, 1440p | C128: 1.087292916 | D128: 1.014985216
B129: RGB, mixed content, 1080p | C129: 1.058899607 | D129: 1.009968716
B130: RGB, Animation, 720p | C130: 1.037697993 | D130: 1.009702497
B131: RGB, camera captured, 1080p | C131: 1.029066194 | D131: 1.00589445
B132: YUV, text & graphics with motion, 1080p | C132: 1.037715983 | D132: 1.001137332
B133: YUV, text & graphics with motion,720p | C133: 1.068675123 | D133: 1.007867381
B134: YUV, mixed content, 1440p | C134: 1.061754536 | D134: 1.009713513
B135: YUV, mixed content, 1080p | C135: 1.062206114 | D135: 1.004160413
B136: YUV, Animation, 720p | C136: 1.042541368 | D136: 1.010637036
B137: YUV, camera captured, 1080p | C137: 1.033668303 | D137: 1.012912913
B138: All | C138: =Q120/I120 -> 1.022240872 | D138: =R120/J120 -> 1.006711052

Sheet Anchor
A1: AI | B1: 103060.1808 | C1: 48.8002 | D1: 48.3241 | E1: 48.148 | F1: 35414.2 | G1: 65.08 | H1: 48.791 | I1: 48.3177 | J1: 48.1393
B2: 81981.9344 | C2: 43.9149 | D2: 43.4936 | E2: 43.2965 | F2: 35469.51 | G2: 62.12 | H2: 43.9067 | I2: 43.4873 | J2: 43.2896
B3: 63317.8048 | C3: 39.1363 | D3: 38.889 | E3: 38.708 | F3: 33766.28 | G3: 59.45 | H3: 39.1291 | I3: 38.8821 | J3: 38.7009
B4: 46473.0144 | C4: 34.4109 | D4: 34.1266 | E4: 34.0488 | F4: 32148.99 | G4: 56.74 | H4: 34.4053 | I4: 34.121 | J4: 34.0418
B5: 58975.0672 | C5: 51.9836 | D5: 51.604 | E5: 51.1237 | F5: 54376.56 | G5: 106.36 | H5: 51.9794 | I5: 51.5951 | J5: 51.1185
B6: 50808.924 | C6: 46.5968 | D6: 45.9686 | E6: 45.4277 | F6: 58716.54 | G6: 104.96 | H6: 46.5895 | I6: 45.9561 | J6: 45.4198
B7: 43765.2144 | C7: 41.8687 | D7: 41.2765 | E7: 40.8703 | F7: 56266.37 | G7: 102.84 | H7: 41.8618 | I7: 41.2644 | J7: 40.8588
B8: 35978.8864 | C8: 36.0173 | D8: 35.6242 | E8: 35.44 | F8: 54174.76 | G8: 100.39 | H8: 36.0095 | I8: 35.6051 | J8: 35.4227
B9: 48262.088 | C9: 54.7951 | D9: 55.2588 | E9: 54.4585 | F9: 45093.07 | G9: 99.3 | H9: 54.7793 | I9: 55.2423 | J9: 54.4458
B10: 41704.5352 | C10: 48.5862 | D10: 47.8962 | E10: 47.3616 | F10: 50389.87 | G10: 98.88 | H10: 48.5656 | I10: 47.8781 | J10: 47.3473
B11: 35520.0056 | C11: 44.1715 | D11: 43.9783 | E11: 43.4724 | F11: 48799.89 | G11: 97.13 | H11: 44.148 | I11: 43.9539 | J11: 43.4521
B12: 29086.1568 | C12: 38.4893 | D12: 38.2199 | E12: 38.0979 | F12: 46076.88 | G12: 95.98 | H12: 38.4809 | I12: 38.2102 | J12: 38.0876
B13: 11401.436 | C13: 52.3692 | D13: 50.903 | E13: 50.9865 | F13: 10700.32 | G13: 22.85 | H13: 52.0437 | I13: 50.6855 | J13: 50.7617
B14: 8951.3008 | C14: 46.7828 | D14: 45.9551 | E14: 45.7449 | F14: 11059.59 | G14: 22.01 | H14: 46.6503 | I14: 45.8131 | J14: 45.6355
B15: 7161.9496 | C15: 43.0414 | D15: 41.8342 | E15: 41.6578 | F15: 10213.91 | G15: 21.1 | H15: 42.9172 | I15: 41.7192 | J15: 41.5741
B16: 5378.7168 | C16: 36.3278 | D16: 35.7092 | E16: 35.5542 | F16: 10399.88 | G16: 20.19 | H16: 36.2968 | I16: 35.6726 | J16: 35.5234
B17: 67042.4464 | C17: 47.3586 | D17: 46.5093 | E17: 46.7784 | F17: 34566.5 | G17: 72.27 | H17: 46.9459 | I17: 46.0949 | J17: 46.377
B18: 45932.0256 | C18: 42.9643 | D18: 42.1489 | E18: 42.5974 | F18: 31400.45 | G18: 65.06 | H18: 42.4864 | I18: 41.6739 | J18: 42.1743
B19: 29652.7312 | C19: 38.6019 | D19: 37.86 | E19: 38.5526 | F19: 28621.78 | G19: 58.15 | H19: 38.0413 | I19: 37.3234 | J19: 38.0798
B20: 18561.8216 | C20: 34.5189 | D20: 33.937 | E20: 34.7236 | F20: 24347.1 | G20: 51.83 | H20: 34.0145 | I20: 33.4002 | J20: 34.2772
B21: 61192.2816 | C21: 47.5135 | D21: 47.0468 | E21: 46.932 | F21: 28800.11 | G21: 65.23 | H21: 47.4974 | I21: 47.0067 | J21: 46.9061
B22: 44752.9672 | C22: 43.3337 | D22: 42.4996 | E22: 42.6971 | F22: 27280.89 | G22: 60.12 | H22: 43.3176 | I22: 42.475 | J22: 42.6795
B23: 31355.0648 | C23: 39.0436 | D23: 37.9729 | E23: 38.3148 | F23: 25314.13 | G23: 55.7 | H23: 39.0348 | I23: 37.9595 | J23: 38.3033
B24: 20942.504 | C24: 34.689 | D24: 33.6165 | E24: 33.955 | F24: 22942.6 | G24: 51.05 | H24: 34.6785 | I24: 33.6049 | J24: 33.9434
B25: 7406.5098 | C25: 51.0702 | D25: 50.6343 | E25: 50.755 | F25: 14287.05 | G25: 38.89 | H25: 49.9158 | I25: 49.4667 | J25: 49.6399
B26: 4822.665 | C26: 47.5083 | D26: 47.0114 | E26: 47.1667 | F26: 12834.4 | G26: 35.19 | H26: 46.4032 | I26: 45.8959 | J26: 46.1171
B27: 3124.1539 | C27: 43.9632 | D27: 43.5571 | E27: 43.6825 | F27: 11468.6 | G27: 32.53 | H27: 42.9274 | I27: 42.5015 | J27: 42.6927
B28: 2008.5539 | C28: 40.2587 | D28: 39.8883 | E28: 40.0106 | F28: 10696.52 | G28: 29.68 | H28: 39.336 | I28: 38.9344 | J28: 39.1363
B29: 207507.3936 | C29: 46.2177 | D29: 45.6521 | E29: 45.5612 | F29: 64311.81 | G29: 137.11 | H29: 46.2176 | I29: 45.652 | J29: 45.5611
B30: 138472.6304 | C30: 42.5402 | D30: 41.877 | E30: 41.8841 | F30: 62040.22 | G30: 123.06 | H30: 42.5402 | I30: 41.8769 | J30: 41.884
B31: 94935.3392 | C31: 38.8181 | D31: 38.2729 | E31: 38.2662 | F31: 53999.55 | G31: 112.57 | H31: 38.818 | I31: 38.2728 | J31: 38.2661
B32: 64390.448 | C32: 35.0253 | D32: 34.508 | E32: 34.4643 | F32: 48215.12 | G32: 102.88 | H32: 35.0251 | I32: 34.5078 | J32: 34.4642
B33: 161191.1344 | C33: 45.9456 | D33: 45.3562 | E33: 45.4566 | F33: 62048.16 | G33: 131.98 | H33: 45.8563 | I33: 45.264 | J33: 45.3638
B34: 107709.9392 | C34: 42.624 | D34: 42.2328 | E34: 42.1898 | F34: 52604.28 | G34: 120.12 | H34: 42.5425 | I34: 42.1691 | J34: 42.1158
B35: 69839.7616 | C35: 39.0887 | D35: 38.9146 | E35: 38.759 | F35: 42427.07 | G35: 110.21 | H35: 39.0279 | I35: 38.8742 | J35: 38.7043
B36: 44020.7104 | C36: 35.7274 | D36: 35.5927 | E36: 35.403 | F36: 35767.92 | G36: 99.56 | H36: 35.6776 | I36: 35.5684 | J36: 35.3562
B37: 106610.1488 | C37: 46.8235 | D37: 46.2537 | E37: 46.2853 | F37: 66891.92 | G37: 148.07 | H37: 46.6635 | I37: 46.0999 | J37: 46.1327
B38: 75410.5856 | C38: 43.0352 | D38: 42.5019 | E38: 42.4788 | F38: 63626.34 | G38: 135.26 | H38: 42.8991 | I38: 42.397 | J38: 42.3623
B39: 52771.4192 | C39: 38.969 | D39: 38.6377 | E39: 38.4801 | F39: 55697.28 | G39: 124.87 | H39: 38.8605 | I39: 38.5623 | J39: 38.3895
B40: 35886.1976 | C40: 34.863 | D40: 34.6624 | E40: 34.4632 | F40: 49251.57 | G40: 114.68 | H40: 34.7893 | I40: 34.62 | J40: 34.3982
B41: 68515.3672 | C41: 42.3534 | D41: 42.3175 | E41: 41.8831 | F41: 27308.24 | G41: 61.48 | H41: 42.3533 | I41: 42.3173 | J41: 41.8826
B42: 36715.2048 | C42: 38.1804 | D42: 38.4704 | E42: 37.8208 | F42: 24568.68 | G42: 49.33 | H42: 38.1801 | I42: 38.4694 | J42: 37.8202
B43: 16854.4216 | C43: 34.7183 | D43: 35.33 | E43: 34.4593 | F43: 19653.24 | G43: 37.11 | H43: 34.717 | I43: 35.3271 | J43: 34.4583
B44: 7769.864 | C44: 32.1685 | D44: 32.8676 | E44: 31.8298 | F44: 13800.05 | G44: 29.38 | H44: 32.1667 | I44: 32.8637 | J44: 31.8285
B45: 135801.136 | C45: 43.5088 | D45: 41.6288 | E45: 44.0131 | F45: 42228.51 | G45: 85.98 | H45: 43.5087 | I45: 41.6288 | J45: 44.0129
B46: 76278.032 | C46: 40.5323 | D46: 38.8663 | E46: 41.031 | F46: 33743.61 | G46: 73.84 | H46: 40.5319 | I46: 38.8659 | J46: 41.0306
B47: 42635.0512 | C47: 37.4718 | D47: 36.1672 | E47: 38.0015 | F47: 26594.41 | G47: 64.81 | H47: 37.4705 | I47: 36.1657 | J47: 38.0008
B48: 23373.552 | C48: 34.4762 | D48: 33.5005 | E48: 35.021 | F48: 20438.46 | G48: 56.14 | H48: 34.4737 | I48: 33.497 | J48: 35.0196
B49: 112021.5312 | C49: 41.4372 | D49: 40.4417 | E49: 40.5505 | F49: 21102.85 | G49: 43.41 | H49: 41.4369 | I49: 40.4417 | J49: 40.5503
B50: 45165.0256 | C50: 40.1769 | D50: 35.45 | E50: 38.8342 | F50: 18140.44 | G50: 33.55 | H50: 40.1765 | I50: 35.4498 | J50: 38.8338
B51: 13732.1936 | C51: 38.7393 | D51: 32.6883 | E51: 37.4714 | F51: 11428.81 | G51: 27.44 | H51: 38.7384 | I51: 32.6873 | J51: 37.4708
B52: 7111.7776 | C52: 36.7602 | D52: 31.9277 | E52: 35.5466 | F52: 7206.57 | G52: 24.71 | H52: 36.7586 | I52: 31.9268 | J52: 35.5457
B53: 81798.6448 | C53: 48.4887 | D53: 49.1028 | E53: 49.226 | F53: 32483.66 | G53: 62.51 | H53: 48.4825 | I53: 49.0929 | J53: 49.216
B54: 62143.9264 | C54: 43.6403 | D54: 44.4884 | E54: 44.6075 | F54: 33205.3 | G54: 58.94 | H54: 43.6337 | I54: 44.4752 | J54: 44.5942
B55: 45344.0416 | C55: 38.8065 | D55: 40.1802 | E55: 40.3351 | F55: 31622.56 | G55: 56.09 | H55: 38.801 | I55: 40.1638 | J55: 40.3231
B56: 31330.168 | C56: 34.0697 | D56: 36.1773 | E56: 36.3279 | F56: 28681.91 | G56: 53.08 | H56: 34.0652 | I56: 36.158 | J56: 36.3145
B57: 51728.308 | C57: 49.3956 | D57: 50.0497 | E57: 50.4841 | F57: 51495.55 | G57: 103.57 | H57: 49.3846 | I57: 50.022 | J57: 50.4576
B58: 43221.6536 | C58: 44.8596 | D58: 45.3773 | E58: 45.7087 | F58: 52327.46 | G58: 101.41 | H58: 44.8494 | I58: 45.3457 | J58: 45.6802
B59: 35510.2296 | C59: 39.8255 | D59: 40.8359 | E59: 40.9879 | F59: 50611.03 | G59: 98.87 | H59: 39.8134 | I59: 40.8007 | J59: 40.9578
B60: 27705.572 | C60: 34.8945 | D60: 36.5569 | E60: 36.3194 | F60: 47601.26 | G60: 97 | H60: 34.8807 | I60: 36.503 | J60: 36.2767
B61: 43863.7672 | C61: 51.6822 | D61: 53.256 | E61: 53.8813 | F61: 44396.12 | G61: 98.47 | H61: 51.6669 | I61: 53.2488 | J61: 53.8725
B62: 35884.4544 | C62: 46.8125 | D62: 48.8471 | E62: 48.8941 | F62: 44367.99 | G62: 96.51 | H62: 46.7986 | I62: 48.8403 | J62: 48.8872
B63: 28993.4968 | C63: 41.6249 | D63: 45.1329 | E63: 44.1489 | F63: 43168.89 | G63: 94.79 | H63: 41.6158 | I63: 45.1248 | J63: 44.1375
B64: 21455.1632 | C64: 35.8963 | D64: 40.9387 | E64: 39.4335 | F64: 40954.16 | G64: 92.01 | H64: 35.8863 | I64: 40.9306 | J64: 39.4231
B65: 9065.1112 | C65: 49.3706 | D65: 50.7512 | E65: 51.4991 | F65: 10093.2 | G65: 21.93 | H65: 49.3207 | I65: 50.7271 | J65: 51.4706
B66: 6981.76 | C66: 45.2653 | D66: 46.1617 | E66: 46.5949 | F66: 10136.39 | G66: 20.67 | H66: 45.21 | I66: 46.1355 | J66: 46.5616
B67: 5151.404 | C67: 40.8392 | D67: 41.7939 | E67: 42.1067 | F67: 9465.29 | G67: 20.2 | H67: 40.7989 | I67: 41.7708 | J67: 42.0778
B68: 3480.2608 | C68: 35.9974 | D68: 36.5037 | E68: 36.7787 | F68: 8415.63 | G68: 19.02 | H68: 35.9704 | I68: 36.4726 | J68: 36.7333
B69: 44440.4264 | C69: 46.968 | D69: 49.4613 | E69: 50.7589 | F69: 26920.42 | G69: 64.24 | H69: 46.5727 | I69: 48.983 | J69: 50.2938
B70: 29738.5536 | C70: 42.495 | D70: 46.1243 | E70: 47.8206 | F70: 25053.21 | G70: 57.89 | H70: 42.0357 | I70: 45.5828 | J70: 47.4266
B71: 18890.0264 | C71: 38.061 | D71: 42.5898 | E71: 44.8881 | F71: 21311.12 | G71: 51.6 | H71: 37.5497 | I71: 42.1166 | J71: 44.6329
B72: 11754.3056 | C72: 34.3004 | D72: 38.9264 | E72: 41.4923 | F72: 17255.05 | G72: 45.2 | H72: 33.8627 | I72: 38.5534 | J72: 41.3703
B73: 43134.4016 | C73: 48.0075 | D73: 47.8505 | E73: 48.3123 | F73: 24802.48 | G73: 60.59 | H73: 47.9774 | I73: 47.832 | J73: 48.297
B74: 29511.3008 | C74: 43.7961 | D74: 43.6287 | E74: 44.2279 | F74: 23593.17 | G74: 55.83 | H74: 43.7647 | I74: 43.6114 | J74: 44.214
B75: 19448.4128 | C75: 39.2705 | D75: 39.6393 | E75: 40.4672 | F75: 21445.93 | G75: 50.45 | H75: 39.2469 | I75: 39.6162 | J75: 40.4432
B76: 12819.74 | C76: 34.9152 | D76: 36.4374 | E76: 37.4017 | F76: 18503.47 | G76: 46.01 | H76: 34.8946 | I76: 36.3928 | J76: 37.3465
B77: 4661.9338 | C77: 51.0132 | D77: 55.5555 | E77: 56.7125 | F77: 11832.48 | G77: 34.16 | H77: 49.9197 | I77: 54.1913 | J77: 55.1781
B78: 2964.2166 | C78: 47.4822 | D78: 52.534 | E78: 53.8595 | F78: 10575.1 | G78: 30.86 | H78: 46.4488 | I78: 51.0411 | J78: 52.2186
B79: 1904.7302 | C79: 43.775 | D79: 49.5766 | E79: 51.1869 | F79: 9555.25 | G79: 29.32 | H79: 42.8671 | I79: 47.9851 | J79: 49.4901
B80: 1211.6022 | C80: 39.8222 | D80: 46.631 | E80: 48.3726 | F80: 8822.65 | G80: 27.29 | H80: 39.0328 | I80: 45.0759 | J80: 46.8009
B81: 135472.7744 | C81: 46.22 | D81: 49.8086 | E81: 49.8021 | F81: 43046.5 | G81: 123.6 | H81: 46.22 | I81: 49.8084 | J81: 49.8019
B82: 92226.5952 | C82: 42.5251 | D82: 46.1417 | E82: 46.1467 | F82: 40814.43 | G82: 111.19 | H82: 42.525 | I82: 46.1414 | J82: 46.1465
B83: 62061.6176 | C83: 38.6583 | D83: 42.3235 | E83: 42.3359 | F83: 36793.26 | G83: 100.83 | H83: 38.6582 | I83: 42.3232 | J83: 42.3357
B84: 40752.6016 | C84: 34.762 | D84: 38.6301 | E84: 38.6246 | F84: 31649.5 | G84: 93.75 | H84: 34.7619 | I84: 38.6297 | J84: 38.6244
B85: 107239.7936 | C85: 46.1718 | D85: 50.765 | E85: 51.7116 | F85: 34842.4 | G85: 116.6 | H85: 46.0901 | I85: 50.6996 | J85: 51.6273
B86: 69919.9888 | C86: 42.6903 | D86: 47.7688 | E86: 48.4789 | F86: 31593.44 | G86: 106.22 | H86: 42.6224 | I86: 47.6323 | J86: 48.3078
B87: 42911.2528 | C87: 39.19 | D87: 44.5443 | E87: 45.1953 | F87: 28216.71 | G87: 95.87 | H87: 39.1427 | I87: 44.3041 | J87: 44.8803
B88: 26026.7792 | C88: 35.6363 | D88: 41.512 | E88: 42.3436 | F88: 25592.58 | G88: 86.55 | H88: 35.5825 | I88: 41.1039 | J88: 41.8545
B89: 74375.7184 | C89: 46.8389 | D89: 49.7004 | E89: 50.0185 | F89: 39616.76 | G89: 131.76 | H89: 46.6962 | I89: 49.6281 | J89: 49.9462
B90: 51725.8032 | C90: 42.9003 | D90: 45.9183 | E90: 46.2111 | F90: 37548.64 | G90: 121.12 | H90: 42.7785 | I90: 45.8411 | J90: 46.1069
B91: 34844.8432 | C91: 38.7178 | D91: 41.9232 | E91: 42.5141 | F91: 34784.82 | G91: 112.01 | H91: 38.6303 | I91: 41.8028 | J91: 42.3486
B92: 22731.8696 | C92: 34.5668 | D92: 38.4028 | E92: 38.9397 | F92: 31072.09 | G92: 101.97 | H92: 34.4977 | I92: 38.2011 | J92: 38.6139
B93: 37505.268 | C93: 42.4796 | D93: 45.1993 | E93: 44.7968 | F93: 20994.14 | G93: 46.55 | H93: 42.4795 | I93: 45.1978 | J93: 44.7954
B94: 17515.8392 | C94: 38.6205 | D94: 42.4279 | E94: 41.8045 | F94: 17189.44 | G94: 35.89 | H94: 38.62 | I94: 42.4249 | J94: 41.8012
B95: 7948.1488 | C95: 35.6274 | D95: 40.3394 | E95: 39.7834 | F95: 11982.96 | G95: 28.36 | H95: 35.6262 | I95: 40.336 | J95: 39.7775
B96: 3748.0216 | C96: 33.1546 | D96: 38.4116 | E96: 38.1188 | F96: 7734.83 | G96: 23.15 | H96: 33.1532 | I96: 38.4079 | J96: 38.1111
B97: 87791.6896 | C97: 43.671 | D97: 47.0061 | E97: 48.4076 | F97: 26013.34 | G97: 72.22 | H97: 43.6709 | I97: 47.0052 | J97: 48.4067
B98: 51904.5728 | C98: 40.5634 | D98: 45.3101 | E98: 46.5538 | F98: 21862.46 | G98: 62.53 | H98: 40.5629 | I98: 45.3084 | J98: 46.5529
B99: 29548.32 | C99: 37.37 | D99: 43.5034 | E99: 44.5098 | F99: 17626.25 | G99: 54.91 | H99: 37.3688 | I99: 43.501 | J99: 44.5089
B100: 16239.6224 | C100: 34.2491 | D100: 41.7464 | E100: 42.23 | F100: 14071.52 | G100: 46.82 | H100: 34.2464 | I100: 41.7426 | J100: 42.2286
B101: 45860.1504 | C101: 42.999 | D101: 40.5202 | E101: 42.924 | F101: 15099.59 | G101: 33.21 | H101: 42.9986 | I101: 40.52 | J101: 42.9237
B102: 14113.344 | C102: 41.6514 | D102: 37.8821 | E102: 42.0455 | F102: 10187.45 | G102: 26.43 | H102: 41.6507 | I102: 37.8812 | J102: 42.0452
B103: 7471.1504 | C103: 39.8158 | D103: 37.35 | E103: 40.947 | F103: 6521.14 | G103: 23.34 | H103: 39.8144 | I103: 37.3491 | J103: 40.9465
B104: 4008.5696 | C104: 37.4204 | D104: 36.7689 | E104: 39.7672 | F104: 5082.67 | G104: 20.25 | H104: 37.4184 | I104: 36.7681 | J104: 39.7663
A105: RA | B105: 49177.4592 | C105: 44.7351 | D105: 44.5196 | E105: 44.2725 | F105: 144976.21 | G105: 54.64 | H105: 44.3778 | I105: 44.1626 | J105: 43.9192
B106: 30768.4592 | C106: 39.4733 | D106: 39.3074 | E106: 39.2005 | F106: 129851.46 | G106: 49.14 | H106: 39.1175 | I106: 38.9338 | J106: 38.8523
B107: 18603.832 | C107: 34.9944 | D107: 34.6289 | E107: 34.6954 | F107: 115003.4 | G107: 43.5 | H107: 34.7114 | I107: 34.2904 | J107: 34.4044
B108: 11577.752 | C108: 31.275 | D108: 30.6104 | E108: 30.8982 | F108: 96348.17 | G108: 39.12 | H108: 31.064 | I108: 30.332 | J108: 30.6687
B109: 2139.1184 | C109: 53.6095 | D109: 53.1244 | E109: 52.6362 | F109: 33986.82 | G109: 43.74 | H109: 53.5799 | I109: 53.099 | J109: 52.6131
B110: 1944.652 | C110: 48.7078 | D110: 47.916 | E110: 47.3133 | F110: 33139.89 | G110: 44.19 | H110: 48.6572 | I110: 47.8683 | J110: 47.2789
B111: 1735.348 | C111: 44.0323 | D111: 43.1641 | E111: 42.7636 | F111: 31663.95 | G111: 44.39 | H111: 43.9482 | I111: 43.1009 | J111: 42.7055
B112: 1512.9016 | C112: 37.4186 | D112: 37.2065 | E112: 36.9374 | F112: 29920.75 | G112: 44.35 | H112: 37.3724 | I112: 37.1549 | J112: 36.884
B113: 6970.968 | C113: 54.6096 | D113: 54.9889 | E113: 53.7551 | F113: 83995.23 | G113: 47.19 | H113: 54.5289 | I113: 54.9202 | J113: 53.6944
B114: 5885.6664 | C114: 48.9803 | D114: 48.7678 | E114: 47.9606 | F114: 80716.37 | G114: 47.23 | H114: 48.8657 | I114: 48.6788 | J114: 47.8719
B115: 4798.3872 | C115: 43.9816 | D115: 43.9242 | E115: 43.1639 | F115: 74345.32 | G115: 46.82 | H115: 43.7793 | I115: 43.7726 | J115: 42.9976
B116: 3851.7584 | C116: 38.6531 | D116: 38.8759 | E116: 37.8694 | F116: 67185.28 | G116: 46.2 | H116: 38.5037 | I116: 38.758 | J116: 37.6783
B117: 549.2392 | C117: 53.4109 | D117: 52.2152 | E117: 52.077 | F117: 3988.69 | G117: 9.71 | H117: 52.8677 | I117: 51.8279 | J117: 51.7332
B118: 434.344 | C118: 48.5162 | D118: 47.5009 | E118: 47.3001 | F118: 3913.36 | G118: 9.85 | H118: 48.1485 | I118: 47.1823 | J118: 47.0397
B119: 345.676 | C119: 44.5531 | D119: 43.4801 | E119: 43.2089 | F119: 3932.32 | G119: 9.82 | H119: 44.2545 | I119: 43.1985 | J119: 42.9672
B120: 263.6 | C120: 37.3924 | D120: 37.0512 | E120: 36.9329 | F120: 3723.91 | G120: 9.83 | H120: 37.3168 | I120: 36.9556 | J120: 36.8451
B121: 3321.1256 | C121: 47.769 | D121: 47.016 | E121: 47.2708 | F121: 18255.18 | G121: 21.5 | H121: 47.183 | I121: 46.4295 | J121: 46.7459
B122: 2119.66 | C122: 43.4018 | D122: 42.692 | E122: 43.1359 | F122: 16519.92 | G122: 20.99 | H122: 42.7727 | I122: 42.0401 | J122: 42.5708
B123: 1330.228 | C123: 39.0793 | D123: 38.3872 | E123: 39.081 | F123: 15044.18 | G123: 20.58 | H123: 38.439 | I123: 37.7239 | J123: 38.5081
B124: 813.1872 | C124: 34.9416 | D124: 34.3452 | E124: 35.1932 | F124: 13377.63 | G124: 20.15 | H124: 34.3575 | I124: 33.7059 | J124: 34.6645
B125: 9838.188 | C125: 46.9811 | D125: 46.4829 | E125: 46.1663 | F125: 44842.42 | G125: 27.85 | H125: 46.832 | I125: 46.2928 | J125: 45.9951
B126: 5930.4112 | C126: 42.6662 | D126: 41.5812 | E126: 41.7035 | F126: 37566.17 | G126: 25.23 | H126: 42.4658 | I126: 41.3154 | J126: 41.4775
B127: 3238.0216 | C127: 38.4469 | D127: 36.8146 | E127: 37.3343 | F127: 31826.51 | G127: 23.43 | H127: 38.266 | I127: 36.5371 | J127: 37.1226
B128: 1676.3408 | C128: 34.5824 | D128: 32.8182 | E128: 33.5084 | F128: 26344.04 | G128: 21.95 | H128: 34.4579 | I128: 32.6266 | J128: 33.3683
B129: 1206.5203 | C129: 50.7266 | D129: 50.2464 | E129: 50.4035 | F129: 25585.73 | G129: 20.81 | H129: 49.5678 | I129: 49.0725 | J129: 49.2745
B130: 722.3155 | C130: 47.0479 | D130: 46.4323 | E130: 46.6582 | F130: 22222.86 | G130: 19.75 | H130: 45.8402 | I130: 45.1515 | J130: 45.4515
B131: 438.2042 | C131: 43.605 | D131: 42.9305 | E131: 43.1985 | F131: 19476.01 | G131: 18.9 | H131: 42.3986 | I131: 41.6063 | J131: 41.9727
B132: 279.0182 | C132: 40.191 | D132: 39.5677 | E132: 39.8061 | F132: 17491.14 | G132: 18.29 | H132: 39.0832 | I132: 38.3357 | J132: 38.7119
B133: 13726.9888 | C133: 46.1616 | D133: 45.3274 | E133: 45.4774 | F133: 40097.42 | G133: 43.23 | H133: 46.1503 | I133: 45.3031 | J133: 45.4599
B134: 6562.5136 | C134: 42.8201 | D134: 41.9629 | E134: 42.0357 | F134: 32623.34 | G134: 40.94 | H134: 42.8106 | I134: 41.949 | J134: 42.0221
B135: 3621.8128 | C135: 39.3283 | D135: 38.6821 | E135: 38.6766 | F135: 27481.17 | G135: 39.4 | H135: 39.3194 | I135: 38.6723 | J135: 38.6654
B136: 2176.6096 | C136: 35.7907 | D136: 35.1944 | E136: 35.146 | F136: 23747.48 | G136: 38.71 | H136: 35.7812 | I136: 35.1855 | J136: 35.1362
B137: 12981.096 | C137: 45.8531 | D137: 45.4082 | E137: 45.4569 | F137: 55851.32 | G137: 46.49 | H137: 45.7241 | I137: 45.2886 | J137: 45.3219
B138: 7419.5632 | C138: 42.585 | D138: 42.2343 | E138: 42.2065 | F138: 46458.72 | G138: 44.59 | H138: 42.4049 | I138: 42.0998 | J138: 42.0387
B139: 4198.0192 | C139: 39.1625 | D139: 39.0022 | E139: 38.8455 | F139: 39531.85 | G139: 42.96 | H139: 38.967 | I139: 38.8561 | J139: 38.6668
B140: 2433.7728 | C140: 35.9717 | D140: 35.8865 | E140: 35.6728 | F140: 33679.1 | G140: 41.65 | H140: 35.8058 | I140: 35.768 | J140: 35.5235
B141: 5155.5528 | C141: 47.2042 | D141: 46.6341 | E141: 46.6883 | F141: 43996.89 | G141: 49.17 | H141: 46.9791 | I141: 46.4501 | J141: 46.4883
B142: 3036.2864 | C142: 43.6524 | D142: 43.1138 | E142: 43.1063 | F142: 36767.39 | G142: 47.41 | H142: 43.4074 | I142: 42.9375 | J142: 42.906
B143: 1871.7072 | C143: 39.7922 | D143: 39.4583 | E143: 39.3414 | F143: 31926.23 | G143: 46.26 | H143: 39.5636 | I143: 39.2971 | J143: 39.1486
B144: 1193.7672 | C144: 35.8319 | D144: 35.6804 | E144: 35.4876 | F144: 28663.45 | G144: 45.19 | H144: 35.672 | I144: 35.5728 | J144: 35.3478
B145: 10838.1104 | C145: 40.4144 | D145: 40.9634 | E145: 40.2254 | F145: 40044.49 | G145: 24.28 | H145: 40.3182 | I145: 40.8941 | J145: 40.1223
B146: 4408.4424 | C146: 37.0047 | D146: 37.6597 | E146: 36.6878 | F146: 27566.2 | G146: 18.52 | H146: 36.9573 | I146: 37.6211 | J146: 36.6336
B147: 1678.4504 | C147: 34.2029 | D147: 34.9622 | E147: 33.8568 | F147: 19883.17 | G147: 14.93 | H147: 34.1819 | I147: 34.9418 | J147: 33.8335
B148: 701.8168 | C148: 32.0429 | D148: 32.8392 | E148: 31.6588 | F148: 15686.67 | G148: 13 | H148: 32.0316 | I148: 32.8262 | J148: 31.6475
B149: 21330.496 | C149: 42.3449 | D149: 39.9522 | E149: 42.8704 | F149: 58624 | G149: 43.8 | H149: 42.3176 | I149: 39.8834 | J149: 42.8323
B150: 8687.3328 | C150: 39.8335 | D150: 37.8147 | E150: 40.2175 | F150: 37776.13 | G150: 32.29 | H150: 39.8206 | I150: 37.7832 | J150: 40.197
B151: 4090.6768 | C151: 37.2372 | D151: 35.6639 | E151: 37.6183 | F151: 27867.36 | G151: 27.84 | H151: 37.2304 | I151: 35.6494 | J151: 37.6085
B152: 2060.8464 | C152: 34.5967 | D152: 33.4759 | E152: 35.0163 | F152: 23458.91 | G152: 25.42 | H152: 34.5917 | I152: 33.4686 | J152: 35.0107
B153: 45194.0016 | C153: 40.3017 | D153: 35.7796 | E153: 38.9377 | F153: 82155.18 | G153: 34.32 | H153: 40.2632 | I153: 35.1621 | J153: 38.873
B154: 10043.208 | C154: 38.9156 | D154: 32.7764 | E154: 37.4388 | F154: 45547.83 | G154: 22.71 | H154: 38.8772 | I154: 32.663 | J154: 37.3901
B155: 2942.7264 | C155: 37.1774 | D155: 31.8988 | E155: 35.6771 | F155: 28183.68 | G155: 17.11 | H155: 37.1234 | I155: 31.8847 | J155: 35.6145
B156: 1325.7344 | C156: 35.1728 | D156: 31.1639 | E156: 33.792 | F156: 20714.06 | G156: 14.47 | H156: 35.1187 | I156: 31.1514 | J156: 33.7309
B157: 34083.3712 | C157: 44.3778 | D157: 46.6048 | E157: 46.6594 | F157: 118526.63 | G157: 50.99 | H157: 44.0046 | I157: 46.4185 | J157: 46.4738
B158: 20366.5184 | C158: 39.3087 | D158: 42.0784 | E158: 42.2534 | F158: 102118.56 | G158: 45.13 | H158: 38.979 | I158: 41.8935 | J158: 42.0894
B159: 11813.1744 | C159: 34.9225 | D159: 37.7837 | E159: 38.1887 | F159: 88773.27 | G159: 39.57 | H159: 34.6488 | I159: 37.5866 | J159: 38.0273
B160: 6852.6464 | C160: 31.1523 | D160: 34.18 | E160: 34.6208 | F160: 76215.94 | G160: 35.4 | H160: 30.9365 | I160: 34.0244 | J160: 34.5007
B161: 1977.2728 | C161: 51.1256 | D161: 51.52 | E161: 51.7677 | F161: 31177.77 | G161: 43.7 | H161: 51.0969 | I161: 51.4815 | J161: 51.7322
B162: 1734.9176 | C162: 46.4477 | D162: 46.899 | E162: 47.1742 | F162: 30091.88 | G162: 43.77 | H162: 46.4082 | I162: 46.8507 | J162: 47.1216
B163: 1508.9456 | C163: 41.4947 | D163: 42.2894 | E163: 42.5439 | F163: 29302.69 | G163: 43.92 | H163: 41.4391 | I163: 42.2277 | J163: 42.4865
B164: 1266.5448 | C164: 36.3353 | D164: 38.1898 | E164: 38.1038 | F164: 27237.29 | G164: 43.78 | H164: 36.2807 | I164: 38.126 | J164: 38.0512
B165: 5778.3576 | C165: 52.6964 | D165: 53.93 | E165: 53.739 | F165: 74917.21 | G165: 47.37 | H165: 52.6523 | I165: 53.8799 | J165: 53.6678
B166: 4563.9496 | C166: 47.6567 | D166: 49.2391 | E166: 48.712 | F166: 72258.72 | G166: 46.4 | H166: 47.5685 | I166: 49.1688 | J166: 48.6027
B167: 3549.3584 | C167: 42.1347 | D167: 45.1197 | E167: 43.8888 | F167: 67483.89 | G167: 45.53 | H167: 42.0028 | I167: 45.0092 | J167: 43.7507
B168: 2663.008 | C168: 36.6381 | D168: 41.0197 | E168: 39.2887 | F168: 59577.62 | G168: 44.79 | H168: 36.5328 | I168: 40.9046 | J168: 39.123
B169: 437.7488 | C169: 50.4862 | D169: 51.6437 | E169: 52.402 | F169: 3864.84 | G169: 9.77 | H169: 50.3443 | I169: 51.5897 | J169: 52.3483
B170: 339.224 | C170: 46.1935 | D170: 47.5075 | E170: 48.3633 | F170: 3718.22 | G170: 9.78 | H170: 46.0723 | I170: 47.4396 | J170: 48.2934
B171: 256.3328 | C171: 42.0836 | D171: 43.3899 | E171: 43.7747 | F171: 3697.99 | G171: 9.87 | H171: 41.9739 | I171: 43.3473 | J171: 43.7028
B172: 181.56 | C172: 37.2893 | D172: 37.556 | E172: 38.018 | F172: 3588.1 | G172: 9.8 | H172: 37.2113 | I172: 37.523 | J172: 37.9691
B173: 2110.2008 | C173: 47.4294 | D173: 50.0791 | E173: 51.3206 | F173: 16388.18 | G173: 20.87 | H173: 46.8827 | I173: 49.5399 | J173: 50.845
B174: 1344.9312 | C174: 43.0097 | D174: 46.7844 | E174: 48.5277 | F174: 15154.77 | G174: 20.5 | H174: 42.4128 | I174: 46.2014 | J174: 48.0837
B175: 829.5816 | C175: 38.5016 | D175: 43.3287 | E175: 45.7788 | F175: 13548.65 | G175: 20.16 | H175: 37.8708 | I175: 42.7744 | J175: 45.4449
B176: 501.2288 | C176: 34.6906 | D176: 39.7834 | E176: 42.4715 | F176: 11887.03 | G176: 19.69 | H176: 34.122 | I176: 39.279 | J176: 42.2787
B177: 6127.7408 | C177: 47.5507 | D177: 47.1858 | E177: 47.9205 | F177: 39744.01 | G177: 25.59 | H177: 47.3782 | I177: 47.0296 | J177: 47.8057
B178: 3274.1568 | C178: 43.1804 | D178: 42.8011 | E178: 43.9819 | F178: 33628.35 | G178: 23.32 | H178: 42.9532 | I178: 42.5777 | J178: 43.8608
B179: 1585.0736 | C179: 38.8437 | D179: 38.8322 | E179: 40.4511 | F179: 27159.18 | G179: 21.9 | H179: 38.6537 | I179: 38.5969 | J179: 40.3514
B180: 781.3816 | C180: 34.9615 | D180: 35.8291 | E180: 37.5869 | F180: 22192.58 | G180: 20.75 | H180: 34.8509 | I180: 35.6405 | J180: 37.4895
B181: 726.9373 | C181: 50.5643 | D181: 55.6145 | E181: 56.8482 | F181: 22727.44 | G181: 19.76 | H181: 49.3773 | I181: 54.3379 | J181: 55.4666
B182: 431.7018 | C182: 46.9146 | D182: 52.6184 | E182: 54.0236 | F182: 19853.36 | G182: 19 | H182: 45.6342 | I182: 51.2356 | J182: 52.5584
B183: 266.6234 | C183: 43.3673 | D183: 49.6872 | E183: 51.3776 | F183: 17494.76 | G183: 18.3 | H183: 42.0916 | I183: 48.2493 | J183: 49.8253
B184: 170.3206 | C184: 39.7113 | D184: 46.9136 | E184: 48.7305 | F184: 15848.32 | G184: 17.8 | H184: 38.5735 | I184: 45.3669 | J184: 47.2061
B185: 6577.48 | C185: 46.3215 | D185: 50.0209 | E185: 50.0328 | F185: 33388.4 | G185: 40.22 | H185: 46.3107 | I185: 50.0148 | J185: 50.0242
B186: 3567.0304 | C186: 42.9382 | D186: 46.7543 | E186: 46.7162 | F186: 27915.58 | G186: 39.15 | H186: 42.9279 | I186: 46.7496 | J186: 46.7098
B187: 2091.5664 | C187: 39.2905 | D187: 43.2252 | E187: 43.1973 | F187: 24226.32 | G187: 39.06 | H187: 39.2797 | I187: 43.2199 | J187: 43.1912
B188: 1270.7392 | C188: 35.5628 | D188: 39.7351 | E188: 39.6271 | F188: 21309.39 | G188: 38.64 | H188: 35.5528 | I188: 39.7303 | J188: 39.6224
B189: 7710.8912 | C189: 46.0144 | D189: 50.8416 | E189: 51.8454 | F189: 44753.19 | G189: 44.11 | H189: 45.8758 | I189: 50.7376 | J189: 51.7317
B190: 4339.2048 | C190: 42.6046 | D190: 48.0513 | E190: 48.8363 | F190: 40459.34 | G190: 42.75 | H190: 42.4244 | I190: 47.8845 | J190: 48.6645
B191: 2402.704 | C191: 39.1709 | D191: 45.0464 | E191: 45.7176 | F191: 33961.71 | G191: 41.56 | H191: 38.9766 | I191: 44.8236 | J191: 45.4655
B192: 1380.9728 | C192: 35.8215 | D192: 42.0115 | E192: 42.8084 | F192: 29816.7 | G192: 40.43 | H192: 35.6608 | I192: 41.6542 | J192: 42.384
B193: 3096.3088 | C193: 47.216 | D193: 50.3538 | E193: 50.7206 | F193: 34730.66 | G193: 47.22 | H193: 47.0032 | I193: 50.248 | J193: 50.6283
B194: 1875.1704 | C194: 43.5325 | D194: 46.8369 | E194: 47.1113 | F194: 31308.1 | G194: 45.99 | H194: 43.3053 | I194: 46.73 | J194: 46.9886
B195: 1166.2176 | C195: 39.6241 | D195: 43.0779 | E195: 43.6033 | F195: 28236.05 | G195: 45.05 | H195: 39.4187 | I195: 42.9524 | J195: 43.437
B196: 738.1032 | C196: 35.5718 | D196: 39.4304 | E196: 39.9617 | F196: 26062.23 | G196: 44.42 | H196: 35.4336 | I196: 39.2491 | J196: 39.6776
B197: 5143.2776 | C197: 40.921 | D197: 44.6705 | E197: 44.1695 | F197: 28640.33 | G197: 19.43 | H197: 40.8453 | I197: 44.6472 | J197: 44.1448
B198: 1879.2176 | C198: 37.6731 | D198: 42.2306 | E198: 41.6292 | F198: 20974.03 | G198: 15.24 | H198: 37.636 | I198: 42.2184 | J198: 41.6152
B199: 721.0576 | C199: 35.1145 | D199: 40.3953 | E199: 39.8111 | F199: 15986.31 | G199: 13.02 | H199: 35.0951 | I199: 40.3875 | J199: 39.7998
B200: 316.12 | C200: 32.9462 | D200: 38.7295 | E200: 38.351 | F200: 13251.29 | G200: 11.92 | H200: 32.9338 | I200: 38.7228 | J200: 38.3398
... 112 more rows

Sheet Test
A1: AI | B1: 99746.512 | C1: 49.8854 | D1: 49.4967 | E1: 49.2154 | F1: 34526.46 | G1: 60.83 | H1: 49.8702 | I1: 49.4854 | J1: 49.2017
B2: 79988.6512 | C2: 44.911 | D2: 44.5177 | E2: 44.2513 | F2: 33498.71 | G2: 59.32 | H2: 44.8964 | I2: 44.5075 | J2: 44.2399
B3: 62190.7568 | C3: 40.0983 | D3: 39.8366 | E3: 39.6256 | F3: 31813.28 | G3: 56.94 | H3: 40.0852 | I3: 39.8265 | J3: 39.6145
B4: 45890.4128 | C4: 35.3986 | D4: 35.1751 | E4: 35.0122 | F4: 29767.63 | G4: 54.99 | H4: 35.3896 | I4: 35.1673 | J4: 35.0045
B5: 52658.2496 | C5: 54.9005 | D5: 54.1546 | E5: 53.4815 | F5: 53719.84 | G5: 96.69 | H5: 54.8959 | I5: 54.1528 | J5: 53.4791
B6: 47295.5848 | C6: 49.921 | D6: 48.9184 | E6: 48.3646 | F6: 53742.97 | G6: 96.95 | H6: 49.9095 | I6: 48.9157 | J6: 48.3607
B7: 42083.3864 | C7: 44.7826 | D7: 43.9581 | E7: 43.4362 | F7: 51974.13 | G7: 96.21 | H7: 44.7692 | I7: 43.9551 | J7: 43.4332
B8: 36095.3704 | C8: 39.0649 | D8: 38.5338 | E8: 38.1652 | F8: 50135.97 | G8: 94.88 | H8: 39.057 | I8: 38.5272 | J8: 38.16
B9: 44102.5152 | C9: 57.6325 | D9: 57.264 | E9: 56.634 | F9: 45382.89 | G9: 88.13 | H9: 57.6184 | I9: 57.2489 | J9: 56.6209
B10: 39107.4368 | C10: 52.332 | D10: 51.7356 | E10: 51.2148 | F10: 45513.18 | G10: 88.54 | H10: 52.3196 | I10: 51.7208 | J10: 51.2031
B11: 33981.7776 | C11: 47.5749 | D11: 47.3221 | E11: 46.8657 | F11: 42800.05 | G11: 87.58 | H11: 47.5613 | I11: 47.3034 | J11: 46.8532
B12: 28904.1072 | C12: 41.8996 | D12: 42.0133 | E12: 41.4217 | F12: 40889.29 | G12: 87.11 | H12: 41.8891 | I12: 41.9991 | J12: 41.4102
B13: 10631.6528 | C13: 54.108 | D13: 52.8138 | E13: 52.6295 | F13: 10324.27 | G13: 22.04 | H13: 53.4768 | I13: 52.3325 | J13: 52.2012
B14: 8639.412 | C14: 49.6189 | D14: 48.3727 | E14: 48.3118 | F14: 9914.07 | G14: 21.23 | H14: 49.1198 | I14: 47.9873 | J14: 47.9609
B15: 7132.6688 | C15: 45.3998 | D15: 44.1199 | E15: 44.0543 | F15: 9329.2 | G15: 20.61 | H15: 44.9902 | I15: 43.809 | J15: 43.7913
B16: 5427.8728 | C16: 39.036 | D16: 38.0953 | E16: 37.9763 | F16: 9396.03 | G16: 19.73 | H16: 38.8856 | I16: 37.9581 | J16: 37.864
B17: 64243.8368 | C17: 48.6434 | D17: 47.823 | E17: 48.1001 | F17: 34638.14 | G17: 60.65 | H17: 48.2201 | I17: 47.3555 | J17: 47.7118
B18: 45975.5128 | C18: 43.7944 | D18: 42.9956 | E18: 43.4733 | F18: 32014.65 | G18: 60.01 | H18: 43.3418 | I18: 42.5171 | J18: 43.068
B19: 30173.7416 | C19: 39.1752 | D19: 38.4879 | E19: 39.1728 | F19: 29102.23 | G19: 56.38 | H19: 38.5872 | I19: 37.9071 | J19: 38.6695
B20: 19012.4056 | C20: 35.0779 | D20: 34.4477 | E20: 35.2922 | F20: 24554.96 | G20: 51.49 | H20: 34.4738 | I20: 33.8311 | J20: 34.7642
B21: 60661.544 | C21: 47.9877 | D21: 47.3812 | E21: 47.2532 | F21: 29235.91 | G21: 64.82 | H21: 47.961 | I21: 47.3312 | J21: 47.2213
B22: 44559.1776 | C22: 43.8237 | D22: 42.7982 | E22: 43.033 | F22: 27925.15 | G22: 60.13 | H22: 43.7968 | I22: 42.7672 | J22: 43.0108
B23: 31577.0312 | C23: 39.6446 | D23: 38.3259 | E23: 38.708 | F23: 26045.36 | G23: 55.86 | H23: 39.6232 | I23: 38.3056 | J23: 38.6915
B24: 21196.8 | C24: 35.3727 | D24: 34.053 | E24: 34.4405 | F24: 23703.67 | G24: 51.56 | H24: 35.3554 | I24: 34.0386 | J24: 34.4279
B25: 7383.1693 | C25: 51.173 | D25: 50.7245 | E25: 50.8609 | F25: 14766.24 | G25: 39.73 | H25: 49.9862 | I25: 49.5275 | J25: 49.7177
B26: 4808.7357 | C26: 47.68 | D26: 47.1444 | E26: 47.3232 | F26: 13525.52 | G26: 35.83 | H26: 46.5172 | I26: 45.9941 | J26: 46.2268
B27: 3134.4262 | C27: 44.271 | D27: 43.7909 | E27: 43.9448 | F27: 12101.03 | G27: 32.83 | H27: 43.147 | I27: 42.6674 | J27: 42.887
B28: 2043.3245 | C28: 40.7677 | D28: 40.326 | E28: 40.4482 | F28: 10922.07 | G28: 30.27 | H28: 39.7225 | I28: 39.2587 | J28: 39.4705
B29: 206537.16 | C29: 46.3108 | D29: 45.7332 | E29: 45.6281 | F29: 66894.56 | G29: 136.72 | H29: 46.3107 | I29: 45.7331 | J29: 45.628
B30: 137907.2064 | C30: 42.664 | D30: 41.9761 | E30: 41.9875 | F30: 63378.18 | G30: 122.61 | H30: 42.664 | I30: 41.976 | J30: 41.9875
B31: 94888.072 | C31: 38.9794 | D31: 38.4021 | E31: 38.4023 | F31: 56274.24 | G31: 112.45 | H31: 38.9794 | I31: 38.4021 | J31: 38.4023
B32: 64873.3648 | C32: 35.2237 | D32: 34.6563 | E32: 34.6 | F32: 49437.14 | G32: 103.57 | H32: 35.2236 | I32: 34.6561 | J32: 34.5998
B33: 161117.0032 | C33: 45.9953 | D33: 45.4023 | E33: 45.4987 | F33: 64249.8 | G33: 133.28 | H33: 45.8932 | I33: 45.298 | J33: 45.3944
B34: 107636.8304 | C34: 42.6716 | D34: 42.2865 | E34: 42.2385 | F34: 54450.71 | G34: 121.48 | H34: 42.5778 | I34: 42.2108 | J34: 42.1539
B35: 69963.7536 | C35: 39.1833 | D35: 39.0077 | E35: 38.8421 | F35: 43829.99 | G35: 111.44 | H35: 39.1094 | I35: 38.9558 | J35: 38.7777
B36: 44267.792 | C36: 35.8612 | D36: 35.7293 | E36: 35.5229 | F36: 37535.73 | G36: 100.63 | H36: 35.8048 | I36: 35.7011 | J36: 35.471
B37: 106079.7608 | C37: 46.9837 | D37: 46.4065 | E37: 46.4376 | F37: 69671.92 | G37: 148.4 | H37: 46.8047 | I37: 46.2355 | J37: 46.268
B38: 75112.1488 | C38: 43.2341 | D38: 42.689 | E38: 42.6579 | F38: 64182.72 | G38: 135.79 | H38: 43.0749 | I38: 42.5668 | J38: 42.524
B39: 52641.9464 | C39: 39.2053 | D39: 38.9056 | E39: 38.7068 | F39: 55999.12 | G39: 125.75 | H39: 39.0788 | I39: 38.8168 | J39: 38.6041
B40: 36043.5728 | C40: 35.138 | D40: 34.9378 | E40: 34.7189 | F40: 50364.28 | G40: 115.58 | H40: 35.0529 | I40: 34.8865 | J40: 34.6475
B41: 68513.0208 | C41: 42.3554 | D41: 42.329 | E41: 41.8894 | F41: 28729.63 | G41: 61.72 | H41: 42.3553 | I41: 42.3288 | J41: 41.889
B42: 36758.6536 | C42: 38.1828 | D42: 38.4838 | E42: 37.8322 | F42: 24588.37 | G42: 49.02 | H42: 38.1825 | I42: 38.4827 | J42: 37.8317
B43: 16886.2864 | C43: 34.7208 | D43: 35.334 | E43: 34.4655 | F43: 20261.57 | G43: 37.86 | H43: 34.7195 | I43: 35.3312 | J43: 34.4645
B44: 7778.5504 | C44: 32.168 | D44: 32.8673 | E44: 31.8309 | F44: 14239.54 | G44: 30.29 | H44: 32.1662 | I44: 32.8634 | J44: 31.8296
B45: 135813.3232 | C45: 43.5081 | D45: 41.6286 | E45: 44.0127 | F45: 43597.87 | G45: 86.01 | H45: 43.508 | I45: 41.6286 | J45: 44.0126
B46: 76282.4016 | C46: 40.5316 | D46: 38.866 | E46: 41.0303 | F46: 34861.01 | G46: 74.23 | H46: 40.5312 | I46: 38.8656 | J46: 41.0299
B47: 42634.3456 | C47: 37.4713 | D47: 36.166 | E47: 38.0012 | F47: 27946.66 | G47: 65.22 | H47: 37.4701 | I47: 36.1644 | J47: 38.0004
B48: 23385.4672 | C48: 34.4749 | D48: 33.5003 | E48: 35.0208 | F48: 21084.48 | G48: 56.4 | H48: 34.4724 | I48: 33.4969 | J48: 35.0194
B49: 112032.7376 | C49: 41.4375 | D49: 40.4417 | E49: 40.5506 | F49: 21610.9 | G49: 43.68 | H49: 41.4371 | I49: 40.4416 | J49: 40.5504
B50: 45165.232 | C50: 40.1766 | D50: 35.4501 | E50: 38.8336 | F50: 18356.84 | G50: 33.93 | H50: 40.1761 | I50: 35.4499 | J50: 38.8333
B51: 13734.8976 | C51: 38.7391 | D51: 32.6882 | E51: 37.4712 | F51: 11995.93 | G51: 27.75 | H51: 38.7382 | I51: 32.6872 | J51: 37.4707
B52: 7111.208 | C52: 36.76 | D52: 31.9266 | E52: 35.5432 | F52: 7563.41 | G52: 25.17 | H52: 36.7583 | I52: 31.9257 | J52: 35.5424
B53: 79733.8464 | C53: 49.3812 | D53: 50.3556 | E53: 50.5407 | F53: 30960.17 | G53: 58.74 | H53: 49.3695 | I53: 50.3387 | J53: 50.5251
B54: 60978.952 | C54: 44.4426 | D54: 45.6691 | E54: 45.8249 | F54: 30830.4 | G54: 56.31 | H54: 44.432 | I54: 45.6536 | J54: 45.8113
B55: 44813.424 | C55: 39.5809 | D55: 41.3997 | E55: 41.5402 | F55: 28811.04 | G55: 53.93 | H55: 39.5723 | I55: 41.3856 | J55: 41.5296
B56: 31285.312 | C56: 34.8064 | D56: 37.2507 | E56: 37.4628 | F56: 25133.18 | G56: 51.4 | H56: 34.8005 | I56: 37.2354 | J56: 37.4513
B57: 47933.8008 | C57: 53.4057 | D57: 54.0843 | E57: 54.3481 | F57: 49176.48 | G57: 93.68 | H57: 53.4032 | I57: 54.0687 | J57: 54.3349
B58: 41808.136 | C58: 48.1129 | D58: 48.5446 | E58: 49.1385 | F58: 48246.94 | G58: 94.25 | H58: 48.1078 | I58: 48.525 | J58: 49.1236
B59: 35232.8064 | C59: 42.6642 | D59: 43.3244 | E59: 43.7207 | F59: 46431.77 | G59: 93.9 | H59: 42.659 | I59: 43.3003 | J59: 43.7028
B60: 27659.1576 | C60: 36.7984 | D60: 38.1893 | E60: 38.2021 | F60: 44942.49 | G60: 93.17 | H60: 36.7897 | I60: 38.1378 | J60: 38.154
B61: 40925.8072 | C61: 55.9833 | D61: 57.3132 | E61: 56.8561 | F61: 42927.83 | G61: 87.21 | H61: 55.9694 | I61: 57.2904 | J61: 56.8424
B62: 34390.8088 | C62: 50.5037 | D62: 52.1024 | E62: 51.6852 | F62: 43106.79 | G62: 87.5 | H62: 50.4922 | I62: 52.0841 | J62: 51.6723
B63: 28440.1584 | C63: 44.8109 | D63: 47.7195 | E63: 46.3172 | F63: 39914.95 | G63: 87.82 | H63: 44.7962 | I63: 47.7026 | J63: 46.2865
B64: 21927.6584 | C64: 38.9687 | D64: 43.1883 | E64: 41.6422 | F64: 38347.2 | G64: 86.52 | H64: 38.9577 | I64: 43.1735 | J64: 41.6187
B65: 8846.0272 | C65: 52.9752 | D65: 54.767 | E65: 55.0235 | F65: 9553.95 | G65: 20.81 | H65: 52.6252 | I65: 54.6437 | J65: 54.9199
B66: 7039.4672 | C66: 48.3229 | D66: 49.5181 | E66: 49.9628 | F66: 9320.81 | G66: 20.35 | H66: 48.0419 | I66: 49.4736 | J66: 49.9044
B67: 5215.8624 | C67: 42.5921 | D67: 43.5316 | E67: 44.2281 | F67: 8791.53 | G67: 20.01 | H67: 42.4467 | I67: 43.4828 | J67: 44.1704
B68: 3551.0456 | C68: 37.1037 | D68: 38.0273 | E68: 38.7022 | F68: 8381.96 | G68: 19.18 | H68: 37.0525 | I68: 37.9774 | J68: 38.6357
B69: 44616.0256 | C69: 47.5788 | D69: 50.8302 | E69: 52.3772 | F69: 27517.79 | G69: 60.5 | H69: 47.1188 | I69: 50.1986 | J69: 51.7933
B70: 29769.5208 | C70: 42.8533 | D70: 46.9551 | E70: 48.9318 | F70: 25655.43 | G70: 57.41 | H70: 42.3114 | I70: 46.2337 | J70: 48.3389
B71: 18847.7048 | C71: 38.3784 | D71: 43.3191 | E71: 45.927 | F71: 21262.41 | G71: 52.17 | H71: 37.7703 | I71: 42.6531 | J71: 45.4822
B72: 11848.4008 | C72: 34.5827 | D72: 39.7762 | E72: 42.7459 | F72: 17394.24 | G72: 46.07 | H72: 34.06 | I72: 39.1696 | J72: 42.456
B73: 42959.0392 | C73: 48.334 | D73: 48.1025 | E73: 48.63 | F73: 25093.04 | G73: 61.3 | H73: 48.2991 | I73: 48.0794 | J73: 48.6101
B74: 29618.8424 | C74: 44.1502 | D74: 43.9221 | E74: 44.5625 | F74: 23995.3 | G74: 56.56 | H74: 44.1133 | I74: 43.9012 | J74: 44.5461
B75: 19659.8264 | C75: 39.8078 | D75: 40.0332 | E75: 40.9516 | F75: 21512.96 | G75: 51.97 | H75: 39.7777 | I75: 40.0065 | J75: 40.9285
B76: 12910.6096 | C76: 35.2753 | D76: 36.7437 | E76: 37.8288 | F76: 18784.05 | G76: 47.7 | H76: 35.2457 | I76: 36.6949 | J76: 37.7799
B77: 4657.6701 | C77: 51.125 | D77: 55.7748 | E77: 56.9552 | F77: 12311.42 | G77: 34.92 | H77: 49.9821 | I77: 54.3508 | J77: 55.3341
B78: 2961.6435 | C78: 47.6004 | D78: 52.7971 | E78: 54.1486 | F78: 11375.51 | G78: 32.24 | H78: 46.5215 | I78: 51.2422 | J78: 52.4216
B79: 1906.375 | C79: 43.9399 | D79: 49.9432 | E79: 51.5919 | F79: 10262.31 | G79: 30.03 | H79: 42.9904 | I79: 48.2576 | J79: 49.7825
B80: 1218.2915 | C80: 40.035 | D80: 46.9871 | E80: 48.9701 | F80: 9334.64 | G80: 27.86 | H80: 39.2455 | I80: 45.328 | J80: 47.1684
B81: 135112.448 | C81: 46.3062 | D81: 49.9498 | E81: 49.9606 | F81: 42521.36 | G81: 120.36 | H81: 46.3062 | I81: 49.9496 | J81: 49.9605
B82: 92186.12 | C82: 42.64 | D82: 46.3707 | E82: 46.3969 | F82: 40063.65 | G82: 109.97 | H82: 42.6399 | I82: 46.3705 | J82: 46.3966
B83: 62549.7824 | C83: 38.8686 | D83: 42.7929 | E83: 42.7725 | F83: 36157.61 | G83: 101.57 | H83: 38.8685 | I83: 42.7926 | J83: 42.7721
B84: 41049.3232 | C84: 34.8342 | D84: 38.8465 | E84: 38.8596 | F84: 32357.55 | G84: 94.13 | H84: 34.8341 | I84: 38.8462 | J84: 38.8592
B85: 107208.4688 | C85: 46.2112 | D85: 50.8572 | E85: 51.8041 | F85: 35518.27 | G85: 117.94 | H85: 46.1183 | I85: 50.7904 | J85: 51.7285
B86: 69930.792 | C86: 42.7541 | D86: 47.9327 | E86: 48.6198 | F86: 31698.04 | G86: 107.2 | H86: 42.6728 | I86: 47.8138 | J86: 48.4627
B87: 42968.8464 | C87: 39.2712 | D87: 44.7205 | E87: 45.3569 | F87: 28162.85 | G87: 97.27 | H87: 39.2154 | I87: 44.5333 | J87: 45.1182
B88: 26109.5136 | C88: 35.6974 | D88: 41.6487 | E88: 42.4497 | F88: 25788.41 | G88: 87.78 | H88: 35.648 | I88: 41.3402 | J88: 42.0634
B89: 74194.4112 | C89: 46.9907 | D89: 49.9216 | E89: 50.2845 | F89: 40443.74 | G89: 132.38 | H89: 46.8311 | I89: 49.8556 | J89: 50.2267
B90: 51645.872 | C90: 43.1205 | D90: 46.1592 | E90: 46.4544 | F90: 37509.76 | G90: 121.61 | H90: 42.9787 | I90: 46.0918 | J90: 46.3655
B91: 34903.6176 | C91: 39.0713 | D91: 42.4184 | E91: 42.9484 | F91: 34783.65 | G91: 112.24 | H91: 38.959 | I91: 42.3314 | J91: 42.8198
B92: 22871.8976 | C92: 34.7463 | D92: 38.7097 | E92: 39.2035 | F92: 31370.97 | G92: 102.92 | H92: 34.67 | I92: 38.5258 | J92: 38.9056
B93: 37563.6528 | C93: 42.4807 | D93: 45.2202 | E93: 44.8198 | F93: 20241.57 | G93: 47.16 | H93: 42.4806 | I93: 45.2187 | J93: 44.8184
B94: 17543.5344 | C94: 38.6214 | D94: 42.4357 | E94: 41.8119 | F94: 17890.04 | G94: 36.61 | H94: 38.6208 | I94: 42.4327 | J94: 41.8086
B95: 7955.3504 | C95: 35.6274 | D95: 40.3408 | E95: 39.784 | F95: 12311.14 | G95: 29.22 | H95: 35.6261 | I95: 40.3374 | J95: 39.7781
B96: 3753.1912 | C96: 33.1544 | D96: 38.4135 | E96: 38.1178 | F96: 8138.05 | G96: 23.9 | H96: 33.153 | I96: 38.4098 | J96: 38.1103
B97: 87814.3984 | C97: 43.6714 | D97: 47.0056 | E97: 48.4082 | F97: 25459.38 | G97: 73.57 | H97: 43.6713 | I97: 47.0047 | J97: 48.4073
B98: 51920.8656 | C98: 40.5631 | D98: 45.3102 | E98: 46.5539 | F98: 21007.71 | G98: 63.94 | H98: 40.5627 | I98: 45.3085 | J98: 46.5529
B99: 29563.4416 | C99: 37.3692 | D99: 43.5046 | E99: 44.5091 | F99: 17236.1 | G99: 55.44 | H99: 37.368 | I99: 43.5022 | J99: 44.5083
B100: 16251.9456 | C100: 34.2479 | D100: 41.7482 | E100: 42.2277 | F100: 14281.26 | G100: 47.82 | H100: 34.2452 | I100: 41.7445 | J100: 42.2264
B101: 45859.6192 | C101: 42.9991 | D101: 40.52 | E101: 42.9237 | F101: 14745.38 | G101: 33.77 | H101: 42.9987 | I101: 40.5198 | J101: 42.9234
B102: 14114.968 | C102: 41.651 | D102: 37.8815 | E102: 42.0453 | F102: 11201.65 | G102: 26.79 | H102: 41.6503 | I102: 37.8806 | J102: 42.045
B103: 7471.1152 | C103: 39.816 | D103: 37.3501 | E103: 40.9467 | F103: 7324.03 | G103: 23.9 | H103: 39.8145 | I103: 37.3493 | J103: 40.9462
B104: 4008.8144 | C104: 37.4189 | D104: 36.7675 | E104: 39.7651 | F104: 5118.82 | G104: 20.61 | H104: 37.4168 | I104: 36.7667 | J104: 39.7641
A105: RA | B105: 48453.6048 | C105: 45.1523 | D105: 44.9957 | E105: 44.7289 | F105: 144781.36 | G105: 53.56 | H105: 44.7124 | I105: 44.5544 | J105: 44.2977
B106: 30360.976 | C106: 39.7975 | D106: 39.7032 | E106: 39.566 | F106: 131215.21 | G106: 48.8 | H106: 39.38 | I106: 39.2571 | J106: 39.1569
B107: 18423.6576 | C107: 35.2885 | D107: 34.9961 | E107: 35.0553 | F107: 115524.5 | G107: 43.73 | H107: 34.9508 | I107: 34.5953 | J107: 34.7092
B108: 11532.9456 | C108: 31.6142 | D108: 31.0182 | E108: 31.269 | F108: 97732.37 | G108: 39.58 | H108: 31.3513 | I108: 30.6788 | J108: 30.9899
B109: 1990.76 | C109: 55.7177 | D109: 54.905 | E109: 54.2644 | F109: 34228.95 | G109: 45.77 | H109: 55.693 | I109: 54.8874 | J109: 54.2494
B110: 1840.7304 | C110: 50.9044 | D110: 49.7548 | E110: 49.3238 | F110: 33263.35 | G110: 45.96 | H110: 50.86 | I110: 49.726 | J110: 49.2984
B111: 1679.0104 | C111: 45.852 | D111: 44.8874 | E111: 44.4732 | F111: 31931.93 | G111: 46.1 | H111: 45.7669 | I111: 44.8251 | J111: 44.4159
B112: 1499.1384 | C112: 40.1878 | D112: 39.5903 | E112: 39.2155 | F112: 30195.38 | G112: 46.1 | H112: 40.0931 | I112: 39.5158 | J112: 39.1398
B113: 6784.4672 | C113: 56.1235 | D113: 56.1341 | E113: 55.3253 | F113: 85353.35 | G113: 48.38 | H113: 55.9718 | I113: 56.0225 | J113: 55.2229
B114: 5730.6144 | C114: 50.6871 | D114: 50.5322 | E114: 49.8931 | F114: 80894.5 | G114: 48.21 | H114: 50.4603 | I114: 50.3692 | J114: 49.7323
B115: 4704.144 | C115: 45.3107 | D115: 45.433 | E115: 44.6933 | F115: 74440.41 | G115: 47.77 | H115: 44.978 | I115: 45.1775 | J115: 44.4176
B116: 3820.9624 | C116: 40.1483 | D116: 40.5552 | E116: 39.4358 | F116: 67235.67 | G116: 47.35 | H116: 39.8734 | I116: 40.3228 | J116: 39.1288
B117: 516.1008 | C117: 54.6129 | D117: 53.3108 | E117: 53.203 | F117: 4006.32 | G117: 10.33 | H117: 53.8492 | I117: 52.7412 | J117: 52.6613
B118: 415.8752 | C118: 50.2499 | D118: 48.9947 | E118: 48.9909 | F118: 4084.18 | G118: 10.35 | H118: 49.5994 | I118: 48.4951 | J118: 48.5182
B119: 341.008 | C119: 46.4446 | D119: 45.139 | E119: 45.0677 | F119: 3841.46 | G119: 10.4 | H119: 45.7625 | I119: 44.6268 | J119: 44.6063
B120: 264.8832 | C120: 40.4064 | D120: 39.6218 | E120: 39.4248 | F120: 3825.29 | G120: 10.34 | H120: 40.1644 | I120: 39.3839 | J120: 39.2324
B121: 3228.6848 | C121: 48.8967 | D121: 48.1413 | E121: 48.4255 | F121: 18513.03 | G121: 22.37 | H121: 48.2261 | I121: 47.4257 | J121: 47.8404
B122: 2116.4104 | C122: 44.1926 | D122: 43.4404 | E122: 43.9204 | F122: 17200.46 | G122: 21.98 | H122: 43.5365 | I122: 42.7429 | J122: 43.3476
B123: 1351.412 | C123: 39.6825 | D123: 39.0129 | E123: 39.6839 | F123: 15310.25 | G123: 21.6 | H123: 38.9904 | I123: 38.2856 | J123: 39.0814
B124: 837.7016 | C124: 35.5912 | D124: 34.9464 | E124: 35.7915 | F124: 13595.15 | G124: 21.29 | H124: 34.8894 | I124: 34.1971 | J124: 35.1792
B125: 9742.6584 | C125: 47.2756 | D125: 46.6816 | E125: 46.3823 | F125: 45379.94 | G125: 28.55 | H125: 47.1113 | I125: 46.4806 | J125: 46.2052
B126: 5947.3024 | C126: 42.9669 | D126: 41.7593 | E126: 41.9027 | F126: 38619.98 | G126: 26.21 | H126: 42.7344 | I126: 41.4728 | J126: 41.6535
B127: 3264.6 | C127: 38.8351 | D127: 37.0029 | E127: 37.5399 | F127: 32264.72 | G127: 24.46 | H127: 38.6145 | I127: 36.6975 | J127: 37.3035
B128: 1699.2056 | C128: 35.0115 | D128: 33.0232 | E128: 33.7616 | F128: 26784.8 | G128: 23.06 | H128: 34.861 | I128: 32.8084 | J128: 33.603
B129: 1205.5974 | C129: 50.8786 | D129: 50.3902 | E129: 50.5602 | F129: 25931.14 | G129: 21.63 | H129: 49.6845 | I129: 49.1859 | J129: 49.3925
B130: 721.927 | C130: 47.2361 | D130: 46.587 | E130: 46.8263 | F130: 22792.77 | G130: 20.57 | H130: 45.9899 | I130: 45.2777 | J130: 45.5931
B131: 441.7603 | C131: 43.8713 | D131: 43.1578 | E131: 43.4511 | F131: 19778.8 | G131: 19.69 | H131: 42.6026 | I131: 41.7683 | J131: 42.1564
B132: 284.9373 | C132: 40.6372 | D132: 39.9407 | E132: 40.184 | F132: 17681.8 | G132: 19.09 | H132: 39.4181 | I132: 38.6035 | J132: 38.9913
B133: 13701.9872 | C133: 46.2219 | D133: 45.3719 | E133: 45.508 | F133: 40809.36 | G133: 45.73 | H133: 46.2106 | I133: 45.3472 | J133: 45.4904
B134: 6545.0592 | C134: 42.8914 | D134: 42.0111 | E134: 42.0981 | F134: 33301.5 | G134: 42.66 | H134: 42.8823 | I134: 41.9973 | J134: 42.0846
B135: 3614.48 | C135: 39.4777 | D135: 38.7596 | E135: 38.7645 | F135: 27910.66 | G135: 41.61 | H135: 39.469 | I135: 38.7501 | J135: 38.7537
B136: 2185.2208 | C136: 35.9885 | D136: 35.3643 | E136: 35.3122 | F136: 24180.92 | G136: 40.88 | H136: 35.9801 | I136: 35.3564 | J136: 35.3036
B137: 12979.9136 | C137: 45.8881 | D137: 45.4308 | E137: 45.4765 | F137: 55511.57 | G137: 48.51 | H137: 45.7468 | I137: 45.3043 | J137: 45.3346
B138: 7412.6688 | C138: 42.6195 | D138: 42.2793 | E138: 42.2306 | F138: 47331.02 | G138: 46.6 | H138: 42.4285 | I138: 42.1328 | J138: 42.0566
B139: 4209.6368 | C139: 39.2299 | D139: 39.0716 | E139: 38.9061 | F139: 40134.64 | G139: 44.95 | H139: 39.0204 | I139: 38.9142 | J139: 38.7179
B140: 2453.856 | C140: 36.0805 | D140: 35.9867 | E140: 35.777 | F140: 34207.31 | G140: 43.72 | H140: 35.9023 | I140: 35.8599 | J140: 35.6187
B141: 5139.0072 | C141: 47.302 | D141: 46.7334 | E141: 46.7815 | F141: 44774.23 | G141: 51.27 | H141: 47.0638 | I141: 46.537 | J141: 46.5683
B142: 3027.4544 | C142: 43.7559 | D142: 43.2192 | E142: 43.21 | F142: 37493.27 | G142: 49.55 | H142: 43.494 | I142: 43.031 | J142: 42.9977
B143: 1863.6136 | C143: 39.9587 | D143: 39.645 | E143: 39.4886 | F143: 32559.94 | G143: 48.4 | H143: 39.7142 | I143: 39.4702 | J143: 39.2861
B144: 1194.4432 | C144: 36.0812 | D144: 35.9079 | E144: 35.7012 | F144: 28952.6 | G144: 47.51 | H144: 35.9149 | I144: 35.7949 | J144: 35.5565
B145: 10832.968 | C145: 40.4173 | D145: 40.9667 | E145: 40.2253 | F145: 41231.58 | G145: 24.8 | H145: 40.3211 | I145: 40.8972 | J145: 40.1222
B146: 4410.9224 | C146: 37.0094 | D146: 37.666 | E146: 36.6915 | F146: 28273.25 | G146: 19.14 | H146: 36.9618 | I146: 37.6271 | J146: 36.6371
B147: 1681.1272 | C147: 34.2044 | D147: 34.9692 | E147: 33.8586 | F147: 20279.54 | G147: 15.51 | H147: 34.1835 | I147: 34.9488 | J147: 33.8352
B148: 702.4232 | C148: 32.0425 | D148: 32.8426 | E148: 31.6639 | F148: 15858.69 | G148: 13.58 | H148: 32.0312 | I148: 32.8298 | J148: 31.6528
B149: 21343.168 | C149: 42.3464 | D149: 39.9523 | E149: 42.8721 | F149: 60180.76 | G149: 45.05 | H149: 42.3191 | I149: 39.8835 | J149: 42.834
B150: 8685.8432 | C150: 39.8341 | D150: 37.8149 | E150: 40.2159 | F150: 38227.32 | G150: 33.36 | H150: 39.8213 | I150: 37.7835 | J150: 40.1955
B151: 4091.3024 | C151: 37.2357 | D151: 35.6618 | E151: 37.617 | F151: 28552.1 | G151: 28.84 | H151: 37.229 | I151: 35.6474 | J151: 37.6072
B152: 2063.4784 | C152: 34.595 | D152: 33.4762 | E152: 35.0131 | F152: 23947.8 | G152: 26.47 | H152: 34.5901 | I152: 33.4688 | J152: 35.0073
B153: 45198.64 | C153: 40.3022 | D153: 35.7806 | E153: 38.9377 | F153: 83083.12 | G153: 34.88 | H153: 40.2638 | I153: 35.1639 | J153: 38.873
B154: 10049.1792 | C154: 38.9166 | D154: 32.7775 | E154: 37.4396 | F154: 46275.77 | G154: 23.24 | H154: 38.8782 | I154: 32.6642 | J154: 37.3909
B155: 2942.6864 | C155: 37.1751 | D155: 31.8985 | E155: 35.6756 | F155: 29253.37 | G155: 17.69 | H155: 37.1209 | I155: 31.8844 | J155: 35.6127
B156: 1327.9632 | C156: 35.1763 | D156: 31.1656 | E156: 33.7948 | F156: 21189.8 | G156: 14.91 | H156: 35.1227 | I156: 31.1531 | J156: 33.7339
B157: 33677.1584 | C157: 44.6829 | D157: 47.2191 | E157: 47.2873 | F157: 119099.01 | G157: 50.3 | H157: 44.2474 | I157: 46.9821 | J157: 47.0469
B158: 20151.088 | C158: 39.5411 | D158: 42.6423 | E158: 42.8308 | F158: 102794.71 | G158: 44.97 | H158: 39.165 | I158: 42.4064 | J158: 42.6142
B159: 11773.4176 | C159: 35.1459 | D159: 38.4062 | E159: 38.8053 | F159: 89753.66 | G159: 40.02 | H159: 34.8297 | I159: 38.155 | J159: 38.5942
B160: 6915.712 | C160: 31.3725 | D160: 34.7927 | E160: 35.2987 | F160: 76910.33 | G160: 36.02 | H160: 31.1219 | I160: 34.5974 | J160: 35.1421
B161: 1857.5856 | C161: 54.3959 | D161: 54.9487 | E161: 55.1824 | F161: 31321.91 | G161: 45.37 | H161: 54.374 | I161: 54.9263 | J161: 55.1607
B162: 1674.4896 | C162: 49.2852 | D162: 49.6163 | E162: 50.1831 | F162: 30106.28 | G162: 45.48 | H162: 49.239 | I162: 49.5758 | J162: 50.1372
B163: 1481.32 | C163: 43.9462 | D163: 44.631 | E163: 45.0796 | F163: 28681.06 | G163: 45.64 | H163: 43.8663 | I163: 44.5769 | J163: 45.0196
B164: 1257.8976 | C164: 37.8735 | D164: 39.4524 | E164: 39.672 | F164: 27393.74 | G164: 45.64 | H164: 37.8061 | I164: 39.3999 | J164: 39.6191
B165: 5673.7232 | C165: 54.7875 | D165: 56.0745 | E165: 55.4006 | F165: 76362.78 | G165: 48.22 | H165: 54.6692 | I165: 55.9326 | J165: 55.2489
B166: 4506.1336 | C166: 49.359 | D166: 51.0027 | E166: 50.136 | F166: 72742.44 | G166: 47.77 | H166: 49.1745 | I166: 50.8408 | J166: 49.9295
B167: 3531.2264 | C167: 43.6651 | D167: 46.4511 | E167: 44.9799 | F167: 67041.06 | G167: 47.22 | H167: 43.4081 | I167: 46.2462 | J167: 44.7554
B168: 2679.9384 | C168: 37.9657 | D168: 42.1162 | E168: 40.2768 | F168: 61162.2 | G168: 46.55 | H168: 37.7806 | I168: 41.9138 | J168: 40.017
B169: 418.5848 | C169: 53.8179 | D169: 55.6085 | E169: 55.8549 | F169: 3889.55 | G169: 10.33 | H169: 53.3022 | I169: 55.3961 | J169: 55.6669
B170: 336.0632 | C170: 49.3044 | D170: 50.6765 | E170: 51.0885 | F170: 3830.56 | G170: 10.34 | H170: 48.8623 | I170: 50.5652 | J170: 50.9671
B171: 257.5416 | C171: 44.0459 | D171: 45.1058 | E171: 45.4385 | F171: 3719.43 | G171: 10.35 | H171: 43.7896 | I171: 45.0394 | J171: 45.3685
B172: 183.4832 | C172: 38.3536 | D172: 39.5572 | E172: 40.322 | F172: 3633.87 | G172: 10.32 | H172: 38.2447 | I172: 39.4841 | J172: 40.2421
B173: 2117.0936 | C173: 47.9391 | D173: 51.3385 | E173: 52.8795 | F173: 16302.94 | G173: 21.93 | H173: 47.3103 | I173: 50.6337 | J173: 52.2683
B174: 1349.776 | C174: 43.3223 | D174: 47.5765 | E174: 49.5705 | F174: 15333.68 | G174: 21.57 | H174: 42.6387 | I174: 46.8278 | J174: 48.9692
B175: 829.508 | C175: 38.7769 | D175: 43.9177 | E175: 46.6582 | F175: 13718.94 | G175: 21.24 | H175: 38.0525 | I175: 43.2039 | J175: 46.1857
B176: 503.5848 | C176: 34.9164 | D176: 40.4092 | E176: 43.5084 | F176: 12053.53 | G176: 20.85 | H176: 34.2734 | I176: 39.7314 | J176: 43.169
B177: 6133.2112 | C177: 47.693 | D177: 47.3184 | E177: 48.1018 | F177: 39777.67 | G177: 26.45 | H177: 47.5099 | I177: 47.1472 | J177: 47.9727
B178: 3289.9088 | C178: 43.3382 | D178: 42.9574 | E178: 44.1748 | F178: 33977.85 | G178: 24.37 | H178: 43.0976 | I178: 42.7165 | J178: 44.0404
B179: 1603.3144 | C179: 39.1206 | D179: 39.0453 | E179: 40.7881 | F179: 27562.85 | G179: 23.01 | H179: 38.9053 | I179: 38.7836 | J179: 40.6711
B180: 787.4088 | C180: 35.2119 | D180: 36.0642 | E180: 37.9854 | F180: 22550.25 | G180: 21.86 | H180: 35.09 | I180: 35.8578 | J180: 37.8732
B181: 725.2195 | C181: 50.6597 | D181: 55.7707 | E181: 57.0605 | F181: 22779.32 | G181: 20.61 | H181: 49.4548 | I181: 54.4966 | J181: 55.6508
B182: 429.8358 | C182: 47.0088 | D182: 52.8468 | E182: 54.2975 | F182: 20126.7 | G182: 19.78 | H182: 45.7205 | I182: 51.466 | J182: 52.8029
B183: 266.4016 | C183: 43.5207 | D183: 50.0652 | E183: 51.6481 | F183: 17774.61 | G183: 19.17 | H183: 42.2186 | I183: 48.5373 | J183: 50.1054
B184: 171.4099 | C184: 39.8768 | D184: 47.2149 | E184: 49.1475 | F184: 16133.61 | G184: 18.7 | H184: 38.7572 | I184: 45.6498 | J184: 47.5147
B185: 6565.928 | C185: 46.3652 | D185: 50.1296 | E185: 50.169 | F185: 33577.54 | G185: 42.33 | H185: 46.3546 | I185: 50.1236 | J185: 50.1606
B186: 3563.3888 | C186: 42.9985 | D186: 46.9671 | E186: 46.8848 | F186: 28466.65 | G186: 41.3 | H186: 42.9887 | I186: 46.9636 | J186: 46.8789
B187: 2099.4256 | C187: 39.4424 | D187: 43.6897 | E187: 43.5779 | F187: 24426.77 | G187: 40.91 | H187: 39.4335 | I187: 43.6864 | J187: 43.5733
